{"text_format":"1","workbook":"xlsx","n_sheets":6,"sheets":["はじめに","入学志願票（個別の入学資格審査用）","「志願先」欄  選択一覧","「志願先」欄 選択一覧（検索用）","「受験科目」欄 選択一覧（編集用）","「受験科目」欄 選択一覧（検索用）"],"not_rendered":{"charts":0,"images":0,"macros":1,"external_links":0,"defined_names":4,"comments":0,"pivot_tables":0},"unopened":[],"bounds":{"document_bytes":16777216,"sheet_cells":100000,"rows_first":2000,"rows_last":500,"rows_between":2000,"halvings":0,"cell_chars":16384,"cell_head_chars":4096},"cells_cut":0,"cells_raw":0,"read":"whole","date_system":"1900"}

{"sheet":"はじめに","index":0,"n_rows":10,"n_cols":2,"rows_kept":10,"cut":false,"hidden":false,"merged":[]}
["「入学志願票（個別の入学資格審査用）」の作成について"]
[]
["◆","この様式は「個別の入学資格審査」時の書類提出の際にのみ全専攻共通で使用します。"]
[null,"資格審査許可後の通常の出願手続きの際には使用できません。"]
[]
["◆","その他の必要書類は審査を希望する専攻によって異なります。"]
[null,"入試要項を確認のうえ必要書類を用意してください。"]
[]
["◆","個別の入学資格審査に関する詳細は入試要項をご覧ください。"]
[null,"https://saas.actibookone.com/content/detail?param=eyJjb250ZW50TnVtIjoxMTYwNzB9&detailFlg=0&pNo=238"]

{"sheet":"入学志願票（個別の入学資格審査用）","index":1,"n_rows":81,"n_cols":33,"rows_kept":81,"cut":false,"hidden":false,"merged":[[80,0,80,3],[80,4,80,18],[2,1,2,2],[2,3,2,4],[2,5,2,6],[2,7,2,10],[2,11,2,12],[2,13,2,15],[3,1,3,2],[76,1,76,2],[76,6,77,18],[77,1,77,2],[77,4,77,5],[78,1,79,3],[78,4,79,18],[72,1,72,2],[72,6,73,18],[73,1,73,2],[74,1,74,2],[74,6,75,18],[75,1,75,2],[66,6,67,18],[67,1,67,2],[68,1,68,2],[68,6,69,18],[69,1,69,2],[70,1,70,2],[70,6,71,18],[71,1,71,2],[61,0,79,0],[61,1,61,5],[61,6,61,18],[62,1,62,2],[62,6,63,18],[63,1,63,2],[64,1,64,2],[64,6,65,18],[65,1,65,2],[66,1,66,2],[58,0,58,1],[58,2,58,18],[59,0,60,0],[59,1,59,2],[59,3,59,9],[59,10,59,11],[59,12,59,18],[60,1,60,2],[60,3,60,18],[51,2,55,2],[56,0,56,18],[57,0,57,18],[48,0,48,1],[48,10,48,11],[48,2,48,3],[48,4,48,9],[48,12,48,18],[49,0,49,6],[49,7,49,18],[50,0,55,1],[50,3,50,18],[51,3,55,18],[46,0,46,1],[46,5,46,7],[46,8,46,11],[46,12,46,18],[47,0,47,1],[47,5,47,7],[47,8,47,11],[47,12,47,18],[42,0,42,6],[42,7,42,18],[43,0,43,6],[43,7,43,18],[44,0,44,18],[45,0,45,4],[45,5,45,7],[45,8,45,11],[45,12,45,18],[40,0,41,2],[40,3,41,11],[40,12,40,13],[40,17,40,18],[41,12,41,13],[41,17,41,18],[38,0,39,2],[38,3,39,11],[38,12,38,13],[38,17,38,18],[39,12,39,13],[39,17,39,18],[36,0,37,2],[36,3,37,11],[36,12,36,13],[36,17,36,18],[37,12,37,13],[37,17,37,18],[34,0,35,2],[34,3,35,11],[34,12,34,13],[34,17,34,18],[35,12,35,13],[35,17,35,18],[32,0,33,2],[32,3,33,11],[32,12,32,13],[32,17,32,18],[33,12,33,13],[33,17,33,18],[30,0,31,2],[30,3,31,11],[30,12,30,13],[30,17,30,18],[31,12,31,13],[31,17,31,18],[28,0,29,2],[28,3,29,11],[28,12,28,13],[28,17,28,18],[29,12,29,13],[29,17,29,18],[26,0,27,2],[26,3,27,11],[26,12,26,13],[26,17,26,18],[27,12,27,13],[27,17,27,18],[24,0,25,2],[24,3,25,11],[24,12,24,13],[24,17,24,18],[25,12,25,13],[25,17,25,18],[22,0,23,2],[22,3,23,11],[22,12,22,13],[22,17,22,18],[23,12,23,13],[23,17,23,18],[20,0,21,2],[20,3,21,11],[20,12,20,13],[20,17,20,18],[21,12,21,13],[21,17,21,18],[18,0,19,2],[18,3,19,11],[18,12,18,13],[18,17,18,18],[19,12,19,13],[19,17,19,18],[16,0,17,2],[16,3,17,11],[16,12,16,13],[16,17,16,18],[17,12,17,13],[17,17,17,18],[14,0,15,2],[14,3,15,11],[14,12,14,13],[14,17,14,18],[15,12,15,13],[15,17,15,18],[0,20,1,31],[0,32,1,61],[11,3,11,4],[11,10,11,13],[12,0,12,18],[13,0,13,2],[13,3,13,11],[13,12,13,18],[9,1,9,3],[9,4,9,9],[9,10,9,15],[10,1,10,3],[10,4,10,9],[10,10,10,15],[10,16,11,16],[10,17,11,18],[11,0,11,2],[7,1,7,3],[7,4,7,9],[7,10,7,15],[8,1,8,3],[8,4,8,9],[8,10,8,15],[6,14,6,17],[6,7,6,10],[2,0,4,0],[5,0,6,6],[0,0,0,11],[0,12,0,13],[0,14,0,18],[1,0,1,18],[7,0,10,0],[3,3,3,7],[3,8,3,10],[3,11,3,15],[4,11,4,15],[4,1,4,10],[5,7,5,10],[5,11,5,18],[6,11,6,12],[7,16,9,16],[7,17,9,18]]}
["2027年度法政大学大学院",null,null,null,null,null,null,null,null,null,null,null,null,null,null,null,null,null,null,null,"＜入力に関する注意事項＞",null,null,null,null,null,null,null,null,null,null,null,"※このExcelファイルにはマクロが使用されています。\n  「マクロを有効にする」もしくは「コンテンツの有効化」ボタン等を押して作成を開始してください。"]
["入学志願票（個別の入学資格審査用）"]
["志願先","①課程",null,null,null,"②研究科",null,null,null,null,null,"③専攻",null,null,null,null,null,null,null,null,null,"◆「志願先」欄の入力  ※①〜⑥を順番に全て入力してください。"]
[null,"④入試経路",null,null,null,null,null,null,{"$f":"IFERROR(IF(VLOOKUP(D3&H3&N3&D4,'「志願先」欄 選択一覧（検索用）'!$P:$Q,2,0)=\"なし\",\"⑤その他選択：なし\",\"⑤その他選択\"),\"⑤その他選択\")","v":"⑤その他選択"},null,null,null,null,null,null,null,null,null,null,null,null,null,"・",{"$f":"IF(X5<>\"\",\"以下が未入力です。\",\"入力OK\")","v":"以下が未入力です。"}]
[null,{"$f":"IFERROR(\n  IF(VLOOKUP(D3&H3&N3&D4,'「志願先」欄 選択一覧（検索用）'!P:R,3,0)=\"併願可\",\n       \"⑥修士課程と研修生の併願\",\n  IF(OR(VLOOKUP(D3&H3&N3&D4,'「志願先」欄 選択一覧（検索用）'!P:R,3,0)=\"併願不可\",VLOOKUP(D3&H3&N3&D4,'「志願先」欄 選択一覧（検索用）'!P:R,3,0)=\"該当なし\"),\n       \"⑥この志願先は修士課程と研修生の併願制度はありません\",\"\")),\n  \"⑥修士課程と研修生の併願\")","v":"⑥修士課程と研修生の併願"},null,null,null,null,null,null,null,null,null,null,null,null,null,null,null,null,null,null,null,null,null,{"$f":"IF(D3=\"\",\"①課程：入力欄右下の「▼」マークをクリックして、受験する課程を選択してください。\",\nIF(AND(D3<>\"\",H3=\"\"),\n     \"②研究科：入力欄右下の「▼」マークをクリックして、受験する研究科を選択してください。\",\nIF(AND(D3<>\"\",H3<>\"\",N3=\"\"),\n     \"③専攻：入力欄右下の「▼」マークをクリックして、受験する専攻を選択してください。\",\nIF(AND(D3<>\"\",H3<>\"\",N3<>\"\",D4=\"\"),\n     \"④入試経路：入力欄右下の「▼」マークをクリックして、受験する入試経路を選択してください。\",\nIF(AND(D3<>\"\",H3<>\"\",N3<>\"\",D4<>\"\",L4=\"\",I4=\"⑤その他選択\"),\n     \"⑤その他選択：入力欄右下の「▼」マークをクリックして、必要事項を選択してください。\",\nIF(AND(D3<>\"\",H3<>\"\",N3<>\"\",D4<>\"\",OR(L4<>\"\",AND(L4=\"\",I4=\"⑤その他選択：なし\")),L5=\"\",B5=\"⑥修士課程と研修生の併願\"),\n     \"⑥修士課程と研修生の併願：入力欄右下の「▼」マークをクリックして、修士課程と研修生との併願有無を選択してください。\",\nIF(AND(D3<>\"\",H3<>\"\",N3<>\"\",D4<>\"\",OR(L4<>\"\",AND(L4=\"\",I4=\"⑤その他選択：なし\")),L5<>\"\",B5=\"⑥修士課程と研修生の併願\"),\n     \"\",\nIF(AND(D3<>\"\",H3<>\"\",N3<>\"\",D4<>\"\",OR(L4<>\"\",AND(L4=\"\",I4=\"⑤その他選択：なし\")),L5=\"\",B5=\"⑥この志願先は修士課程と研修生の併願制度はありません\"),\n     \"\",\n))))))))","v":"①課程：入力欄右下の「▼」マークをクリックして、受験する課程を選択してください。"}]
["過去の本学大学院での\n個別の入学資格審査有無\n（直近のもの）",null,null,null,null,null,null,"審査有無"]
[null,null,null,null,null,null,null,"審査年度・専攻",null,null,null,null,null,{"$f":"IF(COUNTIF(L6, \"*審査あり*\" ),\"年度\",\"\")","v":""},null,null,null,null,{"$f":"IF(L6=\"\", \"\", IF(COUNTIF(O7, \"*インスティテュート*\"), \"\", IF(COUNTIF(L6, \"*審査あり*\"), \"専攻\", \"\")))","v":""},null,null,"◆過去の本学大学院での個別の入学資格審査有無"]
["氏名",null,null,null,"姓（Family Name）",null,null,null,null,null,"名（First Name）",null,null,null,null,null,"性別",null,null,null,null,null,"・",{"$f":"IF(L6=\"\", \"「審査有無」欄が未入力となっています。\",\n   IF(L6=\"過去に審査なし\",\"\",\n   IF(AND(L7=\"\", O7=\"\"), \"「審査年度・専攻」欄が空白となっています。\",\n      IF(AND(L7=\"\", O7<>\"\"), \"「審査年度」欄が空白となっています。\",\n         IF(AND(L7<>\"\", O7=\"\"), \"「専攻」欄が空白となっています。\", \"\")\n      )\n   ))\n)","v":"「審査有無」欄が未入力となっています。"}]
[null,"フリガナ"]
[null,"漢字表記",null,null,null,null,null,null,null,null,null,null,null,null,null,null,null,null,null,null,null,"◆「氏名」「性別」「国籍」「生年月日」欄の入力"]
[null,"英語表記",null,null,null,null,null,null,null,null,null,null,null,null,null,null,"国籍",null,null,null,null,null,"・",{"$f":"IF(OR(E9=\"\",K9=\"\"),\"「フリガナ」欄が未入力となっています。姓名の両方とも入力してください。\",\"「フリガナ」：入力OK\")","v":"「フリガナ」欄が未入力となっています。姓名の両方とも入力してください。"}]
["生年月日（西暦）",null,null,null,null,"年",null,"月",null,"日生","2027年4月1日時点、満",null,null,null,{"$f":"IF(OR(D12=\"\",G12=\"\",I12=\"\"),\"\",DATEDIF(DATE(D12,G12,I12),\"2027/4/1\",\"Y\"))","v":""},"才",null,null,null,null,null,null,"・",{"$f":"IF(OR(E10=\"\",K10=\"\"),\"「漢字表記」欄が未入力となっています。姓名の両方とも入力してください。※漢字表記がない国出身の志願者は、自国語で入力してください。\",\"「漢字表記」：入力OK\")","v":"「漢字表記」欄が未入力となっています。姓名の両方とも入力してください。※漢字表記がない国出身の志願者は、自国語で入力してください。"}]
["学歴",null,null,null,null,null,null,null,null,null,null,null,null,null,null,null,null,null,null,null,null,null,"・",{"$f":"IF(OR(E11=\"\",K11=\"\"),\"「英語表記」欄が未入力となっています。姓名の両方とも入力してください。※パスポートの記載と同じものを入力してください。\",\"「英語表記」：入力OK\")","v":"「英語表記」欄が未入力となっています。姓名の両方とも入力してください。※パスポートの記載と同じものを入力してください。"}]
["学校区分",null,null,"学校名（学部・学科名 / 研究科・専攻名は省略せず記入）",null,null,null,null,null,null,null,null,"在学期間（西暦で記入）",null,null,null,null,null,null,null,null,null,"・",{"$f":"IF(R8=\"\",\"「性別」欄が未入力となっています。右下の「▼」マークをクリックして、性別を選択してください。\",\"「　性別　」：入力OK\")","v":"「性別」欄が未入力となっています。右下の「▼」マークをクリックして、性別を選択してください。"}]
[null,null,null,null,null,null,null,null,null,null,null,null,null,null,"年",null,"月",null,null,null,null,null,"・",{"$f":"IF(R11=\"\",\"「国籍」欄が未入力となっています。右下の「▼」マークをクリックして、国籍を選択してください。\",\"「　国籍　」：入力OK\")","v":"「国籍」欄が未入力となっています。右下の「▼」マークをクリックして、国籍を選択してください。"}]
[null,null,null,null,null,null,null,null,null,null,null,null,null,null,"年",null,"月",null,null,null,null,null,"・",{"$f":"IF(OR(D12=\"\",G12=\"\",I12=\"\"),\"「生年月日」が未入力となっています。※年齢は入力後に自動で算出されます。\",\"「生年月日」：入力OK\")","v":"「生年月日」が未入力となっています。※年齢は入力後に自動で算出されます。"}]
[null,null,null,null,null,null,null,null,null,null,null,null,null,null,"年",null,"月"]
[null,null,null,null,null,null,null,null,null,null,null,null,null,null,"年",null,"月",null,null,null,null,"◆「学歴」欄の入力",null,null,null,null,null,null,null,null,"※大学や大学院などの場合、「学部・学科名」「研究科・専攻名」も省略せずに記入してください。"]
[null,null,null,null,null,null,null,null,null,null,null,null,null,null,"年",null,"月"]
[null,null,null,null,null,null,null,null,null,null,null,null,null,null,"年",null,"月",null,null,null,null,null,"＜日本国籍志願者＞"]
[null,null,null,null,null,null,null,null,null,null,null,null,null,null,"年",null,"月",null,null,null,null,null,null,"・","小学校～中学校の学歴は記入不要です。"]
[null,null,null,null,null,null,null,null,null,null,null,null,null,null,"年",null,"月",null,null,null,null,null,null,"・","高等学校以降の学歴を全て記入してください。"]
[null,null,null,null,null,null,null,null,null,null,null,null,null,null,"年",null,"月"]
[null,null,null,null,null,null,null,null,null,null,null,null,null,null,"年",null,"月",null,null,null,null,null,"＜外国人志願者＞"]
[null,null,null,null,null,null,null,null,null,null,null,null,null,null,"年",null,"月",null,null,null,null,null,null,"・","小学校の学歴から記入し、日本語学校の学歴も記入してください。"]
[null,null,null,null,null,null,null,null,null,null,null,null,null,null,"年",null,"月"]
[null,null,null,null,null,null,null,null,null,null,null,null,null,null,"年",null,"月",null,null,null,null,null,"＜非正規学生について＞"]
[null,null,null,null,null,null,null,null,null,null,null,null,null,null,"年",null,"月",null,null,null,null,null,null,"・","「研修生」「研究生」「科目等履修生」「交換留学生」などの非正規学生としての学歴も記入してください。"]
[null,null,null,null,null,null,null,null,null,null,null,null,null,null,"年",null,"月",null,null,null,null,null,null,"・","その際、学生区分（研修生・研究生・科目等履修生・交換留学生など）が分かるように記入してください。"]
[null,null,null,null,null,null,null,null,null,null,null,null,null,null,"年",null,"月",null,null,null,null,null,null,"・","なお、非正規学生の場合、卒業証明書や在籍期間証明書，成績証明書など各種証明書の提出は不要です。"]
[null,null,null,null,null,null,null,null,null,null,null,null,null,null,"年",null,"月"]
[null,null,null,null,null,null,null,null,null,null,null,null,null,null,"年",null,"月",null,null,null,null,null,"＜学校区分＞"]
[null,null,null,null,null,null,null,null,null,null,null,null,null,null,"年",null,"月",null,null,null,null,null,null,"・","日本国の学校の場合：「日本（国立）」「日本（公立）」「日本（私立）」「日本（その他）」から選択してください。"]
[null,null,null,null,null,null,null,null,null,null,null,null,null,null,"年",null,"月",null,null,null,null,null,null,"・","日本国外の学校の場合：「日本国外の学校」を選択してください。"]
[null,null,null,null,null,null,null,null,null,null,null,null,null,null,"年",null,"月",null,null,null,null,null,null,"・","日本語学校の場合 ：「日本語学校」を選択してください。"]
[null,null,null,null,null,null,null,null,null,null,null,null,null,null,"年",null,"月"]
[null,null,null,null,null,null,null,null,null,null,null,null,null,null,"年",null,"月",null,null,null,null,null,"＜在学期間＞"]
[null,null,null,null,null,null,null,null,null,null,null,null,null,null,"年",null,"月",null,null,null,null,null,null,"・","「入学」「卒業」などの区分はプルダウンから該当するものを選択してください。該当するものがない場合はお問い合せください。"]
[null,null,null,null,null,null,null,null,null,null,null,null,null,null,"年",null,"月"]
[null,null,null,null,null,null,null,null,null,null,null,null,null,null,"年",null,"月"]
[null,null,null,null,null,null,null,null,null,null,null,null,null,null,"年",null,"月",null,null,null,null,"◆「これまでのゼミ担当教員・指導教員名（大学学部時代など）」欄の入力"]
[null,null,null,null,null,null,null,null,null,null,null,null,null,null,"年",null,"月",null,null,null,null,null,"・",{"$f":"IF(H43=\"\",\"未入力となっています。該当するものがない場合は「なし」と入力してください。\",\"入力OK\")","v":"未入力となっています。該当するものがない場合は「なし」と入力してください。"}]
["これまでのゼミ担当教員・指導教員名\n（大学学部時代など）"]
["卒業論文・ゼミ論文・修士論文名\n（いずれかを記入）",null,null,null,null,null,null,null,null,null,null,null,null,null,null,null,null,null,null,null,null,"◆「卒業論文・ゼミ論文・修士論文名」欄の入力"]
["学位（修士以上を記入。学士の学位については記入不要）　※見込みは記入不要",null,null,null,null,null,null,null,null,null,null,null,null,null,null,null,null,null,null,null,null,null,"・",{"$f":"IF(H44=\"\",\"未入力となっています。該当するものがない場合は「なし」と入力してください。\",\"入力OK\")","v":"未入力となっています。該当するものがない場合は「なし」と入力してください。"}]
["取得年月（西暦）",null,null,null,null,"学位名",null,null,"大学院名",null,null,null,"論文題目"]
[null,null,"年",null,"月",null,null,null,null,null,null,null,null,null,null,null,null,null,null,null,null,"◆「受験科目」の入力"]
[null,null,"年",null,"月",null,null,null,null,null,null,null,null,null,null,null,null,null,null,null,null,null,"・","上記「志願先」欄の入力後に各欄右下の「▼」マークをクリックして、科目を選択してください。"]
["受験科目",null,"専門科目／\n外国語科目",null,null,null,null,null,null,null,"外国語科目",null,null,null,null,null,null,null,null,null,null,null,null,"※「志願先」欄入力前には科目を選択できません。"]
[{"$f":"IF(H3=\"経済学研究科\",\"希望指導教員名（経済学研究科志願者は入力不要）\",\nIF(D3&H3=\"修士課程経営学研究科\",\"希望指導教員名（経営学研究科修士課程志願者は入力不要）\",\nIF(D3&H3=\"研修生経営学研究科\",\"希望指導教員名（経営学研究科研修生志願者は入力不要）\",\nIF(H3=\"キャリアデザイン学研究科\",\"希望指導教員名（キャリアデザイン学研究科志願者は入力不要）\",\n\"希望指導教員名\"))))","v":"希望指導教員名"},null,null,null,null,null,null,null,null,null,null,null,null,null,null,null,null,null,null,null,null,null,"・",{"$f":"IF(OR(E49=\"\",M49=\"\"),\"未入力となっています。「専門科目」「外国語科目」の両方を入力してください。\",\"入力OK\")","v":"未入力となっています。「専門科目」「外国語科目」の両方を入力してください。"}]
[{"$f":"IF(OR(D3&N3&D4=\"修士課程経営学専攻一般入試\",D3&N3&D4=\"修士課程経営学専攻社会人入試\",D3&N3&D4=\"博士後期課程経営学専攻一般入試\",\n          D3&N3&D4=\"博士後期課程経営学専攻社会人入試\",D3&N3&D4=\"修士課程経営学専攻学内入試\",D3&N3&D4=\"修士課程キャリアデザイン学専攻一般入試\"),\n \"入学後の研究テーマ（受験する入試経路では入力不要です）\",\"入学後の研究テーマ\")","v":"入学後の研究テーマ"},null,"仮題",null,null,null,null,null,null,null,null,null,null,null,null,null,null,null,null,null,null,null,null,"※「専門科目」や「外国語科目」の受験がない入試経路や、筆記試験がなく口述試験のみの入試経路をご受験の場合も、"]
[null,null,"内容",null,null,null,null,null,null,null,null,null,null,null,null,null,null,null,null,null,null,null,null,null,"プルダウンから該当するものを選択してください。"]
[null,null,null,null,null,null,null,null,null,null,null,null,null,null,null,null,null,null,null,null,null,"◆「希望指導教員名」の入力"]
[null,null,null,null,null,null,null,null,null,null,null,null,null,null,null,null,null,null,null,null,null,null,"・",{"$f":"IF(AND(A50=\"希望指導教員名\",H50=\"\"),\"未入力となっています。入力してください。\",\n  IF(A50<>\"希望指導教員名\",\"ご受験の専攻では入力不要です。\",\n  \"入力OK\"))","v":"未入力となっています。入力してください。"}]
[null,null,null,null,null,null,null,null,null,null,null,null,null,null,null,null,null,null,null,null,null,"◆「入学後の研究テーマ」の入力"]
[null,null,null,null,null,null,null,null,null,null,null,null,null,null,null,null,null,null,null,null,null,null,"・",{"$f":"IF($A$51=\"入学後の研究テーマ（ご受験の入試経路では入力不要です）\", \"ご受験の入試経路では入力不要です。\",\"入試要項の指示に従い、入力してください。\")","v":"入試要項の指示に従い、入力してください。"}]
["法政大学大学院修了後の進路（進学・就職などの予定について、現時点での希望を可能な限り具体的に記入してください）",null,null,null,null,null,null,null,null,null,null,null,null,null,null,null,null,null,null,null,null,null,null,{"$f":"IF(X56=\"ご受験の入試経路では入力不要です。\",  \"\",  \"➤仮題：研究テーマのタイトルを入力してください。\")","v":"➤仮題：研究テーマのタイトルを入力してください。"}]
[null,null,null,null,null,null,null,null,null,null,null,null,null,null,null,null,null,null,null,null,null,null,null,{"$f":"IF(X56=\"ご受験の入試経路では入力不要です。\",  \"\", \"➤内容：「別紙参照」や「研究計画書と同じ」などと省略しての記載はできません。欄内に収まるように内容を入力してください。\")","v":"➤内容：「別紙参照」や「研究計画書と同じ」などと省略しての記載はできません。欄内に収まるように内容を入力してください。"}]
["現住所",null,null,null,null,null,null,null,null,null,null,null,null,null,null,null,null,null,null,null,null,null,null,{"$f":"IF(X56=\"ご受験の入試経路では入力不要です。\",  \"\", \"※入力時「Alt キー ＋ Enter キー」（Macの場合「Option キー ＋ Enter キー」）で改行可能です。\")","v":"※入力時「Alt キー ＋ Enter キー」（Macの場合「Option キー ＋ Enter キー」）で改行可能です。"}]
["連絡先","固定電話",null,null,null,null,null,null,null,null,"携帯電話"]
[null,"E-mail",null,null,null,null,null,null,null,null,null,null,null,null,null,null,null,null,null,null,null,"◆「現住所」「連絡先」の入力"]
["職歴","在職期間（西暦で記入）",null,null,null,null,"勤務先名・所属・役職等",null,null,null,null,null,null,null,null,null,null,null,null,null,null,null,"※","これらは緊急時や出願書類に不備不足があった場合などの連絡手段として使用します。誤りがないかよく確認してください。"]
[null,null,null,"年",null,"月",null,null,null,null,null,null,null,null,null,null,null,null,null,null,null,null,"・",{"$f":"IF(C59=\"\",\"「現住所」欄が未入力となっています。出願時点で居住している住所を郵便番号も含めて入力してください。\",\"「現住所」：入力OK\")","v":"「現住所」欄が未入力となっています。出願時点で居住している住所を郵便番号も含めて入力してください。"}]
[null,null,null,"年",null,"月",null,null,null,null,null,null,null,null,null,null,null,null,null,null,null,null,"・",{"$f":"IF(OR(D60=\"\",M60=\"\",D61=\"\"),\"「連絡先」欄が未入力となっています。\",\"「連絡先」：入力OK\")","v":"「連絡先」欄が未入力となっています。"}]
[null,null,null,"年",null,"月",null,null,null,null,null,null,null,null,null,null,null,null,null,null,null,null,null,{"$f":"IF(OR(D60=\"\",M60=\"\",D61=\"\"),\"「固定電話」「携帯電話」「E-mail」の全てを入力してください。該当するものがない場合は「なし」と入力してください。\",\"\")","v":"「固定電話」「携帯電話」「E-mail」の全てを入力してください。該当するものがない場合は「なし」と入力してください。"}]
[null,null,null,"年",null,"月"]
[null,null,null,"年",null,"月"]
[null,null,null,"年",null,"月"]
[null,null,null,"年",null,"月",null,null,null,null,null,null,null,null,null,null,null,null,null,null,null,"◆「職歴」の入力"]
[null,null,null,"年",null,"月"]
[null,null,null,"年",null,"月",null,null,null,null,null,null,null,null,null,null,null,null,null,null,null,null,"・","常勤・非常勤・アルバイトなど、勤務形態が分かるよう入力してください。"]
[null,null,null,"年",null,"月",null,null,null,null,null,null,null,null,null,null,null,null,null,null,null,null,"・","この欄に書き切れない場合は、主な職歴のみを抜粋しても構いません。"]
[null,null,null,"年",null,"月",null,null,null,null,null,null,null,null,null,null,null,null,null,null,null,null,"・","職歴がない場合は入力不要です。"]
[null,null,null,"年",null,"月"]
[null,null,null,"年",null,"月"]
[null,null,null,"年",null,"月"]
[null,null,null,"年",null,"月"]
[null,null,null,"年","現在"]
[null,"現在の\n勤務先住所"]
[]
["備考"]

{"sheet":"「志願先」欄  選択一覧","index":2,"n_rows":202,"n_cols":7,"rows_kept":202,"cut":false,"hidden":false,"merged":[[1,1,1,6],[0,0,0,6]]}
["「志願先」欄  選択一覧"]
["※\n※","手書きで「入学志願票（個別の入学資格審査用）」を作成される場合、「志願先」欄は以下の組合せからご記入ください。\n「⑥修士課程と研修生の併願」は「併願可」とある場合、併願を「希望する／希望しない」のいずれかをご記入ください。\nただし「併願可」とある場合も、秋季入試では入試経路によっては併願できない場合がありますので、入試要項をご確認ください。"]
["No","①課程","②研究科","③専攻","④入試経路","⑤その他選択","⑥修士課程と研修生の併願"]
[{"$f":"ROW()-3","v":1},"修士課程","人文科学研究科","哲学専攻","一般入試","なし","併願可"]
[{"$f":"ROW()-3","v":2},"修士課程","人文科学研究科","哲学専攻","社会人入試","なし","併願可"]
[3,"修士課程","人文科学研究科","日本文学専攻","一般入試","プログラム選択なし","併願可"]
[4,"修士課程","人文科学研究科","日本文学専攻","一般入試","文芸創作研究プログラム","併願可"]
[5,"修士課程","人文科学研究科","日本文学専攻","一般入試","能楽研究者育成プログラム","併願可"]
[6,"修士課程","人文科学研究科","日本文学専攻","外国人入試","プログラム選択なし","併願可"]
[7,"修士課程","人文科学研究科","日本文学専攻","外国人入試","文芸創作研究プログラム","併願可"]
[8,"修士課程","人文科学研究科","日本文学専攻","外国人入試","能楽研究者育成プログラム","併願可"]
[9,"修士課程","人文科学研究科","日本文学専攻","社会人入試","プログラム選択なし","併願可"]
[10,"修士課程","人文科学研究科","日本文学専攻","社会人入試","文芸創作研究プログラム","併願可"]
[11,"修士課程","人文科学研究科","日本文学専攻","社会人入試","能楽研究者育成プログラム","併願可"]
[12,"修士課程","人文科学研究科","英文学専攻","一般入試","なし","併願可"]
[13,"修士課程","人文科学研究科","英文学専攻","社会人入試","なし","併願可"]
[14,"修士課程","人文科学研究科","史学専攻","一般入試","なし","併願可"]
[15,"修士課程","人文科学研究科","史学専攻","社会人入試","なし","併願可"]
[16,"修士課程","人文科学研究科","地理学専攻","一般入試","なし","併願可"]
[{"$f":"ROW()-3","v":17},"修士課程","人文科学研究科","地理学専攻","外国人入試","なし","併願可"]
[18,"修士課程","人文科学研究科","地理学専攻","社会人入試","なし","併願可"]
[19,"修士課程","人文科学研究科","心理学専攻","一般入試","なし","併願可"]
[20,"修士課程","人文科学研究科","国際日本学インスティテュート","一般入試","所属専攻：哲学専攻","併願可"]
[21,"修士課程","人文科学研究科","国際日本学インスティテュート","一般入試","所属専攻：日本文学専攻","併願可"]
[22,"修士課程","人文科学研究科","国際日本学インスティテュート","一般入試","所属専攻：英文学専攻","併願可"]
[23,"修士課程","人文科学研究科","国際日本学インスティテュート","一般入試","所属専攻：史学専攻","併願可"]
[24,"修士課程","人文科学研究科","国際日本学インスティテュート","一般入試","所属専攻：地理学専攻","併願可"]
[25,"修士課程","人文科学研究科","国際日本学インスティテュート","外国人入試","所属専攻：哲学専攻","併願可"]
[26,"修士課程","人文科学研究科","国際日本学インスティテュート","外国人入試","所属専攻：日本文学専攻","併願可"]
[27,"修士課程","人文科学研究科","国際日本学インスティテュート","外国人入試","所属専攻：英文学専攻","併願可"]
[28,"修士課程","人文科学研究科","国際日本学インスティテュート","外国人入試","所属専攻：史学専攻","併願可"]
[29,"修士課程","人文科学研究科","国際日本学インスティテュート","外国人入試","所属専攻：地理学専攻","併願可"]
[30,"修士課程","人文科学研究科","国際日本学インスティテュート","社会人入試","所属専攻：哲学専攻","併願可"]
[31,"修士課程","人文科学研究科","国際日本学インスティテュート","社会人入試","所属専攻：日本文学専攻","併願可"]
[32,"修士課程","人文科学研究科","国際日本学インスティテュート","社会人入試","所属専攻：英文学専攻","併願可"]
[33,"修士課程","人文科学研究科","国際日本学インスティテュート","社会人入試","所属専攻：史学専攻","併願可"]
[34,"修士課程","人文科学研究科","国際日本学インスティテュート","社会人入試","所属専攻：地理学専攻","併願可"]
[35,"修士課程","国際文化研究科","国際文化専攻","一般入試","なし","併願可"]
[36,"修士課程","国際文化研究科","国際文化専攻","外国人入試","なし","併願可"]
[37,"修士課程","国際文化研究科","国際文化専攻","社会人入試","なし","併願可"]
[38,"修士課程","経済学研究科","経済学専攻","一般入試","修士M.A.（歴史・思想・制度）","併願可"]
[39,"修士課程","経済学研究科","経済学専攻","一般入試","修士M.A.（金融・企業）","併願可"]
[40,"修士課程","経済学研究科","経済学専攻","一般入試","修士M.A.（政策・環境）","併願可"]
[41,"修士課程","経済学研究科","経済学専攻","一般入試","修士M.A.（国際・地域）","併願可"]
[42,"修士課程","経済学研究科","経済学専攻","一般入試","修士M.A.（応用ミクロ・応用マクロ・計量）","併願可"]
[43,"修士課程","経済学研究科","経済学専攻","一般入試","博士5年Ph.D.（歴史・思想・制度）","併願可"]
[44,"修士課程","経済学研究科","経済学専攻","一般入試","博士5年Ph.D.（金融・企業）","併願可"]
[45,"修士課程","経済学研究科","経済学専攻","一般入試","博士5年Ph.D.（政策・環境）","併願可"]
[46,"修士課程","経済学研究科","経済学専攻","一般入試","博士5年Ph.D.（国際・地域）","併願可"]
[47,"修士課程","経済学研究科","経済学専攻","一般入試","博士5年Ph.D.（応用ミクロ・応用マクロ・計量）","併願可"]
[48,"修士課程","経済学研究科","経済学専攻","外国人入試","修士M.A.（歴史・思想・制度）","併願可"]
[49,"修士課程","経済学研究科","経済学専攻","外国人入試","修士M.A.（金融・企業）","併願可"]
[50,"修士課程","経済学研究科","経済学専攻","外国人入試","修士M.A.（政策・環境）","併願可"]
[51,"修士課程","経済学研究科","経済学専攻","外国人入試","修士M.A.（国際・地域）","併願可"]
[52,"修士課程","経済学研究科","経済学専攻","外国人入試","修士M.A.（応用ミクロ・応用マクロ・計量）","併願可"]
[53,"修士課程","経済学研究科","経済学専攻","外国人入試","博士5年Ph.D.（歴史・思想・制度）","併願可"]
[54,"修士課程","経済学研究科","経済学専攻","外国人入試","博士5年Ph.D.（金融・企業）","併願可"]
[55,"修士課程","経済学研究科","経済学専攻","外国人入試","博士5年Ph.D.（政策・環境）","併願可"]
[56,"修士課程","経済学研究科","経済学専攻","外国人入試","博士5年Ph.D.（国際・地域）","併願可"]
[57,"修士課程","経済学研究科","経済学専攻","外国人入試","博士5年Ph.D.（応用ミクロ・応用マクロ・計量）","併願可"]
[58,"修士課程","経済学研究科","経済学専攻","社会人入試","修士M.A.（歴史・思想・制度）","併願可"]
[59,"修士課程","経済学研究科","経済学専攻","社会人入試","修士M.A.（金融・企業）","併願可"]
[60,"修士課程","経済学研究科","経済学専攻","社会人入試","修士M.A.（政策・環境）","併願可"]
[61,"修士課程","経済学研究科","経済学専攻","社会人入試","修士M.A.（国際・地域）","併願可"]
[62,"修士課程","経済学研究科","経済学専攻","社会人入試","修士M.A.（応用ミクロ・応用マクロ・計量）","併願可"]
[63,"修士課程","経済学研究科","経済学専攻","社会人入試","博士5年Ph.D.（歴史・思想・制度）","併願可"]
[64,"修士課程","経済学研究科","経済学専攻","社会人入試","博士5年Ph.D.（金融・企業）","併願可"]
[65,"修士課程","経済学研究科","経済学専攻","社会人入試","博士5年Ph.D.（政策・環境）","併願可"]
[66,"修士課程","経済学研究科","経済学専攻","社会人入試","博士5年Ph.D.（国際・地域）","併願可"]
[{"$f":"ROW()-3","v":67},"修士課程","経済学研究科","経済学専攻","社会人入試","博士5年Ph.D.（応用ミクロ・応用マクロ・計量）","併願可"]
[68,"修士課程","経済学研究科","経済学専攻","社会人選抜入試","1年（歴史・思想・制度）","併願可"]
[69,"修士課程","経済学研究科","経済学専攻","社会人選抜入試","1年（金融・企業）","併願可"]
[70,"修士課程","経済学研究科","経済学専攻","社会人選抜入試","1年（政策・環境）","併願可"]
[71,"修士課程","経済学研究科","経済学専攻","社会人選抜入試","1年（国際・地域）","併願可"]
[72,"修士課程","経済学研究科","経済学専攻","社会人選抜入試","1年（応用ミクロ・応用マクロ・計量）","併願可"]
[73,"修士課程","経済学研究科","経済学専攻","社会人選抜入試","1＋3年（歴史・思想・制度）","併願可"]
[74,"修士課程","経済学研究科","経済学専攻","社会人選抜入試","1＋3年（金融・企業）","併願可"]
[75,"修士課程","経済学研究科","経済学専攻","社会人選抜入試","1＋3年（政策・環境）","併願可"]
[76,"修士課程","経済学研究科","経済学専攻","社会人選抜入試","1＋3年（国際・地域）","併願可"]
[77,"修士課程","経済学研究科","経済学専攻","社会人選抜入試","1＋3年（応用ミクロ・応用マクロ・計量）","併願可"]
[78,"修士課程","法学研究科","法律学専攻","一般入試","なし","併願可"]
[79,"修士課程","法学研究科","法律学専攻","外国人入試","なし","併願可"]
[80,"修士課程","法学研究科","法律学専攻","社会人入試","なし","併願可"]
[81,"修士課程","政治学研究科","政治学専攻","一般入試","なし","併願不可"]
[82,"修士課程","政治学研究科","政治学専攻","外国人入試","なし","併願可"]
[83,"修士課程","政治学研究科","国際政治学専攻","一般入試","なし","併願不可"]
[84,"修士課程","政治学研究科","国際政治学専攻","外国人入試","なし","併願可"]
[85,"修士課程","政治学研究科","国際政治学専攻","社会人入試","なし","併願不可"]
[86,"修士課程","社会学研究科","社会学専攻","一般入試","なし","併願可"]
[87,"修士課程","社会学研究科","社会学専攻","外国人入試","なし","併願可"]
[88,"修士課程","社会学研究科","社会学専攻","社会人入試","なし","併願可"]
[{"$f":"ROW()-3","v":89},"修士課程","経営学研究科","経営学専攻","一般入試","なし","併願可"]
[90,"修士課程","経営学研究科","経営学専攻","社会人入試","戦略・企業家コース","併願不可"]
[91,"修士課程","経営学研究科","経営学専攻","社会人入試","人材・組織マネジメントコース","併願不可"]
[92,"修士課程","経営学研究科","経営学専攻","社会人入試","マーケティングコース","併願不可"]
[93,"修士課程","キャリアデザイン学研究科","キャリアデザイン学専攻","一般入試","発達・教育キャリアプログラム","併願不可"]
[94,"修士課程","キャリアデザイン学研究科","キャリアデザイン学専攻","一般入試","ビジネスキャリアプログラム","併願不可"]
[95,"修士課程","公共政策研究科","公共政策学専攻","一般入試","公共マネジメントコース","併願不可"]
[96,"修士課程","公共政策研究科","公共政策学専攻","一般入試","政策研究コース","併願不可"]
[97,"修士課程","公共政策研究科","サステイナビリティ学専攻","一般入試","なし","併願不可"]
[98,"修士課程","公共政策研究科","公共政策学専攻","社会人入試","公共マネジメントコース","併願不可"]
[99,"修士課程","公共政策研究科","公共政策学専攻","社会人入試","政策研究コース","併願不可"]
[100,"修士課程","公共政策研究科","サステイナビリティ学専攻","社会人入試","なし","併願不可"]
[101,"修士課程","連帯社会インスティテュート","所属専攻：政治学専攻","一般入試","労働組合プログラム","併願不可"]
[102,"修士課程","連帯社会インスティテュート","所属専攻：公共政策学専攻","一般入試","労働組合プログラム","併願不可"]
[103,"修士課程","連帯社会インスティテュート","所属専攻：政治学専攻","一般入試","協同組合プログラム","併願不可"]
[104,"修士課程","連帯社会インスティテュート","所属専攻：公共政策学専攻","一般入試","協同組合プログラム","併願不可"]
[105,"修士課程","連帯社会インスティテュート","所属専攻：政治学専攻","一般入試","NPOプログラム","併願不可"]
[106,"修士課程","連帯社会インスティテュート","所属専攻：公共政策学専攻","一般入試","NPOプログラム","併願不可"]
[107,"修士課程","連帯社会インスティテュート","所属専攻：政治学専攻","社会人入試","労働組合プログラム","併願不可"]
[108,"修士課程","連帯社会インスティテュート","所属専攻：公共政策学専攻","社会人入試","労働組合プログラム","併願不可"]
[109,"修士課程","連帯社会インスティテュート","所属専攻：政治学専攻","社会人入試","協同組合プログラム","併願不可"]
[110,"修士課程","連帯社会インスティテュート","所属専攻：公共政策学専攻","社会人入試","協同組合プログラム","併願不可"]
[111,"修士課程","連帯社会インスティテュート","所属専攻：政治学専攻","社会人入試","NPOプログラム","併願不可"]
[112,"修士課程","連帯社会インスティテュート","所属専攻：公共政策学専攻","社会人入試","NPOプログラム","併願不可"]
[113,"修士課程","連帯社会インスティテュート","所属専攻：政治学専攻","指定団体推薦社会人入試","労働組合プログラム","併願不可"]
[114,"修士課程","連帯社会インスティテュート","所属専攻：公共政策学専攻","指定団体推薦社会人入試","労働組合プログラム","併願不可"]
[115,"修士課程","連帯社会インスティテュート","所属専攻：政治学専攻","指定団体推薦社会人入試","協同組合プログラム","併願不可"]
[116,"修士課程","連帯社会インスティテュート","所属専攻：公共政策学専攻","指定団体推薦社会人入試","協同組合プログラム","併願不可"]
[117,"修士課程","連帯社会インスティテュート","所属専攻：政治学専攻","指定団体推薦社会人入試","NPOプログラム","併願不可"]
[118,"修士課程","連帯社会インスティテュート","所属専攻：公共政策学専攻","指定団体推薦社会人入試","NPOプログラム","併願不可"]
[{"$f":"ROW()-3","v":119},"修士課程","地域創造インスティテュート","地域創造インスティテュート","一般入試","都市・文化・観光創造群","該当なし"]
[{"$f":"ROW()-3","v":120},"修士課程","地域創造インスティテュート","地域創造インスティテュート","一般入試","産業・企業・イノベーション創造群","該当なし"]
[121,"修士課程","地域創造インスティテュート","地域創造インスティテュート","一般入試","人材育成・生活・ウェルビーイング創造群","該当なし"]
[{"$f":"ROW()-3","v":122},"修士課程","地域創造インスティテュート","地域創造インスティテュート","社会人入試","都市・文化・観光創造群","該当なし"]
[{"$f":"ROW()-3","v":123},"修士課程","地域創造インスティテュート","地域創造インスティテュート","社会人入試","産業・企業・イノベーション創造群","該当なし"]
[124,"修士課程","地域創造インスティテュート","地域創造インスティテュート","社会人入試","人材育成・生活・ウェルビーイング創造群","該当なし"]
[{"$f":"ROW()-3","v":125},"博士後期課程","人文科学研究科","哲学専攻","一般入試","なし","該当なし"]
[126,"博士後期課程","人文科学研究科","日本文学専攻","一般入試","なし","該当なし"]
[127,"博士後期課程","人文科学研究科","英文学専攻","一般入試","なし","該当なし"]
[128,"博士後期課程","人文科学研究科","史学専攻","一般入試","なし","該当なし"]
[129,"博士後期課程","人文科学研究科","史学専攻","社会人入試","なし","該当なし"]
[130,"博士後期課程","人文科学研究科","地理学専攻","一般入試","なし","該当なし"]
[{"$f":"ROW()-3","v":131},"博士後期課程","人文科学研究科","地理学専攻","社会人入試","なし","該当なし"]
[132,"博士後期課程","人文科学研究科","心理学専攻","一般入試","なし","該当なし"]
[133,"博士後期課程","人文科学研究科","国際日本学インスティテュート","一般入試","所属専攻：哲学専攻","該当なし"]
[134,"博士後期課程","人文科学研究科","国際日本学インスティテュート","一般入試","所属専攻：日本文学専攻","該当なし"]
[135,"博士後期課程","人文科学研究科","国際日本学インスティテュート","一般入試","所属専攻：英文学専攻","該当なし"]
[136,"博士後期課程","人文科学研究科","国際日本学インスティテュート","一般入試","所属専攻：史学専攻","該当なし"]
[137,"博士後期課程","人文科学研究科","国際日本学インスティテュート","一般入試","所属専攻：地理学専攻","該当なし"]
[138,"博士後期課程","国際文化研究科","国際文化専攻","一般入試","なし","該当なし"]
[139,"博士後期課程","国際文化研究科","国際文化専攻","外国人入試","なし","該当なし"]
[140,"博士後期課程","国際文化研究科","国際文化専攻","社会人入試","なし","該当なし"]
[141,"博士後期課程","経済学研究科","経済学専攻","一般入試","歴史・思想・制度","該当なし"]
[142,"博士後期課程","経済学研究科","経済学専攻","一般入試","金融・企業","該当なし"]
[143,"博士後期課程","経済学研究科","経済学専攻","一般入試","政策・環境","該当なし"]
[144,"博士後期課程","経済学研究科","経済学専攻","一般入試","国際・地域","該当なし"]
[145,"博士後期課程","経済学研究科","経済学専攻","一般入試","応用ミクロ・応用マクロ・計量","該当なし"]
[146,"博士後期課程","経済学研究科","経済学専攻","社会人入試","歴史・思想・制度","該当なし"]
[147,"博士後期課程","経済学研究科","経済学専攻","社会人入試","金融・企業","該当なし"]
[148,"博士後期課程","経済学研究科","経済学専攻","社会人入試","政策・環境","該当なし"]
[149,"博士後期課程","経済学研究科","経済学専攻","社会人入試","国際・地域","該当なし"]
[150,"博士後期課程","経済学研究科","経済学専攻","社会人入試","応用ミクロ・応用マクロ・計量","該当なし"]
[151,"博士後期課程","法学研究科","法律学専攻","一般入試","なし","該当なし"]
[152,"博士後期課程","政治学研究科","政治学専攻","一般入試","なし","該当なし"]
[153,"博士後期課程","社会学研究科","社会学専攻","一般入試","なし","該当なし"]
[154,"博士後期課程","経営学研究科","経営学専攻","一般入試","なし","該当なし"]
[155,"博士後期課程","経営学研究科","経営学専攻","社会人入試","なし","該当なし"]
[156,"博士後期課程","公共政策研究科","公共政策学専攻","一般入試","なし","該当なし"]
[157,"博士後期課程","公共政策研究科","サステイナビリティ学専攻","一般入試","なし","該当なし"]
[158,"博士後期課程","公共政策研究科","公共政策学専攻","社会人入試","なし","該当なし"]
[159,"博士後期課程","公共政策研究科","サステイナビリティ学専攻","社会人入試","なし","該当なし"]
[{"$f":"ROW()-3","v":160},"博士後期課程","地域創造インスティテュート","地域創造インスティテュート","一般入試","なし","該当なし"]
[161,"博士後期課程","地域創造インスティテュート","地域創造インスティテュート","社会人入試","なし","該当なし"]
[162,"研修生","人文科学研究科","哲学専攻","研修生入試（単願）","なし","該当なし"]
[163,"研修生","人文科学研究科","日本文学専攻","研修生入試（単願）","なし","該当なし"]
[164,"研修生","人文科学研究科","英文学専攻","研修生入試（単願）","なし","該当なし"]
[165,"研修生","人文科学研究科","史学専攻","研修生入試（単願）","なし","該当なし"]
[166,"研修生","人文科学研究科","地理学専攻","研修生入試（単願）","なし","該当なし"]
[167,"研修生","人文科学研究科","心理学専攻","研修生入試（単願）","なし","該当なし"]
[168,"研修生","国際文化研究科","国際文化専攻","研修生入試（単願）","なし","該当なし"]
[169,"研修生","経済学研究科","経済学専攻","研修生入試（単願）","歴史・思想・制度","該当なし"]
[170,"研修生","経済学研究科","経済学専攻","研修生入試（単願）","金融・企業","該当なし"]
[171,"研修生","経済学研究科","経済学専攻","研修生入試（単願）","政策・環境","該当なし"]
[172,"研修生","経済学研究科","経済学専攻","研修生入試（単願）","国際・地域","該当なし"]
[173,"研修生","経済学研究科","経済学専攻","研修生入試（単願）","応用ミクロ・応用マクロ・計量","該当なし"]
[174,"研修生","法学研究科","法律学専攻","研修生入試（単願）","なし","該当なし"]
[175,"研修生","政治学研究科","政治学専攻","研修生入試（単願）","なし","該当なし"]
[176,"研修生","政治学研究科","国際政治学専攻","研修生入試（単願）","なし","該当なし"]
[177,"研修生","社会学研究科","社会学専攻","研修生入試（単願）","なし","該当なし"]
[{"$f":"ROW()-3","v":178},"修士課程","人文科学研究科","英文学専攻","推薦枠入試","なし","併願不可"]
[179,"修士課程","人文科学研究科","地理学専攻","学内入試","なし","併願不可"]
[180,"修士課程","人文科学研究科","心理学専攻","学内入試","なし","併願不可"]
[181,"修士課程","国際文化研究科","国際文化専攻","学内入試","なし","併願可"]
[182,"修士課程","経済学研究科","経済学専攻","学部内入試","修士M.A.（歴史・思想・制度）","併願不可"]
[183,"修士課程","経済学研究科","経済学専攻","学部内入試","修士M.A.（金融・企業）","併願不可"]
[184,"修士課程","経済学研究科","経済学専攻","学部内入試","修士M.A.（政策・環境）","併願不可"]
[185,"修士課程","経済学研究科","経済学専攻","学部内入試","修士M.A.（国際・地域）","併願不可"]
[186,"修士課程","経済学研究科","経済学専攻","学部内入試","修士M.A.（応用ミクロ・応用マクロ・計量）","併願不可"]
[187,"修士課程","経済学研究科","経済学専攻","学部内入試","博士5年Ph.D.（歴史・思想・制度）","併願不可"]
[188,"修士課程","経済学研究科","経済学専攻","学部内入試","博士5年Ph.D.（金融・企業）","併願不可"]
[189,"修士課程","経済学研究科","経済学専攻","学部内入試","博士5年Ph.D.（政策・環境）","併願不可"]
[190,"修士課程","経済学研究科","経済学専攻","学部内入試","博士5年Ph.D.（国際・地域）","併願不可"]
[191,"修士課程","経済学研究科","経済学専攻","学部内入試","博士5年Ph.D.（応用ミクロ・応用マクロ・計量）","併願不可"]
[192,"修士課程","経済学研究科","経済学専攻","学部内入試","1年制","併願不可"]
[193,"修士課程","法学研究科","法律学専攻","学科内入試","なし","併願不可"]
[194,"修士課程","政治学研究科","政治学専攻","学内入試","なし","併願不可"]
[195,"修士課程","政治学研究科","国際政治学専攻","学内入試","なし","併願不可"]
[196,"修士課程","社会学研究科","社会学専攻","学内入試","なし","併願不可"]
[{"$f":"ROW()-3","v":197},"修士課程","地域創造インスティテュート","地域創造インスティテュート","学内入試","都市・文化・観光創造群","該当なし"]
[{"$f":"ROW()-3","v":198},"修士課程","地域創造インスティテュート","地域創造インスティテュート","学内入試","産業・企業・イノベーション創造群","該当なし"]
[199,"修士課程","地域創造インスティテュート","地域創造インスティテュート","学内入試","人材育成・生活・ウェルビーイング創造群","該当なし"]

{"sheet":"「志願先」欄 選択一覧（検索用）","index":3,"n_rows":217,"n_cols":36,"rows_kept":217,"cut":false,"hidden":true,"merged":[]}
["「志願先」欄  選択一覧（検索用）"]
[]
["No","①課程","①連番","①検索値","②研究科","②連番","②検索値","③専攻","①③","①③連番","①③検索値","④入試経路","①③④","①③④連番","①③④検索値","①②③④","⑤その他選択","⑥修士課程と研修生の併願",null,null,null,null,null,"志願票選択値","課程",{"$f":"'入学志願票（個別の入学資格審査用）'!D3","v":0},null,null,null,"https://detail.chiebukuro.yahoo.co.jp/qa/question_detail/q1366987793"]
[1,"修士課程",1,"修士課程1","人文科学研究科",1,"人文科学研究科1","哲学専攻","修士課程哲学専攻",1,"修士課程哲学専攻1","一般入試","修士課程哲学専攻一般入試",1,"修士課程哲学専攻一般入試1","修士課程人文科学研究科哲学専攻一般入試","なし","併願可",null,null,null,null,null,null,"研究科",{"$f":"'入学志願票（個別の入学資格審査用）'!H3","v":0}]
[2,"修士課程",2,"修士課程2","人文科学研究科",2,"人文科学研究科2","哲学専攻","修士課程哲学専攻",2,"修士課程哲学専攻2","社会人入試","修士課程哲学専攻社会人入試",1,"修士課程哲学専攻社会人入試1","修士課程人文科学研究科哲学専攻社会人入試","なし","併願可",null,null,null,null,null,null,"専攻",{"$f":"'入学志願票（個別の入学資格審査用）'!N3","v":0}]
[3,"修士課程",3,"修士課程3","人文科学研究科",3,"人文科学研究科3","日本文学専攻","修士課程日本文学専攻",1,"修士課程日本文学専攻1","一般入試","修士課程日本文学専攻一般入試",1,"修士課程日本文学専攻一般入試1","修士課程人文科学研究科日本文学専攻一般入試","プログラム選択なし","併願可",null,null,null,null,null,null,"入試経路",{"$f":"'入学志願票（個別の入学資格審査用）'!D4","v":0}]
[4,"修士課程",4,"修士課程4","人文科学研究科",4,"人文科学研究科4","日本文学専攻","修士課程日本文学専攻",2,"修士課程日本文学専攻2","一般入試","修士課程日本文学専攻一般入試",2,"修士課程日本文学専攻一般入試2","修士課程人文科学研究科日本文学専攻一般入試","文芸創作研究プログラム","併願可",null,null,null,null,null,null,{"$f":"'入学志願票（個別の入学資格審査用）'!I4","v":"⑤その他選択"},{"$f":"'入学志願票（個別の入学資格審査用）'!L4","v":0}]
[5,"修士課程",5,"修士課程5","人文科学研究科",5,"人文科学研究科5","日本文学専攻","修士課程日本文学専攻",3,"修士課程日本文学専攻3","一般入試","修士課程日本文学専攻一般入試",3,"修士課程日本文学専攻一般入試3","修士課程人文科学研究科日本文学専攻一般入試","能楽研究者育成プログラム","併願可",null,null,null,null,null,null,{"$f":"'入学志願票（個別の入学資格審査用）'!B5","v":"⑥修士課程と研修生の併願"}]
[6,"修士課程",6,"修士課程6","人文科学研究科",6,"人文科学研究科6","日本文学専攻","修士課程日本文学専攻",4,"修士課程日本文学専攻4","外国人入試","修士課程日本文学専攻外国人入試",1,"修士課程日本文学専攻外国人入試1","修士課程人文科学研究科日本文学専攻外国人入試","プログラム選択なし","併願可"]
[7,"修士課程",7,"修士課程7","人文科学研究科",7,"人文科学研究科7","日本文学専攻","修士課程日本文学専攻",5,"修士課程日本文学専攻5","外国人入試","修士課程日本文学専攻外国人入試",2,"修士課程日本文学専攻外国人入試2","修士課程人文科学研究科日本文学専攻外国人入試","文芸創作研究プログラム","併願可",null,null,null,null,"ドロップダウンリスト"]
[8,"修士課程",8,"修士課程8","人文科学研究科",8,"人文科学研究科8","日本文学専攻","修士課程日本文学専攻",6,"修士課程日本文学専攻6","外国人入試","修士課程日本文学専攻外国人入試",3,"修士課程日本文学専攻外国人入試3","修士課程人文科学研究科日本文学専攻外国人入試","能楽研究者育成プログラム","併願可",null,null,null,null,"連番","B2_研究科","B重複チェック","B2重複除く一覧","C2_専攻","C2重複チェック","C2重複を除く一覧","D2_入試経路","D2重複チェック","D2重複を除く一覧","E2_その他の選択","E2重複チェック","E2重複を除く一覧","併願"]
[9,"修士課程",9,"修士課程9","人文科学研究科",9,"人文科学研究科9","日本文学専攻","修士課程日本文学専攻",7,"修士課程日本文学専攻7","社会人入試","修士課程日本文学専攻社会人入試",1,"修士課程日本文学専攻社会人入試1","修士課程人文科学研究科日本文学専攻社会人入試","プログラム選択なし","併願可"]
[10,"修士課程",10,"修士課程10","人文科学研究科",10,"人文科学研究科10","日本文学専攻","修士課程日本文学専攻",8,"修士課程日本文学専攻8","社会人入試","修士課程日本文学専攻社会人入試",2,"修士課程日本文学専攻社会人入試2","修士課程人文科学研究科日本文学専攻社会人入試","文芸創作研究プログラム","併願可",null,null,null,null,1,{"$f":"IFERROR(VLOOKUP($Z$3&W13,$D:$E,2,0),\"\")","v":""},{"$f":"IF(COUNTIF($X$13:X13,X13)=1,Y12+1,Y12)","v":1},{"$f":"IFERROR(INDEX($X$13:$X$217,MATCH(ROW(Z13)-12,$Y$13:$Y$217,0)),\"\")","v":""},{"$f":"VLOOKUP($Z$4&W13,$G:$H,2,0)","v":{"$error":"#N/A"}},{"$f":"IF(COUNTIF($AA$13:AA13,AA13)=1,AB12+1,AB12)","v":1},{"$f":"IFERROR(INDEX($AA$13:$AA$201,MATCH(ROW(AC13)-12,$AB$13:$AB$201,0)),\"\")","v":""},{"$f":"VLOOKUP($Z$3&$Z$5&W13,$K:$L,2,0)","v":{"$error":"#N/A"}},{"$f":"IF(COUNTIF($AD$13:AD13,AD13)=1,AE12+1,AE12)","v":1},{"$f":"IFERROR(INDEX($AD$13:$AD$201,MATCH(ROW(AF13)-12,$AE$13:$AE$201,0)),\"\")","v":""},{"$f":"IFERROR(VLOOKUP($Z$3&$Z$5&$Z$6&W13,$O:$R,3,0),\"\")","v":""},{"$f":"IF(COUNTIF($AG$13:AG13,AG13)=1,AH12+1,AH12)","v":1},{"$f":"IF(AG13=\"なし\",\"\",\nIFERROR(INDEX($AG$13:$AG$201,MATCH(ROW(AI13)-12,$AH$13:$AH$201,0)),\"\")\n)","v":""},{"$f":"IF(AND(Z3:Z6<>0,$Y$8=\"⑥修士課程と研修生の併願\"),\"併願を希望する\",\"\")","v":""}]
[11,"修士課程",11,"修士課程11","人文科学研究科",11,"人文科学研究科11","日本文学専攻","修士課程日本文学専攻",9,"修士課程日本文学専攻9","社会人入試","修士課程日本文学専攻社会人入試",3,"修士課程日本文学専攻社会人入試3","修士課程人文科学研究科日本文学専攻社会人入試","能楽研究者育成プログラム","併願可",null,null,null,null,2,"",{"$f":"IF(COUNTIF($X$13:X14,X14)=1,Y13+1,Y13)","v":1},{"$f":"IFERROR(INDEX($X$13:$X$201,MATCH(ROW(Z14)-12,$Y$13:$Y$201,0)),\"\")","v":""},{"$error":"#N/A"},{"$f":"IF(COUNTIF($AA$13:AA14,AA14)=1,AB13+1,AB13)","v":1},{"$f":"IFERROR(INDEX($AA$13:$AA$201,MATCH(ROW(AC14)-12,$AB$13:$AB$201,0)),\"\")","v":""},{"$error":"#N/A"},{"$f":"IF(COUNTIF($AD$13:AD14,AD14)=1,AE13+1,AE13)","v":1},{"$f":"IFERROR(INDEX($AD$13:$AD$201,MATCH(ROW(AF14)-12,$AE$13:$AE$201,0)),\"\")","v":""},"",{"$f":"IF(COUNTIF($AG$13:AG14,AG14)=1,AH13+1,AH13)","v":1},"",{"$f":"IF(AND(Z3:Z6<>0,$Y$8=\"⑥修士課程と研修生の併願\"),\"併願を希望しない\",\"\")","v":""}]
[12,"修士課程",12,"修士課程12","人文科学研究科",12,"人文科学研究科12","英文学専攻","修士課程英文学専攻",1,"修士課程英文学専攻1","一般入試","修士課程英文学専攻一般入試",1,"修士課程英文学専攻一般入試1","修士課程人文科学研究科英文学専攻一般入試","なし","併願可",null,null,null,null,3,"",{"$f":"IF(COUNTIF($X$13:X15,X15)=1,Y14+1,Y14)","v":1},{"$f":"IFERROR(INDEX($X$13:$X$217,MATCH(ROW(Z15)-12,$Y$13:$Y$217,0)),\"\")","v":""},{"$error":"#N/A"},{"$f":"IF(COUNTIF($AA$13:AA15,AA15)=1,AB14+1,AB14)","v":1},{"$f":"IFERROR(INDEX($AA$13:$AA$201,MATCH(ROW(AC15)-12,$AB$13:$AB$201,0)),\"\")","v":""},{"$error":"#N/A"},{"$f":"IF(COUNTIF($AD$13:AD15,AD15)=1,AE14+1,AE14)","v":1},{"$f":"IFERROR(INDEX($AD$13:$AD$201,MATCH(ROW(AF15)-12,$AE$13:$AE$201,0)),\"\")","v":""},"",{"$f":"IF(COUNTIF($AG$13:AG15,AG15)=1,AH14+1,AH14)","v":1},""]
[13,"修士課程",13,"修士課程13","人文科学研究科",13,"人文科学研究科13","英文学専攻","修士課程英文学専攻",2,"修士課程英文学専攻2","社会人入試","修士課程英文学専攻社会人入試",1,"修士課程英文学専攻社会人入試1","修士課程人文科学研究科英文学専攻社会人入試","なし","併願可",null,null,null,null,4,"",{"$f":"IF(COUNTIF($X$13:X16,X16)=1,Y15+1,Y15)","v":1},{"$f":"IFERROR(INDEX($X$13:$X$201,MATCH(ROW(Z16)-12,$Y$13:$Y$201,0)),\"\")","v":""},{"$error":"#N/A"},{"$f":"IF(COUNTIF($AA$13:AA16,AA16)=1,AB15+1,AB15)","v":1},"",{"$error":"#N/A"},{"$f":"IF(COUNTIF($AD$13:AD16,AD16)=1,AE15+1,AE15)","v":1},"","",{"$f":"IF(COUNTIF($AG$13:AG16,AG16)=1,AH15+1,AH15)","v":1},""]
[14,"修士課程",14,"修士課程14","人文科学研究科",14,"人文科学研究科14","史学専攻","修士課程史学専攻",1,"修士課程史学専攻1","一般入試","修士課程史学専攻一般入試",1,"修士課程史学専攻一般入試1","修士課程人文科学研究科史学専攻一般入試","なし","併願可",null,null,null,null,5,"",{"$f":"IF(COUNTIF($X$13:X17,X17)=1,Y16+1,Y16)","v":1},{"$f":"IFERROR(INDEX($X$13:$X$217,MATCH(ROW(Z17)-12,$Y$13:$Y$217,0)),\"\")","v":""},{"$error":"#N/A"},{"$f":"IF(COUNTIF($AA$13:AA17,AA17)=1,AB16+1,AB16)","v":1},"",{"$error":"#N/A"},{"$f":"IF(COUNTIF($AD$13:AD17,AD17)=1,AE16+1,AE16)","v":1},"","",{"$f":"IF(COUNTIF($AG$13:AG17,AG17)=1,AH16+1,AH16)","v":1},""]
[15,"修士課程",15,"修士課程15","人文科学研究科",15,"人文科学研究科15","史学専攻","修士課程史学専攻",2,"修士課程史学専攻2","社会人入試","修士課程史学専攻社会人入試",1,"修士課程史学専攻社会人入試1","修士課程人文科学研究科史学専攻社会人入試","なし","併願可",null,null,null,null,6,"",{"$f":"IF(COUNTIF($X$13:X18,X18)=1,Y17+1,Y17)","v":1},{"$f":"IFERROR(INDEX($X$13:$X$201,MATCH(ROW(Z18)-12,$Y$13:$Y$201,0)),\"\")","v":""},{"$error":"#N/A"},{"$f":"IF(COUNTIF($AA$13:AA18,AA18)=1,AB17+1,AB17)","v":1},"",{"$error":"#N/A"},{"$f":"IF(COUNTIF($AD$13:AD18,AD18)=1,AE17+1,AE17)","v":1},"","",{"$f":"IF(COUNTIF($AG$13:AG18,AG18)=1,AH17+1,AH17)","v":1},""]
[16,"修士課程",16,"修士課程16","人文科学研究科",16,"人文科学研究科16","地理学専攻","修士課程地理学専攻",1,"修士課程地理学専攻1","一般入試","修士課程地理学専攻一般入試",1,"修士課程地理学専攻一般入試1","修士課程人文科学研究科地理学専攻一般入試","なし","併願可",null,null,null,null,7,"",{"$f":"IF(COUNTIF($X$13:X19,X19)=1,Y18+1,Y18)","v":1},{"$f":"IFERROR(INDEX($X$13:$X$217,MATCH(ROW(Z19)-12,$Y$13:$Y$217,0)),\"\")","v":""},{"$error":"#N/A"},{"$f":"IF(COUNTIF($AA$13:AA19,AA19)=1,AB18+1,AB18)","v":1},"",{"$error":"#N/A"},{"$f":"IF(COUNTIF($AD$13:AD19,AD19)=1,AE18+1,AE18)","v":1},"","",{"$f":"IF(COUNTIF($AG$13:AG19,AG19)=1,AH18+1,AH18)","v":1},""]
[17,"修士課程",17,"修士課程17","人文科学研究科",17,"人文科学研究科17","地理学専攻","修士課程地理学専攻",2,"修士課程地理学専攻2","外国人入試","修士課程地理学専攻外国人入試",1,"修士課程地理学専攻外国人入試1","修士課程人文科学研究科地理学専攻外国人入試","なし","併願可",null,null,null,null,8,"",{"$f":"IF(COUNTIF($X$13:X20,X20)=1,Y19+1,Y19)","v":1},{"$f":"IFERROR(INDEX($X$13:$X$201,MATCH(ROW(Z20)-12,$Y$13:$Y$201,0)),\"\")","v":""},{"$error":"#N/A"},{"$f":"IF(COUNTIF($AA$13:AA20,AA20)=1,AB19+1,AB19)","v":1},"",{"$error":"#N/A"},{"$f":"IF(COUNTIF($AD$13:AD20,AD20)=1,AE19+1,AE19)","v":1},"","",{"$f":"IF(COUNTIF($AG$13:AG20,AG20)=1,AH19+1,AH19)","v":1},""]
[18,"修士課程",18,"修士課程18","人文科学研究科",18,"人文科学研究科18","地理学専攻","修士課程地理学専攻",3,"修士課程地理学専攻3","社会人入試","修士課程地理学専攻社会人入試",1,"修士課程地理学専攻社会人入試1","修士課程人文科学研究科地理学専攻社会人入試","なし","併願可",null,null,null,null,9,"",{"$f":"IF(COUNTIF($X$13:X21,X21)=1,Y20+1,Y20)","v":1},{"$f":"IFERROR(INDEX($X$13:$X$217,MATCH(ROW(Z21)-12,$Y$13:$Y$217,0)),\"\")","v":""},{"$error":"#N/A"},{"$f":"IF(COUNTIF($AA$13:AA21,AA21)=1,AB20+1,AB20)","v":1},"",{"$error":"#N/A"},{"$f":"IF(COUNTIF($AD$13:AD21,AD21)=1,AE20+1,AE20)","v":1},"","",{"$f":"IF(COUNTIF($AG$13:AG21,AG21)=1,AH20+1,AH20)","v":1},""]
[19,"修士課程",19,"修士課程19","人文科学研究科",19,"人文科学研究科19","心理学専攻","修士課程心理学専攻",1,"修士課程心理学専攻1","一般入試","修士課程心理学専攻一般入試",1,"修士課程心理学専攻一般入試1","修士課程人文科学研究科心理学専攻一般入試","なし","併願可",null,null,null,null,10,"",{"$f":"IF(COUNTIF($X$13:X22,X22)=1,Y21+1,Y21)","v":1},{"$f":"IFERROR(INDEX($X$13:$X$201,MATCH(ROW(Z22)-12,$Y$13:$Y$201,0)),\"\")","v":""},{"$error":"#N/A"},{"$f":"IF(COUNTIF($AA$13:AA22,AA22)=1,AB21+1,AB21)","v":1},"",{"$error":"#N/A"},{"$f":"IF(COUNTIF($AD$13:AD22,AD22)=1,AE21+1,AE21)","v":1},"","",{"$f":"IF(COUNTIF($AG$13:AG22,AG22)=1,AH21+1,AH21)","v":1},""]
[20,"修士課程",20,"修士課程20","人文科学研究科",20,"人文科学研究科20","国際日本学インスティテュート","修士課程国際日本学インスティテュート",1,"修士課程国際日本学インスティテュート1","一般入試","修士課程国際日本学インスティテュート一般入試",1,"修士課程国際日本学インスティテュート一般入試1","修士課程人文科学研究科国際日本学インスティテュート一般入試","所属専攻：哲学専攻","併願可",null,null,null,null,11,"",{"$f":"IF(COUNTIF($X$13:X23,X23)=1,Y22+1,Y22)","v":1},{"$f":"IFERROR(INDEX($X$13:$X$217,MATCH(ROW(Z23)-12,$Y$13:$Y$217,0)),\"\")","v":""},{"$error":"#N/A"},{"$f":"IF(COUNTIF($AA$13:AA23,AA23)=1,AB22+1,AB22)","v":1},"",{"$error":"#N/A"},{"$f":"IF(COUNTIF($AD$13:AD23,AD23)=1,AE22+1,AE22)","v":1},"","",{"$f":"IF(COUNTIF($AG$13:AG23,AG23)=1,AH22+1,AH22)","v":1},""]
[21,"修士課程",21,"修士課程21","人文科学研究科",21,"人文科学研究科21","国際日本学インスティテュート","修士課程国際日本学インスティテュート",2,"修士課程国際日本学インスティテュート2","一般入試","修士課程国際日本学インスティテュート一般入試",2,"修士課程国際日本学インスティテュート一般入試2","修士課程人文科学研究科国際日本学インスティテュート一般入試","所属専攻：日本文学専攻","併願可",null,null,null,null,12,"",{"$f":"IF(COUNTIF($X$13:X24,X24)=1,Y23+1,Y23)","v":1},{"$f":"IFERROR(INDEX($X$13:$X$201,MATCH(ROW(Z24)-12,$Y$13:$Y$201,0)),\"\")","v":""},{"$error":"#N/A"},{"$f":"IF(COUNTIF($AA$13:AA24,AA24)=1,AB23+1,AB23)","v":1},"",{"$error":"#N/A"},{"$f":"IF(COUNTIF($AD$13:AD24,AD24)=1,AE23+1,AE23)","v":1},"","",{"$f":"IF(COUNTIF($AG$13:AG24,AG24)=1,AH23+1,AH23)","v":1},""]
[22,"修士課程",22,"修士課程22","人文科学研究科",22,"人文科学研究科22","国際日本学インスティテュート","修士課程国際日本学インスティテュート",3,"修士課程国際日本学インスティテュート3","一般入試","修士課程国際日本学インスティテュート一般入試",3,"修士課程国際日本学インスティテュート一般入試3","修士課程人文科学研究科国際日本学インスティテュート一般入試","所属専攻：英文学専攻","併願可",null,null,null,null,13,"",{"$f":"IF(COUNTIF($X$13:X25,X25)=1,Y24+1,Y24)","v":1},{"$f":"IFERROR(INDEX($X$13:$X$217,MATCH(ROW(Z25)-12,$Y$13:$Y$217,0)),\"\")","v":""},{"$error":"#N/A"},{"$f":"IF(COUNTIF($AA$13:AA25,AA25)=1,AB24+1,AB24)","v":1},"",{"$error":"#N/A"},{"$f":"IF(COUNTIF($AD$13:AD25,AD25)=1,AE24+1,AE24)","v":1},"","",{"$f":"IF(COUNTIF($AG$13:AG25,AG25)=1,AH24+1,AH24)","v":1},""]
[23,"修士課程",23,"修士課程23","人文科学研究科",23,"人文科学研究科23","国際日本学インスティテュート","修士課程国際日本学インスティテュート",4,"修士課程国際日本学インスティテュート4","一般入試","修士課程国際日本学インスティテュート一般入試",4,"修士課程国際日本学インスティテュート一般入試4","修士課程人文科学研究科国際日本学インスティテュート一般入試","所属専攻：史学専攻","併願可",null,null,null,null,14,"",{"$f":"IF(COUNTIF($X$13:X26,X26)=1,Y25+1,Y25)","v":1},{"$f":"IFERROR(INDEX($X$13:$X$201,MATCH(ROW(Z26)-12,$Y$13:$Y$201,0)),\"\")","v":""},{"$error":"#N/A"},{"$f":"IF(COUNTIF($AA$13:AA26,AA26)=1,AB25+1,AB25)","v":1},"",{"$error":"#N/A"},{"$f":"IF(COUNTIF($AD$13:AD26,AD26)=1,AE25+1,AE25)","v":1},"","",{"$f":"IF(COUNTIF($AG$13:AG26,AG26)=1,AH25+1,AH25)","v":1},""]
[24,"修士課程",24,"修士課程24","人文科学研究科",24,"人文科学研究科24","国際日本学インスティテュート","修士課程国際日本学インスティテュート",5,"修士課程国際日本学インスティテュート5","一般入試","修士課程国際日本学インスティテュート一般入試",5,"修士課程国際日本学インスティテュート一般入試5","修士課程人文科学研究科国際日本学インスティテュート一般入試","所属専攻：地理学専攻","併願可",null,null,null,null,15,"",{"$f":"IF(COUNTIF($X$13:X27,X27)=1,Y26+1,Y26)","v":1},{"$f":"IFERROR(INDEX($X$13:$X$217,MATCH(ROW(Z27)-12,$Y$13:$Y$217,0)),\"\")","v":""},{"$error":"#N/A"},{"$f":"IF(COUNTIF($AA$13:AA27,AA27)=1,AB26+1,AB26)","v":1},"",{"$error":"#N/A"},{"$f":"IF(COUNTIF($AD$13:AD27,AD27)=1,AE26+1,AE26)","v":1},"","",{"$f":"IF(COUNTIF($AG$13:AG27,AG27)=1,AH26+1,AH26)","v":1},""]
[25,"修士課程",25,"修士課程25","人文科学研究科",25,"人文科学研究科25","国際日本学インスティテュート","修士課程国際日本学インスティテュート",6,"修士課程国際日本学インスティテュート6","外国人入試","修士課程国際日本学インスティテュート外国人入試",1,"修士課程国際日本学インスティテュート外国人入試1","修士課程人文科学研究科国際日本学インスティテュート外国人入試","所属専攻：哲学専攻","併願可",null,null,null,null,16,"",{"$f":"IF(COUNTIF($X$13:X28,X28)=1,Y27+1,Y27)","v":1},{"$f":"IFERROR(INDEX($X$13:$X$201,MATCH(ROW(Z28)-12,$Y$13:$Y$201,0)),\"\")","v":""},{"$error":"#N/A"},{"$f":"IF(COUNTIF($AA$13:AA28,AA28)=1,AB27+1,AB27)","v":1},"",{"$error":"#N/A"},{"$f":"IF(COUNTIF($AD$13:AD28,AD28)=1,AE27+1,AE27)","v":1},"","",{"$f":"IF(COUNTIF($AG$13:AG28,AG28)=1,AH27+1,AH27)","v":1},""]
[26,"修士課程",26,"修士課程26","人文科学研究科",26,"人文科学研究科26","国際日本学インスティテュート","修士課程国際日本学インスティテュート",7,"修士課程国際日本学インスティテュート7","外国人入試","修士課程国際日本学インスティテュート外国人入試",2,"修士課程国際日本学インスティテュート外国人入試2","修士課程人文科学研究科国際日本学インスティテュート外国人入試","所属専攻：日本文学専攻","併願可",null,null,null,null,17,"",{"$f":"IF(COUNTIF($X$13:X29,X29)=1,Y28+1,Y28)","v":1},{"$f":"IFERROR(INDEX($X$13:$X$217,MATCH(ROW(Z29)-12,$Y$13:$Y$217,0)),\"\")","v":""},{"$error":"#N/A"},{"$f":"IF(COUNTIF($AA$13:AA29,AA29)=1,AB28+1,AB28)","v":1},"",{"$error":"#N/A"},{"$f":"IF(COUNTIF($AD$13:AD29,AD29)=1,AE28+1,AE28)","v":1},"","",{"$f":"IF(COUNTIF($AG$13:AG29,AG29)=1,AH28+1,AH28)","v":1},""]
[27,"修士課程",27,"修士課程27","人文科学研究科",27,"人文科学研究科27","国際日本学インスティテュート","修士課程国際日本学インスティテュート",8,"修士課程国際日本学インスティテュート8","外国人入試","修士課程国際日本学インスティテュート外国人入試",3,"修士課程国際日本学インスティテュート外国人入試3","修士課程人文科学研究科国際日本学インスティテュート外国人入試","所属専攻：英文学専攻","併願可",null,null,null,null,18,"",{"$f":"IF(COUNTIF($X$13:X30,X30)=1,Y29+1,Y29)","v":1},{"$f":"IFERROR(INDEX($X$13:$X$201,MATCH(ROW(Z30)-12,$Y$13:$Y$201,0)),\"\")","v":""},{"$error":"#N/A"},{"$f":"IF(COUNTIF($AA$13:AA30,AA30)=1,AB29+1,AB29)","v":1},"",{"$error":"#N/A"},{"$f":"IF(COUNTIF($AD$13:AD30,AD30)=1,AE29+1,AE29)","v":1},"","",{"$f":"IF(COUNTIF($AG$13:AG30,AG30)=1,AH29+1,AH29)","v":1},""]
[28,"修士課程",28,"修士課程28","人文科学研究科",28,"人文科学研究科28","国際日本学インスティテュート","修士課程国際日本学インスティテュート",9,"修士課程国際日本学インスティテュート9","外国人入試","修士課程国際日本学インスティテュート外国人入試",4,"修士課程国際日本学インスティテュート外国人入試4","修士課程人文科学研究科国際日本学インスティテュート外国人入試","所属専攻：史学専攻","併願可",null,null,null,null,19,"",{"$f":"IF(COUNTIF($X$13:X31,X31)=1,Y30+1,Y30)","v":1},{"$f":"IFERROR(INDEX($X$13:$X$217,MATCH(ROW(Z31)-12,$Y$13:$Y$217,0)),\"\")","v":""},{"$error":"#N/A"},{"$f":"IF(COUNTIF($AA$13:AA31,AA31)=1,AB30+1,AB30)","v":1},"",{"$error":"#N/A"},{"$f":"IF(COUNTIF($AD$13:AD31,AD31)=1,AE30+1,AE30)","v":1},"","",{"$f":"IF(COUNTIF($AG$13:AG31,AG31)=1,AH30+1,AH30)","v":1},""]
[29,"修士課程",29,"修士課程29","人文科学研究科",29,"人文科学研究科29","国際日本学インスティテュート","修士課程国際日本学インスティテュート",10,"修士課程国際日本学インスティテュート10","外国人入試","修士課程国際日本学インスティテュート外国人入試",5,"修士課程国際日本学インスティテュート外国人入試5","修士課程人文科学研究科国際日本学インスティテュート外国人入試","所属専攻：地理学専攻","併願可",null,null,null,null,20,"",{"$f":"IF(COUNTIF($X$13:X32,X32)=1,Y31+1,Y31)","v":1},{"$f":"IFERROR(INDEX($X$13:$X$201,MATCH(ROW(Z32)-12,$Y$13:$Y$201,0)),\"\")","v":""},{"$error":"#N/A"},{"$f":"IF(COUNTIF($AA$13:AA32,AA32)=1,AB31+1,AB31)","v":1},"",{"$error":"#N/A"},{"$f":"IF(COUNTIF($AD$13:AD32,AD32)=1,AE31+1,AE31)","v":1},"","",{"$f":"IF(COUNTIF($AG$13:AG32,AG32)=1,AH31+1,AH31)","v":1},""]
[30,"修士課程",30,"修士課程30","人文科学研究科",30,"人文科学研究科30","国際日本学インスティテュート","修士課程国際日本学インスティテュート",11,"修士課程国際日本学インスティテュート11","社会人入試","修士課程国際日本学インスティテュート社会人入試",1,"修士課程国際日本学インスティテュート社会人入試1","修士課程人文科学研究科国際日本学インスティテュート社会人入試","所属専攻：哲学専攻","併願可",null,null,null,null,21,"",{"$f":"IF(COUNTIF($X$13:X33,X33)=1,Y32+1,Y32)","v":1},{"$f":"IFERROR(INDEX($X$13:$X$217,MATCH(ROW(Z33)-12,$Y$13:$Y$217,0)),\"\")","v":""},{"$error":"#N/A"},{"$f":"IF(COUNTIF($AA$13:AA33,AA33)=1,AB32+1,AB32)","v":1},"",{"$error":"#N/A"},{"$f":"IF(COUNTIF($AD$13:AD33,AD33)=1,AE32+1,AE32)","v":1},"","",{"$f":"IF(COUNTIF($AG$13:AG33,AG33)=1,AH32+1,AH32)","v":1},""]
[31,"修士課程",31,"修士課程31","人文科学研究科",31,"人文科学研究科31","国際日本学インスティテュート","修士課程国際日本学インスティテュート",12,"修士課程国際日本学インスティテュート12","社会人入試","修士課程国際日本学インスティテュート社会人入試",2,"修士課程国際日本学インスティテュート社会人入試2","修士課程人文科学研究科国際日本学インスティテュート社会人入試","所属専攻：日本文学専攻","併願可",null,null,null,null,22,"",{"$f":"IF(COUNTIF($X$13:X34,X34)=1,Y33+1,Y33)","v":1},{"$f":"IFERROR(INDEX($X$13:$X$201,MATCH(ROW(Z34)-12,$Y$13:$Y$201,0)),\"\")","v":""},{"$error":"#N/A"},{"$f":"IF(COUNTIF($AA$13:AA34,AA34)=1,AB33+1,AB33)","v":1},"",{"$error":"#N/A"},{"$f":"IF(COUNTIF($AD$13:AD34,AD34)=1,AE33+1,AE33)","v":1},"","",{"$f":"IF(COUNTIF($AG$13:AG34,AG34)=1,AH33+1,AH33)","v":1},""]
[32,"修士課程",32,"修士課程32","人文科学研究科",32,"人文科学研究科32","国際日本学インスティテュート","修士課程国際日本学インスティテュート",13,"修士課程国際日本学インスティテュート13","社会人入試","修士課程国際日本学インスティテュート社会人入試",3,"修士課程国際日本学インスティテュート社会人入試3","修士課程人文科学研究科国際日本学インスティテュート社会人入試","所属専攻：英文学専攻","併願可",null,null,null,null,23,"",{"$f":"IF(COUNTIF($X$13:X35,X35)=1,Y34+1,Y34)","v":1},{"$f":"IFERROR(INDEX($X$13:$X$217,MATCH(ROW(Z35)-12,$Y$13:$Y$217,0)),\"\")","v":""},{"$error":"#N/A"},{"$f":"IF(COUNTIF($AA$13:AA35,AA35)=1,AB34+1,AB34)","v":1},"",{"$error":"#N/A"},{"$f":"IF(COUNTIF($AD$13:AD35,AD35)=1,AE34+1,AE34)","v":1},"","",{"$f":"IF(COUNTIF($AG$13:AG35,AG35)=1,AH34+1,AH34)","v":1},""]
[33,"修士課程",33,"修士課程33","人文科学研究科",33,"人文科学研究科33","国際日本学インスティテュート","修士課程国際日本学インスティテュート",14,"修士課程国際日本学インスティテュート14","社会人入試","修士課程国際日本学インスティテュート社会人入試",4,"修士課程国際日本学インスティテュート社会人入試4","修士課程人文科学研究科国際日本学インスティテュート社会人入試","所属専攻：史学専攻","併願可",null,null,null,null,24,"",{"$f":"IF(COUNTIF($X$13:X36,X36)=1,Y35+1,Y35)","v":1},{"$f":"IFERROR(INDEX($X$13:$X$201,MATCH(ROW(Z36)-12,$Y$13:$Y$201,0)),\"\")","v":""},{"$error":"#N/A"},{"$f":"IF(COUNTIF($AA$13:AA36,AA36)=1,AB35+1,AB35)","v":1},"",{"$error":"#N/A"},{"$f":"IF(COUNTIF($AD$13:AD36,AD36)=1,AE35+1,AE35)","v":1},"","",{"$f":"IF(COUNTIF($AG$13:AG36,AG36)=1,AH35+1,AH35)","v":1},""]
[34,"修士課程",34,"修士課程34","人文科学研究科",34,"人文科学研究科34","国際日本学インスティテュート","修士課程国際日本学インスティテュート",15,"修士課程国際日本学インスティテュート15","社会人入試","修士課程国際日本学インスティテュート社会人入試",5,"修士課程国際日本学インスティテュート社会人入試5","修士課程人文科学研究科国際日本学インスティテュート社会人入試","所属専攻：地理学専攻","併願可",null,null,null,null,25,"",{"$f":"IF(COUNTIF($X$13:X37,X37)=1,Y36+1,Y36)","v":1},{"$f":"IFERROR(INDEX($X$13:$X$217,MATCH(ROW(Z37)-12,$Y$13:$Y$217,0)),\"\")","v":""},{"$error":"#N/A"},{"$f":"IF(COUNTIF($AA$13:AA37,AA37)=1,AB36+1,AB36)","v":1},"",{"$error":"#N/A"},{"$f":"IF(COUNTIF($AD$13:AD37,AD37)=1,AE36+1,AE36)","v":1},"","",{"$f":"IF(COUNTIF($AG$13:AG37,AG37)=1,AH36+1,AH36)","v":1},""]
[35,"修士課程",35,"修士課程35","国際文化研究科",1,"国際文化研究科1","国際文化専攻","修士課程国際文化専攻",1,"修士課程国際文化専攻1","一般入試","修士課程国際文化専攻一般入試",1,"修士課程国際文化専攻一般入試1","修士課程国際文化研究科国際文化専攻一般入試","なし","併願可",null,null,null,null,26,"",{"$f":"IF(COUNTIF($X$13:X38,X38)=1,Y37+1,Y37)","v":1},{"$f":"IFERROR(INDEX($X$13:$X$201,MATCH(ROW(Z38)-12,$Y$13:$Y$201,0)),\"\")","v":""},{"$error":"#N/A"},{"$f":"IF(COUNTIF($AA$13:AA38,AA38)=1,AB37+1,AB37)","v":1},"",{"$error":"#N/A"},{"$f":"IF(COUNTIF($AD$13:AD38,AD38)=1,AE37+1,AE37)","v":1},"","",{"$f":"IF(COUNTIF($AG$13:AG38,AG38)=1,AH37+1,AH37)","v":1},""]
[36,"修士課程",36,"修士課程36","国際文化研究科",2,"国際文化研究科2","国際文化専攻","修士課程国際文化専攻",2,"修士課程国際文化専攻2","外国人入試","修士課程国際文化専攻外国人入試",1,"修士課程国際文化専攻外国人入試1","修士課程国際文化研究科国際文化専攻外国人入試","なし","併願可",null,null,null,null,27,"",{"$f":"IF(COUNTIF($X$13:X39,X39)=1,Y38+1,Y38)","v":1},{"$f":"IFERROR(INDEX($X$13:$X$217,MATCH(ROW(Z39)-12,$Y$13:$Y$217,0)),\"\")","v":""},{"$error":"#N/A"},{"$f":"IF(COUNTIF($AA$13:AA39,AA39)=1,AB38+1,AB38)","v":1},"",{"$error":"#N/A"},{"$f":"IF(COUNTIF($AD$13:AD39,AD39)=1,AE38+1,AE38)","v":1},"","",{"$f":"IF(COUNTIF($AG$13:AG39,AG39)=1,AH38+1,AH38)","v":1},""]
[37,"修士課程",37,"修士課程37","国際文化研究科",3,"国際文化研究科3","国際文化専攻","修士課程国際文化専攻",3,"修士課程国際文化専攻3","社会人入試","修士課程国際文化専攻社会人入試",1,"修士課程国際文化専攻社会人入試1","修士課程国際文化研究科国際文化専攻社会人入試","なし","併願可",null,null,null,null,28,"",{"$f":"IF(COUNTIF($X$13:X40,X40)=1,Y39+1,Y39)","v":1},{"$f":"IFERROR(INDEX($X$13:$X$201,MATCH(ROW(Z40)-12,$Y$13:$Y$201,0)),\"\")","v":""},{"$error":"#N/A"},{"$f":"IF(COUNTIF($AA$13:AA40,AA40)=1,AB39+1,AB39)","v":1},"",{"$error":"#N/A"},{"$f":"IF(COUNTIF($AD$13:AD40,AD40)=1,AE39+1,AE39)","v":1},"","",{"$f":"IF(COUNTIF($AG$13:AG40,AG40)=1,AH39+1,AH39)","v":1},""]
[38,"修士課程",38,"修士課程38","経済学研究科",1,"経済学研究科1","経済学専攻","修士課程経済学専攻",1,"修士課程経済学専攻1","一般入試","修士課程経済学専攻一般入試",1,"修士課程経済学専攻一般入試1","修士課程経済学研究科経済学専攻一般入試","修士M.A.（歴史・思想・制度）","併願可",null,null,null,null,29,"",{"$f":"IF(COUNTIF($X$13:X41,X41)=1,Y40+1,Y40)","v":1},{"$f":"IFERROR(INDEX($X$13:$X$217,MATCH(ROW(Z41)-12,$Y$13:$Y$217,0)),\"\")","v":""},{"$error":"#N/A"},{"$f":"IF(COUNTIF($AA$13:AA41,AA41)=1,AB40+1,AB40)","v":1},"",{"$error":"#N/A"},{"$f":"IF(COUNTIF($AD$13:AD41,AD41)=1,AE40+1,AE40)","v":1},"","",{"$f":"IF(COUNTIF($AG$13:AG41,AG41)=1,AH40+1,AH40)","v":1},""]
[39,"修士課程",39,"修士課程39","経済学研究科",2,"経済学研究科2","経済学専攻","修士課程経済学専攻",2,"修士課程経済学専攻2","一般入試","修士課程経済学専攻一般入試",2,"修士課程経済学専攻一般入試2","修士課程経済学研究科経済学専攻一般入試","修士M.A.（金融・企業）","併願可",null,null,null,null,30,"",{"$f":"IF(COUNTIF($X$13:X42,X42)=1,Y41+1,Y41)","v":1},{"$f":"IFERROR(INDEX($X$13:$X$201,MATCH(ROW(Z42)-12,$Y$13:$Y$201,0)),\"\")","v":""},{"$error":"#N/A"},{"$f":"IF(COUNTIF($AA$13:AA42,AA42)=1,AB41+1,AB41)","v":1},"",{"$error":"#N/A"},{"$f":"IF(COUNTIF($AD$13:AD42,AD42)=1,AE41+1,AE41)","v":1},"","",{"$f":"IF(COUNTIF($AG$13:AG42,AG42)=1,AH41+1,AH41)","v":1},""]
[40,"修士課程",40,"修士課程40","経済学研究科",3,"経済学研究科3","経済学専攻","修士課程経済学専攻",3,"修士課程経済学専攻3","一般入試","修士課程経済学専攻一般入試",3,"修士課程経済学専攻一般入試3","修士課程経済学研究科経済学専攻一般入試","修士M.A.（政策・環境）","併願可",null,null,null,null,31,"",{"$f":"IF(COUNTIF($X$13:X43,X43)=1,Y42+1,Y42)","v":1},{"$f":"IFERROR(INDEX($X$13:$X$217,MATCH(ROW(Z43)-12,$Y$13:$Y$217,0)),\"\")","v":""},{"$error":"#N/A"},{"$f":"IF(COUNTIF($AA$13:AA43,AA43)=1,AB42+1,AB42)","v":1},"",{"$error":"#N/A"},{"$f":"IF(COUNTIF($AD$13:AD43,AD43)=1,AE42+1,AE42)","v":1},"","",{"$f":"IF(COUNTIF($AG$13:AG43,AG43)=1,AH42+1,AH42)","v":1},""]
[41,"修士課程",41,"修士課程41","経済学研究科",4,"経済学研究科4","経済学専攻","修士課程経済学専攻",4,"修士課程経済学専攻4","一般入試","修士課程経済学専攻一般入試",4,"修士課程経済学専攻一般入試4","修士課程経済学研究科経済学専攻一般入試","修士M.A.（国際・地域）","併願可",null,null,null,null,32,"",{"$f":"IF(COUNTIF($X$13:X44,X44)=1,Y43+1,Y43)","v":1},{"$f":"IFERROR(INDEX($X$13:$X$201,MATCH(ROW(Z44)-12,$Y$13:$Y$201,0)),\"\")","v":""},{"$error":"#N/A"},{"$f":"IF(COUNTIF($AA$13:AA44,AA44)=1,AB43+1,AB43)","v":1},"",{"$error":"#N/A"},{"$f":"IF(COUNTIF($AD$13:AD44,AD44)=1,AE43+1,AE43)","v":1},"","",{"$f":"IF(COUNTIF($AG$13:AG44,AG44)=1,AH43+1,AH43)","v":1},""]
[42,"修士課程",42,"修士課程42","経済学研究科",5,"経済学研究科5","経済学専攻","修士課程経済学専攻",5,"修士課程経済学専攻5","一般入試","修士課程経済学専攻一般入試",5,"修士課程経済学専攻一般入試5","修士課程経済学研究科経済学専攻一般入試","修士M.A.（応用ミクロ・応用マクロ・計量）","併願可",null,null,null,null,33,"",{"$f":"IF(COUNTIF($X$13:X45,X45)=1,Y44+1,Y44)","v":1},{"$f":"IFERROR(INDEX($X$13:$X$217,MATCH(ROW(Z45)-12,$Y$13:$Y$217,0)),\"\")","v":""},{"$error":"#N/A"},{"$f":"IF(COUNTIF($AA$13:AA45,AA45)=1,AB44+1,AB44)","v":1},"",{"$error":"#N/A"},{"$f":"IF(COUNTIF($AD$13:AD45,AD45)=1,AE44+1,AE44)","v":1},"","",{"$f":"IF(COUNTIF($AG$13:AG45,AG45)=1,AH44+1,AH44)","v":1},""]
[43,"修士課程",43,"修士課程43","経済学研究科",6,"経済学研究科6","経済学専攻","修士課程経済学専攻",6,"修士課程経済学専攻6","一般入試","修士課程経済学専攻一般入試",6,"修士課程経済学専攻一般入試6","修士課程経済学研究科経済学専攻一般入試","博士5年Ph.D.（歴史・思想・制度）","併願可",null,null,null,null,34,"",{"$f":"IF(COUNTIF($X$13:X46,X46)=1,Y45+1,Y45)","v":1},{"$f":"IFERROR(INDEX($X$13:$X$201,MATCH(ROW(Z46)-12,$Y$13:$Y$201,0)),\"\")","v":""},{"$error":"#N/A"},{"$f":"IF(COUNTIF($AA$13:AA46,AA46)=1,AB45+1,AB45)","v":1},"",{"$error":"#N/A"},{"$f":"IF(COUNTIF($AD$13:AD46,AD46)=1,AE45+1,AE45)","v":1},"","",{"$f":"IF(COUNTIF($AG$13:AG46,AG46)=1,AH45+1,AH45)","v":1},""]
[44,"修士課程",44,"修士課程44","経済学研究科",7,"経済学研究科7","経済学専攻","修士課程経済学専攻",7,"修士課程経済学専攻7","一般入試","修士課程経済学専攻一般入試",7,"修士課程経済学専攻一般入試7","修士課程経済学研究科経済学専攻一般入試","博士5年Ph.D.（金融・企業）","併願可",null,null,null,null,35,"",{"$f":"IF(COUNTIF($X$13:X47,X47)=1,Y46+1,Y46)","v":1},{"$f":"IFERROR(INDEX($X$13:$X$217,MATCH(ROW(Z47)-12,$Y$13:$Y$217,0)),\"\")","v":""},{"$error":"#N/A"},{"$f":"IF(COUNTIF($AA$13:AA47,AA47)=1,AB46+1,AB46)","v":1},"",{"$error":"#N/A"},{"$f":"IF(COUNTIF($AD$13:AD47,AD47)=1,AE46+1,AE46)","v":1},"","",{"$f":"IF(COUNTIF($AG$13:AG47,AG47)=1,AH46+1,AH46)","v":1},""]
[45,"修士課程",45,"修士課程45","経済学研究科",8,"経済学研究科8","経済学専攻","修士課程経済学専攻",8,"修士課程経済学専攻8","一般入試","修士課程経済学専攻一般入試",8,"修士課程経済学専攻一般入試8","修士課程経済学研究科経済学専攻一般入試","博士5年Ph.D.（政策・環境）","併願可",null,null,null,null,36,"",{"$f":"IF(COUNTIF($X$13:X48,X48)=1,Y47+1,Y47)","v":1},{"$f":"IFERROR(INDEX($X$13:$X$201,MATCH(ROW(Z48)-12,$Y$13:$Y$201,0)),\"\")","v":""},{"$error":"#N/A"},{"$f":"IF(COUNTIF($AA$13:AA48,AA48)=1,AB47+1,AB47)","v":1},"",{"$error":"#N/A"},{"$f":"IF(COUNTIF($AD$13:AD48,AD48)=1,AE47+1,AE47)","v":1},"","",{"$f":"IF(COUNTIF($AG$13:AG48,AG48)=1,AH47+1,AH47)","v":1},""]
[46,"修士課程",46,"修士課程46","経済学研究科",9,"経済学研究科9","経済学専攻","修士課程経済学専攻",9,"修士課程経済学専攻9","一般入試","修士課程経済学専攻一般入試",9,"修士課程経済学専攻一般入試9","修士課程経済学研究科経済学専攻一般入試","博士5年Ph.D.（国際・地域）","併願可",null,null,null,null,37,"",{"$f":"IF(COUNTIF($X$13:X49,X49)=1,Y48+1,Y48)","v":1},{"$f":"IFERROR(INDEX($X$13:$X$217,MATCH(ROW(Z49)-12,$Y$13:$Y$217,0)),\"\")","v":""},{"$error":"#N/A"},{"$f":"IF(COUNTIF($AA$13:AA49,AA49)=1,AB48+1,AB48)","v":1},"",{"$error":"#N/A"},{"$f":"IF(COUNTIF($AD$13:AD49,AD49)=1,AE48+1,AE48)","v":1},"","",{"$f":"IF(COUNTIF($AG$13:AG49,AG49)=1,AH48+1,AH48)","v":1},""]
[47,"修士課程",47,"修士課程47","経済学研究科",10,"経済学研究科10","経済学専攻","修士課程経済学専攻",10,"修士課程経済学専攻10","一般入試","修士課程経済学専攻一般入試",10,"修士課程経済学専攻一般入試10","修士課程経済学研究科経済学専攻一般入試","博士5年Ph.D.（応用ミクロ・応用マクロ・計量）","併願可",null,null,null,null,38,"",{"$f":"IF(COUNTIF($X$13:X50,X50)=1,Y49+1,Y49)","v":1},{"$f":"IFERROR(INDEX($X$13:$X$201,MATCH(ROW(Z50)-12,$Y$13:$Y$201,0)),\"\")","v":""},{"$error":"#N/A"},{"$f":"IF(COUNTIF($AA$13:AA50,AA50)=1,AB49+1,AB49)","v":1},"",{"$error":"#N/A"},{"$f":"IF(COUNTIF($AD$13:AD50,AD50)=1,AE49+1,AE49)","v":1},"","",{"$f":"IF(COUNTIF($AG$13:AG50,AG50)=1,AH49+1,AH49)","v":1},""]
[48,"修士課程",48,"修士課程48","経済学研究科",11,"経済学研究科11","経済学専攻","修士課程経済学専攻",11,"修士課程経済学専攻11","外国人入試","修士課程経済学専攻外国人入試",1,"修士課程経済学専攻外国人入試1","修士課程経済学研究科経済学専攻外国人入試","修士M.A.（歴史・思想・制度）","併願可",null,null,null,null,39,"",{"$f":"IF(COUNTIF($X$13:X51,X51)=1,Y50+1,Y50)","v":1},{"$f":"IFERROR(INDEX($X$13:$X$217,MATCH(ROW(Z51)-12,$Y$13:$Y$217,0)),\"\")","v":""},{"$error":"#N/A"},{"$f":"IF(COUNTIF($AA$13:AA51,AA51)=1,AB50+1,AB50)","v":1},"",{"$error":"#N/A"},{"$f":"IF(COUNTIF($AD$13:AD51,AD51)=1,AE50+1,AE50)","v":1},"","",{"$f":"IF(COUNTIF($AG$13:AG51,AG51)=1,AH50+1,AH50)","v":1},""]
[49,"修士課程",49,"修士課程49","経済学研究科",12,"経済学研究科12","経済学専攻","修士課程経済学専攻",12,"修士課程経済学専攻12","外国人入試","修士課程経済学専攻外国人入試",2,"修士課程経済学専攻外国人入試2","修士課程経済学研究科経済学専攻外国人入試","修士M.A.（金融・企業）","併願可",null,null,null,null,40,"",{"$f":"IF(COUNTIF($X$13:X52,X52)=1,Y51+1,Y51)","v":1},{"$f":"IFERROR(INDEX($X$13:$X$201,MATCH(ROW(Z52)-12,$Y$13:$Y$201,0)),\"\")","v":""},{"$error":"#N/A"},{"$f":"IF(COUNTIF($AA$13:AA52,AA52)=1,AB51+1,AB51)","v":1},"",{"$error":"#N/A"},{"$f":"IF(COUNTIF($AD$13:AD52,AD52)=1,AE51+1,AE51)","v":1},"","",{"$f":"IF(COUNTIF($AG$13:AG52,AG52)=1,AH51+1,AH51)","v":1},""]
[50,"修士課程",50,"修士課程50","経済学研究科",13,"経済学研究科13","経済学専攻","修士課程経済学専攻",13,"修士課程経済学専攻13","外国人入試","修士課程経済学専攻外国人入試",3,"修士課程経済学専攻外国人入試3","修士課程経済学研究科経済学専攻外国人入試","修士M.A.（政策・環境）","併願可",null,null,null,null,41,"",{"$f":"IF(COUNTIF($X$13:X53,X53)=1,Y52+1,Y52)","v":1},{"$f":"IFERROR(INDEX($X$13:$X$217,MATCH(ROW(Z53)-12,$Y$13:$Y$217,0)),\"\")","v":""},{"$error":"#N/A"},{"$f":"IF(COUNTIF($AA$13:AA53,AA53)=1,AB52+1,AB52)","v":1},"",{"$error":"#N/A"},{"$f":"IF(COUNTIF($AD$13:AD53,AD53)=1,AE52+1,AE52)","v":1},"","",{"$f":"IF(COUNTIF($AG$13:AG53,AG53)=1,AH52+1,AH52)","v":1},""]
[51,"修士課程",51,"修士課程51","経済学研究科",14,"経済学研究科14","経済学専攻","修士課程経済学専攻",14,"修士課程経済学専攻14","外国人入試","修士課程経済学専攻外国人入試",4,"修士課程経済学専攻外国人入試4","修士課程経済学研究科経済学専攻外国人入試","修士M.A.（国際・地域）","併願可",null,null,null,null,42,"",{"$f":"IF(COUNTIF($X$13:X54,X54)=1,Y53+1,Y53)","v":1},{"$f":"IFERROR(INDEX($X$13:$X$201,MATCH(ROW(Z54)-12,$Y$13:$Y$201,0)),\"\")","v":""},{"$error":"#N/A"},{"$f":"IF(COUNTIF($AA$13:AA54,AA54)=1,AB53+1,AB53)","v":1},"",{"$error":"#N/A"},{"$f":"IF(COUNTIF($AD$13:AD54,AD54)=1,AE53+1,AE53)","v":1},"","",{"$f":"IF(COUNTIF($AG$13:AG54,AG54)=1,AH53+1,AH53)","v":1},""]
[52,"修士課程",52,"修士課程52","経済学研究科",15,"経済学研究科15","経済学専攻","修士課程経済学専攻",15,"修士課程経済学専攻15","外国人入試","修士課程経済学専攻外国人入試",5,"修士課程経済学専攻外国人入試5","修士課程経済学研究科経済学専攻外国人入試","修士M.A.（応用ミクロ・応用マクロ・計量）","併願可",null,null,null,null,43,"",{"$f":"IF(COUNTIF($X$13:X55,X55)=1,Y54+1,Y54)","v":1},{"$f":"IFERROR(INDEX($X$13:$X$217,MATCH(ROW(Z55)-12,$Y$13:$Y$217,0)),\"\")","v":""},{"$error":"#N/A"},{"$f":"IF(COUNTIF($AA$13:AA55,AA55)=1,AB54+1,AB54)","v":1},"",{"$error":"#N/A"},{"$f":"IF(COUNTIF($AD$13:AD55,AD55)=1,AE54+1,AE54)","v":1},"","",{"$f":"IF(COUNTIF($AG$13:AG55,AG55)=1,AH54+1,AH54)","v":1},""]
[53,"修士課程",53,"修士課程53","経済学研究科",16,"経済学研究科16","経済学専攻","修士課程経済学専攻",16,"修士課程経済学専攻16","外国人入試","修士課程経済学専攻外国人入試",6,"修士課程経済学専攻外国人入試6","修士課程経済学研究科経済学専攻外国人入試","博士5年Ph.D.（歴史・思想・制度）","併願可",null,null,null,null,44,"",{"$f":"IF(COUNTIF($X$13:X56,X56)=1,Y55+1,Y55)","v":1},{"$f":"IFERROR(INDEX($X$13:$X$201,MATCH(ROW(Z56)-12,$Y$13:$Y$201,0)),\"\")","v":""},{"$error":"#N/A"},{"$f":"IF(COUNTIF($AA$13:AA56,AA56)=1,AB55+1,AB55)","v":1},"",{"$error":"#N/A"},{"$f":"IF(COUNTIF($AD$13:AD56,AD56)=1,AE55+1,AE55)","v":1},"","",{"$f":"IF(COUNTIF($AG$13:AG56,AG56)=1,AH55+1,AH55)","v":1},""]
[54,"修士課程",54,"修士課程54","経済学研究科",17,"経済学研究科17","経済学専攻","修士課程経済学専攻",17,"修士課程経済学専攻17","外国人入試","修士課程経済学専攻外国人入試",7,"修士課程経済学専攻外国人入試7","修士課程経済学研究科経済学専攻外国人入試","博士5年Ph.D.（金融・企業）","併願可",null,null,null,null,45,"",{"$f":"IF(COUNTIF($X$13:X57,X57)=1,Y56+1,Y56)","v":1},{"$f":"IFERROR(INDEX($X$13:$X$217,MATCH(ROW(Z57)-12,$Y$13:$Y$217,0)),\"\")","v":""},{"$error":"#N/A"},{"$f":"IF(COUNTIF($AA$13:AA57,AA57)=1,AB56+1,AB56)","v":1},"",{"$error":"#N/A"},{"$f":"IF(COUNTIF($AD$13:AD57,AD57)=1,AE56+1,AE56)","v":1},"","",{"$f":"IF(COUNTIF($AG$13:AG57,AG57)=1,AH56+1,AH56)","v":1},""]
[55,"修士課程",55,"修士課程55","経済学研究科",18,"経済学研究科18","経済学専攻","修士課程経済学専攻",18,"修士課程経済学専攻18","外国人入試","修士課程経済学専攻外国人入試",8,"修士課程経済学専攻外国人入試8","修士課程経済学研究科経済学専攻外国人入試","博士5年Ph.D.（政策・環境）","併願可",null,null,null,null,46,"",{"$f":"IF(COUNTIF($X$13:X58,X58)=1,Y57+1,Y57)","v":1},{"$f":"IFERROR(INDEX($X$13:$X$201,MATCH(ROW(Z58)-12,$Y$13:$Y$201,0)),\"\")","v":""},{"$error":"#N/A"},{"$f":"IF(COUNTIF($AA$13:AA58,AA58)=1,AB57+1,AB57)","v":1},"",{"$error":"#N/A"},{"$f":"IF(COUNTIF($AD$13:AD58,AD58)=1,AE57+1,AE57)","v":1},"","",{"$f":"IF(COUNTIF($AG$13:AG58,AG58)=1,AH57+1,AH57)","v":1},""]
[56,"修士課程",56,"修士課程56","経済学研究科",19,"経済学研究科19","経済学専攻","修士課程経済学専攻",19,"修士課程経済学専攻19","外国人入試","修士課程経済学専攻外国人入試",9,"修士課程経済学専攻外国人入試9","修士課程経済学研究科経済学専攻外国人入試","博士5年Ph.D.（国際・地域）","併願可",null,null,null,null,47,"",{"$f":"IF(COUNTIF($X$13:X59,X59)=1,Y58+1,Y58)","v":1},{"$f":"IFERROR(INDEX($X$13:$X$217,MATCH(ROW(Z59)-12,$Y$13:$Y$217,0)),\"\")","v":""},{"$error":"#N/A"},{"$f":"IF(COUNTIF($AA$13:AA59,AA59)=1,AB58+1,AB58)","v":1},"",{"$error":"#N/A"},{"$f":"IF(COUNTIF($AD$13:AD59,AD59)=1,AE58+1,AE58)","v":1},"","",{"$f":"IF(COUNTIF($AG$13:AG59,AG59)=1,AH58+1,AH58)","v":1},""]
[57,"修士課程",57,"修士課程57","経済学研究科",20,"経済学研究科20","経済学専攻","修士課程経済学専攻",20,"修士課程経済学専攻20","外国人入試","修士課程経済学専攻外国人入試",10,"修士課程経済学専攻外国人入試10","修士課程経済学研究科経済学専攻外国人入試","博士5年Ph.D.（応用ミクロ・応用マクロ・計量）","併願可",null,null,null,null,48,"",{"$f":"IF(COUNTIF($X$13:X60,X60)=1,Y59+1,Y59)","v":1},{"$f":"IFERROR(INDEX($X$13:$X$201,MATCH(ROW(Z60)-12,$Y$13:$Y$201,0)),\"\")","v":""},{"$error":"#N/A"},{"$f":"IF(COUNTIF($AA$13:AA60,AA60)=1,AB59+1,AB59)","v":1},"",{"$error":"#N/A"},{"$f":"IF(COUNTIF($AD$13:AD60,AD60)=1,AE59+1,AE59)","v":1},"","",{"$f":"IF(COUNTIF($AG$13:AG60,AG60)=1,AH59+1,AH59)","v":1},""]
[58,"修士課程",58,"修士課程58","経済学研究科",21,"経済学研究科21","経済学専攻","修士課程経済学専攻",21,"修士課程経済学専攻21","社会人入試","修士課程経済学専攻社会人入試",1,"修士課程経済学専攻社会人入試1","修士課程経済学研究科経済学専攻社会人入試","修士M.A.（歴史・思想・制度）","併願可",null,null,null,null,49,"",{"$f":"IF(COUNTIF($X$13:X61,X61)=1,Y60+1,Y60)","v":1},{"$f":"IFERROR(INDEX($X$13:$X$217,MATCH(ROW(Z61)-12,$Y$13:$Y$217,0)),\"\")","v":""},{"$error":"#N/A"},{"$f":"IF(COUNTIF($AA$13:AA61,AA61)=1,AB60+1,AB60)","v":1},"",{"$error":"#N/A"},{"$f":"IF(COUNTIF($AD$13:AD61,AD61)=1,AE60+1,AE60)","v":1},"","",{"$f":"IF(COUNTIF($AG$13:AG61,AG61)=1,AH60+1,AH60)","v":1},""]
[59,"修士課程",59,"修士課程59","経済学研究科",22,"経済学研究科22","経済学専攻","修士課程経済学専攻",22,"修士課程経済学専攻22","社会人入試","修士課程経済学専攻社会人入試",2,"修士課程経済学専攻社会人入試2","修士課程経済学研究科経済学専攻社会人入試","修士M.A.（金融・企業）","併願可",null,null,null,null,50,"",{"$f":"IF(COUNTIF($X$13:X62,X62)=1,Y61+1,Y61)","v":1},{"$f":"IFERROR(INDEX($X$13:$X$201,MATCH(ROW(Z62)-12,$Y$13:$Y$201,0)),\"\")","v":""},{"$error":"#N/A"},{"$f":"IF(COUNTIF($AA$13:AA62,AA62)=1,AB61+1,AB61)","v":1},"",{"$error":"#N/A"},{"$f":"IF(COUNTIF($AD$13:AD62,AD62)=1,AE61+1,AE61)","v":1},"","",{"$f":"IF(COUNTIF($AG$13:AG62,AG62)=1,AH61+1,AH61)","v":1},""]
[60,"修士課程",60,"修士課程60","経済学研究科",23,"経済学研究科23","経済学専攻","修士課程経済学専攻",23,"修士課程経済学専攻23","社会人入試","修士課程経済学専攻社会人入試",3,"修士課程経済学専攻社会人入試3","修士課程経済学研究科経済学専攻社会人入試","修士M.A.（政策・環境）","併願可",null,null,null,null,51,"",{"$f":"IF(COUNTIF($X$13:X63,X63)=1,Y62+1,Y62)","v":1},{"$f":"IFERROR(INDEX($X$13:$X$217,MATCH(ROW(Z63)-12,$Y$13:$Y$217,0)),\"\")","v":""},{"$error":"#N/A"},{"$f":"IF(COUNTIF($AA$13:AA63,AA63)=1,AB62+1,AB62)","v":1},"",{"$error":"#N/A"},{"$f":"IF(COUNTIF($AD$13:AD63,AD63)=1,AE62+1,AE62)","v":1},"","",{"$f":"IF(COUNTIF($AG$13:AG63,AG63)=1,AH62+1,AH62)","v":1},""]
[61,"修士課程",61,"修士課程61","経済学研究科",24,"経済学研究科24","経済学専攻","修士課程経済学専攻",24,"修士課程経済学専攻24","社会人入試","修士課程経済学専攻社会人入試",4,"修士課程経済学専攻社会人入試4","修士課程経済学研究科経済学専攻社会人入試","修士M.A.（国際・地域）","併願可",null,null,null,null,52,"",{"$f":"IF(COUNTIF($X$13:X64,X64)=1,Y63+1,Y63)","v":1},{"$f":"IFERROR(INDEX($X$13:$X$201,MATCH(ROW(Z64)-12,$Y$13:$Y$201,0)),\"\")","v":""},{"$error":"#N/A"},{"$f":"IF(COUNTIF($AA$13:AA64,AA64)=1,AB63+1,AB63)","v":1},"",{"$error":"#N/A"},{"$f":"IF(COUNTIF($AD$13:AD64,AD64)=1,AE63+1,AE63)","v":1},"","",{"$f":"IF(COUNTIF($AG$13:AG64,AG64)=1,AH63+1,AH63)","v":1},""]
[62,"修士課程",62,"修士課程62","経済学研究科",25,"経済学研究科25","経済学専攻","修士課程経済学専攻",25,"修士課程経済学専攻25","社会人入試","修士課程経済学専攻社会人入試",5,"修士課程経済学専攻社会人入試5","修士課程経済学研究科経済学専攻社会人入試","修士M.A.（応用ミクロ・応用マクロ・計量）","併願可",null,null,null,null,53,"",{"$f":"IF(COUNTIF($X$13:X65,X65)=1,Y64+1,Y64)","v":1},{"$f":"IFERROR(INDEX($X$13:$X$217,MATCH(ROW(Z65)-12,$Y$13:$Y$217,0)),\"\")","v":""},{"$error":"#N/A"},{"$f":"IF(COUNTIF($AA$13:AA65,AA65)=1,AB64+1,AB64)","v":1},"",{"$error":"#N/A"},{"$f":"IF(COUNTIF($AD$13:AD65,AD65)=1,AE64+1,AE64)","v":1},"","",{"$f":"IF(COUNTIF($AG$13:AG65,AG65)=1,AH64+1,AH64)","v":1},""]
[63,"修士課程",63,"修士課程63","経済学研究科",26,"経済学研究科26","経済学専攻","修士課程経済学専攻",26,"修士課程経済学専攻26","社会人入試","修士課程経済学専攻社会人入試",6,"修士課程経済学専攻社会人入試6","修士課程経済学研究科経済学専攻社会人入試","博士5年Ph.D.（歴史・思想・制度）","併願可",null,null,null,null,54,"",{"$f":"IF(COUNTIF($X$13:X66,X66)=1,Y65+1,Y65)","v":1},{"$f":"IFERROR(INDEX($X$13:$X$201,MATCH(ROW(Z66)-12,$Y$13:$Y$201,0)),\"\")","v":""},{"$error":"#N/A"},{"$f":"IF(COUNTIF($AA$13:AA66,AA66)=1,AB65+1,AB65)","v":1},"",{"$error":"#N/A"},{"$f":"IF(COUNTIF($AD$13:AD66,AD66)=1,AE65+1,AE65)","v":1},"","",{"$f":"IF(COUNTIF($AG$13:AG66,AG66)=1,AH65+1,AH65)","v":1},""]
[64,"修士課程",64,"修士課程64","経済学研究科",27,"経済学研究科27","経済学専攻","修士課程経済学専攻",27,"修士課程経済学専攻27","社会人入試","修士課程経済学専攻社会人入試",7,"修士課程経済学専攻社会人入試7","修士課程経済学研究科経済学専攻社会人入試","博士5年Ph.D.（金融・企業）","併願可",null,null,null,null,55,"",{"$f":"IF(COUNTIF($X$13:X67,X67)=1,Y66+1,Y66)","v":1},{"$f":"IFERROR(INDEX($X$13:$X$217,MATCH(ROW(Z67)-12,$Y$13:$Y$217,0)),\"\")","v":""},{"$error":"#N/A"},{"$f":"IF(COUNTIF($AA$13:AA67,AA67)=1,AB66+1,AB66)","v":1},"",{"$error":"#N/A"},{"$f":"IF(COUNTIF($AD$13:AD67,AD67)=1,AE66+1,AE66)","v":1},"","",{"$f":"IF(COUNTIF($AG$13:AG67,AG67)=1,AH66+1,AH66)","v":1},""]
[65,"修士課程",65,"修士課程65","経済学研究科",28,"経済学研究科28","経済学専攻","修士課程経済学専攻",28,"修士課程経済学専攻28","社会人入試","修士課程経済学専攻社会人入試",8,"修士課程経済学専攻社会人入試8","修士課程経済学研究科経済学専攻社会人入試","博士5年Ph.D.（政策・環境）","併願可",null,null,null,null,56,"",{"$f":"IF(COUNTIF($X$13:X68,X68)=1,Y67+1,Y67)","v":1},{"$f":"IFERROR(INDEX($X$13:$X$201,MATCH(ROW(Z68)-12,$Y$13:$Y$201,0)),\"\")","v":""},{"$error":"#N/A"},{"$f":"IF(COUNTIF($AA$13:AA68,AA68)=1,AB67+1,AB67)","v":1},"",{"$error":"#N/A"},{"$f":"IF(COUNTIF($AD$13:AD68,AD68)=1,AE67+1,AE67)","v":1},"","",{"$f":"IF(COUNTIF($AG$13:AG68,AG68)=1,AH67+1,AH67)","v":1},""]
[66,"修士課程",66,"修士課程66","経済学研究科",29,"経済学研究科29","経済学専攻","修士課程経済学専攻",29,"修士課程経済学専攻29","社会人入試","修士課程経済学専攻社会人入試",9,"修士課程経済学専攻社会人入試9","修士課程経済学研究科経済学専攻社会人入試","博士5年Ph.D.（国際・地域）","併願可",null,null,null,null,57,"",{"$f":"IF(COUNTIF($X$13:X69,X69)=1,Y68+1,Y68)","v":1},{"$f":"IFERROR(INDEX($X$13:$X$217,MATCH(ROW(Z69)-12,$Y$13:$Y$217,0)),\"\")","v":""},{"$error":"#N/A"},{"$f":"IF(COUNTIF($AA$13:AA69,AA69)=1,AB68+1,AB68)","v":1},"",{"$error":"#N/A"},{"$f":"IF(COUNTIF($AD$13:AD69,AD69)=1,AE68+1,AE68)","v":1},"","",{"$f":"IF(COUNTIF($AG$13:AG69,AG69)=1,AH68+1,AH68)","v":1},""]
[67,"修士課程",67,"修士課程67","経済学研究科",30,"経済学研究科30","経済学専攻","修士課程経済学専攻",30,"修士課程経済学専攻30","社会人入試","修士課程経済学専攻社会人入試",10,"修士課程経済学専攻社会人入試10","修士課程経済学研究科経済学専攻社会人入試","博士5年Ph.D.（応用ミクロ・応用マクロ・計量）","併願可",null,null,null,null,58,"",{"$f":"IF(COUNTIF($X$13:X70,X70)=1,Y69+1,Y69)","v":1},{"$f":"IFERROR(INDEX($X$13:$X$201,MATCH(ROW(Z70)-12,$Y$13:$Y$201,0)),\"\")","v":""},{"$error":"#N/A"},{"$f":"IF(COUNTIF($AA$13:AA70,AA70)=1,AB69+1,AB69)","v":1},"",{"$error":"#N/A"},{"$f":"IF(COUNTIF($AD$13:AD70,AD70)=1,AE69+1,AE69)","v":1},"","",{"$f":"IF(COUNTIF($AG$13:AG70,AG70)=1,AH69+1,AH69)","v":1},""]
[68,"修士課程",68,"修士課程68","経済学研究科",31,"経済学研究科31","経済学専攻","修士課程経済学専攻",31,"修士課程経済学専攻31","社会人選抜入試","修士課程経済学専攻社会人選抜入試",1,"修士課程経済学専攻社会人選抜入試1","修士課程経済学研究科経済学専攻社会人選抜入試","1年（歴史・思想・制度）","併願可",null,null,null,null,59,"",{"$f":"IF(COUNTIF($X$13:X71,X71)=1,Y70+1,Y70)","v":1},{"$f":"IFERROR(INDEX($X$13:$X$217,MATCH(ROW(Z71)-12,$Y$13:$Y$217,0)),\"\")","v":""},{"$error":"#N/A"},{"$f":"IF(COUNTIF($AA$13:AA71,AA71)=1,AB70+1,AB70)","v":1},"",{"$error":"#N/A"},{"$f":"IF(COUNTIF($AD$13:AD71,AD71)=1,AE70+1,AE70)","v":1},"","",{"$f":"IF(COUNTIF($AG$13:AG71,AG71)=1,AH70+1,AH70)","v":1},""]
[69,"修士課程",69,"修士課程69","経済学研究科",32,"経済学研究科32","経済学専攻","修士課程経済学専攻",32,"修士課程経済学専攻32","社会人選抜入試","修士課程経済学専攻社会人選抜入試",2,"修士課程経済学専攻社会人選抜入試2","修士課程経済学研究科経済学専攻社会人選抜入試","1年（金融・企業）","併願可",null,null,null,null,60,"",{"$f":"IF(COUNTIF($X$13:X72,X72)=1,Y71+1,Y71)","v":1},{"$f":"IFERROR(INDEX($X$13:$X$201,MATCH(ROW(Z72)-12,$Y$13:$Y$201,0)),\"\")","v":""},{"$error":"#N/A"},{"$f":"IF(COUNTIF($AA$13:AA72,AA72)=1,AB71+1,AB71)","v":1},"",{"$error":"#N/A"},{"$f":"IF(COUNTIF($AD$13:AD72,AD72)=1,AE71+1,AE71)","v":1},"","",{"$f":"IF(COUNTIF($AG$13:AG72,AG72)=1,AH71+1,AH71)","v":1},""]
[70,"修士課程",70,"修士課程70","経済学研究科",33,"経済学研究科33","経済学専攻","修士課程経済学専攻",33,"修士課程経済学専攻33","社会人選抜入試","修士課程経済学専攻社会人選抜入試",3,"修士課程経済学専攻社会人選抜入試3","修士課程経済学研究科経済学専攻社会人選抜入試","1年（政策・環境）","併願可",null,null,null,null,61,"",{"$f":"IF(COUNTIF($X$13:X73,X73)=1,Y72+1,Y72)","v":1},{"$f":"IFERROR(INDEX($X$13:$X$217,MATCH(ROW(Z73)-12,$Y$13:$Y$217,0)),\"\")","v":""},{"$error":"#N/A"},{"$f":"IF(COUNTIF($AA$13:AA73,AA73)=1,AB72+1,AB72)","v":1},"",{"$error":"#N/A"},{"$f":"IF(COUNTIF($AD$13:AD73,AD73)=1,AE72+1,AE72)","v":1},"","",{"$f":"IF(COUNTIF($AG$13:AG73,AG73)=1,AH72+1,AH72)","v":1},""]
[71,"修士課程",71,"修士課程71","経済学研究科",34,"経済学研究科34","経済学専攻","修士課程経済学専攻",34,"修士課程経済学専攻34","社会人選抜入試","修士課程経済学専攻社会人選抜入試",4,"修士課程経済学専攻社会人選抜入試4","修士課程経済学研究科経済学専攻社会人選抜入試","1年（国際・地域）","併願可",null,null,null,null,62,"",{"$f":"IF(COUNTIF($X$13:X74,X74)=1,Y73+1,Y73)","v":1},{"$f":"IFERROR(INDEX($X$13:$X$201,MATCH(ROW(Z74)-12,$Y$13:$Y$201,0)),\"\")","v":""},{"$error":"#N/A"},{"$f":"IF(COUNTIF($AA$13:AA74,AA74)=1,AB73+1,AB73)","v":1},"",{"$error":"#N/A"},{"$f":"IF(COUNTIF($AD$13:AD74,AD74)=1,AE73+1,AE73)","v":1},"","",{"$f":"IF(COUNTIF($AG$13:AG74,AG74)=1,AH73+1,AH73)","v":1},""]
[72,"修士課程",72,"修士課程72","経済学研究科",35,"経済学研究科35","経済学専攻","修士課程経済学専攻",35,"修士課程経済学専攻35","社会人選抜入試","修士課程経済学専攻社会人選抜入試",5,"修士課程経済学専攻社会人選抜入試5","修士課程経済学研究科経済学専攻社会人選抜入試","1年（応用ミクロ・応用マクロ・計量）","併願可",null,null,null,null,63,"",{"$f":"IF(COUNTIF($X$13:X75,X75)=1,Y74+1,Y74)","v":1},{"$f":"IFERROR(INDEX($X$13:$X$217,MATCH(ROW(Z75)-12,$Y$13:$Y$217,0)),\"\")","v":""},{"$error":"#N/A"},{"$f":"IF(COUNTIF($AA$13:AA75,AA75)=1,AB74+1,AB74)","v":1},"",{"$error":"#N/A"},{"$f":"IF(COUNTIF($AD$13:AD75,AD75)=1,AE74+1,AE74)","v":1},"","",{"$f":"IF(COUNTIF($AG$13:AG75,AG75)=1,AH74+1,AH74)","v":1},""]
[73,"修士課程",73,"修士課程73","経済学研究科",36,"経済学研究科36","経済学専攻","修士課程経済学専攻",36,"修士課程経済学専攻36","社会人選抜入試","修士課程経済学専攻社会人選抜入試",6,"修士課程経済学専攻社会人選抜入試6","修士課程経済学研究科経済学専攻社会人選抜入試","1＋3年（歴史・思想・制度）","併願可",null,null,null,null,64,"",{"$f":"IF(COUNTIF($X$13:X76,X76)=1,Y75+1,Y75)","v":1},{"$f":"IFERROR(INDEX($X$13:$X$201,MATCH(ROW(Z76)-12,$Y$13:$Y$201,0)),\"\")","v":""},{"$error":"#N/A"},{"$f":"IF(COUNTIF($AA$13:AA76,AA76)=1,AB75+1,AB75)","v":1},"",{"$error":"#N/A"},{"$f":"IF(COUNTIF($AD$13:AD76,AD76)=1,AE75+1,AE75)","v":1},"","",{"$f":"IF(COUNTIF($AG$13:AG76,AG76)=1,AH75+1,AH75)","v":1},""]
[74,"修士課程",74,"修士課程74","経済学研究科",37,"経済学研究科37","経済学専攻","修士課程経済学専攻",37,"修士課程経済学専攻37","社会人選抜入試","修士課程経済学専攻社会人選抜入試",7,"修士課程経済学専攻社会人選抜入試7","修士課程経済学研究科経済学専攻社会人選抜入試","1＋3年（金融・企業）","併願可",null,null,null,null,65,{"$f":"IFERROR(VLOOKUP($Z$3&W77,$D:$E,2,0),\"\")","v":""},{"$f":"IF(COUNTIF($X$13:X77,X77)=1,Y76+1,Y76)","v":1},{"$f":"IFERROR(INDEX($X$13:$X$217,MATCH(ROW(Z77)-12,$Y$13:$Y$217,0)),\"\")","v":""},{"$f":"VLOOKUP($Z$4&W77,$G:$H,2,0)","v":{"$error":"#N/A"}},{"$f":"IF(COUNTIF($AA$13:AA77,AA77)=1,AB76+1,AB76)","v":1},"",{"$f":"VLOOKUP($Z$3&$Z$5&W77,$K:$L,2,0)","v":{"$error":"#N/A"}},{"$f":"IF(COUNTIF($AD$13:AD77,AD77)=1,AE76+1,AE76)","v":1},"",{"$f":"IFERROR(VLOOKUP($Z$3&$Z$5&$Z$6&W77,$O:$R,3,0),\"\")","v":""},{"$f":"IF(COUNTIF($AG$13:AG77,AG77)=1,AH76+1,AH76)","v":1},{"$f":"IF(AG77=\"なし\",\"\",\nIFERROR(INDEX($AG$13:$AG$201,MATCH(ROW(AI77)-12,$AH$13:$AH$201,0)),\"\")\n)","v":""}]
[75,"修士課程",75,"修士課程75","経済学研究科",38,"経済学研究科38","経済学専攻","修士課程経済学専攻",38,"修士課程経済学専攻38","社会人選抜入試","修士課程経済学専攻社会人選抜入試",8,"修士課程経済学専攻社会人選抜入試8","修士課程経済学研究科経済学専攻社会人選抜入試","1＋3年（政策・環境）","併願可",null,null,null,null,66,"",{"$f":"IF(COUNTIF($X$13:X78,X78)=1,Y77+1,Y77)","v":1},{"$f":"IFERROR(INDEX($X$13:$X$201,MATCH(ROW(Z78)-12,$Y$13:$Y$201,0)),\"\")","v":""},{"$error":"#N/A"},{"$f":"IF(COUNTIF($AA$13:AA78,AA78)=1,AB77+1,AB77)","v":1},"",{"$error":"#N/A"},{"$f":"IF(COUNTIF($AD$13:AD78,AD78)=1,AE77+1,AE77)","v":1},"","",{"$f":"IF(COUNTIF($AG$13:AG78,AG78)=1,AH77+1,AH77)","v":1},""]
[76,"修士課程",76,"修士課程76","経済学研究科",39,"経済学研究科39","経済学専攻","修士課程経済学専攻",39,"修士課程経済学専攻39","社会人選抜入試","修士課程経済学専攻社会人選抜入試",9,"修士課程経済学専攻社会人選抜入試9","修士課程経済学研究科経済学専攻社会人選抜入試","1＋3年（国際・地域）","併願可",null,null,null,null,67,"",{"$f":"IF(COUNTIF($X$13:X79,X79)=1,Y78+1,Y78)","v":1},{"$f":"IFERROR(INDEX($X$13:$X$217,MATCH(ROW(Z79)-12,$Y$13:$Y$217,0)),\"\")","v":""},{"$error":"#N/A"},{"$f":"IF(COUNTIF($AA$13:AA79,AA79)=1,AB78+1,AB78)","v":1},{"$f":"IFERROR(INDEX($AA$13:$AA$201,MATCH(ROW(AC79)-12,$AB$13:$AB$201,0)),\"\")","v":""},{"$error":"#N/A"},{"$f":"IF(COUNTIF($AD$13:AD79,AD79)=1,AE78+1,AE78)","v":1},{"$f":"IFERROR(INDEX($AD$13:$AD$201,MATCH(ROW(AF79)-12,$AE$13:$AE$201,0)),\"\")","v":""},"",{"$f":"IF(COUNTIF($AG$13:AG79,AG79)=1,AH78+1,AH78)","v":1},""]
[77,"修士課程",77,"修士課程77","経済学研究科",40,"経済学研究科40","経済学専攻","修士課程経済学専攻",40,"修士課程経済学専攻40","社会人選抜入試","修士課程経済学専攻社会人選抜入試",10,"修士課程経済学専攻社会人選抜入試10","修士課程経済学研究科経済学専攻社会人選抜入試","1＋3年（応用ミクロ・応用マクロ・計量）","併願可",null,null,null,null,68,"",{"$f":"IF(COUNTIF($X$13:X80,X80)=1,Y79+1,Y79)","v":1},{"$f":"IFERROR(INDEX($X$13:$X$201,MATCH(ROW(Z80)-12,$Y$13:$Y$201,0)),\"\")","v":""},{"$error":"#N/A"},{"$f":"IF(COUNTIF($AA$13:AA80,AA80)=1,AB79+1,AB79)","v":1},"",{"$error":"#N/A"},{"$f":"IF(COUNTIF($AD$13:AD80,AD80)=1,AE79+1,AE79)","v":1},"","",{"$f":"IF(COUNTIF($AG$13:AG80,AG80)=1,AH79+1,AH79)","v":1},""]
[78,"修士課程",78,"修士課程78","法学研究科",1,"法学研究科1","法律学専攻","修士課程法律学専攻",1,"修士課程法律学専攻1","一般入試","修士課程法律学専攻一般入試",1,"修士課程法律学専攻一般入試1","修士課程法学研究科法律学専攻一般入試","なし","併願可",null,null,null,null,69,"",{"$f":"IF(COUNTIF($X$13:X81,X81)=1,Y80+1,Y80)","v":1},{"$f":"IFERROR(INDEX($X$13:$X$217,MATCH(ROW(Z81)-12,$Y$13:$Y$217,0)),\"\")","v":""},{"$error":"#N/A"},{"$f":"IF(COUNTIF($AA$13:AA81,AA81)=1,AB80+1,AB80)","v":1},"",{"$error":"#N/A"},{"$f":"IF(COUNTIF($AD$13:AD81,AD81)=1,AE80+1,AE80)","v":1},"","",{"$f":"IF(COUNTIF($AG$13:AG81,AG81)=1,AH80+1,AH80)","v":1},""]
[79,"修士課程",79,"修士課程79","法学研究科",2,"法学研究科2","法律学専攻","修士課程法律学専攻",2,"修士課程法律学専攻2","外国人入試","修士課程法律学専攻外国人入試",1,"修士課程法律学専攻外国人入試1","修士課程法学研究科法律学専攻外国人入試","なし","併願可",null,null,null,null,70,"",{"$f":"IF(COUNTIF($X$13:X82,X82)=1,Y81+1,Y81)","v":1},{"$f":"IFERROR(INDEX($X$13:$X$201,MATCH(ROW(Z82)-12,$Y$13:$Y$201,0)),\"\")","v":""},{"$error":"#N/A"},{"$f":"IF(COUNTIF($AA$13:AA82,AA82)=1,AB81+1,AB81)","v":1},"",{"$error":"#N/A"},{"$f":"IF(COUNTIF($AD$13:AD82,AD82)=1,AE81+1,AE81)","v":1},"","",{"$f":"IF(COUNTIF($AG$13:AG82,AG82)=1,AH81+1,AH81)","v":1},""]
[80,"修士課程",80,"修士課程80","法学研究科",3,"法学研究科3","法律学専攻","修士課程法律学専攻",3,"修士課程法律学専攻3","社会人入試","修士課程法律学専攻社会人入試",1,"修士課程法律学専攻社会人入試1","修士課程法学研究科法律学専攻社会人入試","なし","併願可",null,null,null,null,71,"",{"$f":"IF(COUNTIF($X$13:X83,X83)=1,Y82+1,Y82)","v":1},{"$f":"IFERROR(INDEX($X$13:$X$217,MATCH(ROW(Z83)-12,$Y$13:$Y$217,0)),\"\")","v":""},{"$error":"#N/A"},{"$f":"IF(COUNTIF($AA$13:AA83,AA83)=1,AB82+1,AB82)","v":1},"",{"$error":"#N/A"},{"$f":"IF(COUNTIF($AD$13:AD83,AD83)=1,AE82+1,AE82)","v":1},"","",{"$f":"IF(COUNTIF($AG$13:AG83,AG83)=1,AH82+1,AH82)","v":1},""]
[81,"修士課程",81,"修士課程81","政治学研究科",1,"政治学研究科1","政治学専攻","修士課程政治学専攻",1,"修士課程政治学専攻1","一般入試","修士課程政治学専攻一般入試",1,"修士課程政治学専攻一般入試1","修士課程政治学研究科政治学専攻一般入試","なし","併願不可",null,null,null,null,72,"",{"$f":"IF(COUNTIF($X$13:X84,X84)=1,Y83+1,Y83)","v":1},{"$f":"IFERROR(INDEX($X$13:$X$201,MATCH(ROW(Z84)-12,$Y$13:$Y$201,0)),\"\")","v":""},{"$error":"#N/A"},{"$f":"IF(COUNTIF($AA$13:AA84,AA84)=1,AB83+1,AB83)","v":1},"",{"$error":"#N/A"},{"$f":"IF(COUNTIF($AD$13:AD84,AD84)=1,AE83+1,AE83)","v":1},"","",{"$f":"IF(COUNTIF($AG$13:AG84,AG84)=1,AH83+1,AH83)","v":1},""]
[82,"修士課程",82,"修士課程82","政治学研究科",2,"政治学研究科2","政治学専攻","修士課程政治学専攻",2,"修士課程政治学専攻2","外国人入試","修士課程政治学専攻外国人入試",1,"修士課程政治学専攻外国人入試1","修士課程政治学研究科政治学専攻外国人入試","なし","併願可",null,null,null,null,73,"",{"$f":"IF(COUNTIF($X$13:X85,X85)=1,Y84+1,Y84)","v":1},{"$f":"IFERROR(INDEX($X$13:$X$217,MATCH(ROW(Z85)-12,$Y$13:$Y$217,0)),\"\")","v":""},{"$error":"#N/A"},{"$f":"IF(COUNTIF($AA$13:AA85,AA85)=1,AB84+1,AB84)","v":1},"",{"$error":"#N/A"},{"$f":"IF(COUNTIF($AD$13:AD85,AD85)=1,AE84+1,AE84)","v":1},"","",{"$f":"IF(COUNTIF($AG$13:AG85,AG85)=1,AH84+1,AH84)","v":1},""]
[83,"修士課程",83,"修士課程83","政治学研究科",3,"政治学研究科3","国際政治学専攻","修士課程国際政治学専攻",1,"修士課程国際政治学専攻1","一般入試","修士課程国際政治学専攻一般入試",1,"修士課程国際政治学専攻一般入試1","修士課程政治学研究科国際政治学専攻一般入試","なし","併願不可",null,null,null,null,74,"",{"$f":"IF(COUNTIF($X$13:X86,X86)=1,Y85+1,Y85)","v":1},{"$f":"IFERROR(INDEX($X$13:$X$201,MATCH(ROW(Z86)-12,$Y$13:$Y$201,0)),\"\")","v":""},{"$error":"#N/A"},{"$f":"IF(COUNTIF($AA$13:AA86,AA86)=1,AB85+1,AB85)","v":1},"",{"$error":"#N/A"},{"$f":"IF(COUNTIF($AD$13:AD86,AD86)=1,AE85+1,AE85)","v":1},"","",{"$f":"IF(COUNTIF($AG$13:AG86,AG86)=1,AH85+1,AH85)","v":1},""]
[84,"修士課程",84,"修士課程84","政治学研究科",4,"政治学研究科4","国際政治学専攻","修士課程国際政治学専攻",2,"修士課程国際政治学専攻2","外国人入試","修士課程国際政治学専攻外国人入試",1,"修士課程国際政治学専攻外国人入試1","修士課程政治学研究科国際政治学専攻外国人入試","なし","併願可",null,null,null,null,75,"",{"$f":"IF(COUNTIF($X$13:X87,X87)=1,Y86+1,Y86)","v":1},{"$f":"IFERROR(INDEX($X$13:$X$217,MATCH(ROW(Z87)-12,$Y$13:$Y$217,0)),\"\")","v":""},{"$error":"#N/A"},{"$f":"IF(COUNTIF($AA$13:AA87,AA87)=1,AB86+1,AB86)","v":1},"",{"$error":"#N/A"},{"$f":"IF(COUNTIF($AD$13:AD87,AD87)=1,AE86+1,AE86)","v":1},"","",{"$f":"IF(COUNTIF($AG$13:AG87,AG87)=1,AH86+1,AH86)","v":1},""]
[85,"修士課程",85,"修士課程85","政治学研究科",5,"政治学研究科5","国際政治学専攻","修士課程国際政治学専攻",3,"修士課程国際政治学専攻3","社会人入試","修士課程国際政治学専攻社会人入試",1,"修士課程国際政治学専攻社会人入試1","修士課程政治学研究科国際政治学専攻社会人入試","なし","併願不可",null,null,null,null,76,"",{"$f":"IF(COUNTIF($X$13:X88,X88)=1,Y87+1,Y87)","v":1},{"$f":"IFERROR(INDEX($X$13:$X$201,MATCH(ROW(Z88)-12,$Y$13:$Y$201,0)),\"\")","v":""},{"$error":"#N/A"},{"$f":"IF(COUNTIF($AA$13:AA88,AA88)=1,AB87+1,AB87)","v":1},"",{"$error":"#N/A"},{"$f":"IF(COUNTIF($AD$13:AD88,AD88)=1,AE87+1,AE87)","v":1},"","",{"$f":"IF(COUNTIF($AG$13:AG88,AG88)=1,AH87+1,AH87)","v":1},""]
[86,"修士課程",86,"修士課程86","社会学研究科",1,"社会学研究科1","社会学専攻","修士課程社会学専攻",1,"修士課程社会学専攻1","一般入試","修士課程社会学専攻一般入試",1,"修士課程社会学専攻一般入試1","修士課程社会学研究科社会学専攻一般入試","なし","併願可",null,null,null,null,77,"",{"$f":"IF(COUNTIF($X$13:X89,X89)=1,Y88+1,Y88)","v":1},{"$f":"IFERROR(INDEX($X$13:$X$217,MATCH(ROW(Z89)-12,$Y$13:$Y$217,0)),\"\")","v":""},{"$error":"#N/A"},{"$f":"IF(COUNTIF($AA$13:AA89,AA89)=1,AB88+1,AB88)","v":1},"",{"$error":"#N/A"},{"$f":"IF(COUNTIF($AD$13:AD89,AD89)=1,AE88+1,AE88)","v":1},"","",{"$f":"IF(COUNTIF($AG$13:AG89,AG89)=1,AH88+1,AH88)","v":1},""]
[87,"修士課程",87,"修士課程87","社会学研究科",2,"社会学研究科2","社会学専攻","修士課程社会学専攻",2,"修士課程社会学専攻2","外国人入試","修士課程社会学専攻外国人入試",1,"修士課程社会学専攻外国人入試1","修士課程社会学研究科社会学専攻外国人入試","なし","併願可",null,null,null,null,78,"",{"$f":"IF(COUNTIF($X$13:X90,X90)=1,Y89+1,Y89)","v":1},{"$f":"IFERROR(INDEX($X$13:$X$201,MATCH(ROW(Z90)-12,$Y$13:$Y$201,0)),\"\")","v":""},{"$error":"#N/A"},{"$f":"IF(COUNTIF($AA$13:AA90,AA90)=1,AB89+1,AB89)","v":1},"",{"$error":"#N/A"},{"$f":"IF(COUNTIF($AD$13:AD90,AD90)=1,AE89+1,AE89)","v":1},"","",{"$f":"IF(COUNTIF($AG$13:AG90,AG90)=1,AH89+1,AH89)","v":1},""]
[88,"修士課程",88,"修士課程88","社会学研究科",3,"社会学研究科3","社会学専攻","修士課程社会学専攻",3,"修士課程社会学専攻3","社会人入試","修士課程社会学専攻社会人入試",1,"修士課程社会学専攻社会人入試1","修士課程社会学研究科社会学専攻社会人入試","なし","併願可",null,null,null,null,79,"",{"$f":"IF(COUNTIF($X$13:X91,X91)=1,Y90+1,Y90)","v":1},{"$f":"IFERROR(INDEX($X$13:$X$217,MATCH(ROW(Z91)-12,$Y$13:$Y$217,0)),\"\")","v":""},{"$error":"#N/A"},{"$f":"IF(COUNTIF($AA$13:AA91,AA91)=1,AB90+1,AB90)","v":1},"",{"$error":"#N/A"},{"$f":"IF(COUNTIF($AD$13:AD91,AD91)=1,AE90+1,AE90)","v":1},"","",{"$f":"IF(COUNTIF($AG$13:AG91,AG91)=1,AH90+1,AH90)","v":1},""]
[89,"修士課程",89,"修士課程89","経営学研究科",1,"経営学研究科1","経営学専攻","修士課程経営学専攻",1,"修士課程経営学専攻1","一般入試","修士課程経営学専攻一般入試",1,"修士課程経営学専攻一般入試1","修士課程経営学研究科経営学専攻一般入試","なし","併願可",null,null,null,null,80,"",{"$f":"IF(COUNTIF($X$13:X92,X92)=1,Y91+1,Y91)","v":1},{"$f":"IFERROR(INDEX($X$13:$X$201,MATCH(ROW(Z92)-12,$Y$13:$Y$201,0)),\"\")","v":""},{"$error":"#N/A"},{"$f":"IF(COUNTIF($AA$13:AA92,AA92)=1,AB91+1,AB91)","v":1},"",{"$error":"#N/A"},{"$f":"IF(COUNTIF($AD$13:AD92,AD92)=1,AE91+1,AE91)","v":1},"","",{"$f":"IF(COUNTIF($AG$13:AG92,AG92)=1,AH91+1,AH91)","v":1},""]
[90,"修士課程",90,"修士課程90","経営学研究科",2,"経営学研究科2","経営学専攻","修士課程経営学専攻",2,"修士課程経営学専攻2","社会人入試","修士課程経営学専攻社会人入試",1,"修士課程経営学専攻社会人入試1","修士課程経営学研究科経営学専攻社会人入試","戦略・企業家コース","併願不可",null,null,null,null,81,"",{"$f":"IF(COUNTIF($X$13:X93,X93)=1,Y92+1,Y92)","v":1},{"$f":"IFERROR(INDEX($X$13:$X$217,MATCH(ROW(Z93)-12,$Y$13:$Y$217,0)),\"\")","v":""},{"$error":"#N/A"},{"$f":"IF(COUNTIF($AA$13:AA93,AA93)=1,AB92+1,AB92)","v":1},"",{"$error":"#N/A"},{"$f":"IF(COUNTIF($AD$13:AD93,AD93)=1,AE92+1,AE92)","v":1},"","",{"$f":"IF(COUNTIF($AG$13:AG93,AG93)=1,AH92+1,AH92)","v":1},""]
[91,"修士課程",91,"修士課程91","経営学研究科",3,"経営学研究科3","経営学専攻","修士課程経営学専攻",3,"修士課程経営学専攻3","社会人入試","修士課程経営学専攻社会人入試",2,"修士課程経営学専攻社会人入試2","修士課程経営学研究科経営学専攻社会人入試","人材・組織マネジメントコース","併願不可",null,null,null,null,82,"",{"$f":"IF(COUNTIF($X$13:X94,X94)=1,Y93+1,Y93)","v":1},{"$f":"IFERROR(INDEX($X$13:$X$201,MATCH(ROW(Z94)-12,$Y$13:$Y$201,0)),\"\")","v":""},{"$error":"#N/A"},{"$f":"IF(COUNTIF($AA$13:AA94,AA94)=1,AB93+1,AB93)","v":1},"",{"$error":"#N/A"},{"$f":"IF(COUNTIF($AD$13:AD94,AD94)=1,AE93+1,AE93)","v":1},"","",{"$f":"IF(COUNTIF($AG$13:AG94,AG94)=1,AH93+1,AH93)","v":1},""]
[92,"修士課程",92,"修士課程92","経営学研究科",4,"経営学研究科4","経営学専攻","修士課程経営学専攻",4,"修士課程経営学専攻4","社会人入試","修士課程経営学専攻社会人入試",3,"修士課程経営学専攻社会人入試3","修士課程経営学研究科経営学専攻社会人入試","マーケティングコース","併願不可",null,null,null,null,83,"",{"$f":"IF(COUNTIF($X$13:X95,X95)=1,Y94+1,Y94)","v":1},{"$f":"IFERROR(INDEX($X$13:$X$217,MATCH(ROW(Z95)-12,$Y$13:$Y$217,0)),\"\")","v":""},{"$error":"#N/A"},{"$f":"IF(COUNTIF($AA$13:AA95,AA95)=1,AB94+1,AB94)","v":1},"",{"$error":"#N/A"},{"$f":"IF(COUNTIF($AD$13:AD95,AD95)=1,AE94+1,AE94)","v":1},"","",{"$f":"IF(COUNTIF($AG$13:AG95,AG95)=1,AH94+1,AH94)","v":1},""]
[93,"修士課程",93,"修士課程93","キャリアデザイン学研究科",1,"キャリアデザイン学研究科1","キャリアデザイン学専攻","修士課程キャリアデザイン学専攻",1,"修士課程キャリアデザイン学専攻1","一般入試","修士課程キャリアデザイン学専攻一般入試",1,"修士課程キャリアデザイン学専攻一般入試1","修士課程キャリアデザイン学研究科キャリアデザイン学専攻一般入試","発達・教育キャリアプログラム","併願不可",null,null,null,null,84,"",{"$f":"IF(COUNTIF($X$13:X96,X96)=1,Y95+1,Y95)","v":1},{"$f":"IFERROR(INDEX($X$13:$X$201,MATCH(ROW(Z96)-12,$Y$13:$Y$201,0)),\"\")","v":""},{"$error":"#N/A"},{"$f":"IF(COUNTIF($AA$13:AA96,AA96)=1,AB95+1,AB95)","v":1},"",{"$error":"#N/A"},{"$f":"IF(COUNTIF($AD$13:AD96,AD96)=1,AE95+1,AE95)","v":1},"","",{"$f":"IF(COUNTIF($AG$13:AG96,AG96)=1,AH95+1,AH95)","v":1},""]
[94,"修士課程",94,"修士課程94","キャリアデザイン学研究科",2,"キャリアデザイン学研究科2","キャリアデザイン学専攻","修士課程キャリアデザイン学専攻",2,"修士課程キャリアデザイン学専攻2","一般入試","修士課程キャリアデザイン学専攻一般入試",2,"修士課程キャリアデザイン学専攻一般入試2","修士課程キャリアデザイン学研究科キャリアデザイン学専攻一般入試","ビジネスキャリアプログラム","併願不可",null,null,null,null,85,"",{"$f":"IF(COUNTIF($X$13:X97,X97)=1,Y96+1,Y96)","v":1},{"$f":"IFERROR(INDEX($X$13:$X$217,MATCH(ROW(Z97)-12,$Y$13:$Y$217,0)),\"\")","v":""},{"$error":"#N/A"},{"$f":"IF(COUNTIF($AA$13:AA97,AA97)=1,AB96+1,AB96)","v":1},"",{"$error":"#N/A"},{"$f":"IF(COUNTIF($AD$13:AD97,AD97)=1,AE96+1,AE96)","v":1},"","",{"$f":"IF(COUNTIF($AG$13:AG97,AG97)=1,AH96+1,AH96)","v":1},""]
[95,"修士課程",95,"修士課程95","公共政策研究科",1,"公共政策研究科1","公共政策学専攻","修士課程公共政策学専攻",1,"修士課程公共政策学専攻1","一般入試","修士課程公共政策学専攻一般入試",1,"修士課程公共政策学専攻一般入試1","修士課程公共政策研究科公共政策学専攻一般入試","公共マネジメントコース","併願不可",null,null,null,null,86,"",{"$f":"IF(COUNTIF($X$13:X98,X98)=1,Y97+1,Y97)","v":1},{"$f":"IFERROR(INDEX($X$13:$X$201,MATCH(ROW(Z98)-12,$Y$13:$Y$201,0)),\"\")","v":""},{"$error":"#N/A"},{"$f":"IF(COUNTIF($AA$13:AA98,AA98)=1,AB97+1,AB97)","v":1},"",{"$error":"#N/A"},{"$f":"IF(COUNTIF($AD$13:AD98,AD98)=1,AE97+1,AE97)","v":1},"","",{"$f":"IF(COUNTIF($AG$13:AG98,AG98)=1,AH97+1,AH97)","v":1},""]
[96,"修士課程",96,"修士課程96","公共政策研究科",2,"公共政策研究科2","公共政策学専攻","修士課程公共政策学専攻",2,"修士課程公共政策学専攻2","一般入試","修士課程公共政策学専攻一般入試",2,"修士課程公共政策学専攻一般入試2","修士課程公共政策研究科公共政策学専攻一般入試","政策研究コース","併願不可",null,null,null,null,87,"",{"$f":"IF(COUNTIF($X$13:X99,X99)=1,Y98+1,Y98)","v":1},{"$f":"IFERROR(INDEX($X$13:$X$217,MATCH(ROW(Z99)-12,$Y$13:$Y$217,0)),\"\")","v":""},{"$error":"#N/A"},{"$f":"IF(COUNTIF($AA$13:AA99,AA99)=1,AB98+1,AB98)","v":1},"",{"$error":"#N/A"},{"$f":"IF(COUNTIF($AD$13:AD99,AD99)=1,AE98+1,AE98)","v":1},"","",{"$f":"IF(COUNTIF($AG$13:AG99,AG99)=1,AH98+1,AH98)","v":1},""]
[97,"修士課程",97,"修士課程97","公共政策研究科",3,"公共政策研究科3","サステイナビリティ学専攻","修士課程サステイナビリティ学専攻",1,"修士課程サステイナビリティ学専攻1","一般入試","修士課程サステイナビリティ学専攻一般入試",1,"修士課程サステイナビリティ学専攻一般入試1","修士課程公共政策研究科サステイナビリティ学専攻一般入試","なし","併願不可",null,null,null,null,88,"",{"$f":"IF(COUNTIF($X$13:X100,X100)=1,Y99+1,Y99)","v":1},{"$f":"IFERROR(INDEX($X$13:$X$201,MATCH(ROW(Z100)-12,$Y$13:$Y$201,0)),\"\")","v":""},{"$error":"#N/A"},{"$f":"IF(COUNTIF($AA$13:AA100,AA100)=1,AB99+1,AB99)","v":1},"",{"$error":"#N/A"},{"$f":"IF(COUNTIF($AD$13:AD100,AD100)=1,AE99+1,AE99)","v":1},"","",{"$f":"IF(COUNTIF($AG$13:AG100,AG100)=1,AH99+1,AH99)","v":1},""]
[98,"修士課程",98,"修士課程98","公共政策研究科",4,"公共政策研究科4","公共政策学専攻","修士課程公共政策学専攻",3,"修士課程公共政策学専攻3","社会人入試","修士課程公共政策学専攻社会人入試",1,"修士課程公共政策学専攻社会人入試1","修士課程公共政策研究科公共政策学専攻社会人入試","公共マネジメントコース","併願不可",null,null,null,null,89,"",{"$f":"IF(COUNTIF($X$13:X101,X101)=1,Y100+1,Y100)","v":1},{"$f":"IFERROR(INDEX($X$13:$X$217,MATCH(ROW(Z101)-12,$Y$13:$Y$217,0)),\"\")","v":""},{"$error":"#N/A"},{"$f":"IF(COUNTIF($AA$13:AA101,AA101)=1,AB100+1,AB100)","v":1},"",{"$error":"#N/A"},{"$f":"IF(COUNTIF($AD$13:AD101,AD101)=1,AE100+1,AE100)","v":1},"","",{"$f":"IF(COUNTIF($AG$13:AG101,AG101)=1,AH100+1,AH100)","v":1},""]
[99,"修士課程",99,"修士課程99","公共政策研究科",5,"公共政策研究科5","公共政策学専攻","修士課程公共政策学専攻",4,"修士課程公共政策学専攻4","社会人入試","修士課程公共政策学専攻社会人入試",2,"修士課程公共政策学専攻社会人入試2","修士課程公共政策研究科公共政策学専攻社会人入試","政策研究コース","併願不可",null,null,null,null,90,"",{"$f":"IF(COUNTIF($X$13:X102,X102)=1,Y101+1,Y101)","v":1},{"$f":"IFERROR(INDEX($X$13:$X$201,MATCH(ROW(Z102)-12,$Y$13:$Y$201,0)),\"\")","v":""},{"$error":"#N/A"},{"$f":"IF(COUNTIF($AA$13:AA102,AA102)=1,AB101+1,AB101)","v":1},"",{"$error":"#N/A"},{"$f":"IF(COUNTIF($AD$13:AD102,AD102)=1,AE101+1,AE101)","v":1},"","",{"$f":"IF(COUNTIF($AG$13:AG102,AG102)=1,AH101+1,AH101)","v":1},""]
[100,"修士課程",100,"修士課程100","公共政策研究科",6,"公共政策研究科6","サステイナビリティ学専攻","修士課程サステイナビリティ学専攻",2,"修士課程サステイナビリティ学専攻2","社会人入試","修士課程サステイナビリティ学専攻社会人入試",1,"修士課程サステイナビリティ学専攻社会人入試1","修士課程公共政策研究科サステイナビリティ学専攻社会人入試","なし","併願不可",null,null,null,null,91,"",{"$f":"IF(COUNTIF($X$13:X103,X103)=1,Y102+1,Y102)","v":1},{"$f":"IFERROR(INDEX($X$13:$X$217,MATCH(ROW(Z103)-12,$Y$13:$Y$217,0)),\"\")","v":""},{"$error":"#N/A"},{"$f":"IF(COUNTIF($AA$13:AA103,AA103)=1,AB102+1,AB102)","v":1},"",{"$error":"#N/A"},{"$f":"IF(COUNTIF($AD$13:AD103,AD103)=1,AE102+1,AE102)","v":1},"","",{"$f":"IF(COUNTIF($AG$13:AG103,AG103)=1,AH102+1,AH102)","v":1},""]
[101,"修士課程",101,"修士課程101","連帯社会インスティテュート",1,"連帯社会インスティテュート1","所属専攻：政治学専攻","修士課程所属専攻：政治学専攻",1,"修士課程所属専攻：政治学専攻1","一般入試","修士課程所属専攻：政治学専攻一般入試",1,"修士課程所属専攻：政治学専攻一般入試1","修士課程連帯社会インスティテュート所属専攻：政治学専攻一般入試","労働組合プログラム","併願不可",null,null,null,null,92,"",{"$f":"IF(COUNTIF($X$13:X104,X104)=1,Y103+1,Y103)","v":1},{"$f":"IFERROR(INDEX($X$13:$X$201,MATCH(ROW(Z104)-12,$Y$13:$Y$201,0)),\"\")","v":""},{"$error":"#N/A"},{"$f":"IF(COUNTIF($AA$13:AA104,AA104)=1,AB103+1,AB103)","v":1},"",{"$error":"#N/A"},{"$f":"IF(COUNTIF($AD$13:AD104,AD104)=1,AE103+1,AE103)","v":1},"","",{"$f":"IF(COUNTIF($AG$13:AG104,AG104)=1,AH103+1,AH103)","v":1},""]
[102,"修士課程",102,"修士課程102","連帯社会インスティテュート",2,"連帯社会インスティテュート2","所属専攻：公共政策学専攻","修士課程所属専攻：公共政策学専攻",1,"修士課程所属専攻：公共政策学専攻1","一般入試","修士課程所属専攻：公共政策学専攻一般入試",1,"修士課程所属専攻：公共政策学専攻一般入試1","修士課程連帯社会インスティテュート所属専攻：公共政策学専攻一般入試","労働組合プログラム","併願不可",null,null,null,null,93,"",{"$f":"IF(COUNTIF($X$13:X105,X105)=1,Y104+1,Y104)","v":1},{"$f":"IFERROR(INDEX($X$13:$X$217,MATCH(ROW(Z105)-12,$Y$13:$Y$217,0)),\"\")","v":""},{"$error":"#N/A"},{"$f":"IF(COUNTIF($AA$13:AA105,AA105)=1,AB104+1,AB104)","v":1},"",{"$error":"#N/A"},{"$f":"IF(COUNTIF($AD$13:AD105,AD105)=1,AE104+1,AE104)","v":1},"","",{"$f":"IF(COUNTIF($AG$13:AG105,AG105)=1,AH104+1,AH104)","v":1},""]
[103,"修士課程",103,"修士課程103","連帯社会インスティテュート",3,"連帯社会インスティテュート3","所属専攻：政治学専攻","修士課程所属専攻：政治学専攻",2,"修士課程所属専攻：政治学専攻2","一般入試","修士課程所属専攻：政治学専攻一般入試",2,"修士課程所属専攻：政治学専攻一般入試2","修士課程連帯社会インスティテュート所属専攻：政治学専攻一般入試","協同組合プログラム","併願不可",null,null,null,null,94,"",{"$f":"IF(COUNTIF($X$13:X106,X106)=1,Y105+1,Y105)","v":1},{"$f":"IFERROR(INDEX($X$13:$X$201,MATCH(ROW(Z106)-12,$Y$13:$Y$201,0)),\"\")","v":""},{"$error":"#N/A"},{"$f":"IF(COUNTIF($AA$13:AA106,AA106)=1,AB105+1,AB105)","v":1},"",{"$error":"#N/A"},{"$f":"IF(COUNTIF($AD$13:AD106,AD106)=1,AE105+1,AE105)","v":1},"","",{"$f":"IF(COUNTIF($AG$13:AG106,AG106)=1,AH105+1,AH105)","v":1},""]
[104,"修士課程",104,"修士課程104","連帯社会インスティテュート",4,"連帯社会インスティテュート4","所属専攻：公共政策学専攻","修士課程所属専攻：公共政策学専攻",2,"修士課程所属専攻：公共政策学専攻2","一般入試","修士課程所属専攻：公共政策学専攻一般入試",2,"修士課程所属専攻：公共政策学専攻一般入試2","修士課程連帯社会インスティテュート所属専攻：公共政策学専攻一般入試","協同組合プログラム","併願不可",null,null,null,null,95,"",{"$f":"IF(COUNTIF($X$13:X107,X107)=1,Y106+1,Y106)","v":1},{"$f":"IFERROR(INDEX($X$13:$X$217,MATCH(ROW(Z107)-12,$Y$13:$Y$217,0)),\"\")","v":""},{"$error":"#N/A"},{"$f":"IF(COUNTIF($AA$13:AA107,AA107)=1,AB106+1,AB106)","v":1},"",{"$error":"#N/A"},{"$f":"IF(COUNTIF($AD$13:AD107,AD107)=1,AE106+1,AE106)","v":1},"","",{"$f":"IF(COUNTIF($AG$13:AG107,AG107)=1,AH106+1,AH106)","v":1},""]
[105,"修士課程",105,"修士課程105","連帯社会インスティテュート",5,"連帯社会インスティテュート5","所属専攻：政治学専攻","修士課程所属専攻：政治学専攻",3,"修士課程所属専攻：政治学専攻3","一般入試","修士課程所属専攻：政治学専攻一般入試",3,"修士課程所属専攻：政治学専攻一般入試3","修士課程連帯社会インスティテュート所属専攻：政治学専攻一般入試","NPOプログラム","併願不可",null,null,null,null,96,"",{"$f":"IF(COUNTIF($X$13:X108,X108)=1,Y107+1,Y107)","v":1},{"$f":"IFERROR(INDEX($X$13:$X$201,MATCH(ROW(Z108)-12,$Y$13:$Y$201,0)),\"\")","v":""},{"$error":"#N/A"},{"$f":"IF(COUNTIF($AA$13:AA108,AA108)=1,AB107+1,AB107)","v":1},"",{"$error":"#N/A"},{"$f":"IF(COUNTIF($AD$13:AD108,AD108)=1,AE107+1,AE107)","v":1},"","",{"$f":"IF(COUNTIF($AG$13:AG108,AG108)=1,AH107+1,AH107)","v":1},""]
[106,"修士課程",106,"修士課程106","連帯社会インスティテュート",6,"連帯社会インスティテュート6","所属専攻：公共政策学専攻","修士課程所属専攻：公共政策学専攻",3,"修士課程所属専攻：公共政策学専攻3","一般入試","修士課程所属専攻：公共政策学専攻一般入試",3,"修士課程所属専攻：公共政策学専攻一般入試3","修士課程連帯社会インスティテュート所属専攻：公共政策学専攻一般入試","NPOプログラム","併願不可",null,null,null,null,97,"",{"$f":"IF(COUNTIF($X$13:X109,X109)=1,Y108+1,Y108)","v":1},{"$f":"IFERROR(INDEX($X$13:$X$217,MATCH(ROW(Z109)-12,$Y$13:$Y$217,0)),\"\")","v":""},{"$error":"#N/A"},{"$f":"IF(COUNTIF($AA$13:AA109,AA109)=1,AB108+1,AB108)","v":1},"",{"$error":"#N/A"},{"$f":"IF(COUNTIF($AD$13:AD109,AD109)=1,AE108+1,AE108)","v":1},"","",{"$f":"IF(COUNTIF($AG$13:AG109,AG109)=1,AH108+1,AH108)","v":1},""]
[107,"修士課程",107,"修士課程107","連帯社会インスティテュート",7,"連帯社会インスティテュート7","所属専攻：政治学専攻","修士課程所属専攻：政治学専攻",4,"修士課程所属専攻：政治学専攻4","社会人入試","修士課程所属専攻：政治学専攻社会人入試",1,"修士課程所属専攻：政治学専攻社会人入試1","修士課程連帯社会インスティテュート所属専攻：政治学専攻社会人入試","労働組合プログラム","併願不可",null,null,null,null,98,"",{"$f":"IF(COUNTIF($X$13:X110,X110)=1,Y109+1,Y109)","v":1},{"$f":"IFERROR(INDEX($X$13:$X$201,MATCH(ROW(Z110)-12,$Y$13:$Y$201,0)),\"\")","v":""},{"$error":"#N/A"},{"$f":"IF(COUNTIF($AA$13:AA110,AA110)=1,AB109+1,AB109)","v":1},"",{"$error":"#N/A"},{"$f":"IF(COUNTIF($AD$13:AD110,AD110)=1,AE109+1,AE109)","v":1},"","",{"$f":"IF(COUNTIF($AG$13:AG110,AG110)=1,AH109+1,AH109)","v":1},""]
[108,"修士課程",108,"修士課程108","連帯社会インスティテュート",8,"連帯社会インスティテュート8","所属専攻：公共政策学専攻","修士課程所属専攻：公共政策学専攻",4,"修士課程所属専攻：公共政策学専攻4","社会人入試","修士課程所属専攻：公共政策学専攻社会人入試",1,"修士課程所属専攻：公共政策学専攻社会人入試1","修士課程連帯社会インスティテュート所属専攻：公共政策学専攻社会人入試","労働組合プログラム","併願不可",null,null,null,null,99,"",{"$f":"IF(COUNTIF($X$13:X111,X111)=1,Y110+1,Y110)","v":1},{"$f":"IFERROR(INDEX($X$13:$X$217,MATCH(ROW(Z111)-12,$Y$13:$Y$217,0)),\"\")","v":""},{"$error":"#N/A"},{"$f":"IF(COUNTIF($AA$13:AA111,AA111)=1,AB110+1,AB110)","v":1},"",{"$error":"#N/A"},{"$f":"IF(COUNTIF($AD$13:AD111,AD111)=1,AE110+1,AE110)","v":1},"","",{"$f":"IF(COUNTIF($AG$13:AG111,AG111)=1,AH110+1,AH110)","v":1},""]
[109,"修士課程",109,"修士課程109","連帯社会インスティテュート",9,"連帯社会インスティテュート9","所属専攻：政治学専攻","修士課程所属専攻：政治学専攻",5,"修士課程所属専攻：政治学専攻5","社会人入試","修士課程所属専攻：政治学専攻社会人入試",2,"修士課程所属専攻：政治学専攻社会人入試2","修士課程連帯社会インスティテュート所属専攻：政治学専攻社会人入試","協同組合プログラム","併願不可",null,null,null,null,100,"",{"$f":"IF(COUNTIF($X$13:X112,X112)=1,Y111+1,Y111)","v":1},{"$f":"IFERROR(INDEX($X$13:$X$201,MATCH(ROW(Z112)-12,$Y$13:$Y$201,0)),\"\")","v":""},{"$error":"#N/A"},{"$f":"IF(COUNTIF($AA$13:AA112,AA112)=1,AB111+1,AB111)","v":1},"",{"$error":"#N/A"},{"$f":"IF(COUNTIF($AD$13:AD112,AD112)=1,AE111+1,AE111)","v":1},"","",{"$f":"IF(COUNTIF($AG$13:AG112,AG112)=1,AH111+1,AH111)","v":1},""]
[110,"修士課程",110,"修士課程110","連帯社会インスティテュート",10,"連帯社会インスティテュート10","所属専攻：公共政策学専攻","修士課程所属専攻：公共政策学専攻",5,"修士課程所属専攻：公共政策学専攻5","社会人入試","修士課程所属専攻：公共政策学専攻社会人入試",2,"修士課程所属専攻：公共政策学専攻社会人入試2","修士課程連帯社会インスティテュート所属専攻：公共政策学専攻社会人入試","協同組合プログラム","併願不可",null,null,null,null,101,"",{"$f":"IF(COUNTIF($X$13:X113,X113)=1,Y112+1,Y112)","v":1},{"$f":"IFERROR(INDEX($X$13:$X$217,MATCH(ROW(Z113)-12,$Y$13:$Y$217,0)),\"\")","v":""},{"$error":"#N/A"},{"$f":"IF(COUNTIF($AA$13:AA113,AA113)=1,AB112+1,AB112)","v":1},"",{"$error":"#N/A"},{"$f":"IF(COUNTIF($AD$13:AD113,AD113)=1,AE112+1,AE112)","v":1},"","",{"$f":"IF(COUNTIF($AG$13:AG113,AG113)=1,AH112+1,AH112)","v":1},""]
[111,"修士課程",111,"修士課程111","連帯社会インスティテュート",11,"連帯社会インスティテュート11","所属専攻：政治学専攻","修士課程所属専攻：政治学専攻",6,"修士課程所属専攻：政治学専攻6","社会人入試","修士課程所属専攻：政治学専攻社会人入試",3,"修士課程所属専攻：政治学専攻社会人入試3","修士課程連帯社会インスティテュート所属専攻：政治学専攻社会人入試","NPOプログラム","併願不可",null,null,null,null,102,"",{"$f":"IF(COUNTIF($X$13:X114,X114)=1,Y113+1,Y113)","v":1},{"$f":"IFERROR(INDEX($X$13:$X$201,MATCH(ROW(Z114)-12,$Y$13:$Y$201,0)),\"\")","v":""},{"$error":"#N/A"},{"$f":"IF(COUNTIF($AA$13:AA114,AA114)=1,AB113+1,AB113)","v":1},"",{"$error":"#N/A"},{"$f":"IF(COUNTIF($AD$13:AD114,AD114)=1,AE113+1,AE113)","v":1},"","",{"$f":"IF(COUNTIF($AG$13:AG114,AG114)=1,AH113+1,AH113)","v":1},""]
[112,"修士課程",112,"修士課程112","連帯社会インスティテュート",12,"連帯社会インスティテュート12","所属専攻：公共政策学専攻","修士課程所属専攻：公共政策学専攻",6,"修士課程所属専攻：公共政策学専攻6","社会人入試","修士課程所属専攻：公共政策学専攻社会人入試",3,"修士課程所属専攻：公共政策学専攻社会人入試3","修士課程連帯社会インスティテュート所属専攻：公共政策学専攻社会人入試","NPOプログラム","併願不可",null,null,null,null,103,"",{"$f":"IF(COUNTIF($X$13:X115,X115)=1,Y114+1,Y114)","v":1},{"$f":"IFERROR(INDEX($X$13:$X$217,MATCH(ROW(Z115)-12,$Y$13:$Y$217,0)),\"\")","v":""},{"$error":"#N/A"},{"$f":"IF(COUNTIF($AA$13:AA115,AA115)=1,AB114+1,AB114)","v":1},"",{"$error":"#N/A"},{"$f":"IF(COUNTIF($AD$13:AD115,AD115)=1,AE114+1,AE114)","v":1},"","",{"$f":"IF(COUNTIF($AG$13:AG115,AG115)=1,AH114+1,AH114)","v":1},""]
[113,"修士課程",113,"修士課程113","連帯社会インスティテュート",13,"連帯社会インスティテュート13","所属専攻：政治学専攻","修士課程所属専攻：政治学専攻",7,"修士課程所属専攻：政治学専攻7","指定団体推薦社会人入試","修士課程所属専攻：政治学専攻指定団体推薦社会人入試",1,"修士課程所属専攻：政治学専攻指定団体推薦社会人入試1","修士課程連帯社会インスティテュート所属専攻：政治学専攻指定団体推薦社会人入試","労働組合プログラム","併願不可",null,null,null,null,104,"",{"$f":"IF(COUNTIF($X$13:X116,X116)=1,Y115+1,Y115)","v":1},{"$f":"IFERROR(INDEX($X$13:$X$201,MATCH(ROW(Z116)-12,$Y$13:$Y$201,0)),\"\")","v":""},{"$error":"#N/A"},{"$f":"IF(COUNTIF($AA$13:AA116,AA116)=1,AB115+1,AB115)","v":1},"",{"$error":"#N/A"},{"$f":"IF(COUNTIF($AD$13:AD116,AD116)=1,AE115+1,AE115)","v":1},"","",{"$f":"IF(COUNTIF($AG$13:AG116,AG116)=1,AH115+1,AH115)","v":1},""]
[114,"修士課程",114,"修士課程114","連帯社会インスティテュート",14,"連帯社会インスティテュート14","所属専攻：公共政策学専攻","修士課程所属専攻：公共政策学専攻",7,"修士課程所属専攻：公共政策学専攻7","指定団体推薦社会人入試","修士課程所属専攻：公共政策学専攻指定団体推薦社会人入試",1,"修士課程所属専攻：公共政策学専攻指定団体推薦社会人入試1","修士課程連帯社会インスティテュート所属専攻：公共政策学専攻指定団体推薦社会人入試","労働組合プログラム","併願不可",null,null,null,null,105,"",{"$f":"IF(COUNTIF($X$13:X117,X117)=1,Y116+1,Y116)","v":1},{"$f":"IFERROR(INDEX($X$13:$X$217,MATCH(ROW(Z117)-12,$Y$13:$Y$217,0)),\"\")","v":""},{"$error":"#N/A"},{"$f":"IF(COUNTIF($AA$13:AA117,AA117)=1,AB116+1,AB116)","v":1},"",{"$error":"#N/A"},{"$f":"IF(COUNTIF($AD$13:AD117,AD117)=1,AE116+1,AE116)","v":1},"","",{"$f":"IF(COUNTIF($AG$13:AG117,AG117)=1,AH116+1,AH116)","v":1},""]
[115,"修士課程",115,"修士課程115","連帯社会インスティテュート",15,"連帯社会インスティテュート15","所属専攻：政治学専攻","修士課程所属専攻：政治学専攻",8,"修士課程所属専攻：政治学専攻8","指定団体推薦社会人入試","修士課程所属専攻：政治学専攻指定団体推薦社会人入試",2,"修士課程所属専攻：政治学専攻指定団体推薦社会人入試2","修士課程連帯社会インスティテュート所属専攻：政治学専攻指定団体推薦社会人入試","協同組合プログラム","併願不可",null,null,null,null,106,"",{"$f":"IF(COUNTIF($X$13:X118,X118)=1,Y117+1,Y117)","v":1},{"$f":"IFERROR(INDEX($X$13:$X$201,MATCH(ROW(Z118)-12,$Y$13:$Y$201,0)),\"\")","v":""},{"$error":"#N/A"},{"$f":"IF(COUNTIF($AA$13:AA118,AA118)=1,AB117+1,AB117)","v":1},"",{"$error":"#N/A"},{"$f":"IF(COUNTIF($AD$13:AD118,AD118)=1,AE117+1,AE117)","v":1},"","",{"$f":"IF(COUNTIF($AG$13:AG118,AG118)=1,AH117+1,AH117)","v":1},""]
[116,"修士課程",116,"修士課程116","連帯社会インスティテュート",16,"連帯社会インスティテュート16","所属専攻：公共政策学専攻","修士課程所属専攻：公共政策学専攻",8,"修士課程所属専攻：公共政策学専攻8","指定団体推薦社会人入試","修士課程所属専攻：公共政策学専攻指定団体推薦社会人入試",2,"修士課程所属専攻：公共政策学専攻指定団体推薦社会人入試2","修士課程連帯社会インスティテュート所属専攻：公共政策学専攻指定団体推薦社会人入試","協同組合プログラム","併願不可",null,null,null,null,107,"",{"$f":"IF(COUNTIF($X$13:X119,X119)=1,Y118+1,Y118)","v":1},{"$f":"IFERROR(INDEX($X$13:$X$217,MATCH(ROW(Z119)-12,$Y$13:$Y$217,0)),\"\")","v":""},{"$error":"#N/A"},{"$f":"IF(COUNTIF($AA$13:AA119,AA119)=1,AB118+1,AB118)","v":1},"",{"$error":"#N/A"},{"$f":"IF(COUNTIF($AD$13:AD119,AD119)=1,AE118+1,AE118)","v":1},"","",{"$f":"IF(COUNTIF($AG$13:AG119,AG119)=1,AH118+1,AH118)","v":1},""]
[117,"修士課程",117,"修士課程117","連帯社会インスティテュート",17,"連帯社会インスティテュート17","所属専攻：政治学専攻","修士課程所属専攻：政治学専攻",9,"修士課程所属専攻：政治学専攻9","指定団体推薦社会人入試","修士課程所属専攻：政治学専攻指定団体推薦社会人入試",3,"修士課程所属専攻：政治学専攻指定団体推薦社会人入試3","修士課程連帯社会インスティテュート所属専攻：政治学専攻指定団体推薦社会人入試","NPOプログラム","併願不可",null,null,null,null,108,"",{"$f":"IF(COUNTIF($X$13:X120,X120)=1,Y119+1,Y119)","v":1},{"$f":"IFERROR(INDEX($X$13:$X$201,MATCH(ROW(Z120)-12,$Y$13:$Y$201,0)),\"\")","v":""},{"$error":"#N/A"},{"$f":"IF(COUNTIF($AA$13:AA120,AA120)=1,AB119+1,AB119)","v":1},"",{"$error":"#N/A"},{"$f":"IF(COUNTIF($AD$13:AD120,AD120)=1,AE119+1,AE119)","v":1},"","",{"$f":"IF(COUNTIF($AG$13:AG120,AG120)=1,AH119+1,AH119)","v":1},""]
[118,"修士課程",118,"修士課程118","連帯社会インスティテュート",18,"連帯社会インスティテュート18","所属専攻：公共政策学専攻","修士課程所属専攻：公共政策学専攻",9,"修士課程所属専攻：公共政策学専攻9","指定団体推薦社会人入試","修士課程所属専攻：公共政策学専攻指定団体推薦社会人入試",3,"修士課程所属専攻：公共政策学専攻指定団体推薦社会人入試3","修士課程連帯社会インスティテュート所属専攻：公共政策学専攻指定団体推薦社会人入試","NPOプログラム","併願不可",null,null,null,null,109,"",{"$f":"IF(COUNTIF($X$13:X121,X121)=1,Y120+1,Y120)","v":1},{"$f":"IFERROR(INDEX($X$13:$X$217,MATCH(ROW(Z121)-12,$Y$13:$Y$217,0)),\"\")","v":""},{"$error":"#N/A"},{"$f":"IF(COUNTIF($AA$13:AA121,AA121)=1,AB120+1,AB120)","v":1},"",{"$error":"#N/A"},{"$f":"IF(COUNTIF($AD$13:AD121,AD121)=1,AE120+1,AE120)","v":1},"","",{"$f":"IF(COUNTIF($AG$13:AG121,AG121)=1,AH120+1,AH120)","v":1},""]
[119,"修士課程",119,"修士課程119","地域創造インスティテュート",1,"地域創造インスティテュート1","地域創造インスティテュート","修士課程地域創造インスティテュート",1,"修士課程地域創造インスティテュート1","一般入試","修士課程地域創造インスティテュート一般入試",1,"修士課程地域創造インスティテュート一般入試1","修士課程地域創造インスティテュート地域創造インスティテュート一般入試","都市・文化・観光創造群","該当なし",null,null,null,null,110,"",{"$f":"IF(COUNTIF($X$13:X122,X122)=1,Y121+1,Y121)","v":1},{"$f":"IFERROR(INDEX($X$13:$X$201,MATCH(ROW(Z122)-12,$Y$13:$Y$201,0)),\"\")","v":""},{"$error":"#N/A"},{"$f":"IF(COUNTIF($AA$13:AA122,AA122)=1,AB121+1,AB121)","v":1},"",{"$error":"#N/A"},{"$f":"IF(COUNTIF($AD$13:AD122,AD122)=1,AE121+1,AE121)","v":1},"","",{"$f":"IF(COUNTIF($AG$13:AG122,AG122)=1,AH121+1,AH121)","v":1},""]
[120,"修士課程",120,"修士課程120","地域創造インスティテュート",2,"地域創造インスティテュート2","地域創造インスティテュート","修士課程地域創造インスティテュート",2,"修士課程地域創造インスティテュート2","一般入試","修士課程地域創造インスティテュート一般入試",2,"修士課程地域創造インスティテュート一般入試2","修士課程地域創造インスティテュート地域創造インスティテュート一般入試","産業・企業・イノベーション創造群","該当なし",null,null,null,null,111,"",{"$f":"IF(COUNTIF($X$13:X123,X123)=1,Y122+1,Y122)","v":1},{"$f":"IFERROR(INDEX($X$13:$X$217,MATCH(ROW(Z123)-12,$Y$13:$Y$217,0)),\"\")","v":""},{"$error":"#N/A"},{"$f":"IF(COUNTIF($AA$13:AA123,AA123)=1,AB122+1,AB122)","v":1},"",{"$error":"#N/A"},{"$f":"IF(COUNTIF($AD$13:AD123,AD123)=1,AE122+1,AE122)","v":1},"","",{"$f":"IF(COUNTIF($AG$13:AG123,AG123)=1,AH122+1,AH122)","v":1},""]
[121,"修士課程",121,"修士課程121","地域創造インスティテュート",3,"地域創造インスティテュート3","地域創造インスティテュート","修士課程地域創造インスティテュート",3,"修士課程地域創造インスティテュート3","一般入試","修士課程地域創造インスティテュート一般入試",3,"修士課程地域創造インスティテュート一般入試3","修士課程地域創造インスティテュート地域創造インスティテュート一般入試","人材育成・生活・ウェルビーイング創造群","該当なし",null,null,null,null,112,"",{"$f":"IF(COUNTIF($X$13:X124,X124)=1,Y123+1,Y123)","v":1},{"$f":"IFERROR(INDEX($X$13:$X$201,MATCH(ROW(Z124)-12,$Y$13:$Y$201,0)),\"\")","v":""},{"$error":"#N/A"},{"$f":"IF(COUNTIF($AA$13:AA124,AA124)=1,AB123+1,AB123)","v":1},"",{"$error":"#N/A"},{"$f":"IF(COUNTIF($AD$13:AD124,AD124)=1,AE123+1,AE123)","v":1},"","",{"$f":"IF(COUNTIF($AG$13:AG124,AG124)=1,AH123+1,AH123)","v":1},""]
[122,"修士課程",122,"修士課程122","地域創造インスティテュート",4,"地域創造インスティテュート4","地域創造インスティテュート","修士課程地域創造インスティテュート",4,"修士課程地域創造インスティテュート4","社会人入試","修士課程地域創造インスティテュート社会人入試",1,"修士課程地域創造インスティテュート社会人入試1","修士課程地域創造インスティテュート地域創造インスティテュート社会人入試","都市・文化・観光創造群","該当なし",null,null,null,null,113,"",{"$f":"IF(COUNTIF($X$13:X125,X125)=1,Y124+1,Y124)","v":1},{"$f":"IFERROR(INDEX($X$13:$X$217,MATCH(ROW(Z125)-12,$Y$13:$Y$217,0)),\"\")","v":""},{"$error":"#N/A"},{"$f":"IF(COUNTIF($AA$13:AA125,AA125)=1,AB124+1,AB124)","v":1},"",{"$error":"#N/A"},{"$f":"IF(COUNTIF($AD$13:AD125,AD125)=1,AE124+1,AE124)","v":1},"","",{"$f":"IF(COUNTIF($AG$13:AG125,AG125)=1,AH124+1,AH124)","v":1},""]
[123,"修士課程",123,"修士課程123","地域創造インスティテュート",5,"地域創造インスティテュート5","地域創造インスティテュート","修士課程地域創造インスティテュート",5,"修士課程地域創造インスティテュート5","社会人入試","修士課程地域創造インスティテュート社会人入試",2,"修士課程地域創造インスティテュート社会人入試2","修士課程地域創造インスティテュート地域創造インスティテュート社会人入試","産業・企業・イノベーション創造群","該当なし",null,null,null,null,114,"",{"$f":"IF(COUNTIF($X$13:X126,X126)=1,Y125+1,Y125)","v":1},{"$f":"IFERROR(INDEX($X$13:$X$201,MATCH(ROW(Z126)-12,$Y$13:$Y$201,0)),\"\")","v":""},{"$error":"#N/A"},{"$f":"IF(COUNTIF($AA$13:AA126,AA126)=1,AB125+1,AB125)","v":1},"",{"$error":"#N/A"},{"$f":"IF(COUNTIF($AD$13:AD126,AD126)=1,AE125+1,AE125)","v":1},"","",{"$f":"IF(COUNTIF($AG$13:AG126,AG126)=1,AH125+1,AH125)","v":1},""]
[124,"修士課程",124,"修士課程124","地域創造インスティテュート",6,"地域創造インスティテュート6","地域創造インスティテュート","修士課程地域創造インスティテュート",6,"修士課程地域創造インスティテュート6","社会人入試","修士課程地域創造インスティテュート社会人入試",3,"修士課程地域創造インスティテュート社会人入試3","修士課程地域創造インスティテュート地域創造インスティテュート社会人入試","人材育成・生活・ウェルビーイング創造群","該当なし",null,null,null,null,115,"",{"$f":"IF(COUNTIF($X$13:X127,X127)=1,Y126+1,Y126)","v":1},{"$f":"IFERROR(INDEX($X$13:$X$217,MATCH(ROW(Z127)-12,$Y$13:$Y$217,0)),\"\")","v":""},{"$error":"#N/A"},{"$f":"IF(COUNTIF($AA$13:AA127,AA127)=1,AB126+1,AB126)","v":1},"",{"$error":"#N/A"},{"$f":"IF(COUNTIF($AD$13:AD127,AD127)=1,AE126+1,AE126)","v":1},"","",{"$f":"IF(COUNTIF($AG$13:AG127,AG127)=1,AH126+1,AH126)","v":1},""]
[125,"博士後期課程",1,"博士後期課程1","人文科学研究科",38,"人文科学研究科38","哲学専攻","博士後期課程哲学専攻",1,"博士後期課程哲学専攻1","一般入試","博士後期課程哲学専攻一般入試",1,"博士後期課程哲学専攻一般入試1","博士後期課程人文科学研究科哲学専攻一般入試","なし","該当なし",null,null,null,null,116,"",{"$f":"IF(COUNTIF($X$13:X128,X128)=1,Y127+1,Y127)","v":1},{"$f":"IFERROR(INDEX($X$13:$X$201,MATCH(ROW(Z128)-12,$Y$13:$Y$201,0)),\"\")","v":""},{"$error":"#N/A"},{"$f":"IF(COUNTIF($AA$13:AA128,AA128)=1,AB127+1,AB127)","v":1},"",{"$error":"#N/A"},{"$f":"IF(COUNTIF($AD$13:AD128,AD128)=1,AE127+1,AE127)","v":1},"","",{"$f":"IF(COUNTIF($AG$13:AG128,AG128)=1,AH127+1,AH127)","v":1},""]
[126,"博士後期課程",2,"博士後期課程2","人文科学研究科",39,"人文科学研究科39","日本文学専攻","博士後期課程日本文学専攻",1,"博士後期課程日本文学専攻1","一般入試","博士後期課程日本文学専攻一般入試",1,"博士後期課程日本文学専攻一般入試1","博士後期課程人文科学研究科日本文学専攻一般入試","なし","該当なし",null,null,null,null,117,"",{"$f":"IF(COUNTIF($X$13:X129,X129)=1,Y128+1,Y128)","v":1},{"$f":"IFERROR(INDEX($X$13:$X$217,MATCH(ROW(Z129)-12,$Y$13:$Y$217,0)),\"\")","v":""},{"$error":"#N/A"},{"$f":"IF(COUNTIF($AA$13:AA129,AA129)=1,AB128+1,AB128)","v":1},"",{"$error":"#N/A"},{"$f":"IF(COUNTIF($AD$13:AD129,AD129)=1,AE128+1,AE128)","v":1},"","",{"$f":"IF(COUNTIF($AG$13:AG129,AG129)=1,AH128+1,AH128)","v":1},""]
[127,"博士後期課程",3,"博士後期課程3","人文科学研究科",40,"人文科学研究科40","英文学専攻","博士後期課程英文学専攻",1,"博士後期課程英文学専攻1","一般入試","博士後期課程英文学専攻一般入試",1,"博士後期課程英文学専攻一般入試1","博士後期課程人文科学研究科英文学専攻一般入試","なし","該当なし",null,null,null,null,118,"",{"$f":"IF(COUNTIF($X$13:X130,X130)=1,Y129+1,Y129)","v":1},{"$f":"IFERROR(INDEX($X$13:$X$201,MATCH(ROW(Z130)-12,$Y$13:$Y$201,0)),\"\")","v":""},{"$error":"#N/A"},{"$f":"IF(COUNTIF($AA$13:AA130,AA130)=1,AB129+1,AB129)","v":1},"",{"$error":"#N/A"},{"$f":"IF(COUNTIF($AD$13:AD130,AD130)=1,AE129+1,AE129)","v":1},"","",{"$f":"IF(COUNTIF($AG$13:AG130,AG130)=1,AH129+1,AH129)","v":1},""]
[128,"博士後期課程",4,"博士後期課程4","人文科学研究科",41,"人文科学研究科41","史学専攻","博士後期課程史学専攻",1,"博士後期課程史学専攻1","一般入試","博士後期課程史学専攻一般入試",1,"博士後期課程史学専攻一般入試1","博士後期課程人文科学研究科史学専攻一般入試","なし","該当なし",null,null,null,null,119,"",{"$f":"IF(COUNTIF($X$13:X131,X131)=1,Y130+1,Y130)","v":1},{"$f":"IFERROR(INDEX($X$13:$X$217,MATCH(ROW(Z131)-12,$Y$13:$Y$217,0)),\"\")","v":""},{"$error":"#N/A"},{"$f":"IF(COUNTIF($AA$13:AA131,AA131)=1,AB130+1,AB130)","v":1},"",{"$error":"#N/A"},{"$f":"IF(COUNTIF($AD$13:AD131,AD131)=1,AE130+1,AE130)","v":1},"","",{"$f":"IF(COUNTIF($AG$13:AG131,AG131)=1,AH130+1,AH130)","v":1},""]
[129,"博士後期課程",5,"博士後期課程5","人文科学研究科",42,"人文科学研究科42","史学専攻","博士後期課程史学専攻",2,"博士後期課程史学専攻2","社会人入試","博士後期課程史学専攻社会人入試",1,"博士後期課程史学専攻社会人入試1","博士後期課程人文科学研究科史学専攻社会人入試","なし","該当なし",null,null,null,null,120,"",{"$f":"IF(COUNTIF($X$13:X132,X132)=1,Y131+1,Y131)","v":1},{"$f":"IFERROR(INDEX($X$13:$X$201,MATCH(ROW(Z132)-12,$Y$13:$Y$201,0)),\"\")","v":""},{"$error":"#N/A"},{"$f":"IF(COUNTIF($AA$13:AA132,AA132)=1,AB131+1,AB131)","v":1},"",{"$error":"#N/A"},{"$f":"IF(COUNTIF($AD$13:AD132,AD132)=1,AE131+1,AE131)","v":1},"","",{"$f":"IF(COUNTIF($AG$13:AG132,AG132)=1,AH131+1,AH131)","v":1},""]
[130,"博士後期課程",6,"博士後期課程6","人文科学研究科",43,"人文科学研究科43","地理学専攻","博士後期課程地理学専攻",1,"博士後期課程地理学専攻1","一般入試","博士後期課程地理学専攻一般入試",1,"博士後期課程地理学専攻一般入試1","博士後期課程人文科学研究科地理学専攻一般入試","なし","該当なし",null,null,null,null,121,"",{"$f":"IF(COUNTIF($X$13:X133,X133)=1,Y132+1,Y132)","v":1},{"$f":"IFERROR(INDEX($X$13:$X$217,MATCH(ROW(Z133)-12,$Y$13:$Y$217,0)),\"\")","v":""},{"$error":"#N/A"},{"$f":"IF(COUNTIF($AA$13:AA133,AA133)=1,AB132+1,AB132)","v":1},"",{"$error":"#N/A"},{"$f":"IF(COUNTIF($AD$13:AD133,AD133)=1,AE132+1,AE132)","v":1},"","",{"$f":"IF(COUNTIF($AG$13:AG133,AG133)=1,AH132+1,AH132)","v":1},""]
[131,"博士後期課程",7,"博士後期課程7","人文科学研究科",44,"人文科学研究科44","地理学専攻","博士後期課程地理学専攻",2,"博士後期課程地理学専攻2","社会人入試","博士後期課程地理学専攻社会人入試",1,"博士後期課程地理学専攻社会人入試1","博士後期課程人文科学研究科地理学専攻社会人入試","なし","該当なし",null,null,null,null,122,"",{"$f":"IF(COUNTIF($X$13:X134,X134)=1,Y133+1,Y133)","v":1},{"$f":"IFERROR(INDEX($X$13:$X$201,MATCH(ROW(Z134)-12,$Y$13:$Y$201,0)),\"\")","v":""},{"$error":"#N/A"},{"$f":"IF(COUNTIF($AA$13:AA134,AA134)=1,AB133+1,AB133)","v":1},"",{"$error":"#N/A"},{"$f":"IF(COUNTIF($AD$13:AD134,AD134)=1,AE133+1,AE133)","v":1},"","",{"$f":"IF(COUNTIF($AG$13:AG134,AG134)=1,AH133+1,AH133)","v":1},""]
[132,"博士後期課程",8,"博士後期課程8","人文科学研究科",45,"人文科学研究科45","心理学専攻","博士後期課程心理学専攻",1,"博士後期課程心理学専攻1","一般入試","博士後期課程心理学専攻一般入試",1,"博士後期課程心理学専攻一般入試1","博士後期課程人文科学研究科心理学専攻一般入試","なし","該当なし",null,null,null,null,123,"",{"$f":"IF(COUNTIF($X$13:X135,X135)=1,Y134+1,Y134)","v":1},{"$f":"IFERROR(INDEX($X$13:$X$217,MATCH(ROW(Z135)-12,$Y$13:$Y$217,0)),\"\")","v":""},{"$error":"#N/A"},{"$f":"IF(COUNTIF($AA$13:AA135,AA135)=1,AB134+1,AB134)","v":1},"",{"$error":"#N/A"},{"$f":"IF(COUNTIF($AD$13:AD135,AD135)=1,AE134+1,AE134)","v":1},"","",{"$f":"IF(COUNTIF($AG$13:AG135,AG135)=1,AH134+1,AH134)","v":1},""]
[133,"博士後期課程",9,"博士後期課程9","人文科学研究科",46,"人文科学研究科46","国際日本学インスティテュート","博士後期課程国際日本学インスティテュート",1,"博士後期課程国際日本学インスティテュート1","一般入試","博士後期課程国際日本学インスティテュート一般入試",1,"博士後期課程国際日本学インスティテュート一般入試1","博士後期課程人文科学研究科国際日本学インスティテュート一般入試","所属専攻：哲学専攻","該当なし",null,null,null,null,124,"",{"$f":"IF(COUNTIF($X$13:X136,X136)=1,Y135+1,Y135)","v":1},{"$f":"IFERROR(INDEX($X$13:$X$201,MATCH(ROW(Z136)-12,$Y$13:$Y$201,0)),\"\")","v":""},{"$error":"#N/A"},{"$f":"IF(COUNTIF($AA$13:AA136,AA136)=1,AB135+1,AB135)","v":1},"",{"$error":"#N/A"},{"$f":"IF(COUNTIF($AD$13:AD136,AD136)=1,AE135+1,AE135)","v":1},"","",{"$f":"IF(COUNTIF($AG$13:AG136,AG136)=1,AH135+1,AH135)","v":1},""]
[134,"博士後期課程",10,"博士後期課程10","人文科学研究科",47,"人文科学研究科47","国際日本学インスティテュート","博士後期課程国際日本学インスティテュート",2,"博士後期課程国際日本学インスティテュート2","一般入試","博士後期課程国際日本学インスティテュート一般入試",2,"博士後期課程国際日本学インスティテュート一般入試2","博士後期課程人文科学研究科国際日本学インスティテュート一般入試","所属専攻：日本文学専攻","該当なし",null,null,null,null,125,"",{"$f":"IF(COUNTIF($X$13:X137,X137)=1,Y136+1,Y136)","v":1},{"$f":"IFERROR(INDEX($X$13:$X$217,MATCH(ROW(Z137)-12,$Y$13:$Y$217,0)),\"\")","v":""},{"$error":"#N/A"},{"$f":"IF(COUNTIF($AA$13:AA137,AA137)=1,AB136+1,AB136)","v":1},"",{"$error":"#N/A"},{"$f":"IF(COUNTIF($AD$13:AD137,AD137)=1,AE136+1,AE136)","v":1},"","",{"$f":"IF(COUNTIF($AG$13:AG137,AG137)=1,AH136+1,AH136)","v":1},""]
[135,"博士後期課程",11,"博士後期課程11","人文科学研究科",48,"人文科学研究科48","国際日本学インスティテュート","博士後期課程国際日本学インスティテュート",3,"博士後期課程国際日本学インスティテュート3","一般入試","博士後期課程国際日本学インスティテュート一般入試",3,"博士後期課程国際日本学インスティテュート一般入試3","博士後期課程人文科学研究科国際日本学インスティテュート一般入試","所属専攻：英文学専攻","該当なし",null,null,null,null,126,"",{"$f":"IF(COUNTIF($X$13:X138,X138)=1,Y137+1,Y137)","v":1},{"$f":"IFERROR(INDEX($X$13:$X$201,MATCH(ROW(Z138)-12,$Y$13:$Y$201,0)),\"\")","v":""},{"$error":"#N/A"},{"$f":"IF(COUNTIF($AA$13:AA138,AA138)=1,AB137+1,AB137)","v":1},"",{"$error":"#N/A"},{"$f":"IF(COUNTIF($AD$13:AD138,AD138)=1,AE137+1,AE137)","v":1},"","",{"$f":"IF(COUNTIF($AG$13:AG138,AG138)=1,AH137+1,AH137)","v":1},""]
[136,"博士後期課程",12,"博士後期課程12","人文科学研究科",49,"人文科学研究科49","国際日本学インスティテュート","博士後期課程国際日本学インスティテュート",4,"博士後期課程国際日本学インスティテュート4","一般入試","博士後期課程国際日本学インスティテュート一般入試",4,"博士後期課程国際日本学インスティテュート一般入試4","博士後期課程人文科学研究科国際日本学インスティテュート一般入試","所属専攻：史学専攻","該当なし",null,null,null,null,127,"",{"$f":"IF(COUNTIF($X$13:X139,X139)=1,Y138+1,Y138)","v":1},{"$f":"IFERROR(INDEX($X$13:$X$217,MATCH(ROW(Z139)-12,$Y$13:$Y$217,0)),\"\")","v":""},{"$error":"#N/A"},{"$f":"IF(COUNTIF($AA$13:AA139,AA139)=1,AB138+1,AB138)","v":1},"",{"$error":"#N/A"},{"$f":"IF(COUNTIF($AD$13:AD139,AD139)=1,AE138+1,AE138)","v":1},"","",{"$f":"IF(COUNTIF($AG$13:AG139,AG139)=1,AH138+1,AH138)","v":1},""]
[137,"博士後期課程",13,"博士後期課程13","人文科学研究科",50,"人文科学研究科50","国際日本学インスティテュート","博士後期課程国際日本学インスティテュート",5,"博士後期課程国際日本学インスティテュート5","一般入試","博士後期課程国際日本学インスティテュート一般入試",5,"博士後期課程国際日本学インスティテュート一般入試5","博士後期課程人文科学研究科国際日本学インスティテュート一般入試","所属専攻：地理学専攻","該当なし",null,null,null,null,128,"",{"$f":"IF(COUNTIF($X$13:X140,X140)=1,Y139+1,Y139)","v":1},{"$f":"IFERROR(INDEX($X$13:$X$201,MATCH(ROW(Z140)-12,$Y$13:$Y$201,0)),\"\")","v":""},{"$error":"#N/A"},{"$f":"IF(COUNTIF($AA$13:AA140,AA140)=1,AB139+1,AB139)","v":1},"",{"$error":"#N/A"},{"$f":"IF(COUNTIF($AD$13:AD140,AD140)=1,AE139+1,AE139)","v":1},"","",{"$f":"IF(COUNTIF($AG$13:AG140,AG140)=1,AH139+1,AH139)","v":1},""]
[138,"博士後期課程",14,"博士後期課程14","国際文化研究科",5,"国際文化研究科5","国際文化専攻","博士後期課程国際文化専攻",1,"博士後期課程国際文化専攻1","一般入試","博士後期課程国際文化専攻一般入試",1,"博士後期課程国際文化専攻一般入試1","博士後期課程国際文化研究科国際文化専攻一般入試","なし","該当なし",null,null,null,null,129,{"$f":"IFERROR(VLOOKUP($Z$3&W141,$D:$E,2,0),\"\")","v":""},{"$f":"IF(COUNTIF($X$13:X141,X141)=1,Y140+1,Y140)","v":1},{"$f":"IFERROR(INDEX($X$13:$X$217,MATCH(ROW(Z141)-12,$Y$13:$Y$217,0)),\"\")","v":""},{"$f":"VLOOKUP($Z$4&W141,$G:$H,2,0)","v":{"$error":"#N/A"}},{"$f":"IF(COUNTIF($AA$13:AA141,AA141)=1,AB140+1,AB140)","v":1},"",{"$f":"VLOOKUP($Z$3&$Z$5&W141,$K:$L,2,0)","v":{"$error":"#N/A"}},{"$f":"IF(COUNTIF($AD$13:AD141,AD141)=1,AE140+1,AE140)","v":1},"",{"$f":"IFERROR(VLOOKUP($Z$3&$Z$5&$Z$6&W141,$O:$R,3,0),\"\")","v":""},{"$f":"IF(COUNTIF($AG$13:AG141,AG141)=1,AH140+1,AH140)","v":1},{"$f":"IF(AG141=\"なし\",\"\",\nIFERROR(INDEX($AG$13:$AG$201,MATCH(ROW(AI141)-12,$AH$13:$AH$201,0)),\"\")\n)","v":""}]
[139,"博士後期課程",15,"博士後期課程15","国際文化研究科",6,"国際文化研究科6","国際文化専攻","博士後期課程国際文化専攻",2,"博士後期課程国際文化専攻2","外国人入試","博士後期課程国際文化専攻外国人入試",1,"博士後期課程国際文化専攻外国人入試1","博士後期課程国際文化研究科国際文化専攻外国人入試","なし","該当なし",null,null,null,null,130,"",{"$f":"IF(COUNTIF($X$13:X142,X142)=1,Y141+1,Y141)","v":1},{"$f":"IFERROR(INDEX($X$13:$X$201,MATCH(ROW(Z142)-12,$Y$13:$Y$201,0)),\"\")","v":""},{"$error":"#N/A"},{"$f":"IF(COUNTIF($AA$13:AA142,AA142)=1,AB141+1,AB141)","v":1},"",{"$error":"#N/A"},{"$f":"IF(COUNTIF($AD$13:AD142,AD142)=1,AE141+1,AE141)","v":1},"","",{"$f":"IF(COUNTIF($AG$13:AG142,AG142)=1,AH141+1,AH141)","v":1},""]
[140,"博士後期課程",16,"博士後期課程16","国際文化研究科",7,"国際文化研究科7","国際文化専攻","博士後期課程国際文化専攻",3,"博士後期課程国際文化専攻3","社会人入試","博士後期課程国際文化専攻社会人入試",1,"博士後期課程国際文化専攻社会人入試1","博士後期課程国際文化研究科国際文化専攻社会人入試","なし","該当なし",null,null,null,null,131,"",{"$f":"IF(COUNTIF($X$13:X143,X143)=1,Y142+1,Y142)","v":1},{"$f":"IFERROR(INDEX($X$13:$X$217,MATCH(ROW(Z143)-12,$Y$13:$Y$217,0)),\"\")","v":""},{"$error":"#N/A"},{"$f":"IF(COUNTIF($AA$13:AA143,AA143)=1,AB142+1,AB142)","v":1},{"$f":"IFERROR(INDEX($AA$13:$AA$201,MATCH(ROW(AC143)-12,$AB$13:$AB$201,0)),\"\")","v":""},{"$error":"#N/A"},{"$f":"IF(COUNTIF($AD$13:AD143,AD143)=1,AE142+1,AE142)","v":1},{"$f":"IFERROR(INDEX($AD$13:$AD$201,MATCH(ROW(AF143)-12,$AE$13:$AE$201,0)),\"\")","v":""},"",{"$f":"IF(COUNTIF($AG$13:AG143,AG143)=1,AH142+1,AH142)","v":1},""]
[141,"博士後期課程",17,"博士後期課程17","経済学研究科",52,"経済学研究科52","経済学専攻","博士後期課程経済学専攻",1,"博士後期課程経済学専攻1","一般入試","博士後期課程経済学専攻一般入試",1,"博士後期課程経済学専攻一般入試1","博士後期課程経済学研究科経済学専攻一般入試","歴史・思想・制度","該当なし",null,null,null,null,132,"",{"$f":"IF(COUNTIF($X$13:X144,X144)=1,Y143+1,Y143)","v":1},{"$f":"IFERROR(INDEX($X$13:$X$201,MATCH(ROW(Z144)-12,$Y$13:$Y$201,0)),\"\")","v":""},{"$error":"#N/A"},{"$f":"IF(COUNTIF($AA$13:AA144,AA144)=1,AB143+1,AB143)","v":1},"",{"$error":"#N/A"},{"$f":"IF(COUNTIF($AD$13:AD144,AD144)=1,AE143+1,AE143)","v":1},"","",{"$f":"IF(COUNTIF($AG$13:AG144,AG144)=1,AH143+1,AH143)","v":1},""]
[142,"博士後期課程",18,"博士後期課程18","経済学研究科",53,"経済学研究科53","経済学専攻","博士後期課程経済学専攻",2,"博士後期課程経済学専攻2","一般入試","博士後期課程経済学専攻一般入試",2,"博士後期課程経済学専攻一般入試2","博士後期課程経済学研究科経済学専攻一般入試","金融・企業","該当なし",null,null,null,null,133,"",{"$f":"IF(COUNTIF($X$13:X145,X145)=1,Y144+1,Y144)","v":1},{"$f":"IFERROR(INDEX($X$13:$X$217,MATCH(ROW(Z145)-12,$Y$13:$Y$217,0)),\"\")","v":""},{"$error":"#N/A"},{"$f":"IF(COUNTIF($AA$13:AA145,AA145)=1,AB144+1,AB144)","v":1},"",{"$error":"#N/A"},{"$f":"IF(COUNTIF($AD$13:AD145,AD145)=1,AE144+1,AE144)","v":1},"","",{"$f":"IF(COUNTIF($AG$13:AG145,AG145)=1,AH144+1,AH144)","v":1},""]
[143,"博士後期課程",19,"博士後期課程19","経済学研究科",54,"経済学研究科54","経済学専攻","博士後期課程経済学専攻",3,"博士後期課程経済学専攻3","一般入試","博士後期課程経済学専攻一般入試",3,"博士後期課程経済学専攻一般入試3","博士後期課程経済学研究科経済学専攻一般入試","政策・環境","該当なし",null,null,null,null,134,"",{"$f":"IF(COUNTIF($X$13:X146,X146)=1,Y145+1,Y145)","v":1},{"$f":"IFERROR(INDEX($X$13:$X$201,MATCH(ROW(Z146)-12,$Y$13:$Y$201,0)),\"\")","v":""},{"$error":"#N/A"},{"$f":"IF(COUNTIF($AA$13:AA146,AA146)=1,AB145+1,AB145)","v":1},"",{"$error":"#N/A"},{"$f":"IF(COUNTIF($AD$13:AD146,AD146)=1,AE145+1,AE145)","v":1},"","",{"$f":"IF(COUNTIF($AG$13:AG146,AG146)=1,AH145+1,AH145)","v":1},""]
[144,"博士後期課程",20,"博士後期課程20","経済学研究科",55,"経済学研究科55","経済学専攻","博士後期課程経済学専攻",4,"博士後期課程経済学専攻4","一般入試","博士後期課程経済学専攻一般入試",4,"博士後期課程経済学専攻一般入試4","博士後期課程経済学研究科経済学専攻一般入試","国際・地域","該当なし",null,null,null,null,135,"",{"$f":"IF(COUNTIF($X$13:X147,X147)=1,Y146+1,Y146)","v":1},{"$f":"IFERROR(INDEX($X$13:$X$217,MATCH(ROW(Z147)-12,$Y$13:$Y$217,0)),\"\")","v":""},{"$error":"#N/A"},{"$f":"IF(COUNTIF($AA$13:AA147,AA147)=1,AB146+1,AB146)","v":1},"",{"$error":"#N/A"},{"$f":"IF(COUNTIF($AD$13:AD147,AD147)=1,AE146+1,AE146)","v":1},"","",{"$f":"IF(COUNTIF($AG$13:AG147,AG147)=1,AH146+1,AH146)","v":1},""]
[145,"博士後期課程",21,"博士後期課程21","経済学研究科",56,"経済学研究科56","経済学専攻","博士後期課程経済学専攻",5,"博士後期課程経済学専攻5","一般入試","博士後期課程経済学専攻一般入試",5,"博士後期課程経済学専攻一般入試5","博士後期課程経済学研究科経済学専攻一般入試","応用ミクロ・応用マクロ・計量","該当なし",null,null,null,null,136,"",{"$f":"IF(COUNTIF($X$13:X148,X148)=1,Y147+1,Y147)","v":1},{"$f":"IFERROR(INDEX($X$13:$X$201,MATCH(ROW(Z148)-12,$Y$13:$Y$201,0)),\"\")","v":""},{"$error":"#N/A"},{"$f":"IF(COUNTIF($AA$13:AA148,AA148)=1,AB147+1,AB147)","v":1},"",{"$error":"#N/A"},{"$f":"IF(COUNTIF($AD$13:AD148,AD148)=1,AE147+1,AE147)","v":1},"","",{"$f":"IF(COUNTIF($AG$13:AG148,AG148)=1,AH147+1,AH147)","v":1},""]
[146,"博士後期課程",22,"博士後期課程22","経済学研究科",57,"経済学研究科57","経済学専攻","博士後期課程経済学専攻",6,"博士後期課程経済学専攻6","社会人入試","博士後期課程経済学専攻社会人入試",1,"博士後期課程経済学専攻社会人入試1","博士後期課程経済学研究科経済学専攻社会人入試","歴史・思想・制度","該当なし",null,null,null,null,137,"",{"$f":"IF(COUNTIF($X$13:X149,X149)=1,Y148+1,Y148)","v":1},{"$f":"IFERROR(INDEX($X$13:$X$217,MATCH(ROW(Z149)-12,$Y$13:$Y$217,0)),\"\")","v":""},{"$error":"#N/A"},{"$f":"IF(COUNTIF($AA$13:AA149,AA149)=1,AB148+1,AB148)","v":1},"",{"$error":"#N/A"},{"$f":"IF(COUNTIF($AD$13:AD149,AD149)=1,AE148+1,AE148)","v":1},"","",{"$f":"IF(COUNTIF($AG$13:AG149,AG149)=1,AH148+1,AH148)","v":1},""]
[147,"博士後期課程",23,"博士後期課程23","経済学研究科",58,"経済学研究科58","経済学専攻","博士後期課程経済学専攻",7,"博士後期課程経済学専攻7","社会人入試","博士後期課程経済学専攻社会人入試",2,"博士後期課程経済学専攻社会人入試2","博士後期課程経済学研究科経済学専攻社会人入試","金融・企業","該当なし",null,null,null,null,138,"",{"$f":"IF(COUNTIF($X$13:X150,X150)=1,Y149+1,Y149)","v":1},{"$f":"IFERROR(INDEX($X$13:$X$201,MATCH(ROW(Z150)-12,$Y$13:$Y$201,0)),\"\")","v":""},{"$error":"#N/A"},{"$f":"IF(COUNTIF($AA$13:AA150,AA150)=1,AB149+1,AB149)","v":1},"",{"$error":"#N/A"},{"$f":"IF(COUNTIF($AD$13:AD150,AD150)=1,AE149+1,AE149)","v":1},"","",{"$f":"IF(COUNTIF($AG$13:AG150,AG150)=1,AH149+1,AH149)","v":1},""]
[148,"博士後期課程",24,"博士後期課程24","経済学研究科",59,"経済学研究科59","経済学専攻","博士後期課程経済学専攻",8,"博士後期課程経済学専攻8","社会人入試","博士後期課程経済学専攻社会人入試",3,"博士後期課程経済学専攻社会人入試3","博士後期課程経済学研究科経済学専攻社会人入試","政策・環境","該当なし",null,null,null,null,139,"",{"$f":"IF(COUNTIF($X$13:X151,X151)=1,Y150+1,Y150)","v":1},{"$f":"IFERROR(INDEX($X$13:$X$217,MATCH(ROW(Z151)-12,$Y$13:$Y$217,0)),\"\")","v":""},{"$error":"#N/A"},{"$f":"IF(COUNTIF($AA$13:AA151,AA151)=1,AB150+1,AB150)","v":1},"",{"$error":"#N/A"},{"$f":"IF(COUNTIF($AD$13:AD151,AD151)=1,AE150+1,AE150)","v":1},"","",{"$f":"IF(COUNTIF($AG$13:AG151,AG151)=1,AH150+1,AH150)","v":1},""]
[149,"博士後期課程",25,"博士後期課程25","経済学研究科",60,"経済学研究科60","経済学専攻","博士後期課程経済学専攻",9,"博士後期課程経済学専攻9","社会人入試","博士後期課程経済学専攻社会人入試",4,"博士後期課程経済学専攻社会人入試4","博士後期課程経済学研究科経済学専攻社会人入試","国際・地域","該当なし",null,null,null,null,140,"",{"$f":"IF(COUNTIF($X$13:X152,X152)=1,Y151+1,Y151)","v":1},{"$f":"IFERROR(INDEX($X$13:$X$201,MATCH(ROW(Z152)-12,$Y$13:$Y$201,0)),\"\")","v":""},{"$error":"#N/A"},{"$f":"IF(COUNTIF($AA$13:AA152,AA152)=1,AB151+1,AB151)","v":1},"",{"$error":"#N/A"},{"$f":"IF(COUNTIF($AD$13:AD152,AD152)=1,AE151+1,AE151)","v":1},"","",{"$f":"IF(COUNTIF($AG$13:AG152,AG152)=1,AH151+1,AH151)","v":1},""]
[150,"博士後期課程",26,"博士後期課程26","経済学研究科",61,"経済学研究科61","経済学専攻","博士後期課程経済学専攻",10,"博士後期課程経済学専攻10","社会人入試","博士後期課程経済学専攻社会人入試",5,"博士後期課程経済学専攻社会人入試5","博士後期課程経済学研究科経済学専攻社会人入試","応用ミクロ・応用マクロ・計量","該当なし",null,null,null,null,141,"",{"$f":"IF(COUNTIF($X$13:X153,X153)=1,Y152+1,Y152)","v":1},{"$f":"IFERROR(INDEX($X$13:$X$217,MATCH(ROW(Z153)-12,$Y$13:$Y$217,0)),\"\")","v":""},{"$error":"#N/A"},{"$f":"IF(COUNTIF($AA$13:AA153,AA153)=1,AB152+1,AB152)","v":1},"",{"$error":"#N/A"},{"$f":"IF(COUNTIF($AD$13:AD153,AD153)=1,AE152+1,AE152)","v":1},"","",{"$f":"IF(COUNTIF($AG$13:AG153,AG153)=1,AH152+1,AH152)","v":1},""]
[151,"博士後期課程",27,"博士後期課程27","法学研究科",5,"法学研究科5","法律学専攻","博士後期課程法律学専攻",1,"博士後期課程法律学専攻1","一般入試","博士後期課程法律学専攻一般入試",1,"博士後期課程法律学専攻一般入試1","博士後期課程法学研究科法律学専攻一般入試","なし","該当なし",null,null,null,null,142,"",{"$f":"IF(COUNTIF($X$13:X154,X154)=1,Y153+1,Y153)","v":1},{"$f":"IFERROR(INDEX($X$13:$X$201,MATCH(ROW(Z154)-12,$Y$13:$Y$201,0)),\"\")","v":""},{"$error":"#N/A"},{"$f":"IF(COUNTIF($AA$13:AA154,AA154)=1,AB153+1,AB153)","v":1},"",{"$error":"#N/A"},{"$f":"IF(COUNTIF($AD$13:AD154,AD154)=1,AE153+1,AE153)","v":1},"","",{"$f":"IF(COUNTIF($AG$13:AG154,AG154)=1,AH153+1,AH153)","v":1},""]
[152,"博士後期課程",28,"博士後期課程28","政治学研究科",8,"政治学研究科8","政治学専攻","博士後期課程政治学専攻",1,"博士後期課程政治学専攻1","一般入試","博士後期課程政治学専攻一般入試",1,"博士後期課程政治学専攻一般入試1","博士後期課程政治学研究科政治学専攻一般入試","なし","該当なし",null,null,null,null,143,"",{"$f":"IF(COUNTIF($X$13:X155,X155)=1,Y154+1,Y154)","v":1},{"$f":"IFERROR(INDEX($X$13:$X$217,MATCH(ROW(Z155)-12,$Y$13:$Y$217,0)),\"\")","v":""},{"$error":"#N/A"},{"$f":"IF(COUNTIF($AA$13:AA155,AA155)=1,AB154+1,AB154)","v":1},"",{"$error":"#N/A"},{"$f":"IF(COUNTIF($AD$13:AD155,AD155)=1,AE154+1,AE154)","v":1},"","",{"$f":"IF(COUNTIF($AG$13:AG155,AG155)=1,AH154+1,AH154)","v":1},""]
[153,"博士後期課程",29,"博士後期課程29","社会学研究科",5,"社会学研究科5","社会学専攻","博士後期課程社会学専攻",1,"博士後期課程社会学専攻1","一般入試","博士後期課程社会学専攻一般入試",1,"博士後期課程社会学専攻一般入試1","博士後期課程社会学研究科社会学専攻一般入試","なし","該当なし",null,null,null,null,144,"",{"$f":"IF(COUNTIF($X$13:X156,X156)=1,Y155+1,Y155)","v":1},{"$f":"IFERROR(INDEX($X$13:$X$201,MATCH(ROW(Z156)-12,$Y$13:$Y$201,0)),\"\")","v":""},{"$error":"#N/A"},{"$f":"IF(COUNTIF($AA$13:AA156,AA156)=1,AB155+1,AB155)","v":1},"",{"$error":"#N/A"},{"$f":"IF(COUNTIF($AD$13:AD156,AD156)=1,AE155+1,AE155)","v":1},"","",{"$f":"IF(COUNTIF($AG$13:AG156,AG156)=1,AH155+1,AH155)","v":1},""]
[154,"博士後期課程",30,"博士後期課程30","経営学研究科",5,"経営学研究科5","経営学専攻","博士後期課程経営学専攻",1,"博士後期課程経営学専攻1","一般入試","博士後期課程経営学専攻一般入試",1,"博士後期課程経営学専攻一般入試1","博士後期課程経営学研究科経営学専攻一般入試","なし","該当なし",null,null,null,null,145,"",{"$f":"IF(COUNTIF($X$13:X157,X157)=1,Y156+1,Y156)","v":1},{"$f":"IFERROR(INDEX($X$13:$X$217,MATCH(ROW(Z157)-12,$Y$13:$Y$217,0)),\"\")","v":""},{"$error":"#N/A"},{"$f":"IF(COUNTIF($AA$13:AA157,AA157)=1,AB156+1,AB156)","v":1},"",{"$error":"#N/A"},{"$f":"IF(COUNTIF($AD$13:AD157,AD157)=1,AE156+1,AE156)","v":1},"","",{"$f":"IF(COUNTIF($AG$13:AG157,AG157)=1,AH156+1,AH156)","v":1},""]
[155,"博士後期課程",31,"博士後期課程31","経営学研究科",6,"経営学研究科6","経営学専攻","博士後期課程経営学専攻",2,"博士後期課程経営学専攻2","社会人入試","博士後期課程経営学専攻社会人入試",1,"博士後期課程経営学専攻社会人入試1","博士後期課程経営学研究科経営学専攻社会人入試","なし","該当なし",null,null,null,null,146,"",{"$f":"IF(COUNTIF($X$13:X158,X158)=1,Y157+1,Y157)","v":1},{"$f":"IFERROR(INDEX($X$13:$X$201,MATCH(ROW(Z158)-12,$Y$13:$Y$201,0)),\"\")","v":""},{"$error":"#N/A"},{"$f":"IF(COUNTIF($AA$13:AA158,AA158)=1,AB157+1,AB157)","v":1},"",{"$error":"#N/A"},{"$f":"IF(COUNTIF($AD$13:AD158,AD158)=1,AE157+1,AE157)","v":1},"","",{"$f":"IF(COUNTIF($AG$13:AG158,AG158)=1,AH157+1,AH157)","v":1},""]
[156,"博士後期課程",32,"博士後期課程32","公共政策研究科",7,"公共政策研究科7","公共政策学専攻","博士後期課程公共政策学専攻",1,"博士後期課程公共政策学専攻1","一般入試","博士後期課程公共政策学専攻一般入試",1,"博士後期課程公共政策学専攻一般入試1","博士後期課程公共政策研究科公共政策学専攻一般入試","なし","該当なし",null,null,null,null,147,"",{"$f":"IF(COUNTIF($X$13:X159,X159)=1,Y158+1,Y158)","v":1},{"$f":"IFERROR(INDEX($X$13:$X$217,MATCH(ROW(Z159)-12,$Y$13:$Y$217,0)),\"\")","v":""},{"$error":"#N/A"},{"$f":"IF(COUNTIF($AA$13:AA159,AA159)=1,AB158+1,AB158)","v":1},"",{"$error":"#N/A"},{"$f":"IF(COUNTIF($AD$13:AD159,AD159)=1,AE158+1,AE158)","v":1},"","",{"$f":"IF(COUNTIF($AG$13:AG159,AG159)=1,AH158+1,AH158)","v":1},""]
[157,"博士後期課程",33,"博士後期課程33","公共政策研究科",8,"公共政策研究科8","サステイナビリティ学専攻","博士後期課程サステイナビリティ学専攻",1,"博士後期課程サステイナビリティ学専攻1","一般入試","博士後期課程サステイナビリティ学専攻一般入試",1,"博士後期課程サステイナビリティ学専攻一般入試1","博士後期課程公共政策研究科サステイナビリティ学専攻一般入試","なし","該当なし",null,null,null,null,148,"",{"$f":"IF(COUNTIF($X$13:X160,X160)=1,Y159+1,Y159)","v":1},{"$f":"IFERROR(INDEX($X$13:$X$201,MATCH(ROW(Z160)-12,$Y$13:$Y$201,0)),\"\")","v":""},{"$error":"#N/A"},{"$f":"IF(COUNTIF($AA$13:AA160,AA160)=1,AB159+1,AB159)","v":1},"",{"$error":"#N/A"},{"$f":"IF(COUNTIF($AD$13:AD160,AD160)=1,AE159+1,AE159)","v":1},"","",{"$f":"IF(COUNTIF($AG$13:AG160,AG160)=1,AH159+1,AH159)","v":1},""]
[158,"博士後期課程",34,"博士後期課程34","公共政策研究科",9,"公共政策研究科9","公共政策学専攻","博士後期課程公共政策学専攻",2,"博士後期課程公共政策学専攻2","社会人入試","博士後期課程公共政策学専攻社会人入試",1,"博士後期課程公共政策学専攻社会人入試1","博士後期課程公共政策研究科公共政策学専攻社会人入試","なし","該当なし",null,null,null,null,149,"",{"$f":"IF(COUNTIF($X$13:X161,X161)=1,Y160+1,Y160)","v":1},{"$f":"IFERROR(INDEX($X$13:$X$217,MATCH(ROW(Z161)-12,$Y$13:$Y$217,0)),\"\")","v":""},{"$error":"#N/A"},{"$f":"IF(COUNTIF($AA$13:AA161,AA161)=1,AB160+1,AB160)","v":1},"",{"$error":"#N/A"},{"$f":"IF(COUNTIF($AD$13:AD161,AD161)=1,AE160+1,AE160)","v":1},"","",{"$f":"IF(COUNTIF($AG$13:AG161,AG161)=1,AH160+1,AH160)","v":1},""]
[159,"博士後期課程",35,"博士後期課程35","公共政策研究科",10,"公共政策研究科10","サステイナビリティ学専攻","博士後期課程サステイナビリティ学専攻",2,"博士後期課程サステイナビリティ学専攻2","社会人入試","博士後期課程サステイナビリティ学専攻社会人入試",1,"博士後期課程サステイナビリティ学専攻社会人入試1","博士後期課程公共政策研究科サステイナビリティ学専攻社会人入試","なし","該当なし",null,null,null,null,150,"",{"$f":"IF(COUNTIF($X$13:X162,X162)=1,Y161+1,Y161)","v":1},{"$f":"IFERROR(INDEX($X$13:$X$201,MATCH(ROW(Z162)-12,$Y$13:$Y$201,0)),\"\")","v":""},{"$error":"#N/A"},{"$f":"IF(COUNTIF($AA$13:AA162,AA162)=1,AB161+1,AB161)","v":1},"",{"$error":"#N/A"},{"$f":"IF(COUNTIF($AD$13:AD162,AD162)=1,AE161+1,AE161)","v":1},"","",{"$f":"IF(COUNTIF($AG$13:AG162,AG162)=1,AH161+1,AH161)","v":1},""]
[160,"博士後期課程",36,"博士後期課程36","地域創造インスティテュート",10,"地域創造インスティテュート10","地域創造インスティテュート","博士後期課程地域創造インスティテュート",1,"博士後期課程地域創造インスティテュート1","一般入試","博士後期課程地域創造インスティテュート一般入試",1,"博士後期課程地域創造インスティテュート一般入試1","博士後期課程地域創造インスティテュート地域創造インスティテュート一般入試","なし","該当なし",null,null,null,null,151,"",{"$f":"IF(COUNTIF($X$13:X163,X163)=1,Y162+1,Y162)","v":1},{"$f":"IFERROR(INDEX($X$13:$X$217,MATCH(ROW(Z163)-12,$Y$13:$Y$217,0)),\"\")","v":""},{"$error":"#N/A"},{"$f":"IF(COUNTIF($AA$13:AA163,AA163)=1,AB162+1,AB162)","v":1},"",{"$error":"#N/A"},{"$f":"IF(COUNTIF($AD$13:AD163,AD163)=1,AE162+1,AE162)","v":1},"","",{"$f":"IF(COUNTIF($AG$13:AG163,AG163)=1,AH162+1,AH162)","v":1},""]
[161,"博士後期課程",37,"博士後期課程37","地域創造インスティテュート",11,"地域創造インスティテュート11","地域創造インスティテュート","博士後期課程地域創造インスティテュート",2,"博士後期課程地域創造インスティテュート2","社会人入試","博士後期課程地域創造インスティテュート社会人入試",1,"博士後期課程地域創造インスティテュート社会人入試1","博士後期課程地域創造インスティテュート地域創造インスティテュート社会人入試","なし","該当なし",null,null,null,null,152,"",{"$f":"IF(COUNTIF($X$13:X164,X164)=1,Y163+1,Y163)","v":1},{"$f":"IFERROR(INDEX($X$13:$X$201,MATCH(ROW(Z164)-12,$Y$13:$Y$201,0)),\"\")","v":""},{"$error":"#N/A"},{"$f":"IF(COUNTIF($AA$13:AA164,AA164)=1,AB163+1,AB163)","v":1},"",{"$error":"#N/A"},{"$f":"IF(COUNTIF($AD$13:AD164,AD164)=1,AE163+1,AE163)","v":1},"","",{"$f":"IF(COUNTIF($AG$13:AG164,AG164)=1,AH163+1,AH163)","v":1},""]
[162,"研修生",1,"研修生1","人文科学研究科",51,"人文科学研究科51","哲学専攻","研修生哲学専攻",1,"研修生哲学専攻1","研修生入試（単願）","研修生哲学専攻研修生入試（単願）",1,"研修生哲学専攻研修生入試（単願）1","研修生人文科学研究科哲学専攻研修生入試（単願）","なし","該当なし",null,null,null,null,153,"",{"$f":"IF(COUNTIF($X$13:X165,X165)=1,Y164+1,Y164)","v":1},{"$f":"IFERROR(INDEX($X$13:$X$217,MATCH(ROW(Z165)-12,$Y$13:$Y$217,0)),\"\")","v":""},{"$error":"#N/A"},{"$f":"IF(COUNTIF($AA$13:AA165,AA165)=1,AB164+1,AB164)","v":1},"",{"$error":"#N/A"},{"$f":"IF(COUNTIF($AD$13:AD165,AD165)=1,AE164+1,AE164)","v":1},"","",{"$f":"IF(COUNTIF($AG$13:AG165,AG165)=1,AH164+1,AH164)","v":1},""]
[163,"研修生",2,"研修生2","人文科学研究科",52,"人文科学研究科52","日本文学専攻","研修生日本文学専攻",1,"研修生日本文学専攻1","研修生入試（単願）","研修生日本文学専攻研修生入試（単願）",1,"研修生日本文学専攻研修生入試（単願）1","研修生人文科学研究科日本文学専攻研修生入試（単願）","なし","該当なし",null,null,null,null,154,"",{"$f":"IF(COUNTIF($X$13:X166,X166)=1,Y165+1,Y165)","v":1},{"$f":"IFERROR(INDEX($X$13:$X$201,MATCH(ROW(Z166)-12,$Y$13:$Y$201,0)),\"\")","v":""},{"$error":"#N/A"},{"$f":"IF(COUNTIF($AA$13:AA166,AA166)=1,AB165+1,AB165)","v":1},"",{"$error":"#N/A"},{"$f":"IF(COUNTIF($AD$13:AD166,AD166)=1,AE165+1,AE165)","v":1},"","",{"$f":"IF(COUNTIF($AG$13:AG166,AG166)=1,AH165+1,AH165)","v":1},""]
[164,"研修生",3,"研修生3","人文科学研究科",53,"人文科学研究科53","英文学専攻","研修生英文学専攻",1,"研修生英文学専攻1","研修生入試（単願）","研修生英文学専攻研修生入試（単願）",1,"研修生英文学専攻研修生入試（単願）1","研修生人文科学研究科英文学専攻研修生入試（単願）","なし","該当なし",null,null,null,null,155,"",{"$f":"IF(COUNTIF($X$13:X167,X167)=1,Y166+1,Y166)","v":1},{"$f":"IFERROR(INDEX($X$13:$X$217,MATCH(ROW(Z167)-12,$Y$13:$Y$217,0)),\"\")","v":""},{"$error":"#N/A"},{"$f":"IF(COUNTIF($AA$13:AA167,AA167)=1,AB166+1,AB166)","v":1},"",{"$error":"#N/A"},{"$f":"IF(COUNTIF($AD$13:AD167,AD167)=1,AE166+1,AE166)","v":1},"","",{"$f":"IF(COUNTIF($AG$13:AG167,AG167)=1,AH166+1,AH166)","v":1},""]
[165,"研修生",4,"研修生4","人文科学研究科",54,"人文科学研究科54","史学専攻","研修生史学専攻",1,"研修生史学専攻1","研修生入試（単願）","研修生史学専攻研修生入試（単願）",1,"研修生史学専攻研修生入試（単願）1","研修生人文科学研究科史学専攻研修生入試（単願）","なし","該当なし",null,null,null,null,156,"",{"$f":"IF(COUNTIF($X$13:X168,X168)=1,Y167+1,Y167)","v":1},{"$f":"IFERROR(INDEX($X$13:$X$201,MATCH(ROW(Z168)-12,$Y$13:$Y$201,0)),\"\")","v":""},{"$error":"#N/A"},{"$f":"IF(COUNTIF($AA$13:AA168,AA168)=1,AB167+1,AB167)","v":1},"",{"$error":"#N/A"},{"$f":"IF(COUNTIF($AD$13:AD168,AD168)=1,AE167+1,AE167)","v":1},"","",{"$f":"IF(COUNTIF($AG$13:AG168,AG168)=1,AH167+1,AH167)","v":1},""]
[166,"研修生",5,"研修生5","人文科学研究科",55,"人文科学研究科55","地理学専攻","研修生地理学専攻",1,"研修生地理学専攻1","研修生入試（単願）","研修生地理学専攻研修生入試（単願）",1,"研修生地理学専攻研修生入試（単願）1","研修生人文科学研究科地理学専攻研修生入試（単願）","なし","該当なし",null,null,null,null,157,"",{"$f":"IF(COUNTIF($X$13:X169,X169)=1,Y168+1,Y168)","v":1},{"$f":"IFERROR(INDEX($X$13:$X$217,MATCH(ROW(Z169)-12,$Y$13:$Y$217,0)),\"\")","v":""},{"$error":"#N/A"},{"$f":"IF(COUNTIF($AA$13:AA169,AA169)=1,AB168+1,AB168)","v":1},"",{"$error":"#N/A"},{"$f":"IF(COUNTIF($AD$13:AD169,AD169)=1,AE168+1,AE168)","v":1},"","",{"$f":"IF(COUNTIF($AG$13:AG169,AG169)=1,AH168+1,AH168)","v":1},""]
[167,"研修生",6,"研修生6","人文科学研究科",56,"人文科学研究科56","心理学専攻","研修生心理学専攻",1,"研修生心理学専攻1","研修生入試（単願）","研修生心理学専攻研修生入試（単願）",1,"研修生心理学専攻研修生入試（単願）1","研修生人文科学研究科心理学専攻研修生入試（単願）","なし","該当なし",null,null,null,null,158,"",{"$f":"IF(COUNTIF($X$13:X170,X170)=1,Y169+1,Y169)","v":1},{"$f":"IFERROR(INDEX($X$13:$X$201,MATCH(ROW(Z170)-12,$Y$13:$Y$201,0)),\"\")","v":""},{"$error":"#N/A"},{"$f":"IF(COUNTIF($AA$13:AA170,AA170)=1,AB169+1,AB169)","v":1},"",{"$error":"#N/A"},{"$f":"IF(COUNTIF($AD$13:AD170,AD170)=1,AE169+1,AE169)","v":1},"","",{"$f":"IF(COUNTIF($AG$13:AG170,AG170)=1,AH169+1,AH169)","v":1},""]
[168,"研修生",7,"研修生7","国際文化研究科",8,"国際文化研究科8","国際文化専攻","研修生国際文化専攻",1,"研修生国際文化専攻1","研修生入試（単願）","研修生国際文化専攻研修生入試（単願）",1,"研修生国際文化専攻研修生入試（単願）1","研修生国際文化研究科国際文化専攻研修生入試（単願）","なし","該当なし",null,null,null,null,159,"",{"$f":"IF(COUNTIF($X$13:X171,X171)=1,Y170+1,Y170)","v":1},{"$f":"IFERROR(INDEX($X$13:$X$217,MATCH(ROW(Z171)-12,$Y$13:$Y$217,0)),\"\")","v":""},{"$error":"#N/A"},{"$f":"IF(COUNTIF($AA$13:AA171,AA171)=1,AB170+1,AB170)","v":1},"",{"$error":"#N/A"},{"$f":"IF(COUNTIF($AD$13:AD171,AD171)=1,AE170+1,AE170)","v":1},"","",{"$f":"IF(COUNTIF($AG$13:AG171,AG171)=1,AH170+1,AH170)","v":1},""]
[169,"研修生",8,"研修生8","経済学研究科",62,"経済学研究科62","経済学専攻","研修生経済学専攻",1,"研修生経済学専攻1","研修生入試（単願）","研修生経済学専攻研修生入試（単願）",1,"研修生経済学専攻研修生入試（単願）1","研修生経済学研究科経済学専攻研修生入試（単願）","歴史・思想・制度","該当なし",null,null,null,null,160,"",{"$f":"IF(COUNTIF($X$13:X172,X172)=1,Y171+1,Y171)","v":1},{"$f":"IFERROR(INDEX($X$13:$X$201,MATCH(ROW(Z172)-12,$Y$13:$Y$201,0)),\"\")","v":""},{"$error":"#N/A"},{"$f":"IF(COUNTIF($AA$13:AA172,AA172)=1,AB171+1,AB171)","v":1},"",{"$error":"#N/A"},{"$f":"IF(COUNTIF($AD$13:AD172,AD172)=1,AE171+1,AE171)","v":1},"","",{"$f":"IF(COUNTIF($AG$13:AG172,AG172)=1,AH171+1,AH171)","v":1},""]
[170,"研修生",9,"研修生9","経済学研究科",63,"経済学研究科63","経済学専攻","研修生経済学専攻",2,"研修生経済学専攻2","研修生入試（単願）","研修生経済学専攻研修生入試（単願）",2,"研修生経済学専攻研修生入試（単願）2","研修生経済学研究科経済学専攻研修生入試（単願）","金融・企業","該当なし",null,null,null,null,161,"",{"$f":"IF(COUNTIF($X$13:X173,X173)=1,Y172+1,Y172)","v":1},{"$f":"IFERROR(INDEX($X$13:$X$217,MATCH(ROW(Z173)-12,$Y$13:$Y$217,0)),\"\")","v":""},{"$error":"#N/A"},{"$f":"IF(COUNTIF($AA$13:AA173,AA173)=1,AB172+1,AB172)","v":1},"",{"$error":"#N/A"},{"$f":"IF(COUNTIF($AD$13:AD173,AD173)=1,AE172+1,AE172)","v":1},"","",{"$f":"IF(COUNTIF($AG$13:AG173,AG173)=1,AH172+1,AH172)","v":1},""]
[171,"研修生",10,"研修生10","経済学研究科",64,"経済学研究科64","経済学専攻","研修生経済学専攻",3,"研修生経済学専攻3","研修生入試（単願）","研修生経済学専攻研修生入試（単願）",3,"研修生経済学専攻研修生入試（単願）3","研修生経済学研究科経済学専攻研修生入試（単願）","政策・環境","該当なし",null,null,null,null,162,"",{"$f":"IF(COUNTIF($X$13:X174,X174)=1,Y173+1,Y173)","v":1},{"$f":"IFERROR(INDEX($X$13:$X$201,MATCH(ROW(Z174)-12,$Y$13:$Y$201,0)),\"\")","v":""},{"$error":"#N/A"},{"$f":"IF(COUNTIF($AA$13:AA174,AA174)=1,AB173+1,AB173)","v":1},"",{"$error":"#N/A"},{"$f":"IF(COUNTIF($AD$13:AD174,AD174)=1,AE173+1,AE173)","v":1},"","",{"$f":"IF(COUNTIF($AG$13:AG174,AG174)=1,AH173+1,AH173)","v":1},""]
[172,"研修生",11,"研修生11","経済学研究科",65,"経済学研究科65","経済学専攻","研修生経済学専攻",4,"研修生経済学専攻4","研修生入試（単願）","研修生経済学専攻研修生入試（単願）",4,"研修生経済学専攻研修生入試（単願）4","研修生経済学研究科経済学専攻研修生入試（単願）","国際・地域","該当なし",null,null,null,null,163,"",{"$f":"IF(COUNTIF($X$13:X175,X175)=1,Y174+1,Y174)","v":1},{"$f":"IFERROR(INDEX($X$13:$X$217,MATCH(ROW(Z175)-12,$Y$13:$Y$217,0)),\"\")","v":""},{"$error":"#N/A"},{"$f":"IF(COUNTIF($AA$13:AA175,AA175)=1,AB174+1,AB174)","v":1},"",{"$error":"#N/A"},{"$f":"IF(COUNTIF($AD$13:AD175,AD175)=1,AE174+1,AE174)","v":1},"","",{"$f":"IF(COUNTIF($AG$13:AG175,AG175)=1,AH174+1,AH174)","v":1},""]
[173,"研修生",12,"研修生12","経済学研究科",66,"経済学研究科66","経済学専攻","研修生経済学専攻",5,"研修生経済学専攻5","研修生入試（単願）","研修生経済学専攻研修生入試（単願）",5,"研修生経済学専攻研修生入試（単願）5","研修生経済学研究科経済学専攻研修生入試（単願）","応用ミクロ・応用マクロ・計量","該当なし",null,null,null,null,164,"",{"$f":"IF(COUNTIF($X$13:X176,X176)=1,Y175+1,Y175)","v":1},{"$f":"IFERROR(INDEX($X$13:$X$201,MATCH(ROW(Z176)-12,$Y$13:$Y$201,0)),\"\")","v":""},{"$error":"#N/A"},{"$f":"IF(COUNTIF($AA$13:AA176,AA176)=1,AB175+1,AB175)","v":1},"",{"$error":"#N/A"},{"$f":"IF(COUNTIF($AD$13:AD176,AD176)=1,AE175+1,AE175)","v":1},"","",{"$f":"IF(COUNTIF($AG$13:AG176,AG176)=1,AH175+1,AH175)","v":1},""]
[174,"研修生",13,"研修生13","法学研究科",6,"法学研究科6","法律学専攻","研修生法律学専攻",1,"研修生法律学専攻1","研修生入試（単願）","研修生法律学専攻研修生入試（単願）",1,"研修生法律学専攻研修生入試（単願）1","研修生法学研究科法律学専攻研修生入試（単願）","なし","該当なし",null,null,null,null,165,"",{"$f":"IF(COUNTIF($X$13:X177,X177)=1,Y176+1,Y176)","v":1},{"$f":"IFERROR(INDEX($X$13:$X$217,MATCH(ROW(Z177)-12,$Y$13:$Y$217,0)),\"\")","v":""},{"$error":"#N/A"},{"$f":"IF(COUNTIF($AA$13:AA177,AA177)=1,AB176+1,AB176)","v":1},"",{"$error":"#N/A"},{"$f":"IF(COUNTIF($AD$13:AD177,AD177)=1,AE176+1,AE176)","v":1},"","",{"$f":"IF(COUNTIF($AG$13:AG177,AG177)=1,AH176+1,AH176)","v":1},""]
[175,"研修生",14,"研修生14","政治学研究科",9,"政治学研究科9","政治学専攻","研修生政治学専攻",1,"研修生政治学専攻1","研修生入試（単願）","研修生政治学専攻研修生入試（単願）",1,"研修生政治学専攻研修生入試（単願）1","研修生政治学研究科政治学専攻研修生入試（単願）","なし","該当なし",null,null,null,null,166,"",{"$f":"IF(COUNTIF($X$13:X178,X178)=1,Y177+1,Y177)","v":1},{"$f":"IFERROR(INDEX($X$13:$X$201,MATCH(ROW(Z178)-12,$Y$13:$Y$201,0)),\"\")","v":""},{"$error":"#N/A"},{"$f":"IF(COUNTIF($AA$13:AA178,AA178)=1,AB177+1,AB177)","v":1},"",{"$error":"#N/A"},{"$f":"IF(COUNTIF($AD$13:AD178,AD178)=1,AE177+1,AE177)","v":1},"","",{"$f":"IF(COUNTIF($AG$13:AG178,AG178)=1,AH177+1,AH177)","v":1},""]
[176,"研修生",15,"研修生15","政治学研究科",10,"政治学研究科10","国際政治学専攻","研修生国際政治学専攻",1,"研修生国際政治学専攻1","研修生入試（単願）","研修生国際政治学専攻研修生入試（単願）",1,"研修生国際政治学専攻研修生入試（単願）1","研修生政治学研究科国際政治学専攻研修生入試（単願）","なし","該当なし",null,null,null,null,167,"",{"$f":"IF(COUNTIF($X$13:X179,X179)=1,Y178+1,Y178)","v":1},{"$f":"IFERROR(INDEX($X$13:$X$217,MATCH(ROW(Z179)-12,$Y$13:$Y$217,0)),\"\")","v":""},{"$error":"#N/A"},{"$f":"IF(COUNTIF($AA$13:AA179,AA179)=1,AB178+1,AB178)","v":1},"",{"$error":"#N/A"},{"$f":"IF(COUNTIF($AD$13:AD179,AD179)=1,AE178+1,AE178)","v":1},"","",{"$f":"IF(COUNTIF($AG$13:AG179,AG179)=1,AH178+1,AH178)","v":1},""]
[177,"研修生",16,"研修生16","社会学研究科",6,"社会学研究科6","社会学専攻","研修生社会学専攻",1,"研修生社会学専攻1","研修生入試（単願）","研修生社会学専攻研修生入試（単願）",1,"研修生社会学専攻研修生入試（単願）1","研修生社会学研究科社会学専攻研修生入試（単願）","なし","該当なし",null,null,null,null,168,"",{"$f":"IF(COUNTIF($X$13:X180,X180)=1,Y179+1,Y179)","v":1},{"$f":"IFERROR(INDEX($X$13:$X$201,MATCH(ROW(Z180)-12,$Y$13:$Y$201,0)),\"\")","v":""},{"$error":"#N/A"},{"$f":"IF(COUNTIF($AA$13:AA180,AA180)=1,AB179+1,AB179)","v":1},"",{"$error":"#N/A"},{"$f":"IF(COUNTIF($AD$13:AD180,AD180)=1,AE179+1,AE179)","v":1},"","",{"$f":"IF(COUNTIF($AG$13:AG180,AG180)=1,AH179+1,AH179)","v":1},""]
[178,"修士課程",125,"修士課程125","人文科学研究科",35,"人文科学研究科35","英文学専攻","修士課程英文学専攻",3,"修士課程英文学専攻3","推薦枠入試","修士課程英文学専攻推薦枠入試",1,"修士課程英文学専攻推薦枠入試1","修士課程人文科学研究科英文学専攻推薦枠入試","なし","併願不可",null,null,null,null,169,"",{"$f":"IF(COUNTIF($X$13:X181,X181)=1,Y180+1,Y180)","v":1},{"$f":"IFERROR(INDEX($X$13:$X$217,MATCH(ROW(Z181)-12,$Y$13:$Y$217,0)),\"\")","v":""},{"$error":"#N/A"},{"$f":"IF(COUNTIF($AA$13:AA181,AA181)=1,AB180+1,AB180)","v":1},"",{"$error":"#N/A"},{"$f":"IF(COUNTIF($AD$13:AD181,AD181)=1,AE180+1,AE180)","v":1},"","",{"$f":"IF(COUNTIF($AG$13:AG181,AG181)=1,AH180+1,AH180)","v":1},""]
[179,"修士課程",126,"修士課程126","人文科学研究科",36,"人文科学研究科36","地理学専攻","修士課程地理学専攻",4,"修士課程地理学専攻4","学内入試","修士課程地理学専攻学内入試",1,"修士課程地理学専攻学内入試1","修士課程人文科学研究科地理学専攻学内入試","なし","併願不可",null,null,null,null,170,"",{"$f":"IF(COUNTIF($X$13:X182,X182)=1,Y181+1,Y181)","v":1},{"$f":"IFERROR(INDEX($X$13:$X$201,MATCH(ROW(Z182)-12,$Y$13:$Y$201,0)),\"\")","v":""},{"$error":"#N/A"},{"$f":"IF(COUNTIF($AA$13:AA182,AA182)=1,AB181+1,AB181)","v":1},"",{"$error":"#N/A"},{"$f":"IF(COUNTIF($AD$13:AD182,AD182)=1,AE181+1,AE181)","v":1},"","",{"$f":"IF(COUNTIF($AG$13:AG182,AG182)=1,AH181+1,AH181)","v":1},""]
[180,"修士課程",127,"修士課程127","人文科学研究科",37,"人文科学研究科37","心理学専攻","修士課程心理学専攻",2,"修士課程心理学専攻2","学内入試","修士課程心理学専攻学内入試",1,"修士課程心理学専攻学内入試1","修士課程人文科学研究科心理学専攻学内入試","なし","併願不可",null,null,null,null,171,"",{"$f":"IF(COUNTIF($X$13:X183,X183)=1,Y182+1,Y182)","v":1},{"$f":"IFERROR(INDEX($X$13:$X$217,MATCH(ROW(Z183)-12,$Y$13:$Y$217,0)),\"\")","v":""},{"$error":"#N/A"},{"$f":"IF(COUNTIF($AA$13:AA183,AA183)=1,AB182+1,AB182)","v":1},"",{"$error":"#N/A"},{"$f":"IF(COUNTIF($AD$13:AD183,AD183)=1,AE182+1,AE182)","v":1},"","",{"$f":"IF(COUNTIF($AG$13:AG183,AG183)=1,AH182+1,AH182)","v":1},""]
[181,"修士課程",128,"修士課程128","国際文化研究科",4,"国際文化研究科4","国際文化専攻","修士課程国際文化専攻",4,"修士課程国際文化専攻4","学内入試","修士課程国際文化専攻学内入試",1,"修士課程国際文化専攻学内入試1","修士課程国際文化研究科国際文化専攻学内入試","なし","併願可",null,null,null,null,172,"",{"$f":"IF(COUNTIF($X$13:X184,X184)=1,Y183+1,Y183)","v":1},{"$f":"IFERROR(INDEX($X$13:$X$201,MATCH(ROW(Z184)-12,$Y$13:$Y$201,0)),\"\")","v":""},{"$error":"#N/A"},{"$f":"IF(COUNTIF($AA$13:AA184,AA184)=1,AB183+1,AB183)","v":1},"",{"$error":"#N/A"},{"$f":"IF(COUNTIF($AD$13:AD184,AD184)=1,AE183+1,AE183)","v":1},"","",{"$f":"IF(COUNTIF($AG$13:AG184,AG184)=1,AH183+1,AH183)","v":1},""]
[182,"修士課程",129,"修士課程129","経済学研究科",41,"経済学研究科41","経済学専攻","修士課程経済学専攻",41,"修士課程経済学専攻41","学部内入試","修士課程経済学専攻学部内入試",1,"修士課程経済学専攻学部内入試1","修士課程経済学研究科経済学専攻学部内入試","修士M.A.（歴史・思想・制度）","併願不可",null,null,null,null,173,"",{"$f":"IF(COUNTIF($X$13:X185,X185)=1,Y184+1,Y184)","v":1},{"$f":"IFERROR(INDEX($X$13:$X$217,MATCH(ROW(Z185)-12,$Y$13:$Y$217,0)),\"\")","v":""},{"$error":"#N/A"},{"$f":"IF(COUNTIF($AA$13:AA185,AA185)=1,AB184+1,AB184)","v":1},"",{"$error":"#N/A"},{"$f":"IF(COUNTIF($AD$13:AD185,AD185)=1,AE184+1,AE184)","v":1},"","",{"$f":"IF(COUNTIF($AG$13:AG185,AG185)=1,AH184+1,AH184)","v":1},""]
[183,"修士課程",130,"修士課程130","経済学研究科",42,"経済学研究科42","経済学専攻","修士課程経済学専攻",42,"修士課程経済学専攻42","学部内入試","修士課程経済学専攻学部内入試",2,"修士課程経済学専攻学部内入試2","修士課程経済学研究科経済学専攻学部内入試","修士M.A.（金融・企業）","併願不可",null,null,null,null,174,"",{"$f":"IF(COUNTIF($X$13:X186,X186)=1,Y185+1,Y185)","v":1},{"$f":"IFERROR(INDEX($X$13:$X$201,MATCH(ROW(Z186)-12,$Y$13:$Y$201,0)),\"\")","v":""},{"$error":"#N/A"},{"$f":"IF(COUNTIF($AA$13:AA186,AA186)=1,AB185+1,AB185)","v":1},"",{"$error":"#N/A"},{"$f":"IF(COUNTIF($AD$13:AD186,AD186)=1,AE185+1,AE185)","v":1},"","",{"$f":"IF(COUNTIF($AG$13:AG186,AG186)=1,AH185+1,AH185)","v":1},""]
[184,"修士課程",131,"修士課程131","経済学研究科",43,"経済学研究科43","経済学専攻","修士課程経済学専攻",43,"修士課程経済学専攻43","学部内入試","修士課程経済学専攻学部内入試",3,"修士課程経済学専攻学部内入試3","修士課程経済学研究科経済学専攻学部内入試","修士M.A.（政策・環境）","併願不可",null,null,null,null,175,"",{"$f":"IF(COUNTIF($X$13:X187,X187)=1,Y186+1,Y186)","v":1},{"$f":"IFERROR(INDEX($X$13:$X$217,MATCH(ROW(Z187)-12,$Y$13:$Y$217,0)),\"\")","v":""},{"$error":"#N/A"},{"$f":"IF(COUNTIF($AA$13:AA187,AA187)=1,AB186+1,AB186)","v":1},"",{"$error":"#N/A"},{"$f":"IF(COUNTIF($AD$13:AD187,AD187)=1,AE186+1,AE186)","v":1},"","",{"$f":"IF(COUNTIF($AG$13:AG187,AG187)=1,AH186+1,AH186)","v":1},""]
[185,"修士課程",132,"修士課程132","経済学研究科",44,"経済学研究科44","経済学専攻","修士課程経済学専攻",44,"修士課程経済学専攻44","学部内入試","修士課程経済学専攻学部内入試",4,"修士課程経済学専攻学部内入試4","修士課程経済学研究科経済学専攻学部内入試","修士M.A.（国際・地域）","併願不可",null,null,null,null,176,"",{"$f":"IF(COUNTIF($X$13:X188,X188)=1,Y187+1,Y187)","v":1},{"$f":"IFERROR(INDEX($X$13:$X$201,MATCH(ROW(Z188)-12,$Y$13:$Y$201,0)),\"\")","v":""},{"$error":"#N/A"},{"$f":"IF(COUNTIF($AA$13:AA188,AA188)=1,AB187+1,AB187)","v":1},"",{"$error":"#N/A"},{"$f":"IF(COUNTIF($AD$13:AD188,AD188)=1,AE187+1,AE187)","v":1},"","",{"$f":"IF(COUNTIF($AG$13:AG188,AG188)=1,AH187+1,AH187)","v":1},""]
[186,"修士課程",133,"修士課程133","経済学研究科",45,"経済学研究科45","経済学専攻","修士課程経済学専攻",45,"修士課程経済学専攻45","学部内入試","修士課程経済学専攻学部内入試",5,"修士課程経済学専攻学部内入試5","修士課程経済学研究科経済学専攻学部内入試","修士M.A.（応用ミクロ・応用マクロ・計量）","併願不可",null,null,null,null,177,"",{"$f":"IF(COUNTIF($X$13:X189,X189)=1,Y188+1,Y188)","v":1},{"$f":"IFERROR(INDEX($X$13:$X$217,MATCH(ROW(Z189)-12,$Y$13:$Y$217,0)),\"\")","v":""},{"$error":"#N/A"},{"$f":"IF(COUNTIF($AA$13:AA189,AA189)=1,AB188+1,AB188)","v":1},"",{"$error":"#N/A"},{"$f":"IF(COUNTIF($AD$13:AD189,AD189)=1,AE188+1,AE188)","v":1},"","",{"$f":"IF(COUNTIF($AG$13:AG189,AG189)=1,AH188+1,AH188)","v":1},""]
[187,"修士課程",134,"修士課程134","経済学研究科",46,"経済学研究科46","経済学専攻","修士課程経済学専攻",46,"修士課程経済学専攻46","学部内入試","修士課程経済学専攻学部内入試",6,"修士課程経済学専攻学部内入試6","修士課程経済学研究科経済学専攻学部内入試","博士5年Ph.D.（歴史・思想・制度）","併願不可",null,null,null,null,178,"",{"$f":"IF(COUNTIF($X$13:X190,X190)=1,Y189+1,Y189)","v":1},{"$f":"IFERROR(INDEX($X$13:$X$201,MATCH(ROW(Z190)-12,$Y$13:$Y$201,0)),\"\")","v":""},{"$error":"#N/A"},{"$f":"IF(COUNTIF($AA$13:AA190,AA190)=1,AB189+1,AB189)","v":1},"",{"$error":"#N/A"},{"$f":"IF(COUNTIF($AD$13:AD190,AD190)=1,AE189+1,AE189)","v":1},"","",{"$f":"IF(COUNTIF($AG$13:AG190,AG190)=1,AH189+1,AH189)","v":1},""]
[188,"修士課程",135,"修士課程135","経済学研究科",47,"経済学研究科47","経済学専攻","修士課程経済学専攻",47,"修士課程経済学専攻47","学部内入試","修士課程経済学専攻学部内入試",7,"修士課程経済学専攻学部内入試7","修士課程経済学研究科経済学専攻学部内入試","博士5年Ph.D.（金融・企業）","併願不可",null,null,null,null,179,"",{"$f":"IF(COUNTIF($X$13:X191,X191)=1,Y190+1,Y190)","v":1},{"$f":"IFERROR(INDEX($X$13:$X$217,MATCH(ROW(Z191)-12,$Y$13:$Y$217,0)),\"\")","v":""},{"$error":"#N/A"},{"$f":"IF(COUNTIF($AA$13:AA191,AA191)=1,AB190+1,AB190)","v":1},"",{"$error":"#N/A"},{"$f":"IF(COUNTIF($AD$13:AD191,AD191)=1,AE190+1,AE190)","v":1},"","",{"$f":"IF(COUNTIF($AG$13:AG191,AG191)=1,AH190+1,AH190)","v":1},""]
[189,"修士課程",136,"修士課程136","経済学研究科",48,"経済学研究科48","経済学専攻","修士課程経済学専攻",48,"修士課程経済学専攻48","学部内入試","修士課程経済学専攻学部内入試",8,"修士課程経済学専攻学部内入試8","修士課程経済学研究科経済学専攻学部内入試","博士5年Ph.D.（政策・環境）","併願不可",null,null,null,null,180,"",{"$f":"IF(COUNTIF($X$13:X192,X192)=1,Y191+1,Y191)","v":1},{"$f":"IFERROR(INDEX($X$13:$X$201,MATCH(ROW(Z192)-12,$Y$13:$Y$201,0)),\"\")","v":""},{"$error":"#N/A"},{"$f":"IF(COUNTIF($AA$13:AA192,AA192)=1,AB191+1,AB191)","v":1},"",{"$error":"#N/A"},{"$f":"IF(COUNTIF($AD$13:AD192,AD192)=1,AE191+1,AE191)","v":1},"","",{"$f":"IF(COUNTIF($AG$13:AG192,AG192)=1,AH191+1,AH191)","v":1},""]
[190,"修士課程",137,"修士課程137","経済学研究科",49,"経済学研究科49","経済学専攻","修士課程経済学専攻",49,"修士課程経済学専攻49","学部内入試","修士課程経済学専攻学部内入試",9,"修士課程経済学専攻学部内入試9","修士課程経済学研究科経済学専攻学部内入試","博士5年Ph.D.（国際・地域）","併願不可",null,null,null,null,181,"",{"$f":"IF(COUNTIF($X$13:X193,X193)=1,Y192+1,Y192)","v":1},{"$f":"IFERROR(INDEX($X$13:$X$217,MATCH(ROW(Z193)-12,$Y$13:$Y$217,0)),\"\")","v":""},{"$error":"#N/A"},{"$f":"IF(COUNTIF($AA$13:AA193,AA193)=1,AB192+1,AB192)","v":1},"",{"$error":"#N/A"},{"$f":"IF(COUNTIF($AD$13:AD193,AD193)=1,AE192+1,AE192)","v":1},"","",{"$f":"IF(COUNTIF($AG$13:AG193,AG193)=1,AH192+1,AH192)","v":1},""]
[191,"修士課程",138,"修士課程138","経済学研究科",50,"経済学研究科50","経済学専攻","修士課程経済学専攻",50,"修士課程経済学専攻50","学部内入試","修士課程経済学専攻学部内入試",10,"修士課程経済学専攻学部内入試10","修士課程経済学研究科経済学専攻学部内入試","博士5年Ph.D.（応用ミクロ・応用マクロ・計量）","併願不可",null,null,null,null,182,"",{"$f":"IF(COUNTIF($X$13:X194,X194)=1,Y193+1,Y193)","v":1},{"$f":"IFERROR(INDEX($X$13:$X$201,MATCH(ROW(Z194)-12,$Y$13:$Y$201,0)),\"\")","v":""},{"$error":"#N/A"},{"$f":"IF(COUNTIF($AA$13:AA194,AA194)=1,AB193+1,AB193)","v":1},"",{"$error":"#N/A"},{"$f":"IF(COUNTIF($AD$13:AD194,AD194)=1,AE193+1,AE193)","v":1},"","",{"$f":"IF(COUNTIF($AG$13:AG194,AG194)=1,AH193+1,AH193)","v":1},""]
[192,"修士課程",139,"修士課程139","経済学研究科",51,"経済学研究科51","経済学専攻","修士課程経済学専攻",51,"修士課程経済学専攻51","学部内入試","修士課程経済学専攻学部内入試",11,"修士課程経済学専攻学部内入試11","修士課程経済学研究科経済学専攻学部内入試","1年制","併願不可",null,null,null,null,183,"",{"$f":"IF(COUNTIF($X$13:X195,X195)=1,Y194+1,Y194)","v":1},{"$f":"IFERROR(INDEX($X$13:$X$217,MATCH(ROW(Z195)-12,$Y$13:$Y$217,0)),\"\")","v":""},{"$error":"#N/A"},{"$f":"IF(COUNTIF($AA$13:AA195,AA195)=1,AB194+1,AB194)","v":1},"",{"$error":"#N/A"},{"$f":"IF(COUNTIF($AD$13:AD195,AD195)=1,AE194+1,AE194)","v":1},"","",{"$f":"IF(COUNTIF($AG$13:AG195,AG195)=1,AH194+1,AH194)","v":1},""]
[193,"修士課程",140,"修士課程140","法学研究科",4,"法学研究科4","法律学専攻","修士課程法律学専攻",4,"修士課程法律学専攻4","学科内入試","修士課程法律学専攻学科内入試",1,"修士課程法律学専攻学科内入試1","修士課程法学研究科法律学専攻学科内入試","なし","併願不可",null,null,null,null,184,"",{"$f":"IF(COUNTIF($X$13:X196,X196)=1,Y195+1,Y195)","v":1},{"$f":"IFERROR(INDEX($X$13:$X$201,MATCH(ROW(Z196)-12,$Y$13:$Y$201,0)),\"\")","v":""},{"$error":"#N/A"},{"$f":"IF(COUNTIF($AA$13:AA196,AA196)=1,AB195+1,AB195)","v":1},"",{"$error":"#N/A"},{"$f":"IF(COUNTIF($AD$13:AD196,AD196)=1,AE195+1,AE195)","v":1},"","",{"$f":"IF(COUNTIF($AG$13:AG196,AG196)=1,AH195+1,AH195)","v":1},""]
[194,"修士課程",141,"修士課程141","政治学研究科",6,"政治学研究科6","政治学専攻","修士課程政治学専攻",3,"修士課程政治学専攻3","学内入試","修士課程政治学専攻学内入試",1,"修士課程政治学専攻学内入試1","修士課程政治学研究科政治学専攻学内入試","なし","併願不可",null,null,null,null,185,"",{"$f":"IF(COUNTIF($X$13:X197,X197)=1,Y196+1,Y196)","v":1},{"$f":"IFERROR(INDEX($X$13:$X$217,MATCH(ROW(Z197)-12,$Y$13:$Y$217,0)),\"\")","v":""},{"$error":"#N/A"},{"$f":"IF(COUNTIF($AA$13:AA197,AA197)=1,AB196+1,AB196)","v":1},"",{"$error":"#N/A"},{"$f":"IF(COUNTIF($AD$13:AD197,AD197)=1,AE196+1,AE196)","v":1},"","",{"$f":"IF(COUNTIF($AG$13:AG197,AG197)=1,AH196+1,AH196)","v":1},""]
[195,"修士課程",142,"修士課程142","政治学研究科",7,"政治学研究科7","国際政治学専攻","修士課程国際政治学専攻",4,"修士課程国際政治学専攻4","学内入試","修士課程国際政治学専攻学内入試",1,"修士課程国際政治学専攻学内入試1","修士課程政治学研究科国際政治学専攻学内入試","なし","併願不可",null,null,null,null,186,"",{"$f":"IF(COUNTIF($X$13:X198,X198)=1,Y197+1,Y197)","v":1},{"$f":"IFERROR(INDEX($X$13:$X$201,MATCH(ROW(Z198)-12,$Y$13:$Y$201,0)),\"\")","v":""},{"$error":"#N/A"},{"$f":"IF(COUNTIF($AA$13:AA198,AA198)=1,AB197+1,AB197)","v":1},"",{"$error":"#N/A"},{"$f":"IF(COUNTIF($AD$13:AD198,AD198)=1,AE197+1,AE197)","v":1},"","",{"$f":"IF(COUNTIF($AG$13:AG198,AG198)=1,AH197+1,AH197)","v":1},""]
[196,"修士課程",143,"修士課程143","社会学研究科",4,"社会学研究科4","社会学専攻","修士課程社会学専攻",4,"修士課程社会学専攻4","学内入試","修士課程社会学専攻学内入試",1,"修士課程社会学専攻学内入試1","修士課程社会学研究科社会学専攻学内入試","なし","併願不可",null,null,null,null,187,"",{"$f":"IF(COUNTIF($X$13:X199,X199)=1,Y198+1,Y198)","v":1},{"$f":"IFERROR(INDEX($X$13:$X$217,MATCH(ROW(Z199)-12,$Y$13:$Y$217,0)),\"\")","v":""},{"$error":"#N/A"},{"$f":"IF(COUNTIF($AA$13:AA199,AA199)=1,AB198+1,AB198)","v":1},"",{"$error":"#N/A"},{"$f":"IF(COUNTIF($AD$13:AD199,AD199)=1,AE198+1,AE198)","v":1},"","",{"$f":"IF(COUNTIF($AG$13:AG199,AG199)=1,AH198+1,AH198)","v":1},""]
[197,"修士課程",144,"修士課程144","地域創造インスティテュート",7,"地域創造インスティテュート7","地域創造インスティテュート","修士課程地域創造インスティテュート",7,"修士課程地域創造インスティテュート7","学内入試","修士課程地域創造インスティテュート学内入試",1,"修士課程地域創造インスティテュート学内入試1","修士課程地域創造インスティテュート地域創造インスティテュート学内入試","都市・文化・観光創造群","該当なし",null,null,null,null,188,"",{"$f":"IF(COUNTIF($X$13:X200,X200)=1,Y199+1,Y199)","v":1},{"$f":"IFERROR(INDEX($X$13:$X$201,MATCH(ROW(Z200)-12,$Y$13:$Y$201,0)),\"\")","v":""},{"$error":"#N/A"},{"$f":"IF(COUNTIF($AA$13:AA200,AA200)=1,AB199+1,AB199)","v":1},"",{"$error":"#N/A"},{"$f":"IF(COUNTIF($AD$13:AD200,AD200)=1,AE199+1,AE199)","v":1},"","",{"$f":"IF(COUNTIF($AG$13:AG200,AG200)=1,AH199+1,AH199)","v":1},""]
[198,"修士課程",145,"修士課程145","地域創造インスティテュート",8,"地域創造インスティテュート8","地域創造インスティテュート","修士課程地域創造インスティテュート",8,"修士課程地域創造インスティテュート8","学内入試","修士課程地域創造インスティテュート学内入試",2,"修士課程地域創造インスティテュート学内入試2","修士課程地域創造インスティテュート地域創造インスティテュート学内入試","産業・企業・イノベーション創造群","該当なし",null,null,null,null,189,"",{"$f":"IF(COUNTIF($X$13:X201,X201)=1,Y200+1,Y200)","v":1},{"$f":"IFERROR(INDEX($X$13:$X$217,MATCH(ROW(Z201)-12,$Y$13:$Y$217,0)),\"\")","v":""},{"$error":"#N/A"},{"$f":"IF(COUNTIF($AA$13:AA201,AA201)=1,AB200+1,AB200)","v":1},"",{"$error":"#N/A"},{"$f":"IF(COUNTIF($AD$13:AD201,AD201)=1,AE200+1,AE200)","v":1},"","",{"$f":"IF(COUNTIF($AG$13:AG201,AG201)=1,AH200+1,AH200)","v":1},""]
[199,"修士課程",146,"修士課程146","地域創造インスティテュート",9,"地域創造インスティテュート9","地域創造インスティテュート","修士課程地域創造インスティテュート",9,"修士課程地域創造インスティテュート9","学内入試","修士課程地域創造インスティテュート学内入試",3,"修士課程地域創造インスティテュート学内入試3","修士課程地域創造インスティテュート地域創造インスティテュート学内入試","人材育成・生活・ウェルビーイング創造群","該当なし",null,null,null,null,190,"",{"$f":"IF(COUNTIF($X$13:X202,X202)=1,Y201+1,Y201)","v":1},{"$f":"IFERROR(INDEX($X$13:$X$201,MATCH(ROW(Z202)-12,$Y$13:$Y$201,0)),\"\")","v":""},{"$error":"#N/A"},{"$f":"IF(COUNTIF($AA$13:AA202,AA202)=1,AB201+1,AB201)","v":1},"",{"$error":"#N/A"},{"$f":"IF(COUNTIF($AD$13:AD202,AD202)=1,AE201+1,AE201)","v":1},"","",{"$f":"IF(COUNTIF($AG$13:AG202,AG202)=1,AH201+1,AH201)","v":1},""]
[null,null,null,null,null,null,null,null,null,null,null,null,null,null,null,null,null,null,null,null,null,null,191,"",{"$f":"IF(COUNTIF($X$13:X203,X203)=1,Y202+1,Y202)","v":1},{"$f":"IFERROR(INDEX($X$13:$X$217,MATCH(ROW(Z203)-12,$Y$13:$Y$217,0)),\"\")","v":""},{"$error":"#N/A"},{"$f":"IF(COUNTIF($AA$13:AA203,AA203)=1,AB202+1,AB202)","v":1},"",{"$error":"#N/A"},{"$f":"IF(COUNTIF($AD$13:AD203,AD203)=1,AE202+1,AE202)","v":1},"","",{"$f":"IF(COUNTIF($AG$13:AG203,AG203)=1,AH202+1,AH202)","v":1},""]
[null,null,null,null,null,null,null,null,null,null,null,null,null,null,null,null,null,null,null,null,null,null,192,"",{"$f":"IF(COUNTIF($X$13:X204,X204)=1,Y203+1,Y203)","v":1},{"$f":"IFERROR(INDEX($X$13:$X$201,MATCH(ROW(Z204)-12,$Y$13:$Y$201,0)),\"\")","v":""},{"$error":"#N/A"},{"$f":"IF(COUNTIF($AA$13:AA204,AA204)=1,AB203+1,AB203)","v":1},"",{"$error":"#N/A"},{"$f":"IF(COUNTIF($AD$13:AD204,AD204)=1,AE203+1,AE203)","v":1},"","",{"$f":"IF(COUNTIF($AG$13:AG204,AG204)=1,AH203+1,AH203)","v":1},""]
[null,null,null,null,null,null,null,null,null,null,null,null,null,null,null,null,null,null,null,null,null,null,193,{"$f":"IFERROR(VLOOKUP($Z$3&W205,$D:$E,2,0),\"\")","v":""},{"$f":"IF(COUNTIF($X$13:X205,X205)=1,Y204+1,Y204)","v":1},{"$f":"IFERROR(INDEX($X$13:$X$217,MATCH(ROW(Z205)-12,$Y$13:$Y$217,0)),\"\")","v":""},{"$f":"VLOOKUP($Z$4&W205,$G:$H,2,0)","v":{"$error":"#N/A"}},{"$f":"IF(COUNTIF($AA$13:AA205,AA205)=1,AB204+1,AB204)","v":1},"",{"$f":"VLOOKUP($Z$3&$Z$5&W205,$K:$L,2,0)","v":{"$error":"#N/A"}},{"$f":"IF(COUNTIF($AD$13:AD205,AD205)=1,AE204+1,AE204)","v":1},"",{"$f":"IFERROR(VLOOKUP($Z$3&$Z$5&$Z$6&W205,$O:$R,3,0),\"\")","v":""},{"$f":"IF(COUNTIF($AG$13:AG205,AG205)=1,AH204+1,AH204)","v":1},{"$f":"IF(AG205=\"なし\",\"\",\nIFERROR(INDEX($AG$13:$AG$201,MATCH(ROW(AI205)-12,$AH$13:$AH$201,0)),\"\")\n)","v":""}]
[null,null,null,null,null,null,null,null,null,null,null,null,null,null,null,null,null,null,null,null,null,null,194,"",{"$f":"IF(COUNTIF($X$13:X206,X206)=1,Y205+1,Y205)","v":1},{"$f":"IFERROR(INDEX($X$13:$X$201,MATCH(ROW(Z206)-12,$Y$13:$Y$201,0)),\"\")","v":""},{"$error":"#N/A"},{"$f":"IF(COUNTIF($AA$13:AA206,AA206)=1,AB205+1,AB205)","v":1},"",{"$error":"#N/A"},{"$f":"IF(COUNTIF($AD$13:AD206,AD206)=1,AE205+1,AE205)","v":1},"","",{"$f":"IF(COUNTIF($AG$13:AG206,AG206)=1,AH205+1,AH205)","v":1},""]
[null,null,null,null,null,null,null,null,null,null,null,null,null,null,null,null,null,null,null,null,null,null,195,"",{"$f":"IF(COUNTIF($X$13:X207,X207)=1,Y206+1,Y206)","v":1},{"$f":"IFERROR(INDEX($X$13:$X$217,MATCH(ROW(Z207)-12,$Y$13:$Y$217,0)),\"\")","v":""},{"$error":"#N/A"},{"$f":"IF(COUNTIF($AA$13:AA207,AA207)=1,AB206+1,AB206)","v":1},{"$f":"IFERROR(INDEX($AA$13:$AA$201,MATCH(ROW(AC207)-12,$AB$13:$AB$201,0)),\"\")","v":""},{"$error":"#N/A"},{"$f":"IF(COUNTIF($AD$13:AD207,AD207)=1,AE206+1,AE206)","v":1},{"$f":"IFERROR(INDEX($AD$13:$AD$201,MATCH(ROW(AF207)-12,$AE$13:$AE$201,0)),\"\")","v":""},"",{"$f":"IF(COUNTIF($AG$13:AG207,AG207)=1,AH206+1,AH206)","v":1},""]
[null,null,null,null,null,null,null,null,null,null,null,null,null,null,null,null,null,null,null,null,null,null,196,"",{"$f":"IF(COUNTIF($X$13:X208,X208)=1,Y207+1,Y207)","v":1},{"$f":"IFERROR(INDEX($X$13:$X$201,MATCH(ROW(Z208)-12,$Y$13:$Y$201,0)),\"\")","v":""},{"$error":"#N/A"},{"$f":"IF(COUNTIF($AA$13:AA208,AA208)=1,AB207+1,AB207)","v":1},"",{"$error":"#N/A"},{"$f":"IF(COUNTIF($AD$13:AD208,AD208)=1,AE207+1,AE207)","v":1},"","",{"$f":"IF(COUNTIF($AG$13:AG208,AG208)=1,AH207+1,AH207)","v":1},""]
[null,null,null,null,null,null,null,null,null,null,null,null,null,null,null,null,null,null,null,null,null,null,197,"",{"$f":"IF(COUNTIF($X$13:X209,X209)=1,Y208+1,Y208)","v":1},{"$f":"IFERROR(INDEX($X$13:$X$217,MATCH(ROW(Z209)-12,$Y$13:$Y$217,0)),\"\")","v":""},{"$error":"#N/A"},{"$f":"IF(COUNTIF($AA$13:AA209,AA209)=1,AB208+1,AB208)","v":1},"",{"$error":"#N/A"},{"$f":"IF(COUNTIF($AD$13:AD209,AD209)=1,AE208+1,AE208)","v":1},"","",{"$f":"IF(COUNTIF($AG$13:AG209,AG209)=1,AH208+1,AH208)","v":1},""]
[null,null,null,null,null,null,null,null,null,null,null,null,null,null,null,null,null,null,null,null,null,null,198,"",{"$f":"IF(COUNTIF($X$13:X210,X210)=1,Y209+1,Y209)","v":1},{"$f":"IFERROR(INDEX($X$13:$X$201,MATCH(ROW(Z210)-12,$Y$13:$Y$201,0)),\"\")","v":""},{"$error":"#N/A"},{"$f":"IF(COUNTIF($AA$13:AA210,AA210)=1,AB209+1,AB209)","v":1},"",{"$error":"#N/A"},{"$f":"IF(COUNTIF($AD$13:AD210,AD210)=1,AE209+1,AE209)","v":1},"","",{"$f":"IF(COUNTIF($AG$13:AG210,AG210)=1,AH209+1,AH209)","v":1},""]
[null,null,null,null,null,null,null,null,null,null,null,null,null,null,null,null,null,null,null,null,null,null,199,"",{"$f":"IF(COUNTIF($X$13:X211,X211)=1,Y210+1,Y210)","v":1},{"$f":"IFERROR(INDEX($X$13:$X$217,MATCH(ROW(Z211)-12,$Y$13:$Y$217,0)),\"\")","v":""},{"$error":"#N/A"},{"$f":"IF(COUNTIF($AA$13:AA211,AA211)=1,AB210+1,AB210)","v":1},"",{"$error":"#N/A"},{"$f":"IF(COUNTIF($AD$13:AD211,AD211)=1,AE210+1,AE210)","v":1},"","",{"$f":"IF(COUNTIF($AG$13:AG211,AG211)=1,AH210+1,AH210)","v":1},""]
[null,null,null,null,null,null,null,null,null,null,null,null,null,null,null,null,null,null,null,null,null,null,200,"",{"$f":"IF(COUNTIF($X$13:X212,X212)=1,Y211+1,Y211)","v":1},{"$f":"IFERROR(INDEX($X$13:$X$201,MATCH(ROW(Z212)-12,$Y$13:$Y$201,0)),\"\")","v":""},{"$error":"#N/A"},{"$f":"IF(COUNTIF($AA$13:AA212,AA212)=1,AB211+1,AB211)","v":1},"",{"$error":"#N/A"},{"$f":"IF(COUNTIF($AD$13:AD212,AD212)=1,AE211+1,AE211)","v":1},"","",{"$f":"IF(COUNTIF($AG$13:AG212,AG212)=1,AH211+1,AH211)","v":1},""]
[null,null,null,null,null,null,null,null,null,null,null,null,null,null,null,null,null,null,null,null,null,null,201,"",{"$f":"IF(COUNTIF($X$13:X213,X213)=1,Y212+1,Y212)","v":1},{"$f":"IFERROR(INDEX($X$13:$X$217,MATCH(ROW(Z213)-12,$Y$13:$Y$217,0)),\"\")","v":""},{"$error":"#N/A"},{"$f":"IF(COUNTIF($AA$13:AA213,AA213)=1,AB212+1,AB212)","v":1},"",{"$error":"#N/A"},{"$f":"IF(COUNTIF($AD$13:AD213,AD213)=1,AE212+1,AE212)","v":1},"","",{"$f":"IF(COUNTIF($AG$13:AG213,AG213)=1,AH212+1,AH212)","v":1},""]
[null,null,null,null,null,null,null,null,null,null,null,null,null,null,null,null,null,null,null,null,null,null,202,"",{"$f":"IF(COUNTIF($X$13:X214,X214)=1,Y213+1,Y213)","v":1},{"$f":"IFERROR(INDEX($X$13:$X$201,MATCH(ROW(Z214)-12,$Y$13:$Y$201,0)),\"\")","v":""},{"$error":"#N/A"},{"$f":"IF(COUNTIF($AA$13:AA214,AA214)=1,AB213+1,AB213)","v":1},"",{"$error":"#N/A"},{"$f":"IF(COUNTIF($AD$13:AD214,AD214)=1,AE213+1,AE213)","v":1},"","",{"$f":"IF(COUNTIF($AG$13:AG214,AG214)=1,AH213+1,AH213)","v":1},""]
[null,null,null,null,null,null,null,null,null,null,null,null,null,null,null,null,null,null,null,null,null,null,203,"",{"$f":"IF(COUNTIF($X$13:X215,X215)=1,Y214+1,Y214)","v":1},{"$f":"IFERROR(INDEX($X$13:$X$217,MATCH(ROW(Z215)-12,$Y$13:$Y$217,0)),\"\")","v":""},{"$error":"#N/A"},{"$f":"IF(COUNTIF($AA$13:AA215,AA215)=1,AB214+1,AB214)","v":1},"",{"$error":"#N/A"},{"$f":"IF(COUNTIF($AD$13:AD215,AD215)=1,AE214+1,AE214)","v":1},"","",{"$f":"IF(COUNTIF($AG$13:AG215,AG215)=1,AH214+1,AH214)","v":1},""]
[null,null,null,null,null,null,null,null,null,null,null,null,null,null,null,null,null,null,null,null,null,null,204,"",{"$f":"IF(COUNTIF($X$13:X216,X216)=1,Y215+1,Y215)","v":1},{"$f":"IFERROR(INDEX($X$13:$X$201,MATCH(ROW(Z216)-12,$Y$13:$Y$201,0)),\"\")","v":""},{"$error":"#N/A"},{"$f":"IF(COUNTIF($AA$13:AA216,AA216)=1,AB215+1,AB215)","v":1},"",{"$error":"#N/A"},{"$f":"IF(COUNTIF($AD$13:AD216,AD216)=1,AE215+1,AE215)","v":1},"","",{"$f":"IF(COUNTIF($AG$13:AG216,AG216)=1,AH215+1,AH215)","v":1},""]
[null,null,null,null,null,null,null,null,null,null,null,null,null,null,null,null,null,null,null,null,null,null,205,"",{"$f":"IF(COUNTIF($X$13:X217,X217)=1,Y216+1,Y216)","v":1},{"$f":"IFERROR(INDEX($X$13:$X$217,MATCH(ROW(Z217)-12,$Y$13:$Y$217,0)),\"\")","v":""},{"$error":"#N/A"},{"$f":"IF(COUNTIF($AA$13:AA217,AA217)=1,AB216+1,AB216)","v":1},"",{"$error":"#N/A"},{"$f":"IF(COUNTIF($AD$13:AD217,AD217)=1,AE216+1,AE216)","v":1},"","",{"$f":"IF(COUNTIF($AG$13:AG217,AG217)=1,AH216+1,AH216)","v":1},""]

{"sheet":"「受験科目」欄 選択一覧（編集用）","index":4,"n_rows":290,"n_cols":6,"rows_kept":290,"cut":false,"hidden":true,"merged":[]}
["「受験科目」欄  選択一覧（編集用）"]
[]
["A_課程","B_研究科","C_専攻","D_入試経路","専門科目","外国語"]
["修士課程","人文科学研究科","哲学専攻","一般入試","専門科目","外国語（言語は当日選択）"]
["修士課程","人文科学研究科","哲学専攻","社会人入試","専門科目","なし"]
["修士課程","人文科学研究科","日本文学専攻","一般入試","専門科目","英語"]
["修士課程","人文科学研究科","日本文学専攻","一般入試","専門科目","英語"]
["修士課程","人文科学研究科","日本文学専攻","一般入試","専門科目","英語"]
["修士課程","人文科学研究科","日本文学専攻","外国人入試","専門科目","日本語"]
["修士課程","人文科学研究科","日本文学専攻","外国人入試","専門科目","日本語"]
["修士課程","人文科学研究科","日本文学専攻","外国人入試","専門科目","日本語"]
["修士課程","人文科学研究科","日本文学専攻","社会人入試","専門科目","なし"]
["修士課程","人文科学研究科","英文学専攻","一般入試","筆記試験なし","筆記試験なし"]
["修士課程","人文科学研究科","英文学専攻","社会人入試","筆記試験なし","筆記試験なし"]
["修士課程","人文科学研究科","史学専攻","一般入試","日本史分野","英語"]
["修士課程","人文科学研究科","史学専攻","一般入試","東洋史分野","英語"]
["修士課程","人文科学研究科","史学専攻","一般入試","西洋史分野","英語"]
["修士課程","人文科学研究科","史学専攻","社会人入試","小論文（日本史分野）","なし"]
["修士課程","人文科学研究科","史学専攻","社会人入試","小論文（東洋史分野）","なし"]
["修士課程","人文科学研究科","史学専攻","社会人入試","小論文（西洋史分野）","なし"]
["修士課程","人文科学研究科","地理学専攻","一般入試","自然地理分野","英語（母語は選択不可）"]
["修士課程","人文科学研究科","地理学専攻","一般入試","人文地理分野","英語（母語は選択不可）"]
["修士課程","人文科学研究科","地理学専攻","外国人入試","自然地理分野","なし"]
["修士課程","人文科学研究科","地理学専攻","外国人入試","人文地理分野","なし"]
["修士課程","人文科学研究科","地理学専攻","社会人入試","自然地理分野","なし"]
["修士課程","人文科学研究科","地理学専攻","社会人入試","人文地理分野","なし"]
["修士課程","人文科学研究科","心理学専攻","一般入試","専門科目","英語"]
["修士課程","人文科学研究科","国際日本学インスティテュート","一般入試","小論文","口述試験語学試問：英語（母語は選択不可）"]
["修士課程","人文科学研究科","国際日本学インスティテュート","一般入試","小論文","口述試験語学試問：中国語（母語は選択不可）"]
["修士課程","人文科学研究科","国際日本学インスティテュート","一般入試","小論文","口述試験語学試問：古文"]
["修士課程","人文科学研究科","国際日本学インスティテュート","一般入試","小論文","口述試験語学試問：古文書"]
["修士課程","人文科学研究科","国際日本学インスティテュート","外国人入試","小論文（日本語）","なし"]
["修士課程","人文科学研究科","国際日本学インスティテュート","社会人入試","筆記試験なし","筆記試験なし"]
["修士課程","国際文化研究科","国際文化専攻","一般入試","筆記試験なし","筆記試験なし"]
["修士課程","国際文化研究科","国際文化専攻","外国人入試","筆記試験なし","筆記試験なし"]
["修士課程","国際文化研究科","国際文化専攻","社会人入試","筆記試験なし","筆記試験なし"]
["修士課程","経済学研究科","経済学専攻","一般入試","ミクロ経済学・マクロ経済学【秋季入試時のみ】","なし"]
["修士課程","経済学研究科","経済学専攻","一般入試","筆記試験なし・経済学検定試験の書類提出【春季入試時のみ】","なし"]
["修士課程","経済学研究科","経済学専攻","外国人入試","ミクロ経済学・マクロ経済学【秋季入試時のみ】","なし"]
["修士課程","経済学研究科","経済学専攻","外国人入試","筆記試験なし・経済学検定試験の書類提出【春季入試時のみ】","なし"]
["修士課程","経済学研究科","経済学専攻","社会人入試","筆記試験なし","筆記試験なし"]
["修士課程","経済学研究科","経済学専攻","社会人選抜入試","筆記試験なし","筆記試験なし"]
["修士課程","法学研究科","法律学専攻","一般入試","憲法","英語（母語を除く）"]
["修士課程","法学研究科","法律学専攻","一般入試","刑法","英語（母語を除く）"]
["修士課程","法学研究科","法律学専攻","一般入試","経済法","英語（母語を除く）"]
["修士課程","法学研究科","法律学専攻","一般入試","労働法","英語（母語を除く）"]
["修士課程","法学研究科","法律学専攻","一般入試","行政法","英語（母語を除く）"]
["修士課程","法学研究科","法律学専攻","一般入試","民法（家族法を除く）","英語（母語を除く）"]
["修士課程","法学研究科","法律学専攻","一般入試","商法（商法総則、会社法、手形・小切手法）","英語（母語を除く）"]
["修士課程","法学研究科","法律学専攻","一般入試","民事訴訟法（判決手続のみ）","英語（母語を除く）"]
["修士課程","法学研究科","法律学専攻","一般入試","社会保障法","英語（母語を除く）"]
["修士課程","法学研究科","法律学専攻","一般入試","法哲学","英語（母語を除く）"]
["修士課程","法学研究科","法律学専攻","一般入試","日本法制史","英語（母語を除く）"]
["修士課程","法学研究科","法律学専攻","一般入試","国際法","英語（母語を除く）"]
["修士課程","法学研究科","法律学専攻","一般入試","西洋法制史","英語（母語を除く）"]
["修士課程","法学研究科","法律学専攻","一般入試","倒産法","英語（母語を除く）"]
["修士課程","法学研究科","法律学専攻","一般入試","知的財産法","英語（母語を除く）"]
["修士課程","法学研究科","法律学専攻","一般入試","刑事訴訟法","英語（母語を除く）"]
["修士課程","法学研究科","法律学専攻","一般入試","憲法","独語（母語を除く）"]
["修士課程","法学研究科","法律学専攻","一般入試","刑法","独語（母語を除く）"]
["修士課程","法学研究科","法律学専攻","一般入試","経済法","独語（母語を除く）"]
["修士課程","法学研究科","法律学専攻","一般入試","労働法","独語（母語を除く）"]
["修士課程","法学研究科","法律学専攻","一般入試","行政法","独語（母語を除く）"]
["修士課程","法学研究科","法律学専攻","一般入試","民法（家族法を除く）","独語（母語を除く）"]
["修士課程","法学研究科","法律学専攻","一般入試","商法（商法総則、会社法、手形・小切手法）","独語（母語を除く）"]
["修士課程","法学研究科","法律学専攻","一般入試","民事訴訟法（判決手続のみ）","独語（母語を除く）"]
["修士課程","法学研究科","法律学専攻","一般入試","社会保障法","独語（母語を除く）"]
["修士課程","法学研究科","法律学専攻","一般入試","法哲学","独語（母語を除く）"]
["修士課程","法学研究科","法律学専攻","一般入試","日本法制史","独語（母語を除く）"]
["修士課程","法学研究科","法律学専攻","一般入試","国際法","独語（母語を除く）"]
["修士課程","法学研究科","法律学専攻","一般入試","西洋法制史","独語（母語を除く）"]
["修士課程","法学研究科","法律学専攻","一般入試","倒産法","独語（母語を除く）"]
["修士課程","法学研究科","法律学専攻","一般入試","知的財産法","独語（母語を除く）"]
["修士課程","法学研究科","法律学専攻","一般入試","刑事訴訟法","独語（母語を除く）"]
["修士課程","法学研究科","法律学専攻","一般入試","憲法","仏語（母語を除く）"]
["修士課程","法学研究科","法律学専攻","一般入試","刑法","仏語（母語を除く）"]
["修士課程","法学研究科","法律学専攻","一般入試","経済法","仏語（母語を除く）"]
["修士課程","法学研究科","法律学専攻","一般入試","労働法","仏語（母語を除く）"]
["修士課程","法学研究科","法律学専攻","一般入試","行政法","仏語（母語を除く）"]
["修士課程","法学研究科","法律学専攻","一般入試","民法（家族法を除く）","仏語（母語を除く）"]
["修士課程","法学研究科","法律学専攻","一般入試","商法（商法総則、会社法、手形・小切手法）","仏語（母語を除く）"]
["修士課程","法学研究科","法律学専攻","一般入試","民事訴訟法（判決手続のみ）","仏語（母語を除く）"]
["修士課程","法学研究科","法律学専攻","一般入試","社会保障法","仏語（母語を除く）"]
["修士課程","法学研究科","法律学専攻","一般入試","法哲学","仏語（母語を除く）"]
["修士課程","法学研究科","法律学専攻","一般入試","日本法制史","仏語（母語を除く）"]
["修士課程","法学研究科","法律学専攻","一般入試","国際法","仏語（母語を除く）"]
["修士課程","法学研究科","法律学専攻","一般入試","西洋法制史","仏語（母語を除く）"]
["修士課程","法学研究科","法律学専攻","一般入試","倒産法","仏語（母語を除く）"]
["修士課程","法学研究科","法律学専攻","一般入試","知的財産法","仏語（母語を除く）"]
["修士課程","法学研究科","法律学専攻","一般入試","刑事訴訟法","仏語（母語を除く）"]
["修士課程","法学研究科","法律学専攻","一般入試","憲法","日本語（外国国籍志願者のみ）"]
["修士課程","法学研究科","法律学専攻","一般入試","刑法","日本語（外国国籍志願者のみ）"]
["修士課程","法学研究科","法律学専攻","一般入試","経済法","日本語（外国国籍志願者のみ）"]
["修士課程","法学研究科","法律学専攻","一般入試","労働法","日本語（外国国籍志願者のみ）"]
["修士課程","法学研究科","法律学専攻","一般入試","行政法","日本語（外国国籍志願者のみ）"]
["修士課程","法学研究科","法律学専攻","一般入試","民法（家族法を除く）","日本語（外国国籍志願者のみ）"]
["修士課程","法学研究科","法律学専攻","一般入試","商法（商法総則、会社法、手形・小切手法）","日本語（外国国籍志願者のみ）"]
["修士課程","法学研究科","法律学専攻","一般入試","民事訴訟法（判決手続のみ）","日本語（外国国籍志願者のみ）"]
["修士課程","法学研究科","法律学専攻","一般入試","社会保障法","日本語（外国国籍志願者のみ）"]
["修士課程","法学研究科","法律学専攻","一般入試","法哲学","日本語（外国国籍志願者のみ）"]
["修士課程","法学研究科","法律学専攻","一般入試","日本法制史","日本語（外国国籍志願者のみ）"]
["修士課程","法学研究科","法律学専攻","一般入試","国際法","日本語（外国国籍志願者のみ）"]
["修士課程","法学研究科","法律学専攻","一般入試","西洋法制史","日本語（外国国籍志願者のみ）"]
["修士課程","法学研究科","法律学専攻","一般入試","倒産法","日本語（外国国籍志願者のみ）"]
["修士課程","法学研究科","法律学専攻","一般入試","知的財産法","日本語（外国国籍志願者のみ）"]
["修士課程","法学研究科","法律学専攻","一般入試","刑事訴訟法","日本語（外国国籍志願者のみ）"]
["修士課程","法学研究科","法律学専攻","外国人入試","憲法","なし（研修生との併願を希望しない場合のみ）"]
["修士課程","法学研究科","法律学専攻","外国人入試","刑法","なし（研修生との併願を希望しない場合のみ）"]
["修士課程","法学研究科","法律学専攻","外国人入試","経済法","なし（研修生との併願を希望しない場合のみ）"]
["修士課程","法学研究科","法律学専攻","外国人入試","労働法","なし（研修生との併願を希望しない場合のみ）"]
["修士課程","法学研究科","法律学専攻","外国人入試","行政法","なし（研修生との併願を希望しない場合のみ）"]
["修士課程","法学研究科","法律学専攻","外国人入試","民法（家族法を除く）","なし（研修生との併願を希望しない場合のみ）"]
["修士課程","法学研究科","法律学専攻","外国人入試","商法（商法総則、会社法、手形・小切手法）","なし（研修生との併願を希望しない場合のみ）"]
["修士課程","法学研究科","法律学専攻","外国人入試","民事訴訟法（判決手続のみ）","なし（研修生との併願を希望しない場合のみ）"]
["修士課程","法学研究科","法律学専攻","外国人入試","社会保障法","なし（研修生との併願を希望しない場合のみ）"]
["修士課程","法学研究科","法律学専攻","外国人入試","法哲学","なし（研修生との併願を希望しない場合のみ）"]
["修士課程","法学研究科","法律学専攻","外国人入試","日本法制史","なし（研修生との併願を希望しない場合のみ）"]
["修士課程","法学研究科","法律学専攻","外国人入試","国際法","なし（研修生との併願を希望しない場合のみ）"]
["修士課程","法学研究科","法律学専攻","外国人入試","西洋法制史","なし（研修生との併願を希望しない場合のみ）"]
["修士課程","法学研究科","法律学専攻","外国人入試","倒産法","なし（研修生との併願を希望しない場合のみ）"]
["修士課程","法学研究科","法律学専攻","外国人入試","知的財産法","なし（研修生との併願を希望しない場合のみ）"]
["修士課程","法学研究科","法律学専攻","外国人入試","刑事訴訟法","なし（研修生との併願を希望しない場合のみ）"]
["修士課程","法学研究科","法律学専攻","外国人入試","憲法","日本語（研修生との併願を希望する場合のみ）"]
["修士課程","法学研究科","法律学専攻","外国人入試","刑法","日本語（研修生との併願を希望する場合のみ）"]
["修士課程","法学研究科","法律学専攻","外国人入試","経済法","日本語（研修生との併願を希望する場合のみ）"]
["修士課程","法学研究科","法律学専攻","外国人入試","労働法","日本語（研修生との併願を希望する場合のみ）"]
["修士課程","法学研究科","法律学専攻","外国人入試","行政法","日本語（研修生との併願を希望する場合のみ）"]
["修士課程","法学研究科","法律学専攻","外国人入試","民法（家族法を除く）","日本語（研修生との併願を希望する場合のみ）"]
["修士課程","法学研究科","法律学専攻","外国人入試","商法（商法総則、会社法、手形・小切手法）","日本語（研修生との併願を希望する場合のみ）"]
["修士課程","法学研究科","法律学専攻","外国人入試","民事訴訟法（判決手続のみ）","日本語（研修生との併願を希望する場合のみ）"]
["修士課程","法学研究科","法律学専攻","外国人入試","社会保障法","日本語（研修生との併願を希望する場合のみ）"]
["修士課程","法学研究科","法律学専攻","外国人入試","法哲学","日本語（研修生との併願を希望する場合のみ）"]
["修士課程","法学研究科","法律学専攻","外国人入試","日本法制史","日本語（研修生との併願を希望する場合のみ）"]
["修士課程","法学研究科","法律学専攻","外国人入試","国際法","日本語（研修生との併願を希望する場合のみ）"]
["修士課程","法学研究科","法律学専攻","外国人入試","西洋法制史","日本語（研修生との併願を希望する場合のみ）"]
["修士課程","法学研究科","法律学専攻","外国人入試","倒産法","日本語（研修生との併願を希望する場合のみ）"]
["修士課程","法学研究科","法律学専攻","外国人入試","知的財産法","日本語（研修生との併願を希望する場合のみ）"]
["修士課程","法学研究科","法律学専攻","外国人入試","刑事訴訟法","日本語（研修生との併願を希望する場合のみ）"]
["修士課程","法学研究科","法律学専攻","社会人入試","専門科目免除（要書類提出）","なし"]
["修士課程","法学研究科","法律学専攻","社会人入試","憲法","なし"]
["修士課程","法学研究科","法律学専攻","社会人入試","刑法","なし"]
["修士課程","法学研究科","法律学専攻","社会人入試","経済法","なし"]
["修士課程","法学研究科","法律学専攻","社会人入試","労働法","なし"]
["修士課程","法学研究科","法律学専攻","社会人入試","行政法","なし"]
["修士課程","法学研究科","法律学専攻","社会人入試","民法（家族法を除く）","なし"]
["修士課程","法学研究科","法律学専攻","社会人入試","商法（商法総則、会社法、手形・小切手法）","なし"]
["修士課程","法学研究科","法律学専攻","社会人入試","民事訴訟法（判決手続のみ）","なし"]
["修士課程","法学研究科","法律学専攻","社会人入試","社会保障法","なし"]
["修士課程","法学研究科","法律学専攻","社会人入試","法哲学","なし"]
["修士課程","法学研究科","法律学専攻","社会人入試","日本法制史","なし"]
["修士課程","法学研究科","法律学専攻","社会人入試","国際法","なし"]
["修士課程","法学研究科","法律学専攻","社会人入試","西洋法制史","なし"]
["修士課程","法学研究科","法律学専攻","社会人入試","倒産法","なし"]
["修士課程","法学研究科","法律学専攻","社会人入試","知的財産法","なし"]
["修士課程","法学研究科","法律学専攻","社会人入試","刑事訴訟法","なし"]
["修士課程","政治学研究科","政治学専攻","一般入試","専門科目","英語"]
["修士課程","政治学研究科","政治学専攻","外国人入試","専門科目","日本語"]
["修士課程","政治学研究科","国際政治学専攻","一般入試","筆記試験なし","筆記試験なし"]
["修士課程","政治学研究科","国際政治学専攻","外国人入試","筆記試験なし","筆記試験なし"]
["修士課程","政治学研究科","国際政治学専攻","社会人入試","筆記試験なし","筆記試験なし"]
["修士課程","社会学研究科","社会学専攻","一般入試","専門科目","なし"]
["修士課程","社会学研究科","社会学専攻","外国人入試","専門科目","なし"]
["修士課程","社会学研究科","社会学専攻","社会人入試","なし","英語"]
["修士課程","経営学研究科","経営学専攻","一般入試","専門科目","英語"]
["修士課程","経営学研究科","経営学専攻","社会人入試","筆記試験なし","筆記試験なし"]
["修士課程","キャリアデザイン学研究科","キャリアデザイン学専攻","一般入試","論述問題","なし"]
["修士課程","公共政策研究科","公共政策学専攻","一般入試","筆記試験なし","筆記試験なし"]
["修士課程","公共政策研究科","公共政策学専攻","一般入試","筆記試験なし","筆記試験なし"]
["修士課程","公共政策研究科","サステイナビリティ学専攻","一般入試","小論文","なし"]
["修士課程","公共政策研究科","公共政策学専攻","社会人入試","筆記試験なし","筆記試験なし"]
["修士課程","公共政策研究科","公共政策学専攻","社会人入試","筆記試験なし","筆記試験なし"]
["修士課程","公共政策研究科","サステイナビリティ学専攻","社会人入試","筆記試験なし","筆記試験なし"]
["修士課程","連帯社会インスティテュート","所属専攻：政治学専攻","一般入試","筆記試験なし","筆記試験なし"]
["修士課程","連帯社会インスティテュート","所属専攻：公共政策学専攻","一般入試","筆記試験なし","筆記試験なし"]
["修士課程","連帯社会インスティテュート","所属専攻：政治学専攻","一般入試","筆記試験なし","筆記試験なし"]
["修士課程","連帯社会インスティテュート","所属専攻：公共政策学専攻","一般入試","筆記試験なし","筆記試験なし"]
["修士課程","連帯社会インスティテュート","所属専攻：政治学専攻","一般入試","筆記試験なし","筆記試験なし"]
["修士課程","連帯社会インスティテュート","所属専攻：公共政策学専攻","一般入試","筆記試験なし","筆記試験なし"]
["修士課程","連帯社会インスティテュート","所属専攻：政治学専攻","社会人入試","筆記試験なし","筆記試験なし"]
["修士課程","連帯社会インスティテュート","所属専攻：公共政策学専攻","社会人入試","筆記試験なし","筆記試験なし"]
["修士課程","連帯社会インスティテュート","所属専攻：政治学専攻","社会人入試","筆記試験なし","筆記試験なし"]
["修士課程","連帯社会インスティテュート","所属専攻：公共政策学専攻","社会人入試","筆記試験なし","筆記試験なし"]
["修士課程","連帯社会インスティテュート","所属専攻：政治学専攻","社会人入試","筆記試験なし","筆記試験なし"]
["修士課程","連帯社会インスティテュート","所属専攻：公共政策学専攻","社会人入試","筆記試験なし","筆記試験なし"]
["修士課程","連帯社会インスティテュート","所属専攻：政治学専攻","指定団体推薦社会人入試","筆記試験なし","筆記試験なし"]
["修士課程","連帯社会インスティテュート","所属専攻：公共政策学専攻","指定団体推薦社会人入試","筆記試験なし","筆記試験なし"]
["修士課程","連帯社会インスティテュート","所属専攻：政治学専攻","指定団体推薦社会人入試","筆記試験なし","筆記試験なし"]
["修士課程","連帯社会インスティテュート","所属専攻：公共政策学専攻","指定団体推薦社会人入試","筆記試験なし","筆記試験なし"]
["修士課程","連帯社会インスティテュート","所属専攻：政治学専攻","指定団体推薦社会人入試","筆記試験なし","筆記試験なし"]
["修士課程","連帯社会インスティテュート","所属専攻：公共政策学専攻","指定団体推薦社会人入試","筆記試験なし","筆記試験なし"]
["修士課程","地域創造インスティテュート","地域創造インスティテュート","一般入試","専門科目","筆記試験なし"]
["修士課程","地域創造インスティテュート","地域創造インスティテュート","社会人入試","筆記試験なし","筆記試験なし"]
["博士後期課程","人文科学研究科","哲学専攻","一般入試","専門科目","英語、独語"]
["博士後期課程","人文科学研究科","哲学専攻","一般入試","専門科目","英語、仏語"]
["博士後期課程","人文科学研究科","哲学専攻","一般入試","専門科目","英語、ギリシャ語"]
["博士後期課程","人文科学研究科","哲学専攻","一般入試","専門科目","英語、ラテン語"]
["博士後期課程","人文科学研究科","哲学専攻","一般入試","専門科目","独語、仏語"]
["博士後期課程","人文科学研究科","哲学専攻","一般入試","専門科目","独語、ギリシャ語"]
["博士後期課程","人文科学研究科","哲学専攻","一般入試","専門科目","独語、ラテン語"]
["博士後期課程","人文科学研究科","哲学専攻","一般入試","専門科目","仏語、ギリシャ語"]
["博士後期課程","人文科学研究科","哲学専攻","一般入試","専門科目","仏語、ラテン語"]
["博士後期課程","人文科学研究科","哲学専攻","一般入試","専門科目","ギリシャ語、ラテン語"]
["博士後期課程","人文科学研究科","日本文学専攻","一般入試","専門科目","英語"]
["博士後期課程","人文科学研究科","英文学専攻","一般入試","筆記試験なし","筆記試験なし"]
["博士後期課程","人文科学研究科","史学専攻","一般入試","日本史分野","英語"]
["博士後期課程","人文科学研究科","史学専攻","一般入試","東洋史分野","英語"]
["博士後期課程","人文科学研究科","史学専攻","一般入試","西洋史分野","英語"]
["博士後期課程","人文科学研究科","史学専攻","社会人入試","日本史分野","なし"]
["博士後期課程","人文科学研究科","史学専攻","社会人入試","東洋史分野","なし"]
["博士後期課程","人文科学研究科","史学専攻","社会人入試","西洋史分野","なし"]
["博士後期課程","人文科学研究科","地理学専攻","一般入試","自然地理分野","英語（母語は選択不可）"]
["博士後期課程","人文科学研究科","地理学専攻","一般入試","人文地理分野","英語（母語は選択不可）"]
["博士後期課程","人文科学研究科","地理学専攻","社会人入試","自然地理分野","なし"]
["博士後期課程","人文科学研究科","地理学専攻","社会人入試","人文地理分野","なし"]
["博士後期課程","人文科学研究科","心理学専攻","一般入試","専門科目","英語"]
["博士後期課程","人文科学研究科","国際日本学インスティテュート","一般入試","小論文","なし"]
["博士後期課程","国際文化研究科","国際文化専攻","一般入試","筆記試験なし","筆記試験なし"]
["博士後期課程","国際文化研究科","国際文化専攻","外国人入試","筆記試験なし","筆記試験なし"]
["博士後期課程","国際文化研究科","国際文化専攻","社会人入試","筆記試験なし","筆記試験なし"]
["博士後期課程","経済学研究科","経済学専攻","一般入試","筆記試験なし","筆記試験なし"]
["博士後期課程","経済学研究科","経済学専攻","社会人入試","筆記試験なし","筆記試験なし"]
["博士後期課程","法学研究科","法律学専攻","一般入試","なし","英語、独語（母語は選択不可）"]
["博士後期課程","法学研究科","法律学専攻","一般入試","なし","英語、仏語（母語は選択不可）"]
["博士後期課程","法学研究科","法律学専攻","一般入試","なし","英語、日本語（母語は選択不可）"]
["博士後期課程","法学研究科","法律学専攻","一般入試","なし","独語、仏語（母語は選択不可）"]
["博士後期課程","法学研究科","法律学専攻","一般入試","なし","独語、日本語（母語は選択不可）"]
["博士後期課程","法学研究科","法律学専攻","一般入試","なし","仏語、日本語（母語は選択不可）"]
["博士後期課程","法学研究科","法律学専攻","一般入試","なし","日本語免除、英語（外国国籍志願者のみ。母語は選択不可）"]
["博士後期課程","法学研究科","法律学専攻","一般入試","なし","日本語免除、独語（外国国籍志願者のみ。母語は選択不可）"]
["博士後期課程","法学研究科","法律学専攻","一般入試","なし","日本語免除、仏語（外国国籍志願者のみ。母語は選択不可）"]
["博士後期課程","政治学研究科","政治学専攻","一般入試","なし","英語（母語は選択不可）"]
["博士後期課程","政治学研究科","政治学専攻","一般入試","なし","日本語（母語は選択不可）"]
["博士後期課程","社会学研究科","社会学専攻","一般入試","なし","英語"]
["博士後期課程","経営学研究科","経営学専攻","一般入試","なし","英語"]
["博士後期課程","経営学研究科","経営学専攻","社会人入試","なし","英語"]
["博士後期課程","公共政策研究科","公共政策学専攻","一般入試","筆記試験なし","筆記試験なし"]
["博士後期課程","公共政策研究科","サステイナビリティ学専攻","一般入試","筆記試験なし","筆記試験なし"]
["博士後期課程","公共政策研究科","公共政策学専攻","社会人入試","筆記試験なし","筆記試験なし"]
["博士後期課程","公共政策研究科","サステイナビリティ学専攻","社会人入試","筆記試験なし","筆記試験なし"]
["博士後期課程","地域創造インスティテュート","地域創造インスティテュート","一般入試","筆記試験なし","筆記試験なし"]
["博士後期課程","地域創造インスティテュート","地域創造インスティテュート","社会人入試","筆記試験なし","筆記試験なし"]
["研修生","人文科学研究科","哲学専攻","研修生入試（単願）","専門科目","外国語（言語は当日選択）"]
["研修生","人文科学研究科","日本文学専攻","研修生入試（単願）","専門科目","日本語（母語は選択不可）"]
["研修生","人文科学研究科","日本文学専攻","研修生入試（単願）","専門科目","英語（母語は選択不可）"]
["研修生","人文科学研究科","英文学専攻","研修生入試（単願）","筆記試験なし","筆記試験なし"]
["研修生","人文科学研究科","史学専攻","研修生入試（単願）","日本史分野","日本語（母語は選択不可）"]
["研修生","人文科学研究科","史学専攻","研修生入試（単願）","東洋史分野","日本語（母語は選択不可）"]
["研修生","人文科学研究科","史学専攻","研修生入試（単願）","西洋史分野","日本語（母語は選択不可）"]
["研修生","人文科学研究科","史学専攻","研修生入試（単願）","日本史分野","英語（母語は選択不可）"]
["研修生","人文科学研究科","史学専攻","研修生入試（単願）","東洋史分野","英語（母語は選択不可）"]
["研修生","人文科学研究科","史学専攻","研修生入試（単願）","西洋史分野","英語（母語は選択不可）"]
["研修生","人文科学研究科","地理学専攻","研修生入試（単願）","自然地理分野","なし"]
["研修生","人文科学研究科","地理学専攻","研修生入試（単願）","人文地理分野","なし"]
["研修生","人文科学研究科","心理学専攻","研修生入試（単願）","専門科目","英語"]
["研修生","国際文化研究科","国際文化専攻","研修生入試（単願）","筆記試験なし","筆記試験なし"]
["研修生","経済学研究科","経済学専攻","研修生入試（単願）","筆記試験なし","筆記試験なし"]
["研修生","法学研究科","法律学専攻","研修生入試（単願）","憲法（外国国籍志願者のみ）","日本語（外国国籍志願者のみ）"]
["研修生","法学研究科","法律学専攻","研修生入試（単願）","刑法（外国国籍志願者のみ）","日本語（外国国籍志願者のみ）"]
["研修生","法学研究科","法律学専攻","研修生入試（単願）","経済法（外国国籍志願者のみ）","日本語（外国国籍志願者のみ）"]
["研修生","法学研究科","法律学専攻","研修生入試（単願）","労働法（外国国籍志願者のみ）","日本語（外国国籍志願者のみ）"]
["研修生","法学研究科","法律学専攻","研修生入試（単願）","行政法（外国国籍志願者のみ）","日本語（外国国籍志願者のみ）"]
["研修生","法学研究科","法律学専攻","研修生入試（単願）","民法（家族法を除く）（外国国籍志願者のみ）","日本語（外国国籍志願者のみ）"]
["研修生","法学研究科","法律学専攻","研修生入試（単願）","商法（商法総則、会社法、手形・小切手法）（外国国籍志願者のみ）","日本語（外国国籍志願者のみ）"]
["研修生","法学研究科","法律学専攻","研修生入試（単願）","民事訴訟法（判決手続のみ）（外国国籍志願者のみ）","日本語（外国国籍志願者のみ）"]
["研修生","法学研究科","法律学専攻","研修生入試（単願）","社会保障法（外国国籍志願者のみ）","日本語（外国国籍志願者のみ）"]
["研修生","法学研究科","法律学専攻","研修生入試（単願）","法哲学（外国国籍志願者のみ）","日本語（外国国籍志願者のみ）"]
["研修生","法学研究科","法律学専攻","研修生入試（単願）","日本法制史（外国国籍志願者のみ）","日本語（外国国籍志願者のみ）"]
["研修生","法学研究科","法律学専攻","研修生入試（単願）","国際法（外国国籍志願者のみ）","日本語（外国国籍志願者のみ）"]
["研修生","法学研究科","法律学専攻","研修生入試（単願）","西洋法制史（外国国籍志願者のみ）","日本語（外国国籍志願者のみ）"]
["研修生","法学研究科","法律学専攻","研修生入試（単願）","倒産法（外国国籍志願者のみ）","日本語（外国国籍志願者のみ）"]
["研修生","法学研究科","法律学専攻","研修生入試（単願）","知的財産法（外国国籍志願者のみ）","日本語（外国国籍志願者のみ）"]
["研修生","法学研究科","法律学専攻","研修生入試（単願）","刑事訴訟法（外国国籍志願者のみ）","日本語（外国国籍志願者のみ）"]
["研修生","法学研究科","法律学専攻","研修生入試（単願）","専門に関する小論文（日本の大学出身者のみ）","外国語科目なし（日本の大学出身者のみ）"]
["研修生","政治学研究科","政治学専攻","研修生入試（単願）","専門科目","なし（日本語を母語とする者のみ）"]
["研修生","政治学研究科","政治学専攻","研修生入試（単願）","専門科目","日本語（日本語を母語とする者以外）"]
["研修生","政治学研究科","国際政治学専攻","研修生入試（単願）","筆記試験なし","筆記試験なし"]
["研修生","社会学研究科","社会学専攻","研修生入試（単願）","専門科目","なし"]
["研修生","経営学研究科","経営学専攻","研修生入試（単願）","専門科目（外国国籍を有する志願者のみ）","なし"]
["研修生","経営学研究科","経営学専攻","研修生入試（単願）","英語（日本国籍を有する志願者のみ）","なし"]
["修士課程","人文科学研究科","英文学専攻","推薦枠入試","筆記試験なし","筆記試験なし"]
["修士課程","人文科学研究科","地理学専攻","学内入試","筆記試験なし","筆記試験なし"]
["修士課程","人文科学研究科","心理学専攻","学内入試","専門科目","英語"]
["修士課程","国際文化研究科","国際文化専攻","学内入試","筆記試験なし","筆記試験なし"]
["修士課程","経済学研究科","経済学専攻","学部内入試","筆記試験なし","筆記試験なし"]
["修士課程","法学研究科","法律学専攻","学科内入試","筆記試験なし","筆記試験なし"]
["修士課程","政治学研究科","政治学専攻","学内入試","筆記試験なし","筆記試験なし"]
["修士課程","政治学研究科","国際政治学専攻","学内入試","筆記試験なし","筆記試験なし"]
["修士課程","社会学研究科","社会学専攻","学内入試","筆記試験なし","筆記試験なし"]
["修士課程","経営学研究科","経営学専攻","学内入試","筆記試験なし","筆記試験なし"]
["修士課程","地域創造インスティテュート","地域創造インスティテュート","学内選抜入試","筆記試験なし","筆記試験なし"]

{"sheet":"「受験科目」欄 選択一覧（検索用）","index":5,"n_rows":289,"n_cols":23,"rows_kept":289,"cut":false,"hidden":true,"merged":[]}
[]
[null,"A_課程","B_研究科","C_専攻","D_入試経路","A＋B＋C＋D","連番_A＋B＋C＋D","ABCD＋連番","専門科目","外国語",null,null,null,null,null,null,"志願票選択値",{"$f":"'入学志願票（個別の入学資格審査用）'!D3&'入学志願票（個別の入学資格審査用）'!H3&'入学志願票（個別の入学資格審査用）'!N3&'入学志願票（個別の入学資格審査用）'!D4","v":""}]
[null,"修士課程","人文科学研究科","哲学専攻","一般入試","修士課程人文科学研究科哲学専攻一般入試",1,"修士課程人文科学研究科哲学専攻一般入試1","専門科目","外国語（言語は当日選択）"]
[null,"修士課程","人文科学研究科","哲学専攻","社会人入試","修士課程人文科学研究科哲学専攻社会人入試",1,"修士課程人文科学研究科哲学専攻社会人入試1","専門科目","なし",null,null,null,null,null,null,"連番","A専門科目","A重複チェック","A重複除く一覧","B_外国語","B重複チェック","B重複除く一覧"]
[null,"修士課程","人文科学研究科","日本文学専攻","一般入試","修士課程人文科学研究科日本文学専攻一般入試",1,"修士課程人文科学研究科日本文学専攻一般入試1","専門科目","英語"]
[null,"修士課程","人文科学研究科","日本文学専攻","一般入試","修士課程人文科学研究科日本文学専攻一般入試",2,"修士課程人文科学研究科日本文学専攻一般入試2","専門科目","英語",null,null,null,null,null,null,1,{"$f":"VLOOKUP($R$2&Q6,$H:$J,2,0)","v":{"$error":"#N/A"}},{"$f":"IF(COUNTIF($R$6:R6,R6)=1,S5+1,S5)","v":1},{"$f":"IFERROR(INDEX($R$6:$R$75,MATCH(ROW(T6)-5,$S$6:$S$75,0)),\"\")","v":""},{"$f":"VLOOKUP($R$2&Q6,$H:$J,3,0)","v":{"$error":"#N/A"}},{"$f":"IF(COUNTIF($U$6:U6,U6)=1,V5+1,V5)","v":1},{"$f":"IFERROR(INDEX($U$6:$U$75,MATCH(ROW(W6)-5,$V$6:$V$75,0)),\"\")","v":""}]
[null,"修士課程","人文科学研究科","日本文学専攻","一般入試","修士課程人文科学研究科日本文学専攻一般入試",3,"修士課程人文科学研究科日本文学専攻一般入試3","専門科目","英語",null,null,null,null,null,null,2,{"$error":"#N/A"},{"$f":"IF(COUNTIF($R$6:R7,R7)=1,S6+1,S6)","v":1},{"$f":"IFERROR(INDEX($R$6:$R$75,MATCH(ROW(T7)-5,$S$6:$S$75,0)),\"\")","v":""},{"$error":"#N/A"},{"$f":"IF(COUNTIF($U$6:U7,U7)=1,V6+1,V6)","v":1},{"$f":"IFERROR(INDEX($U$6:$U$75,MATCH(ROW(W7)-5,$V$6:$V$75,0)),\"\")","v":""}]
[null,"修士課程","人文科学研究科","日本文学専攻","外国人入試","修士課程人文科学研究科日本文学専攻外国人入試",1,"修士課程人文科学研究科日本文学専攻外国人入試1","専門科目","日本語",null,null,null,null,null,null,3,{"$error":"#N/A"},{"$f":"IF(COUNTIF($R$6:R8,R8)=1,S7+1,S7)","v":1},"",{"$error":"#N/A"},{"$f":"IF(COUNTIF($U$6:U8,U8)=1,V7+1,V7)","v":1},""]
[null,"修士課程","人文科学研究科","日本文学専攻","外国人入試","修士課程人文科学研究科日本文学専攻外国人入試",2,"修士課程人文科学研究科日本文学専攻外国人入試2","専門科目","日本語",null,null,null,null,null,null,4,{"$error":"#N/A"},{"$f":"IF(COUNTIF($R$6:R9,R9)=1,S8+1,S8)","v":1},"",{"$error":"#N/A"},{"$f":"IF(COUNTIF($U$6:U9,U9)=1,V8+1,V8)","v":1},""]
[null,"修士課程","人文科学研究科","日本文学専攻","外国人入試","修士課程人文科学研究科日本文学専攻外国人入試",3,"修士課程人文科学研究科日本文学専攻外国人入試3","専門科目","日本語",null,null,null,null,null,null,5,{"$error":"#N/A"},{"$f":"IF(COUNTIF($R$6:R10,R10)=1,S9+1,S9)","v":1},"",{"$error":"#N/A"},{"$f":"IF(COUNTIF($U$6:U10,U10)=1,V9+1,V9)","v":1},""]
[null,"修士課程","人文科学研究科","日本文学専攻","社会人入試","修士課程人文科学研究科日本文学専攻社会人入試",1,"修士課程人文科学研究科日本文学専攻社会人入試1","専門科目","なし",null,null,null,null,null,null,6,{"$error":"#N/A"},{"$f":"IF(COUNTIF($R$6:R11,R11)=1,S10+1,S10)","v":1},"",{"$error":"#N/A"},{"$f":"IF(COUNTIF($U$6:U11,U11)=1,V10+1,V10)","v":1},""]
[null,"修士課程","人文科学研究科","英文学専攻","一般入試","修士課程人文科学研究科英文学専攻一般入試",1,"修士課程人文科学研究科英文学専攻一般入試1","筆記試験なし","筆記試験なし",null,null,null,null,null,null,7,{"$error":"#N/A"},{"$f":"IF(COUNTIF($R$6:R12,R12)=1,S11+1,S11)","v":1},"",{"$error":"#N/A"},{"$f":"IF(COUNTIF($U$6:U12,U12)=1,V11+1,V11)","v":1},""]
[null,"修士課程","人文科学研究科","英文学専攻","社会人入試","修士課程人文科学研究科英文学専攻社会人入試",1,"修士課程人文科学研究科英文学専攻社会人入試1","筆記試験なし","筆記試験なし",null,null,null,null,null,null,8,{"$error":"#N/A"},{"$f":"IF(COUNTIF($R$6:R13,R13)=1,S12+1,S12)","v":1},"",{"$error":"#N/A"},{"$f":"IF(COUNTIF($U$6:U13,U13)=1,V12+1,V12)","v":1},""]
[null,"修士課程","人文科学研究科","史学専攻","一般入試","修士課程人文科学研究科史学専攻一般入試",1,"修士課程人文科学研究科史学専攻一般入試1","日本史分野","英語",null,null,null,null,null,null,9,{"$error":"#N/A"},{"$f":"IF(COUNTIF($R$6:R14,R14)=1,S13+1,S13)","v":1},"",{"$error":"#N/A"},{"$f":"IF(COUNTIF($U$6:U14,U14)=1,V13+1,V13)","v":1},""]
[null,"修士課程","人文科学研究科","史学専攻","一般入試","修士課程人文科学研究科史学専攻一般入試",2,"修士課程人文科学研究科史学専攻一般入試2","東洋史分野","英語",null,null,null,null,null,null,10,{"$error":"#N/A"},{"$f":"IF(COUNTIF($R$6:R15,R15)=1,S14+1,S14)","v":1},"",{"$error":"#N/A"},{"$f":"IF(COUNTIF($U$6:U15,U15)=1,V14+1,V14)","v":1},""]
[null,"修士課程","人文科学研究科","史学専攻","一般入試","修士課程人文科学研究科史学専攻一般入試",3,"修士課程人文科学研究科史学専攻一般入試3","西洋史分野","英語",null,null,null,null,null,null,11,{"$error":"#N/A"},{"$f":"IF(COUNTIF($R$6:R16,R16)=1,S15+1,S15)","v":1},"",{"$error":"#N/A"},{"$f":"IF(COUNTIF($U$6:U16,U16)=1,V15+1,V15)","v":1},""]
[null,"修士課程","人文科学研究科","史学専攻","社会人入試","修士課程人文科学研究科史学専攻社会人入試",1,"修士課程人文科学研究科史学専攻社会人入試1","小論文（日本史分野）","なし",null,null,null,null,null,null,12,{"$error":"#N/A"},{"$f":"IF(COUNTIF($R$6:R17,R17)=1,S16+1,S16)","v":1},"",{"$error":"#N/A"},{"$f":"IF(COUNTIF($U$6:U17,U17)=1,V16+1,V16)","v":1},""]
[null,"修士課程","人文科学研究科","史学専攻","社会人入試","修士課程人文科学研究科史学専攻社会人入試",2,"修士課程人文科学研究科史学専攻社会人入試2","小論文（東洋史分野）","なし",null,null,null,null,null,null,13,{"$error":"#N/A"},{"$f":"IF(COUNTIF($R$6:R18,R18)=1,S17+1,S17)","v":1},"",{"$error":"#N/A"},{"$f":"IF(COUNTIF($U$6:U18,U18)=1,V17+1,V17)","v":1},""]
[null,"修士課程","人文科学研究科","史学専攻","社会人入試","修士課程人文科学研究科史学専攻社会人入試",3,"修士課程人文科学研究科史学専攻社会人入試3","小論文（西洋史分野）","なし",null,null,null,null,null,null,14,{"$error":"#N/A"},{"$f":"IF(COUNTIF($R$6:R19,R19)=1,S18+1,S18)","v":1},"",{"$error":"#N/A"},{"$f":"IF(COUNTIF($U$6:U19,U19)=1,V18+1,V18)","v":1},""]
[null,"修士課程","人文科学研究科","地理学専攻","一般入試","修士課程人文科学研究科地理学専攻一般入試",1,"修士課程人文科学研究科地理学専攻一般入試1","自然地理分野","英語（母語は選択不可）",null,null,null,null,null,null,15,{"$error":"#N/A"},{"$f":"IF(COUNTIF($R$6:R20,R20)=1,S19+1,S19)","v":1},"",{"$error":"#N/A"},{"$f":"IF(COUNTIF($U$6:U20,U20)=1,V19+1,V19)","v":1},""]
[null,"修士課程","人文科学研究科","地理学専攻","一般入試","修士課程人文科学研究科地理学専攻一般入試",2,"修士課程人文科学研究科地理学専攻一般入試2","人文地理分野","英語（母語は選択不可）",null,null,null,null,null,null,16,{"$error":"#N/A"},{"$f":"IF(COUNTIF($R$6:R21,R21)=1,S20+1,S20)","v":1},"",{"$error":"#N/A"},{"$f":"IF(COUNTIF($U$6:U21,U21)=1,V20+1,V20)","v":1},""]
[null,"修士課程","人文科学研究科","地理学専攻","外国人入試","修士課程人文科学研究科地理学専攻外国人入試",1,"修士課程人文科学研究科地理学専攻外国人入試1","自然地理分野","なし",null,null,null,null,null,null,17,{"$error":"#N/A"},{"$f":"IF(COUNTIF($R$6:R22,R22)=1,S21+1,S21)","v":1},"",{"$error":"#N/A"},{"$f":"IF(COUNTIF($U$6:U22,U22)=1,V21+1,V21)","v":1},""]
[null,"修士課程","人文科学研究科","地理学専攻","外国人入試","修士課程人文科学研究科地理学専攻外国人入試",2,"修士課程人文科学研究科地理学専攻外国人入試2","人文地理分野","なし",null,null,null,null,null,null,18,{"$error":"#N/A"},{"$f":"IF(COUNTIF($R$6:R23,R23)=1,S22+1,S22)","v":1},"",{"$error":"#N/A"},{"$f":"IF(COUNTIF($U$6:U23,U23)=1,V22+1,V22)","v":1},""]
[null,"修士課程","人文科学研究科","地理学専攻","社会人入試","修士課程人文科学研究科地理学専攻社会人入試",1,"修士課程人文科学研究科地理学専攻社会人入試1","自然地理分野","なし",null,null,null,null,null,null,19,{"$error":"#N/A"},{"$f":"IF(COUNTIF($R$6:R24,R24)=1,S23+1,S23)","v":1},"",{"$error":"#N/A"},{"$f":"IF(COUNTIF($U$6:U24,U24)=1,V23+1,V23)","v":1},""]
[null,"修士課程","人文科学研究科","地理学専攻","社会人入試","修士課程人文科学研究科地理学専攻社会人入試",2,"修士課程人文科学研究科地理学専攻社会人入試2","人文地理分野","なし",null,null,null,null,null,null,20,{"$error":"#N/A"},{"$f":"IF(COUNTIF($R$6:R25,R25)=1,S24+1,S24)","v":1},"",{"$error":"#N/A"},{"$f":"IF(COUNTIF($U$6:U25,U25)=1,V24+1,V24)","v":1},""]
[null,"修士課程","人文科学研究科","心理学専攻","一般入試","修士課程人文科学研究科心理学専攻一般入試",1,"修士課程人文科学研究科心理学専攻一般入試1","専門科目","英語",null,null,null,null,null,null,21,{"$error":"#N/A"},{"$f":"IF(COUNTIF($R$6:R26,R26)=1,S25+1,S25)","v":1},"",{"$error":"#N/A"},{"$f":"IF(COUNTIF($U$6:U26,U26)=1,V25+1,V25)","v":1},""]
[null,"修士課程","人文科学研究科","国際日本学インスティテュート","一般入試","修士課程人文科学研究科国際日本学インスティテュート一般入試",1,"修士課程人文科学研究科国際日本学インスティテュート一般入試1","小論文","口述試験語学試問：英語（母語は選択不可）",null,null,null,null,null,null,22,{"$error":"#N/A"},{"$f":"IF(COUNTIF($R$6:R27,R27)=1,S26+1,S26)","v":1},"",{"$error":"#N/A"},{"$f":"IF(COUNTIF($U$6:U27,U27)=1,V26+1,V26)","v":1},""]
[null,"修士課程","人文科学研究科","国際日本学インスティテュート","一般入試","修士課程人文科学研究科国際日本学インスティテュート一般入試",2,"修士課程人文科学研究科国際日本学インスティテュート一般入試2","小論文","口述試験語学試問：中国語（母語は選択不可）",null,null,null,null,null,null,23,{"$error":"#N/A"},{"$f":"IF(COUNTIF($R$6:R28,R28)=1,S27+1,S27)","v":1},"",{"$error":"#N/A"},{"$f":"IF(COUNTIF($U$6:U28,U28)=1,V27+1,V27)","v":1},""]
[null,"修士課程","人文科学研究科","国際日本学インスティテュート","一般入試","修士課程人文科学研究科国際日本学インスティテュート一般入試",3,"修士課程人文科学研究科国際日本学インスティテュート一般入試3","小論文","口述試験語学試問：古文",null,null,null,null,null,null,24,{"$error":"#N/A"},{"$f":"IF(COUNTIF($R$6:R29,R29)=1,S28+1,S28)","v":1},"",{"$error":"#N/A"},{"$f":"IF(COUNTIF($U$6:U29,U29)=1,V28+1,V28)","v":1},""]
[null,"修士課程","人文科学研究科","国際日本学インスティテュート","一般入試","修士課程人文科学研究科国際日本学インスティテュート一般入試",4,"修士課程人文科学研究科国際日本学インスティテュート一般入試4","小論文","口述試験語学試問：古文書",null,null,null,null,null,null,25,{"$error":"#N/A"},{"$f":"IF(COUNTIF($R$6:R30,R30)=1,S29+1,S29)","v":1},"",{"$error":"#N/A"},{"$f":"IF(COUNTIF($U$6:U30,U30)=1,V29+1,V29)","v":1},""]
[null,"修士課程","人文科学研究科","国際日本学インスティテュート","外国人入試","修士課程人文科学研究科国際日本学インスティテュート外国人入試",1,"修士課程人文科学研究科国際日本学インスティテュート外国人入試1","小論文（日本語）","なし",null,null,null,null,null,null,26,{"$error":"#N/A"},{"$f":"IF(COUNTIF($R$6:R31,R31)=1,S30+1,S30)","v":1},"",{"$error":"#N/A"},{"$f":"IF(COUNTIF($U$6:U31,U31)=1,V30+1,V30)","v":1},""]
[null,"修士課程","人文科学研究科","国際日本学インスティテュート","社会人入試","修士課程人文科学研究科国際日本学インスティテュート社会人入試",1,"修士課程人文科学研究科国際日本学インスティテュート社会人入試1","筆記試験なし","筆記試験なし",null,null,null,null,null,null,27,{"$error":"#N/A"},{"$f":"IF(COUNTIF($R$6:R32,R32)=1,S31+1,S31)","v":1},"",{"$error":"#N/A"},{"$f":"IF(COUNTIF($U$6:U32,U32)=1,V31+1,V31)","v":1},""]
[null,"修士課程","国際文化研究科","国際文化専攻","一般入試","修士課程国際文化研究科国際文化専攻一般入試",1,"修士課程国際文化研究科国際文化専攻一般入試1","筆記試験なし","筆記試験なし",null,null,null,null,null,null,28,{"$error":"#N/A"},{"$f":"IF(COUNTIF($R$6:R33,R33)=1,S32+1,S32)","v":1},"",{"$error":"#N/A"},{"$f":"IF(COUNTIF($U$6:U33,U33)=1,V32+1,V32)","v":1},""]
[null,"修士課程","国際文化研究科","国際文化専攻","外国人入試","修士課程国際文化研究科国際文化専攻外国人入試",1,"修士課程国際文化研究科国際文化専攻外国人入試1","筆記試験なし","筆記試験なし",null,null,null,null,null,null,29,{"$error":"#N/A"},{"$f":"IF(COUNTIF($R$6:R34,R34)=1,S33+1,S33)","v":1},"",{"$error":"#N/A"},{"$f":"IF(COUNTIF($U$6:U34,U34)=1,V33+1,V33)","v":1},""]
[null,"修士課程","国際文化研究科","国際文化専攻","社会人入試","修士課程国際文化研究科国際文化専攻社会人入試",1,"修士課程国際文化研究科国際文化専攻社会人入試1","筆記試験なし","筆記試験なし",null,null,null,null,null,null,30,{"$error":"#N/A"},{"$f":"IF(COUNTIF($R$6:R35,R35)=1,S34+1,S34)","v":1},"",{"$error":"#N/A"},{"$f":"IF(COUNTIF($U$6:U35,U35)=1,V34+1,V34)","v":1},""]
[null,"修士課程","経済学研究科","経済学専攻","一般入試","修士課程経済学研究科経済学専攻一般入試",1,"修士課程経済学研究科経済学専攻一般入試1","ミクロ経済学・マクロ経済学【秋季入試時のみ】","なし",null,null,null,null,null,null,31,{"$error":"#N/A"},{"$f":"IF(COUNTIF($R$6:R36,R36)=1,S35+1,S35)","v":1},"",{"$error":"#N/A"},{"$f":"IF(COUNTIF($U$6:U36,U36)=1,V35+1,V35)","v":1},""]
[null,"修士課程","経済学研究科","経済学専攻","一般入試","修士課程経済学研究科経済学専攻一般入試",2,"修士課程経済学研究科経済学専攻一般入試2","筆記試験なし・経済学検定試験の書類提出【春季入試時のみ】","なし",null,null,null,null,null,null,32,{"$error":"#N/A"},{"$f":"IF(COUNTIF($R$6:R37,R37)=1,S36+1,S36)","v":1},"",{"$error":"#N/A"},{"$f":"IF(COUNTIF($U$6:U37,U37)=1,V36+1,V36)","v":1},""]
[null,"修士課程","経済学研究科","経済学専攻","外国人入試","修士課程経済学研究科経済学専攻外国人入試",1,"修士課程経済学研究科経済学専攻外国人入試1","ミクロ経済学・マクロ経済学【秋季入試時のみ】","なし",null,null,null,null,null,null,33,{"$f":"VLOOKUP($R$2&Q38,$H:$J,2,0)","v":{"$error":"#N/A"}},{"$f":"IF(COUNTIF($R$6:R38,R38)=1,S37+1,S37)","v":1},"",{"$f":"VLOOKUP($R$2&Q38,$H:$J,3,0)","v":{"$error":"#N/A"}},{"$f":"IF(COUNTIF($U$6:U38,U38)=1,V37+1,V37)","v":1},""]
[null,"修士課程","経済学研究科","経済学専攻","外国人入試","修士課程経済学研究科経済学専攻外国人入試",2,"修士課程経済学研究科経済学専攻外国人入試2","筆記試験なし・経済学検定試験の書類提出【春季入試時のみ】","なし",null,null,null,null,null,null,34,{"$error":"#N/A"},{"$f":"IF(COUNTIF($R$6:R39,R39)=1,S38+1,S38)","v":1},"",{"$error":"#N/A"},{"$f":"IF(COUNTIF($U$6:U39,U39)=1,V38+1,V38)","v":1},""]
[null,"修士課程","経済学研究科","経済学専攻","社会人入試","修士課程経済学研究科経済学専攻社会人入試",1,"修士課程経済学研究科経済学専攻社会人入試1","筆記試験なし","筆記試験なし",null,null,null,null,null,null,35,{"$error":"#N/A"},{"$f":"IF(COUNTIF($R$6:R40,R40)=1,S39+1,S39)","v":1},"",{"$error":"#N/A"},{"$f":"IF(COUNTIF($U$6:U40,U40)=1,V39+1,V39)","v":1},""]
[null,"修士課程","経済学研究科","経済学専攻","社会人選抜入試","修士課程経済学研究科経済学専攻社会人選抜入試",1,"修士課程経済学研究科経済学専攻社会人選抜入試1","筆記試験なし","筆記試験なし",null,null,null,null,null,null,36,{"$error":"#N/A"},{"$f":"IF(COUNTIF($R$6:R41,R41)=1,S40+1,S40)","v":1},"",{"$error":"#N/A"},{"$f":"IF(COUNTIF($U$6:U41,U41)=1,V40+1,V40)","v":1},""]
[null,"修士課程","法学研究科","法律学専攻","一般入試","修士課程法学研究科法律学専攻一般入試",1,"修士課程法学研究科法律学専攻一般入試1","憲法","英語（母語を除く）",null,null,null,null,null,null,37,{"$error":"#N/A"},{"$f":"IF(COUNTIF($R$6:R42,R42)=1,S41+1,S41)","v":1},"",{"$error":"#N/A"},{"$f":"IF(COUNTIF($U$6:U42,U42)=1,V41+1,V41)","v":1},""]
[null,"修士課程","法学研究科","法律学専攻","一般入試","修士課程法学研究科法律学専攻一般入試",2,"修士課程法学研究科法律学専攻一般入試2","刑法","英語（母語を除く）",null,null,null,null,null,null,38,{"$error":"#N/A"},{"$f":"IF(COUNTIF($R$6:R43,R43)=1,S42+1,S42)","v":1},"",{"$error":"#N/A"},{"$f":"IF(COUNTIF($U$6:U43,U43)=1,V42+1,V42)","v":1},""]
[null,"修士課程","法学研究科","法律学専攻","一般入試","修士課程法学研究科法律学専攻一般入試",3,"修士課程法学研究科法律学専攻一般入試3","経済法","英語（母語を除く）",null,null,null,null,null,null,39,{"$error":"#N/A"},{"$f":"IF(COUNTIF($R$6:R44,R44)=1,S43+1,S43)","v":1},"",{"$error":"#N/A"},{"$f":"IF(COUNTIF($U$6:U44,U44)=1,V43+1,V43)","v":1},""]
[null,"修士課程","法学研究科","法律学専攻","一般入試","修士課程法学研究科法律学専攻一般入試",4,"修士課程法学研究科法律学専攻一般入試4","労働法","英語（母語を除く）",null,null,null,null,null,null,40,{"$error":"#N/A"},{"$f":"IF(COUNTIF($R$6:R45,R45)=1,S44+1,S44)","v":1},"",{"$error":"#N/A"},{"$f":"IF(COUNTIF($U$6:U45,U45)=1,V44+1,V44)","v":1},""]
[null,"修士課程","法学研究科","法律学専攻","一般入試","修士課程法学研究科法律学専攻一般入試",5,"修士課程法学研究科法律学専攻一般入試5","行政法","英語（母語を除く）",null,null,null,null,null,null,41,{"$error":"#N/A"},{"$f":"IF(COUNTIF($R$6:R46,R46)=1,S45+1,S45)","v":1},"",{"$error":"#N/A"},{"$f":"IF(COUNTIF($U$6:U46,U46)=1,V45+1,V45)","v":1},""]
[null,"修士課程","法学研究科","法律学専攻","一般入試","修士課程法学研究科法律学専攻一般入試",6,"修士課程法学研究科法律学専攻一般入試6","民法（家族法を除く）","英語（母語を除く）",null,null,null,null,null,null,42,{"$error":"#N/A"},{"$f":"IF(COUNTIF($R$6:R47,R47)=1,S46+1,S46)","v":1},"",{"$error":"#N/A"},{"$f":"IF(COUNTIF($U$6:U47,U47)=1,V46+1,V46)","v":1},""]
[null,"修士課程","法学研究科","法律学専攻","一般入試","修士課程法学研究科法律学専攻一般入試",7,"修士課程法学研究科法律学専攻一般入試7","商法（商法総則、会社法、手形・小切手法）","英語（母語を除く）",null,null,null,null,null,null,43,{"$error":"#N/A"},{"$f":"IF(COUNTIF($R$6:R48,R48)=1,S47+1,S47)","v":1},"",{"$error":"#N/A"},{"$f":"IF(COUNTIF($U$6:U48,U48)=1,V47+1,V47)","v":1},""]
[null,"修士課程","法学研究科","法律学専攻","一般入試","修士課程法学研究科法律学専攻一般入試",8,"修士課程法学研究科法律学専攻一般入試8","民事訴訟法（判決手続のみ）","英語（母語を除く）",null,null,null,null,null,null,44,{"$error":"#N/A"},{"$f":"IF(COUNTIF($R$6:R49,R49)=1,S48+1,S48)","v":1},"",{"$error":"#N/A"},{"$f":"IF(COUNTIF($U$6:U49,U49)=1,V48+1,V48)","v":1},""]
[null,"修士課程","法学研究科","法律学専攻","一般入試","修士課程法学研究科法律学専攻一般入試",9,"修士課程法学研究科法律学専攻一般入試9","社会保障法","英語（母語を除く）",null,null,null,null,null,null,45,{"$error":"#N/A"},{"$f":"IF(COUNTIF($R$6:R50,R50)=1,S49+1,S49)","v":1},"",{"$error":"#N/A"},{"$f":"IF(COUNTIF($U$6:U50,U50)=1,V49+1,V49)","v":1},""]
[null,"修士課程","法学研究科","法律学専攻","一般入試","修士課程法学研究科法律学専攻一般入試",10,"修士課程法学研究科法律学専攻一般入試10","法哲学","英語（母語を除く）",null,null,null,null,null,null,46,{"$error":"#N/A"},{"$f":"IF(COUNTIF($R$6:R51,R51)=1,S50+1,S50)","v":1},"",{"$error":"#N/A"},{"$f":"IF(COUNTIF($U$6:U51,U51)=1,V50+1,V50)","v":1},""]
[null,"修士課程","法学研究科","法律学専攻","一般入試","修士課程法学研究科法律学専攻一般入試",11,"修士課程法学研究科法律学専攻一般入試11","日本法制史","英語（母語を除く）",null,null,null,null,null,null,47,{"$error":"#N/A"},{"$f":"IF(COUNTIF($R$6:R52,R52)=1,S51+1,S51)","v":1},"",{"$error":"#N/A"},{"$f":"IF(COUNTIF($U$6:U52,U52)=1,V51+1,V51)","v":1},""]
[null,"修士課程","法学研究科","法律学専攻","一般入試","修士課程法学研究科法律学専攻一般入試",12,"修士課程法学研究科法律学専攻一般入試12","国際法","英語（母語を除く）",null,null,null,null,null,null,48,{"$error":"#N/A"},{"$f":"IF(COUNTIF($R$6:R53,R53)=1,S52+1,S52)","v":1},"",{"$error":"#N/A"},{"$f":"IF(COUNTIF($U$6:U53,U53)=1,V52+1,V52)","v":1},""]
[null,"修士課程","法学研究科","法律学専攻","一般入試","修士課程法学研究科法律学専攻一般入試",13,"修士課程法学研究科法律学専攻一般入試13","西洋法制史","英語（母語を除く）",null,null,null,null,null,null,49,{"$error":"#N/A"},{"$f":"IF(COUNTIF($R$6:R54,R54)=1,S53+1,S53)","v":1},"",{"$error":"#N/A"},{"$f":"IF(COUNTIF($U$6:U54,U54)=1,V53+1,V53)","v":1},""]
[null,"修士課程","法学研究科","法律学専攻","一般入試","修士課程法学研究科法律学専攻一般入試",14,"修士課程法学研究科法律学専攻一般入試14","倒産法","英語（母語を除く）",null,null,null,null,null,null,50,{"$error":"#N/A"},{"$f":"IF(COUNTIF($R$6:R55,R55)=1,S54+1,S54)","v":1},"",{"$error":"#N/A"},{"$f":"IF(COUNTIF($U$6:U55,U55)=1,V54+1,V54)","v":1},""]
[null,"修士課程","法学研究科","法律学専攻","一般入試","修士課程法学研究科法律学専攻一般入試",15,"修士課程法学研究科法律学専攻一般入試15","知的財産法","英語（母語を除く）",null,null,null,null,null,null,51,{"$error":"#N/A"},{"$f":"IF(COUNTIF($R$6:R56,R56)=1,S55+1,S55)","v":1},"",{"$error":"#N/A"},{"$f":"IF(COUNTIF($U$6:U56,U56)=1,V55+1,V55)","v":1},""]
[null,"修士課程","法学研究科","法律学専攻","一般入試","修士課程法学研究科法律学専攻一般入試",16,"修士課程法学研究科法律学専攻一般入試16","刑事訴訟法","英語（母語を除く）",null,null,null,null,null,null,52,{"$error":"#N/A"},{"$f":"IF(COUNTIF($R$6:R57,R57)=1,S56+1,S56)","v":1},"",{"$error":"#N/A"},{"$f":"IF(COUNTIF($U$6:U57,U57)=1,V56+1,V56)","v":1},""]
[null,"修士課程","法学研究科","法律学専攻","一般入試","修士課程法学研究科法律学専攻一般入試",17,"修士課程法学研究科法律学専攻一般入試17","憲法","独語（母語を除く）",null,null,null,null,null,null,53,{"$error":"#N/A"},{"$f":"IF(COUNTIF($R$6:R58,R58)=1,S57+1,S57)","v":1},"",{"$error":"#N/A"},{"$f":"IF(COUNTIF($U$6:U58,U58)=1,V57+1,V57)","v":1},""]
[null,"修士課程","法学研究科","法律学専攻","一般入試","修士課程法学研究科法律学専攻一般入試",18,"修士課程法学研究科法律学専攻一般入試18","刑法","独語（母語を除く）",null,null,null,null,null,null,54,{"$error":"#N/A"},{"$f":"IF(COUNTIF($R$6:R59,R59)=1,S58+1,S58)","v":1},"",{"$error":"#N/A"},{"$f":"IF(COUNTIF($U$6:U59,U59)=1,V58+1,V58)","v":1},""]
[null,"修士課程","法学研究科","法律学専攻","一般入試","修士課程法学研究科法律学専攻一般入試",19,"修士課程法学研究科法律学専攻一般入試19","経済法","独語（母語を除く）",null,null,null,null,null,null,55,{"$error":"#N/A"},{"$f":"IF(COUNTIF($R$6:R60,R60)=1,S59+1,S59)","v":1},"",{"$error":"#N/A"},{"$f":"IF(COUNTIF($U$6:U60,U60)=1,V59+1,V59)","v":1},""]
[null,"修士課程","法学研究科","法律学専攻","一般入試","修士課程法学研究科法律学専攻一般入試",20,"修士課程法学研究科法律学専攻一般入試20","労働法","独語（母語を除く）",null,null,null,null,null,null,56,{"$error":"#N/A"},{"$f":"IF(COUNTIF($R$6:R61,R61)=1,S60+1,S60)","v":1},"",{"$error":"#N/A"},{"$f":"IF(COUNTIF($U$6:U61,U61)=1,V60+1,V60)","v":1},""]
[null,"修士課程","法学研究科","法律学専攻","一般入試","修士課程法学研究科法律学専攻一般入試",21,"修士課程法学研究科法律学専攻一般入試21","行政法","独語（母語を除く）",null,null,null,null,null,null,57,{"$error":"#N/A"},{"$f":"IF(COUNTIF($R$6:R62,R62)=1,S61+1,S61)","v":1},"",{"$error":"#N/A"},{"$f":"IF(COUNTIF($U$6:U62,U62)=1,V61+1,V61)","v":1},""]
[null,"修士課程","法学研究科","法律学専攻","一般入試","修士課程法学研究科法律学専攻一般入試",22,"修士課程法学研究科法律学専攻一般入試22","民法（家族法を除く）","独語（母語を除く）",null,null,null,null,null,null,58,{"$error":"#N/A"},{"$f":"IF(COUNTIF($R$6:R63,R63)=1,S62+1,S62)","v":1},"",{"$error":"#N/A"},{"$f":"IF(COUNTIF($U$6:U63,U63)=1,V62+1,V62)","v":1},""]
[null,"修士課程","法学研究科","法律学専攻","一般入試","修士課程法学研究科法律学専攻一般入試",23,"修士課程法学研究科法律学専攻一般入試23","商法（商法総則、会社法、手形・小切手法）","独語（母語を除く）",null,null,null,null,null,null,59,{"$error":"#N/A"},{"$f":"IF(COUNTIF($R$6:R64,R64)=1,S63+1,S63)","v":1},"",{"$error":"#N/A"},{"$f":"IF(COUNTIF($U$6:U64,U64)=1,V63+1,V63)","v":1},""]
[null,"修士課程","法学研究科","法律学専攻","一般入試","修士課程法学研究科法律学専攻一般入試",24,"修士課程法学研究科法律学専攻一般入試24","民事訴訟法（判決手続のみ）","独語（母語を除く）",null,null,null,null,null,null,60,{"$error":"#N/A"},{"$f":"IF(COUNTIF($R$6:R65,R65)=1,S64+1,S64)","v":1},"",{"$error":"#N/A"},{"$f":"IF(COUNTIF($U$6:U65,U65)=1,V64+1,V64)","v":1},""]
[null,"修士課程","法学研究科","法律学専攻","一般入試","修士課程法学研究科法律学専攻一般入試",25,"修士課程法学研究科法律学専攻一般入試25","社会保障法","独語（母語を除く）",null,null,null,null,null,null,61,{"$error":"#N/A"},{"$f":"IF(COUNTIF($R$6:R66,R66)=1,S65+1,S65)","v":1},"",{"$error":"#N/A"},{"$f":"IF(COUNTIF($U$6:U66,U66)=1,V65+1,V65)","v":1},""]
[null,"修士課程","法学研究科","法律学専攻","一般入試","修士課程法学研究科法律学専攻一般入試",26,"修士課程法学研究科法律学専攻一般入試26","法哲学","独語（母語を除く）",null,null,null,null,null,null,62,{"$error":"#N/A"},{"$f":"IF(COUNTIF($R$6:R67,R67)=1,S66+1,S66)","v":1},"",{"$error":"#N/A"},{"$f":"IF(COUNTIF($U$6:U67,U67)=1,V66+1,V66)","v":1},""]
[null,"修士課程","法学研究科","法律学専攻","一般入試","修士課程法学研究科法律学専攻一般入試",27,"修士課程法学研究科法律学専攻一般入試27","日本法制史","独語（母語を除く）",null,null,null,null,null,null,63,{"$error":"#N/A"},{"$f":"IF(COUNTIF($R$6:R68,R68)=1,S67+1,S67)","v":1},"",{"$error":"#N/A"},{"$f":"IF(COUNTIF($U$6:U68,U68)=1,V67+1,V67)","v":1},""]
[null,"修士課程","法学研究科","法律学専攻","一般入試","修士課程法学研究科法律学専攻一般入試",28,"修士課程法学研究科法律学専攻一般入試28","国際法","独語（母語を除く）",null,null,null,null,null,null,64,{"$error":"#N/A"},{"$f":"IF(COUNTIF($R$6:R69,R69)=1,S68+1,S68)","v":1},"",{"$error":"#N/A"},{"$f":"IF(COUNTIF($U$6:U69,U69)=1,V68+1,V68)","v":1},""]
[null,"修士課程","法学研究科","法律学専攻","一般入試","修士課程法学研究科法律学専攻一般入試",29,"修士課程法学研究科法律学専攻一般入試29","西洋法制史","独語（母語を除く）",null,null,null,null,null,null,65,{"$f":"VLOOKUP($R$2&Q70,$H:$J,2,0)","v":{"$error":"#N/A"}},{"$f":"IF(COUNTIF($R$6:R70,R70)=1,S69+1,S69)","v":1},"",{"$f":"VLOOKUP($R$2&Q70,$H:$J,3,0)","v":{"$error":"#N/A"}},{"$f":"IF(COUNTIF($U$6:U70,U70)=1,V69+1,V69)","v":1},""]
[null,"修士課程","法学研究科","法律学専攻","一般入試","修士課程法学研究科法律学専攻一般入試",30,"修士課程法学研究科法律学専攻一般入試30","倒産法","独語（母語を除く）",null,null,null,null,null,null,66,{"$error":"#N/A"},{"$f":"IF(COUNTIF($R$6:R71,R71)=1,S70+1,S70)","v":1},{"$f":"IFERROR(INDEX($R$6:$R$75,MATCH(ROW(T71)-5,$S$6:$S$75,0)),\"\")","v":""},{"$error":"#N/A"},{"$f":"IF(COUNTIF($U$6:U71,U71)=1,V70+1,V70)","v":1},{"$f":"IFERROR(INDEX($U$6:$U$75,MATCH(ROW(W71)-5,$V$6:$V$75,0)),\"\")","v":""}]
[null,"修士課程","法学研究科","法律学専攻","一般入試","修士課程法学研究科法律学専攻一般入試",31,"修士課程法学研究科法律学専攻一般入試31","知的財産法","独語（母語を除く）",null,null,null,null,null,null,67,{"$error":"#N/A"},{"$f":"IF(COUNTIF($R$6:R72,R72)=1,S71+1,S71)","v":1},"",{"$error":"#N/A"},{"$f":"IF(COUNTIF($U$6:U72,U72)=1,V71+1,V71)","v":1},""]
[null,"修士課程","法学研究科","法律学専攻","一般入試","修士課程法学研究科法律学専攻一般入試",32,"修士課程法学研究科法律学専攻一般入試32","刑事訴訟法","独語（母語を除く）",null,null,null,null,null,null,68,{"$error":"#N/A"},{"$f":"IF(COUNTIF($R$6:R73,R73)=1,S72+1,S72)","v":1},"",{"$error":"#N/A"},{"$f":"IF(COUNTIF($U$6:U73,U73)=1,V72+1,V72)","v":1},""]
[null,"修士課程","法学研究科","法律学専攻","一般入試","修士課程法学研究科法律学専攻一般入試",33,"修士課程法学研究科法律学専攻一般入試33","憲法","仏語（母語を除く）",null,null,null,null,null,null,69,{"$error":"#N/A"},{"$f":"IF(COUNTIF($R$6:R74,R74)=1,S73+1,S73)","v":1},"",{"$error":"#N/A"},{"$f":"IF(COUNTIF($U$6:U74,U74)=1,V73+1,V73)","v":1},""]
[null,"修士課程","法学研究科","法律学専攻","一般入試","修士課程法学研究科法律学専攻一般入試",34,"修士課程法学研究科法律学専攻一般入試34","刑法","仏語（母語を除く）",null,null,null,null,null,null,70,{"$error":"#N/A"},{"$f":"IF(COUNTIF($R$6:R75,R75)=1,S74+1,S74)","v":1},"",{"$error":"#N/A"},{"$f":"IF(COUNTIF($U$6:U75,U75)=1,V74+1,V74)","v":1},""]
[null,"修士課程","法学研究科","法律学専攻","一般入試","修士課程法学研究科法律学専攻一般入試",35,"修士課程法学研究科法律学専攻一般入試35","経済法","仏語（母語を除く）"]
[null,"修士課程","法学研究科","法律学専攻","一般入試","修士課程法学研究科法律学専攻一般入試",36,"修士課程法学研究科法律学専攻一般入試36","労働法","仏語（母語を除く）"]
[null,"修士課程","法学研究科","法律学専攻","一般入試","修士課程法学研究科法律学専攻一般入試",37,"修士課程法学研究科法律学専攻一般入試37","行政法","仏語（母語を除く）"]
[null,"修士課程","法学研究科","法律学専攻","一般入試","修士課程法学研究科法律学専攻一般入試",38,"修士課程法学研究科法律学専攻一般入試38","民法（家族法を除く）","仏語（母語を除く）"]
[null,"修士課程","法学研究科","法律学専攻","一般入試","修士課程法学研究科法律学専攻一般入試",39,"修士課程法学研究科法律学専攻一般入試39","商法（商法総則、会社法、手形・小切手法）","仏語（母語を除く）"]
[null,"修士課程","法学研究科","法律学専攻","一般入試","修士課程法学研究科法律学専攻一般入試",40,"修士課程法学研究科法律学専攻一般入試40","民事訴訟法（判決手続のみ）","仏語（母語を除く）"]
[null,"修士課程","法学研究科","法律学専攻","一般入試","修士課程法学研究科法律学専攻一般入試",41,"修士課程法学研究科法律学専攻一般入試41","社会保障法","仏語（母語を除く）"]
[null,"修士課程","法学研究科","法律学専攻","一般入試","修士課程法学研究科法律学専攻一般入試",42,"修士課程法学研究科法律学専攻一般入試42","法哲学","仏語（母語を除く）"]
[null,"修士課程","法学研究科","法律学専攻","一般入試","修士課程法学研究科法律学専攻一般入試",43,"修士課程法学研究科法律学専攻一般入試43","日本法制史","仏語（母語を除く）"]
[null,"修士課程","法学研究科","法律学専攻","一般入試","修士課程法学研究科法律学専攻一般入試",44,"修士課程法学研究科法律学専攻一般入試44","国際法","仏語（母語を除く）"]
[null,"修士課程","法学研究科","法律学専攻","一般入試","修士課程法学研究科法律学専攻一般入試",45,"修士課程法学研究科法律学専攻一般入試45","西洋法制史","仏語（母語を除く）"]
[null,"修士課程","法学研究科","法律学専攻","一般入試","修士課程法学研究科法律学専攻一般入試",46,"修士課程法学研究科法律学専攻一般入試46","倒産法","仏語（母語を除く）"]
[null,"修士課程","法学研究科","法律学専攻","一般入試","修士課程法学研究科法律学専攻一般入試",47,"修士課程法学研究科法律学専攻一般入試47","知的財産法","仏語（母語を除く）"]
[null,"修士課程","法学研究科","法律学専攻","一般入試","修士課程法学研究科法律学専攻一般入試",48,"修士課程法学研究科法律学専攻一般入試48","刑事訴訟法","仏語（母語を除く）"]
[null,"修士課程","法学研究科","法律学専攻","一般入試","修士課程法学研究科法律学専攻一般入試",49,"修士課程法学研究科法律学専攻一般入試49","憲法","日本語（外国国籍志願者のみ）"]
[null,"修士課程","法学研究科","法律学専攻","一般入試","修士課程法学研究科法律学専攻一般入試",50,"修士課程法学研究科法律学専攻一般入試50","刑法","日本語（外国国籍志願者のみ）"]
[null,"修士課程","法学研究科","法律学専攻","一般入試","修士課程法学研究科法律学専攻一般入試",51,"修士課程法学研究科法律学専攻一般入試51","経済法","日本語（外国国籍志願者のみ）"]
[null,"修士課程","法学研究科","法律学専攻","一般入試","修士課程法学研究科法律学専攻一般入試",52,"修士課程法学研究科法律学専攻一般入試52","労働法","日本語（外国国籍志願者のみ）"]
[null,"修士課程","法学研究科","法律学専攻","一般入試","修士課程法学研究科法律学専攻一般入試",53,"修士課程法学研究科法律学専攻一般入試53","行政法","日本語（外国国籍志願者のみ）"]
[null,"修士課程","法学研究科","法律学専攻","一般入試","修士課程法学研究科法律学専攻一般入試",54,"修士課程法学研究科法律学専攻一般入試54","民法（家族法を除く）","日本語（外国国籍志願者のみ）"]
[null,"修士課程","法学研究科","法律学専攻","一般入試","修士課程法学研究科法律学専攻一般入試",55,"修士課程法学研究科法律学専攻一般入試55","商法（商法総則、会社法、手形・小切手法）","日本語（外国国籍志願者のみ）"]
[null,"修士課程","法学研究科","法律学専攻","一般入試","修士課程法学研究科法律学専攻一般入試",56,"修士課程法学研究科法律学専攻一般入試56","民事訴訟法（判決手続のみ）","日本語（外国国籍志願者のみ）"]
[null,"修士課程","法学研究科","法律学専攻","一般入試","修士課程法学研究科法律学専攻一般入試",57,"修士課程法学研究科法律学専攻一般入試57","社会保障法","日本語（外国国籍志願者のみ）"]
[null,"修士課程","法学研究科","法律学専攻","一般入試","修士課程法学研究科法律学専攻一般入試",58,"修士課程法学研究科法律学専攻一般入試58","法哲学","日本語（外国国籍志願者のみ）"]
[null,"修士課程","法学研究科","法律学専攻","一般入試","修士課程法学研究科法律学専攻一般入試",59,"修士課程法学研究科法律学専攻一般入試59","日本法制史","日本語（外国国籍志願者のみ）"]
[null,"修士課程","法学研究科","法律学専攻","一般入試","修士課程法学研究科法律学専攻一般入試",60,"修士課程法学研究科法律学専攻一般入試60","国際法","日本語（外国国籍志願者のみ）"]
[null,"修士課程","法学研究科","法律学専攻","一般入試","修士課程法学研究科法律学専攻一般入試",61,"修士課程法学研究科法律学専攻一般入試61","西洋法制史","日本語（外国国籍志願者のみ）"]
[null,"修士課程","法学研究科","法律学専攻","一般入試","修士課程法学研究科法律学専攻一般入試",62,"修士課程法学研究科法律学専攻一般入試62","倒産法","日本語（外国国籍志願者のみ）"]
[null,"修士課程","法学研究科","法律学専攻","一般入試","修士課程法学研究科法律学専攻一般入試",63,"修士課程法学研究科法律学専攻一般入試63","知的財産法","日本語（外国国籍志願者のみ）"]
[null,"修士課程","法学研究科","法律学専攻","一般入試","修士課程法学研究科法律学専攻一般入試",64,"修士課程法学研究科法律学専攻一般入試64","刑事訴訟法","日本語（外国国籍志願者のみ）"]
[null,"修士課程","法学研究科","法律学専攻","外国人入試","修士課程法学研究科法律学専攻外国人入試",1,"修士課程法学研究科法律学専攻外国人入試1","憲法","なし（研修生との併願を希望しない場合のみ）"]
[null,"修士課程","法学研究科","法律学専攻","外国人入試","修士課程法学研究科法律学専攻外国人入試",2,"修士課程法学研究科法律学専攻外国人入試2","刑法","なし（研修生との併願を希望しない場合のみ）"]
[null,"修士課程","法学研究科","法律学専攻","外国人入試","修士課程法学研究科法律学専攻外国人入試",3,"修士課程法学研究科法律学専攻外国人入試3","経済法","なし（研修生との併願を希望しない場合のみ）"]
[null,"修士課程","法学研究科","法律学専攻","外国人入試","修士課程法学研究科法律学専攻外国人入試",4,"修士課程法学研究科法律学専攻外国人入試4","労働法","なし（研修生との併願を希望しない場合のみ）"]
[null,"修士課程","法学研究科","法律学専攻","外国人入試","修士課程法学研究科法律学専攻外国人入試",5,"修士課程法学研究科法律学専攻外国人入試5","行政法","なし（研修生との併願を希望しない場合のみ）"]
[null,"修士課程","法学研究科","法律学専攻","外国人入試","修士課程法学研究科法律学専攻外国人入試",6,"修士課程法学研究科法律学専攻外国人入試6","民法（家族法を除く）","なし（研修生との併願を希望しない場合のみ）"]
[null,"修士課程","法学研究科","法律学専攻","外国人入試","修士課程法学研究科法律学専攻外国人入試",7,"修士課程法学研究科法律学専攻外国人入試7","商法（商法総則、会社法、手形・小切手法）","なし（研修生との併願を希望しない場合のみ）"]
[null,"修士課程","法学研究科","法律学専攻","外国人入試","修士課程法学研究科法律学専攻外国人入試",8,"修士課程法学研究科法律学専攻外国人入試8","民事訴訟法（判決手続のみ）","なし（研修生との併願を希望しない場合のみ）"]
[null,"修士課程","法学研究科","法律学専攻","外国人入試","修士課程法学研究科法律学専攻外国人入試",9,"修士課程法学研究科法律学専攻外国人入試9","社会保障法","なし（研修生との併願を希望しない場合のみ）"]
[null,"修士課程","法学研究科","法律学専攻","外国人入試","修士課程法学研究科法律学専攻外国人入試",10,"修士課程法学研究科法律学専攻外国人入試10","法哲学","なし（研修生との併願を希望しない場合のみ）"]
[null,"修士課程","法学研究科","法律学専攻","外国人入試","修士課程法学研究科法律学専攻外国人入試",11,"修士課程法学研究科法律学専攻外国人入試11","日本法制史","なし（研修生との併願を希望しない場合のみ）"]
[null,"修士課程","法学研究科","法律学専攻","外国人入試","修士課程法学研究科法律学専攻外国人入試",12,"修士課程法学研究科法律学専攻外国人入試12","国際法","なし（研修生との併願を希望しない場合のみ）"]
[null,"修士課程","法学研究科","法律学専攻","外国人入試","修士課程法学研究科法律学専攻外国人入試",13,"修士課程法学研究科法律学専攻外国人入試13","西洋法制史","なし（研修生との併願を希望しない場合のみ）"]
[null,"修士課程","法学研究科","法律学専攻","外国人入試","修士課程法学研究科法律学専攻外国人入試",14,"修士課程法学研究科法律学専攻外国人入試14","倒産法","なし（研修生との併願を希望しない場合のみ）"]
[null,"修士課程","法学研究科","法律学専攻","外国人入試","修士課程法学研究科法律学専攻外国人入試",15,"修士課程法学研究科法律学専攻外国人入試15","知的財産法","なし（研修生との併願を希望しない場合のみ）"]
[null,"修士課程","法学研究科","法律学専攻","外国人入試","修士課程法学研究科法律学専攻外国人入試",16,"修士課程法学研究科法律学専攻外国人入試16","刑事訴訟法","なし（研修生との併願を希望しない場合のみ）"]
[null,"修士課程","法学研究科","法律学専攻","外国人入試","修士課程法学研究科法律学専攻外国人入試",17,"修士課程法学研究科法律学専攻外国人入試17","憲法","日本語（研修生との併願を希望する場合のみ）"]
[null,"修士課程","法学研究科","法律学専攻","外国人入試","修士課程法学研究科法律学専攻外国人入試",18,"修士課程法学研究科法律学専攻外国人入試18","刑法","日本語（研修生との併願を希望する場合のみ）"]
[null,"修士課程","法学研究科","法律学専攻","外国人入試","修士課程法学研究科法律学専攻外国人入試",19,"修士課程法学研究科法律学専攻外国人入試19","経済法","日本語（研修生との併願を希望する場合のみ）"]
[null,"修士課程","法学研究科","法律学専攻","外国人入試","修士課程法学研究科法律学専攻外国人入試",20,"修士課程法学研究科法律学専攻外国人入試20","労働法","日本語（研修生との併願を希望する場合のみ）"]
[null,"修士課程","法学研究科","法律学専攻","外国人入試","修士課程法学研究科法律学専攻外国人入試",21,"修士課程法学研究科法律学専攻外国人入試21","行政法","日本語（研修生との併願を希望する場合のみ）"]
[null,"修士課程","法学研究科","法律学専攻","外国人入試","修士課程法学研究科法律学専攻外国人入試",22,"修士課程法学研究科法律学専攻外国人入試22","民法（家族法を除く）","日本語（研修生との併願を希望する場合のみ）"]
[null,"修士課程","法学研究科","法律学専攻","外国人入試","修士課程法学研究科法律学専攻外国人入試",23,"修士課程法学研究科法律学専攻外国人入試23","商法（商法総則、会社法、手形・小切手法）","日本語（研修生との併願を希望する場合のみ）"]
[null,"修士課程","法学研究科","法律学専攻","外国人入試","修士課程法学研究科法律学専攻外国人入試",24,"修士課程法学研究科法律学専攻外国人入試24","民事訴訟法（判決手続のみ）","日本語（研修生との併願を希望する場合のみ）"]
[null,"修士課程","法学研究科","法律学専攻","外国人入試","修士課程法学研究科法律学専攻外国人入試",25,"修士課程法学研究科法律学専攻外国人入試25","社会保障法","日本語（研修生との併願を希望する場合のみ）"]
[null,"修士課程","法学研究科","法律学専攻","外国人入試","修士課程法学研究科法律学専攻外国人入試",26,"修士課程法学研究科法律学専攻外国人入試26","法哲学","日本語（研修生との併願を希望する場合のみ）"]
[null,"修士課程","法学研究科","法律学専攻","外国人入試","修士課程法学研究科法律学専攻外国人入試",27,"修士課程法学研究科法律学専攻外国人入試27","日本法制史","日本語（研修生との併願を希望する場合のみ）"]
[null,"修士課程","法学研究科","法律学専攻","外国人入試","修士課程法学研究科法律学専攻外国人入試",28,"修士課程法学研究科法律学専攻外国人入試28","国際法","日本語（研修生との併願を希望する場合のみ）"]
[null,"修士課程","法学研究科","法律学専攻","外国人入試","修士課程法学研究科法律学専攻外国人入試",29,"修士課程法学研究科法律学専攻外国人入試29","西洋法制史","日本語（研修生との併願を希望する場合のみ）"]
[null,"修士課程","法学研究科","法律学専攻","外国人入試","修士課程法学研究科法律学専攻外国人入試",30,"修士課程法学研究科法律学専攻外国人入試30","倒産法","日本語（研修生との併願を希望する場合のみ）"]
[null,"修士課程","法学研究科","法律学専攻","外国人入試","修士課程法学研究科法律学専攻外国人入試",31,"修士課程法学研究科法律学専攻外国人入試31","知的財産法","日本語（研修生との併願を希望する場合のみ）"]
[null,"修士課程","法学研究科","法律学専攻","外国人入試","修士課程法学研究科法律学専攻外国人入試",32,"修士課程法学研究科法律学専攻外国人入試32","刑事訴訟法","日本語（研修生との併願を希望する場合のみ）"]
[null,"修士課程","法学研究科","法律学専攻","社会人入試","修士課程法学研究科法律学専攻社会人入試",1,"修士課程法学研究科法律学専攻社会人入試1","専門科目免除（要書類提出）","なし"]
[null,"修士課程","法学研究科","法律学専攻","社会人入試","修士課程法学研究科法律学専攻社会人入試",2,"修士課程法学研究科法律学専攻社会人入試2","憲法","なし"]
[null,"修士課程","法学研究科","法律学専攻","社会人入試","修士課程法学研究科法律学専攻社会人入試",3,"修士課程法学研究科法律学専攻社会人入試3","刑法","なし"]
[null,"修士課程","法学研究科","法律学専攻","社会人入試","修士課程法学研究科法律学専攻社会人入試",4,"修士課程法学研究科法律学専攻社会人入試4","経済法","なし"]
[null,"修士課程","法学研究科","法律学専攻","社会人入試","修士課程法学研究科法律学専攻社会人入試",5,"修士課程法学研究科法律学専攻社会人入試5","労働法","なし"]
[null,"修士課程","法学研究科","法律学専攻","社会人入試","修士課程法学研究科法律学専攻社会人入試",6,"修士課程法学研究科法律学専攻社会人入試6","行政法","なし"]
[null,"修士課程","法学研究科","法律学専攻","社会人入試","修士課程法学研究科法律学専攻社会人入試",7,"修士課程法学研究科法律学専攻社会人入試7","民法（家族法を除く）","なし"]
[null,"修士課程","法学研究科","法律学専攻","社会人入試","修士課程法学研究科法律学専攻社会人入試",8,"修士課程法学研究科法律学専攻社会人入試8","商法（商法総則、会社法、手形・小切手法）","なし"]
[null,"修士課程","法学研究科","法律学専攻","社会人入試","修士課程法学研究科法律学専攻社会人入試",9,"修士課程法学研究科法律学専攻社会人入試9","民事訴訟法（判決手続のみ）","なし"]
[null,"修士課程","法学研究科","法律学専攻","社会人入試","修士課程法学研究科法律学専攻社会人入試",10,"修士課程法学研究科法律学専攻社会人入試10","社会保障法","なし"]
[null,"修士課程","法学研究科","法律学専攻","社会人入試","修士課程法学研究科法律学専攻社会人入試",11,"修士課程法学研究科法律学専攻社会人入試11","法哲学","なし"]
[null,"修士課程","法学研究科","法律学専攻","社会人入試","修士課程法学研究科法律学専攻社会人入試",12,"修士課程法学研究科法律学専攻社会人入試12","日本法制史","なし"]
[null,"修士課程","法学研究科","法律学専攻","社会人入試","修士課程法学研究科法律学専攻社会人入試",13,"修士課程法学研究科法律学専攻社会人入試13","国際法","なし"]
[null,"修士課程","法学研究科","法律学専攻","社会人入試","修士課程法学研究科法律学専攻社会人入試",14,"修士課程法学研究科法律学専攻社会人入試14","西洋法制史","なし"]
[null,"修士課程","法学研究科","法律学専攻","社会人入試","修士課程法学研究科法律学専攻社会人入試",15,"修士課程法学研究科法律学専攻社会人入試15","倒産法","なし"]
[null,"修士課程","法学研究科","法律学専攻","社会人入試","修士課程法学研究科法律学専攻社会人入試",16,"修士課程法学研究科法律学専攻社会人入試16","知的財産法","なし"]
[null,"修士課程","法学研究科","法律学専攻","社会人入試","修士課程法学研究科法律学専攻社会人入試",17,"修士課程法学研究科法律学専攻社会人入試17","刑事訴訟法","なし"]
[null,"修士課程","政治学研究科","政治学専攻","一般入試","修士課程政治学研究科政治学専攻一般入試",1,"修士課程政治学研究科政治学専攻一般入試1","専門科目","英語"]
[null,"修士課程","政治学研究科","政治学専攻","外国人入試","修士課程政治学研究科政治学専攻外国人入試",1,"修士課程政治学研究科政治学専攻外国人入試1","専門科目","日本語"]
[null,"修士課程","政治学研究科","国際政治学専攻","一般入試","修士課程政治学研究科国際政治学専攻一般入試",1,"修士課程政治学研究科国際政治学専攻一般入試1","筆記試験なし","筆記試験なし"]
[null,"修士課程","政治学研究科","国際政治学専攻","外国人入試","修士課程政治学研究科国際政治学専攻外国人入試",1,"修士課程政治学研究科国際政治学専攻外国人入試1","筆記試験なし","筆記試験なし"]
[null,"修士課程","政治学研究科","国際政治学専攻","社会人入試","修士課程政治学研究科国際政治学専攻社会人入試",1,"修士課程政治学研究科国際政治学専攻社会人入試1","筆記試験なし","筆記試験なし"]
[null,"修士課程","社会学研究科","社会学専攻","一般入試","修士課程社会学研究科社会学専攻一般入試",1,"修士課程社会学研究科社会学専攻一般入試1","専門科目","なし"]
[null,"修士課程","社会学研究科","社会学専攻","外国人入試","修士課程社会学研究科社会学専攻外国人入試",1,"修士課程社会学研究科社会学専攻外国人入試1","専門科目","なし"]
[null,"修士課程","社会学研究科","社会学専攻","社会人入試","修士課程社会学研究科社会学専攻社会人入試",1,"修士課程社会学研究科社会学専攻社会人入試1","なし","英語"]
[null,"修士課程","経営学研究科","経営学専攻","一般入試","修士課程経営学研究科経営学専攻一般入試",1,"修士課程経営学研究科経営学専攻一般入試1","専門科目","英語"]
[null,"修士課程","経営学研究科","経営学専攻","社会人入試","修士課程経営学研究科経営学専攻社会人入試",1,"修士課程経営学研究科経営学専攻社会人入試1","筆記試験なし","筆記試験なし"]
[null,"修士課程","キャリアデザイン学研究科","キャリアデザイン学専攻","一般入試","修士課程キャリアデザイン学研究科キャリアデザイン学専攻一般入試",1,"修士課程キャリアデザイン学研究科キャリアデザイン学専攻一般入試1","論述問題","なし"]
[null,"修士課程","公共政策研究科","公共政策学専攻","一般入試","修士課程公共政策研究科公共政策学専攻一般入試",1,"修士課程公共政策研究科公共政策学専攻一般入試1","筆記試験なし","筆記試験なし"]
[null,"修士課程","公共政策研究科","公共政策学専攻","一般入試","修士課程公共政策研究科公共政策学専攻一般入試",2,"修士課程公共政策研究科公共政策学専攻一般入試2","筆記試験なし","筆記試験なし"]
[null,"修士課程","公共政策研究科","サステイナビリティ学専攻","一般入試","修士課程公共政策研究科サステイナビリティ学専攻一般入試",1,"修士課程公共政策研究科サステイナビリティ学専攻一般入試1","小論文","なし"]
[null,"修士課程","公共政策研究科","公共政策学専攻","社会人入試","修士課程公共政策研究科公共政策学専攻社会人入試",1,"修士課程公共政策研究科公共政策学専攻社会人入試1","筆記試験なし","筆記試験なし"]
[null,"修士課程","公共政策研究科","公共政策学専攻","社会人入試","修士課程公共政策研究科公共政策学専攻社会人入試",2,"修士課程公共政策研究科公共政策学専攻社会人入試2","筆記試験なし","筆記試験なし"]
[null,"修士課程","公共政策研究科","サステイナビリティ学専攻","社会人入試","修士課程公共政策研究科サステイナビリティ学専攻社会人入試",1,"修士課程公共政策研究科サステイナビリティ学専攻社会人入試1","筆記試験なし","筆記試験なし"]
[null,"修士課程","連帯社会インスティテュート","所属専攻：政治学専攻","一般入試","修士課程連帯社会インスティテュート所属専攻：政治学専攻一般入試",1,"修士課程連帯社会インスティテュート所属専攻：政治学専攻一般入試1","筆記試験なし","筆記試験なし"]
[null,"修士課程","連帯社会インスティテュート","所属専攻：政治学専攻","一般入試","修士課程連帯社会インスティテュート所属専攻：政治学専攻一般入試",2,"修士課程連帯社会インスティテュート所属専攻：政治学専攻一般入試2","筆記試験なし","筆記試験なし"]
[null,"修士課程","連帯社会インスティテュート","所属専攻：政治学専攻","一般入試","修士課程連帯社会インスティテュート所属専攻：政治学専攻一般入試",3,"修士課程連帯社会インスティテュート所属専攻：政治学専攻一般入試3","筆記試験なし","筆記試験なし"]
[null,"修士課程","連帯社会インスティテュート","所属専攻：公共政策学専攻","一般入試","修士課程連帯社会インスティテュート所属専攻：公共政策学専攻一般入試",1,"修士課程連帯社会インスティテュート所属専攻：公共政策学専攻一般入試1","筆記試験なし","筆記試験なし"]
[null,"修士課程","連帯社会インスティテュート","所属専攻：公共政策学専攻","一般入試","修士課程連帯社会インスティテュート所属専攻：公共政策学専攻一般入試",2,"修士課程連帯社会インスティテュート所属専攻：公共政策学専攻一般入試2","筆記試験なし","筆記試験なし"]
[null,"修士課程","連帯社会インスティテュート","所属専攻：公共政策学専攻","一般入試","修士課程連帯社会インスティテュート所属専攻：公共政策学専攻一般入試",3,"修士課程連帯社会インスティテュート所属専攻：公共政策学専攻一般入試3","筆記試験なし","筆記試験なし"]
[null,"修士課程","連帯社会インスティテュート","所属専攻：政治学専攻","社会人入試","修士課程連帯社会インスティテュート所属専攻：政治学専攻社会人入試",1,"修士課程連帯社会インスティテュート所属専攻：政治学専攻社会人入試1","筆記試験なし","筆記試験なし"]
[null,"修士課程","連帯社会インスティテュート","所属専攻：政治学専攻","社会人入試","修士課程連帯社会インスティテュート所属専攻：政治学専攻社会人入試",2,"修士課程連帯社会インスティテュート所属専攻：政治学専攻社会人入試2","筆記試験なし","筆記試験なし"]
[null,"修士課程","連帯社会インスティテュート","所属専攻：政治学専攻","社会人入試","修士課程連帯社会インスティテュート所属専攻：政治学専攻社会人入試",3,"修士課程連帯社会インスティテュート所属専攻：政治学専攻社会人入試3","筆記試験なし","筆記試験なし"]
[null,"修士課程","連帯社会インスティテュート","所属専攻：公共政策学専攻","社会人入試","修士課程連帯社会インスティテュート所属専攻：公共政策学専攻社会人入試",1,"修士課程連帯社会インスティテュート所属専攻：公共政策学専攻社会人入試1","筆記試験なし","筆記試験なし"]
[null,"修士課程","連帯社会インスティテュート","所属専攻：公共政策学専攻","社会人入試","修士課程連帯社会インスティテュート所属専攻：公共政策学専攻社会人入試",2,"修士課程連帯社会インスティテュート所属専攻：公共政策学専攻社会人入試2","筆記試験なし","筆記試験なし"]
[null,"修士課程","連帯社会インスティテュート","所属専攻：公共政策学専攻","社会人入試","修士課程連帯社会インスティテュート所属専攻：公共政策学専攻社会人入試",3,"修士課程連帯社会インスティテュート所属専攻：公共政策学専攻社会人入試3","筆記試験なし","筆記試験なし"]
[null,"修士課程","連帯社会インスティテュート","所属専攻：政治学専攻","指定団体推薦社会人入試","修士課程連帯社会インスティテュート所属専攻：政治学専攻指定団体推薦社会人入試",1,"修士課程連帯社会インスティテュート所属専攻：政治学専攻指定団体推薦社会人入試1","筆記試験なし","筆記試験なし"]
[null,"修士課程","連帯社会インスティテュート","所属専攻：政治学専攻","指定団体推薦社会人入試","修士課程連帯社会インスティテュート所属専攻：政治学専攻指定団体推薦社会人入試",2,"修士課程連帯社会インスティテュート所属専攻：政治学専攻指定団体推薦社会人入試2","筆記試験なし","筆記試験なし"]
[null,"修士課程","連帯社会インスティテュート","所属専攻：政治学専攻","指定団体推薦社会人入試","修士課程連帯社会インスティテュート所属専攻：政治学専攻指定団体推薦社会人入試",3,"修士課程連帯社会インスティテュート所属専攻：政治学専攻指定団体推薦社会人入試3","筆記試験なし","筆記試験なし"]
[null,"修士課程","連帯社会インスティテュート","所属専攻：公共政策学専攻","指定団体推薦社会人入試","修士課程連帯社会インスティテュート所属専攻：公共政策学専攻指定団体推薦社会人入試",1,"修士課程連帯社会インスティテュート所属専攻：公共政策学専攻指定団体推薦社会人入試1","筆記試験なし","筆記試験なし"]
[null,"修士課程","連帯社会インスティテュート","所属専攻：公共政策学専攻","指定団体推薦社会人入試","修士課程連帯社会インスティテュート所属専攻：公共政策学専攻指定団体推薦社会人入試",2,"修士課程連帯社会インスティテュート所属専攻：公共政策学専攻指定団体推薦社会人入試2","筆記試験なし","筆記試験なし"]
[null,"修士課程","連帯社会インスティテュート","所属専攻：公共政策学専攻","指定団体推薦社会人入試","修士課程連帯社会インスティテュート所属専攻：公共政策学専攻指定団体推薦社会人入試",3,"修士課程連帯社会インスティテュート所属専攻：公共政策学専攻指定団体推薦社会人入試3","筆記試験なし","筆記試験なし"]
[null,"修士課程","地域創造インスティテュート","地域創造インスティテュート","一般入試","修士課程地域創造インスティテュート地域創造インスティテュート一般入試",1,"修士課程地域創造インスティテュート地域創造インスティテュート一般入試1","専門科目","筆記試験なし"]
[null,"修士課程","地域創造インスティテュート","地域創造インスティテュート","社会人入試","修士課程地域創造インスティテュート地域創造インスティテュート社会人入試",1,"修士課程地域創造インスティテュート地域創造インスティテュート社会人入試1","筆記試験なし","筆記試験なし"]
[null,"博士後期課程","人文科学研究科","哲学専攻","一般入試","博士後期課程人文科学研究科哲学専攻一般入試",1,"博士後期課程人文科学研究科哲学専攻一般入試1","専門科目","英語、独語"]
[null,"博士後期課程","人文科学研究科","哲学専攻","一般入試","博士後期課程人文科学研究科哲学専攻一般入試",2,"博士後期課程人文科学研究科哲学専攻一般入試2","専門科目","英語、仏語"]
[null,"博士後期課程","人文科学研究科","哲学専攻","一般入試","博士後期課程人文科学研究科哲学専攻一般入試",3,"博士後期課程人文科学研究科哲学専攻一般入試3","専門科目","英語、ギリシャ語"]
[null,"博士後期課程","人文科学研究科","哲学専攻","一般入試","博士後期課程人文科学研究科哲学専攻一般入試",4,"博士後期課程人文科学研究科哲学専攻一般入試4","専門科目","英語、ラテン語"]
[null,"博士後期課程","人文科学研究科","哲学専攻","一般入試","博士後期課程人文科学研究科哲学専攻一般入試",5,"博士後期課程人文科学研究科哲学専攻一般入試5","専門科目","独語、仏語"]
[null,"博士後期課程","人文科学研究科","哲学専攻","一般入試","博士後期課程人文科学研究科哲学専攻一般入試",6,"博士後期課程人文科学研究科哲学専攻一般入試6","専門科目","独語、ギリシャ語"]
[null,"博士後期課程","人文科学研究科","哲学専攻","一般入試","博士後期課程人文科学研究科哲学専攻一般入試",7,"博士後期課程人文科学研究科哲学専攻一般入試7","専門科目","独語、ラテン語"]
[null,"博士後期課程","人文科学研究科","哲学専攻","一般入試","博士後期課程人文科学研究科哲学専攻一般入試",8,"博士後期課程人文科学研究科哲学専攻一般入試8","専門科目","仏語、ギリシャ語"]
[null,"博士後期課程","人文科学研究科","哲学専攻","一般入試","博士後期課程人文科学研究科哲学専攻一般入試",9,"博士後期課程人文科学研究科哲学専攻一般入試9","専門科目","仏語、ラテン語"]
[null,"博士後期課程","人文科学研究科","哲学専攻","一般入試","博士後期課程人文科学研究科哲学専攻一般入試",10,"博士後期課程人文科学研究科哲学専攻一般入試10","専門科目","ギリシャ語、ラテン語"]
[null,"博士後期課程","人文科学研究科","日本文学専攻","一般入試","博士後期課程人文科学研究科日本文学専攻一般入試",1,"博士後期課程人文科学研究科日本文学専攻一般入試1","専門科目","英語"]
[null,"博士後期課程","人文科学研究科","英文学専攻","一般入試","博士後期課程人文科学研究科英文学専攻一般入試",1,"博士後期課程人文科学研究科英文学専攻一般入試1","筆記試験なし","筆記試験なし"]
[null,"博士後期課程","人文科学研究科","史学専攻","一般入試","博士後期課程人文科学研究科史学専攻一般入試",1,"博士後期課程人文科学研究科史学専攻一般入試1","日本史分野","英語"]
[null,"博士後期課程","人文科学研究科","史学専攻","一般入試","博士後期課程人文科学研究科史学専攻一般入試",2,"博士後期課程人文科学研究科史学専攻一般入試2","東洋史分野","英語"]
[null,"博士後期課程","人文科学研究科","史学専攻","一般入試","博士後期課程人文科学研究科史学専攻一般入試",3,"博士後期課程人文科学研究科史学専攻一般入試3","西洋史分野","英語"]
[null,"博士後期課程","人文科学研究科","史学専攻","社会人入試","博士後期課程人文科学研究科史学専攻社会人入試",1,"博士後期課程人文科学研究科史学専攻社会人入試1","日本史分野","なし"]
[null,"博士後期課程","人文科学研究科","史学専攻","社会人入試","博士後期課程人文科学研究科史学専攻社会人入試",2,"博士後期課程人文科学研究科史学専攻社会人入試2","東洋史分野","なし"]
[null,"博士後期課程","人文科学研究科","史学専攻","社会人入試","博士後期課程人文科学研究科史学専攻社会人入試",3,"博士後期課程人文科学研究科史学専攻社会人入試3","西洋史分野","なし"]
[null,"博士後期課程","人文科学研究科","地理学専攻","一般入試","博士後期課程人文科学研究科地理学専攻一般入試",1,"博士後期課程人文科学研究科地理学専攻一般入試1","自然地理分野","英語（母語は選択不可）"]
[null,"博士後期課程","人文科学研究科","地理学専攻","一般入試","博士後期課程人文科学研究科地理学専攻一般入試",2,"博士後期課程人文科学研究科地理学専攻一般入試2","人文地理分野","英語（母語は選択不可）"]
[null,"博士後期課程","人文科学研究科","地理学専攻","社会人入試","博士後期課程人文科学研究科地理学専攻社会人入試",1,"博士後期課程人文科学研究科地理学専攻社会人入試1","自然地理分野","なし"]
[null,"博士後期課程","人文科学研究科","地理学専攻","社会人入試","博士後期課程人文科学研究科地理学専攻社会人入試",2,"博士後期課程人文科学研究科地理学専攻社会人入試2","人文地理分野","なし"]
[null,"博士後期課程","人文科学研究科","心理学専攻","一般入試","博士後期課程人文科学研究科心理学専攻一般入試",1,"博士後期課程人文科学研究科心理学専攻一般入試1","専門科目","英語"]
[null,"博士後期課程","人文科学研究科","国際日本学インスティテュート","一般入試","博士後期課程人文科学研究科国際日本学インスティテュート一般入試",1,"博士後期課程人文科学研究科国際日本学インスティテュート一般入試1","小論文","なし"]
[null,"博士後期課程","国際文化研究科","国際文化専攻","一般入試","博士後期課程国際文化研究科国際文化専攻一般入試",1,"博士後期課程国際文化研究科国際文化専攻一般入試1","筆記試験なし","筆記試験なし"]
[null,"博士後期課程","国際文化研究科","国際文化専攻","外国人入試","博士後期課程国際文化研究科国際文化専攻外国人入試",1,"博士後期課程国際文化研究科国際文化専攻外国人入試1","筆記試験なし","筆記試験なし"]
[null,"博士後期課程","国際文化研究科","国際文化専攻","社会人入試","博士後期課程国際文化研究科国際文化専攻社会人入試",1,"博士後期課程国際文化研究科国際文化専攻社会人入試1","筆記試験なし","筆記試験なし"]
[null,"博士後期課程","経済学研究科","経済学専攻","一般入試","博士後期課程経済学研究科経済学専攻一般入試",1,"博士後期課程経済学研究科経済学専攻一般入試1","筆記試験なし","筆記試験なし"]
[null,"博士後期課程","経済学研究科","経済学専攻","社会人入試","博士後期課程経済学研究科経済学専攻社会人入試",1,"博士後期課程経済学研究科経済学専攻社会人入試1","筆記試験なし","筆記試験なし"]
[null,"博士後期課程","法学研究科","法律学専攻","一般入試","博士後期課程法学研究科法律学専攻一般入試",1,"博士後期課程法学研究科法律学専攻一般入試1","なし","英語、独語（母語は選択不可）"]
[null,"博士後期課程","法学研究科","法律学専攻","一般入試","博士後期課程法学研究科法律学専攻一般入試",2,"博士後期課程法学研究科法律学専攻一般入試2","なし","英語、仏語（母語は選択不可）"]
[null,"博士後期課程","法学研究科","法律学専攻","一般入試","博士後期課程法学研究科法律学専攻一般入試",3,"博士後期課程法学研究科法律学専攻一般入試3","なし","英語、日本語（母語は選択不可）"]
[null,"博士後期課程","法学研究科","法律学専攻","一般入試","博士後期課程法学研究科法律学専攻一般入試",4,"博士後期課程法学研究科法律学専攻一般入試4","なし","独語、仏語（母語は選択不可）"]
[null,"博士後期課程","法学研究科","法律学専攻","一般入試","博士後期課程法学研究科法律学専攻一般入試",5,"博士後期課程法学研究科法律学専攻一般入試5","なし","独語、日本語（母語は選択不可）"]
[null,"博士後期課程","法学研究科","法律学専攻","一般入試","博士後期課程法学研究科法律学専攻一般入試",6,"博士後期課程法学研究科法律学専攻一般入試6","なし","仏語、日本語（母語は選択不可）"]
[null,"博士後期課程","法学研究科","法律学専攻","一般入試","博士後期課程法学研究科法律学専攻一般入試",7,"博士後期課程法学研究科法律学専攻一般入試7","なし","日本語免除、英語（外国国籍志願者のみ。母語は選択不可）"]
[null,"博士後期課程","法学研究科","法律学専攻","一般入試","博士後期課程法学研究科法律学専攻一般入試",8,"博士後期課程法学研究科法律学専攻一般入試8","なし","日本語免除、独語（外国国籍志願者のみ。母語は選択不可）"]
[null,"博士後期課程","法学研究科","法律学専攻","一般入試","博士後期課程法学研究科法律学専攻一般入試",9,"博士後期課程法学研究科法律学専攻一般入試9","なし","日本語免除、仏語（外国国籍志願者のみ。母語は選択不可）"]
[null,"博士後期課程","政治学研究科","政治学専攻","一般入試","博士後期課程政治学研究科政治学専攻一般入試",1,"博士後期課程政治学研究科政治学専攻一般入試1","なし","英語（母語は選択不可）"]
[null,"博士後期課程","政治学研究科","政治学専攻","一般入試","博士後期課程政治学研究科政治学専攻一般入試",2,"博士後期課程政治学研究科政治学専攻一般入試2","なし","日本語（母語は選択不可）"]
[null,"博士後期課程","社会学研究科","社会学専攻","一般入試","博士後期課程社会学研究科社会学専攻一般入試",1,"博士後期課程社会学研究科社会学専攻一般入試1","なし","英語"]
[null,"博士後期課程","経営学研究科","経営学専攻","一般入試","博士後期課程経営学研究科経営学専攻一般入試",1,"博士後期課程経営学研究科経営学専攻一般入試1","なし","英語"]
[null,"博士後期課程","経営学研究科","経営学専攻","社会人入試","博士後期課程経営学研究科経営学専攻社会人入試",1,"博士後期課程経営学研究科経営学専攻社会人入試1","なし","英語"]
[null,"博士後期課程","公共政策研究科","公共政策学専攻","一般入試","博士後期課程公共政策研究科公共政策学専攻一般入試",1,"博士後期課程公共政策研究科公共政策学専攻一般入試1","筆記試験なし","筆記試験なし"]
[null,"博士後期課程","公共政策研究科","サステイナビリティ学専攻","一般入試","博士後期課程公共政策研究科サステイナビリティ学専攻一般入試",1,"博士後期課程公共政策研究科サステイナビリティ学専攻一般入試1","筆記試験なし","筆記試験なし"]
[null,"博士後期課程","公共政策研究科","公共政策学専攻","社会人入試","博士後期課程公共政策研究科公共政策学専攻社会人入試",1,"博士後期課程公共政策研究科公共政策学専攻社会人入試1","筆記試験なし","筆記試験なし"]
[null,"博士後期課程","公共政策研究科","サステイナビリティ学専攻","社会人入試","博士後期課程公共政策研究科サステイナビリティ学専攻社会人入試",1,"博士後期課程公共政策研究科サステイナビリティ学専攻社会人入試1","筆記試験なし","筆記試験なし"]
[null,"博士後期課程","地域創造インスティテュート","地域創造インスティテュート","一般入試","博士後期課程地域創造インスティテュート地域創造インスティテュート一般入試",1,"博士後期課程地域創造インスティテュート地域創造インスティテュート一般入試1","筆記試験なし","筆記試験なし"]
[null,"博士後期課程","地域創造インスティテュート","地域創造インスティテュート","社会人入試","博士後期課程地域創造インスティテュート地域創造インスティテュート社会人入試",1,"博士後期課程地域創造インスティテュート地域創造インスティテュート社会人入試1","筆記試験なし","筆記試験なし"]
[null,"研修生","人文科学研究科","哲学専攻","研修生入試（単願）","研修生人文科学研究科哲学専攻研修生入試（単願）",1,"研修生人文科学研究科哲学専攻研修生入試（単願）1","専門科目","外国語（言語は当日選択）"]
[null,"研修生","人文科学研究科","日本文学専攻","研修生入試（単願）","研修生人文科学研究科日本文学専攻研修生入試（単願）",1,"研修生人文科学研究科日本文学専攻研修生入試（単願）1","専門科目","日本語（母語は選択不可）"]
[null,"研修生","人文科学研究科","日本文学専攻","研修生入試（単願）","研修生人文科学研究科日本文学専攻研修生入試（単願）",2,"研修生人文科学研究科日本文学専攻研修生入試（単願）2","専門科目","英語（母語は選択不可）"]
[null,"研修生","人文科学研究科","英文学専攻","研修生入試（単願）","研修生人文科学研究科英文学専攻研修生入試（単願）",1,"研修生人文科学研究科英文学専攻研修生入試（単願）1","筆記試験なし","筆記試験なし"]
[null,"研修生","人文科学研究科","史学専攻","研修生入試（単願）","研修生人文科学研究科史学専攻研修生入試（単願）",1,"研修生人文科学研究科史学専攻研修生入試（単願）1","日本史分野","日本語（母語は選択不可）"]
[null,"研修生","人文科学研究科","史学専攻","研修生入試（単願）","研修生人文科学研究科史学専攻研修生入試（単願）",2,"研修生人文科学研究科史学専攻研修生入試（単願）2","東洋史分野","日本語（母語は選択不可）"]
[null,"研修生","人文科学研究科","史学専攻","研修生入試（単願）","研修生人文科学研究科史学専攻研修生入試（単願）",3,"研修生人文科学研究科史学専攻研修生入試（単願）3","西洋史分野","日本語（母語は選択不可）"]
[null,"研修生","人文科学研究科","史学専攻","研修生入試（単願）","研修生人文科学研究科史学専攻研修生入試（単願）",4,"研修生人文科学研究科史学専攻研修生入試（単願）4","日本史分野","英語（母語は選択不可）"]
[null,"研修生","人文科学研究科","史学専攻","研修生入試（単願）","研修生人文科学研究科史学専攻研修生入試（単願）",5,"研修生人文科学研究科史学専攻研修生入試（単願）5","東洋史分野","英語（母語は選択不可）"]
[null,"研修生","人文科学研究科","史学専攻","研修生入試（単願）","研修生人文科学研究科史学専攻研修生入試（単願）",6,"研修生人文科学研究科史学専攻研修生入試（単願）6","西洋史分野","英語（母語は選択不可）"]
[null,"研修生","人文科学研究科","地理学専攻","研修生入試（単願）","研修生人文科学研究科地理学専攻研修生入試（単願）",1,"研修生人文科学研究科地理学専攻研修生入試（単願）1","自然地理分野","なし"]
[null,"研修生","人文科学研究科","地理学専攻","研修生入試（単願）","研修生人文科学研究科地理学専攻研修生入試（単願）",2,"研修生人文科学研究科地理学専攻研修生入試（単願）2","人文地理分野","なし"]
[null,"研修生","人文科学研究科","心理学専攻","研修生入試（単願）","研修生人文科学研究科心理学専攻研修生入試（単願）",1,"研修生人文科学研究科心理学専攻研修生入試（単願）1","専門科目","英語"]
[null,"研修生","国際文化研究科","国際文化専攻","研修生入試（単願）","研修生国際文化研究科国際文化専攻研修生入試（単願）",1,"研修生国際文化研究科国際文化専攻研修生入試（単願）1","筆記試験なし","筆記試験なし"]
[null,"研修生","経済学研究科","経済学専攻","研修生入試（単願）","研修生経済学研究科経済学専攻研修生入試（単願）",1,"研修生経済学研究科経済学専攻研修生入試（単願）1","筆記試験なし","筆記試験なし"]
[null,"研修生","法学研究科","法律学専攻","研修生入試（単願）","研修生法学研究科法律学専攻研修生入試（単願）",1,"研修生法学研究科法律学専攻研修生入試（単願）1","憲法（外国国籍志願者のみ）","日本語（外国国籍志願者のみ）"]
[null,"研修生","法学研究科","法律学専攻","研修生入試（単願）","研修生法学研究科法律学専攻研修生入試（単願）",2,"研修生法学研究科法律学専攻研修生入試（単願）2","刑法（外国国籍志願者のみ）","日本語（外国国籍志願者のみ）"]
[null,"研修生","法学研究科","法律学専攻","研修生入試（単願）","研修生法学研究科法律学専攻研修生入試（単願）",3,"研修生法学研究科法律学専攻研修生入試（単願）3","経済法（外国国籍志願者のみ）","日本語（外国国籍志願者のみ）"]
[null,"研修生","法学研究科","法律学専攻","研修生入試（単願）","研修生法学研究科法律学専攻研修生入試（単願）",4,"研修生法学研究科法律学専攻研修生入試（単願）4","労働法（外国国籍志願者のみ）","日本語（外国国籍志願者のみ）"]
[null,"研修生","法学研究科","法律学専攻","研修生入試（単願）","研修生法学研究科法律学専攻研修生入試（単願）",5,"研修生法学研究科法律学専攻研修生入試（単願）5","行政法（外国国籍志願者のみ）","日本語（外国国籍志願者のみ）"]
[null,"研修生","法学研究科","法律学専攻","研修生入試（単願）","研修生法学研究科法律学専攻研修生入試（単願）",6,"研修生法学研究科法律学専攻研修生入試（単願）6","民法（家族法を除く）（外国国籍志願者のみ）","日本語（外国国籍志願者のみ）"]
[null,"研修生","法学研究科","法律学専攻","研修生入試（単願）","研修生法学研究科法律学専攻研修生入試（単願）",7,"研修生法学研究科法律学専攻研修生入試（単願）7","商法（商法総則、会社法、手形・小切手法）（外国国籍志願者のみ）","日本語（外国国籍志願者のみ）"]
[null,"研修生","法学研究科","法律学専攻","研修生入試（単願）","研修生法学研究科法律学専攻研修生入試（単願）",8,"研修生法学研究科法律学専攻研修生入試（単願）8","民事訴訟法（判決手続のみ）（外国国籍志願者のみ）","日本語（外国国籍志願者のみ）"]
[null,"研修生","法学研究科","法律学専攻","研修生入試（単願）","研修生法学研究科法律学専攻研修生入試（単願）",9,"研修生法学研究科法律学専攻研修生入試（単願）9","社会保障法（外国国籍志願者のみ）","日本語（外国国籍志願者のみ）"]
[null,"研修生","法学研究科","法律学専攻","研修生入試（単願）","研修生法学研究科法律学専攻研修生入試（単願）",10,"研修生法学研究科法律学専攻研修生入試（単願）10","法哲学（外国国籍志願者のみ）","日本語（外国国籍志願者のみ）"]
[null,"研修生","法学研究科","法律学専攻","研修生入試（単願）","研修生法学研究科法律学専攻研修生入試（単願）",11,"研修生法学研究科法律学専攻研修生入試（単願）11","日本法制史（外国国籍志願者のみ）","日本語（外国国籍志願者のみ）"]
[null,"研修生","法学研究科","法律学専攻","研修生入試（単願）","研修生法学研究科法律学専攻研修生入試（単願）",12,"研修生法学研究科法律学専攻研修生入試（単願）12","国際法（外国国籍志願者のみ）","日本語（外国国籍志願者のみ）"]
[null,"研修生","法学研究科","法律学専攻","研修生入試（単願）","研修生法学研究科法律学専攻研修生入試（単願）",13,"研修生法学研究科法律学専攻研修生入試（単願）13","西洋法制史（外国国籍志願者のみ）","日本語（外国国籍志願者のみ）"]
[null,"研修生","法学研究科","法律学専攻","研修生入試（単願）","研修生法学研究科法律学専攻研修生入試（単願）",14,"研修生法学研究科法律学専攻研修生入試（単願）14","倒産法（外国国籍志願者のみ）","日本語（外国国籍志願者のみ）"]
[null,"研修生","法学研究科","法律学専攻","研修生入試（単願）","研修生法学研究科法律学専攻研修生入試（単願）",15,"研修生法学研究科法律学専攻研修生入試（単願）15","知的財産法（外国国籍志願者のみ）","日本語（外国国籍志願者のみ）"]
[null,"研修生","法学研究科","法律学専攻","研修生入試（単願）","研修生法学研究科法律学専攻研修生入試（単願）",16,"研修生法学研究科法律学専攻研修生入試（単願）16","刑事訴訟法（外国国籍志願者のみ）","日本語（外国国籍志願者のみ）"]
[null,"研修生","法学研究科","法律学専攻","研修生入試（単願）","研修生法学研究科法律学専攻研修生入試（単願）",17,"研修生法学研究科法律学専攻研修生入試（単願）17","専門に関する小論文（日本の大学出身者のみ）","外国語科目なし（日本の大学出身者のみ）"]
[null,"研修生","政治学研究科","政治学専攻","研修生入試（単願）","研修生政治学研究科政治学専攻研修生入試（単願）",1,"研修生政治学研究科政治学専攻研修生入試（単願）1","専門科目","なし（日本語を母語とする者のみ）"]
[null,"研修生","政治学研究科","政治学専攻","研修生入試（単願）","研修生政治学研究科政治学専攻研修生入試（単願）",2,"研修生政治学研究科政治学専攻研修生入試（単願）2","専門科目","日本語（日本語を母語とする者以外）"]
[null,"研修生","政治学研究科","国際政治学専攻","研修生入試（単願）","研修生政治学研究科国際政治学専攻研修生入試（単願）",1,"研修生政治学研究科国際政治学専攻研修生入試（単願）1","筆記試験なし","筆記試験なし"]
[null,"研修生","社会学研究科","社会学専攻","研修生入試（単願）","研修生社会学研究科社会学専攻研修生入試（単願）",1,"研修生社会学研究科社会学専攻研修生入試（単願）1","専門科目","なし"]
[null,"研修生","経営学研究科","経営学専攻","研修生入試（単願）","研修生経営学研究科経営学専攻研修生入試（単願）",1,"研修生経営学研究科経営学専攻研修生入試（単願）1","専門科目（外国国籍を有する志願者のみ）","なし"]
[null,"研修生","経営学研究科","経営学専攻","研修生入試（単願）","研修生経営学研究科経営学専攻研修生入試（単願）",2,"研修生経営学研究科経営学専攻研修生入試（単願）2","英語（日本国籍を有する志願者のみ）","なし"]
[null,"修士課程","人文科学研究科","英文学専攻","推薦枠入試","修士課程人文科学研究科英文学専攻推薦枠入試",1,"修士課程人文科学研究科英文学専攻推薦枠入試1","筆記試験なし","筆記試験なし"]
[null,"修士課程","人文科学研究科","地理学専攻","学内入試","修士課程人文科学研究科地理学専攻学内入試",1,"修士課程人文科学研究科地理学専攻学内入試1","筆記試験なし","筆記試験なし"]
[null,"修士課程","人文科学研究科","心理学専攻","学内入試","修士課程人文科学研究科心理学専攻学内入試",1,"修士課程人文科学研究科心理学専攻学内入試1","専門科目","英語"]
[null,"修士課程","国際文化研究科","国際文化専攻","学内入試","修士課程国際文化研究科国際文化専攻学内入試",1,"修士課程国際文化研究科国際文化専攻学内入試1","筆記試験なし","筆記試験なし"]
[null,"修士課程","経済学研究科","経済学専攻","学部内入試","修士課程経済学研究科経済学専攻学部内入試",1,"修士課程経済学研究科経済学専攻学部内入試1","筆記試験なし","筆記試験なし"]
[null,"修士課程","法学研究科","法律学専攻","学科内入試","修士課程法学研究科法律学専攻学科内入試",1,"修士課程法学研究科法律学専攻学科内入試1","筆記試験なし","筆記試験なし"]
[null,"修士課程","政治学研究科","政治学専攻","学内入試","修士課程政治学研究科政治学専攻学内入試",1,"修士課程政治学研究科政治学専攻学内入試1","筆記試験なし","筆記試験なし"]
[null,"修士課程","政治学研究科","国際政治学専攻","学内入試","修士課程政治学研究科国際政治学専攻学内入試",1,"修士課程政治学研究科国際政治学専攻学内入試1","筆記試験なし","筆記試験なし"]
[null,"修士課程","社会学研究科","社会学専攻","学内入試","修士課程社会学研究科社会学専攻学内入試",1,"修士課程社会学研究科社会学専攻学内入試1","筆記試験なし","筆記試験なし"]
[null,"修士課程","経営学研究科","経営学専攻","学内入試","修士課程経営学研究科経営学専攻学内入試",1,"修士課程経営学研究科経営学専攻学内入試1","筆記試験なし","筆記試験なし"]
[null,"修士課程","地域創造インスティテュート","地域創造インスティテュート","学内選抜入試","修士課程地域創造インスティテュート地域創造インスティテュート学内選抜入試",1,"修士課程地域創造インスティテュート地域創造インスティテュート学内選抜入試1","筆記試験なし","筆記試験なし"]